Workbook

Sheet Start
A1: START | F1: Excel Toolkit for Mitigation Analysis for Low-Carbon Development Planning | L1: XLMT-Livestock v17.1
D11: Disclaimer
D12: Data used has been obtained from reliable sources. The Ministry of Social Security, National Solidarity, and Environment and Sustainable Development (Environment and Sustainable Development Division) assumes no responsibility for errors and omissions in the data provided. Users are, however, kindly asked to report any errors or deficiencies in this product to the Ministry. The choices of calculation made in this tool are derived from TNC Report (2016).
D14: ©2017 Government of Mauritius and United Nations Environment Programme
D15: All rights reserved. No part of this Guideline and/or Toolkit may be produced, stored in a retrieval system or transmitted, in any form or by any means, electronic, mechanical, photocopying, recording or otherwise without prior permission from the Ministry of Social Security, National Solidarity, and Environment and Sustainable Development (Environment and Sustainable Development Division) and the United Nations Environment Programme. Results based on the use of the Toolkit must be duly acknowledged and referenced; the copyright holder’s endorsement of Users' views, products or services shall not be implied in any way.

Sheet 1. Sector
A1: SECTOR | D1: Excel Toolkit for Mitigation Analysis for Low-Carbon Development Planning | I1: XLMT-Livestock v17.1
E5: Contact Details:
C6: STAKEHOLDERS | E6: Name | F6: Email | G6: Phone Number | H6: Address
B7: Chair: | C7: FAREI | E7: Mr Avinash Keesoony | H7: FAREI
B8: Members: | C8: FAREI | E8: Mr Pritiviraj | H8: FAREI

Sheet 2. Description
A1: DESCRIPTION | E1: Excel Toolkit for Mitigation Analysis for low carbon development planning | K1: XLMT-Livestock v17.1 | N1: LIVESTOCK
B3: Mitigation Scenarios for the Livestock Sector as per TNC, 2016
B4: Scenarios | F4: Assumptions | G4: Expected GHG emissions (Gg CO2e)
B5: BAU | C5: Business-As-Usual | F5: The assumptions involves adoption of old technology (prior to 2014) with regards to manure management with an estimated animal head numbers. | G5: 2020 2025 2030 2035 2040 2045 2050 19.6; 19.2; 19.1; 19.1; 19.2; 19.4; 19.5;
B6: BAU-Enteric | C6: Business-As-Usual (Enteric) | F6: The assumptions involves adoption of old technology (prior to 2014) with regards to manure management with an estimated animal head numbers. | G6: 2020 2025 2030 2035 2040 2045 2050 34.7; 34.5; 34.7; 35.4; 36.2; 36.8; 37.5;
B7: SC1 | C7: Policy Scenario (with old technology) | F7: This scenario assumes old technology with regards to manure management with an increased livestock to enhance food security. | G7: 2020 2025 2030 2035 2040 2045 2050 36.5; 38.2; 39.9; 42.8; 45.8; 48.6; 51.3;
B8: SC2 | C8: Policy Scenario (using new technology) | F8: The scenarios considers new technology which incorporates changes in the manure management systems used in rearing, with an increased livestock to enhance food security. The penetration of anaerobic treatment of manure is expected to increase in the future compared to solid storage or aerobic treatment of manure | G8: 2020 2025 2030 2035 2040 2045 2050 36.4; 38.1; 39.9; 42.6; 45.2; 47.5; 49.8;
B9: SC3 | C9: Policy Scenario (Enteric) | F9: As SC2 for Enteric Fermentation. | G9: 2020 2025 2030 2035 2040 2045 2050 21.5; 22.5; 23.7; 25.4; 27.1; 28.7; 30.4;

Sheet 3. Query
A1: QUERY | E1: Excel Toolkit for Mitigation Analysis for Low-Carbon Development Planning | P1: XLMT-Livestock v17.1
B3: Users can analyze their results after inputting their parameters (if required) and new assumptions. The number of cases of User-defined scenarios that can be made, in addition to the TNC scenarios (labelled TNC), has been limited to two (labelled UD1 and UD2) for practical reasons. Users can visualize the impact of their assumptions and/or parameter changes made on a number of variables relevant to individual sectors including the Total CO2e emission. Full list of the variables relevant to individual sectors appear in in the individual user manuals. Results can be compared graphically or through tabular representations. Radar dashboards are provided to assess the extent of departure from the targeted annual values estimated by the original TNC studies. The Toolkit has a pdf reporting system, which provides details of the project and the results of the investigations.
A12: =#REF! -> 
A13: =#REF! -> 
A14: =#REF! -> 
A15: =#REF! -> 
A16: =#REF! -> 
A17: =#REF! -> 
A18: =#REF! -> 
A19: =#REF! -> 
A20: =#REF! -> 
A21: =#REF! -> 
A22: =#REF! -> 
A23: =#REF! -> 
A24: =#REF! -> 
A25: =#REF! -> 
A26: =#REF! -> 
A27: =#REF! -> 
A28: =#REF! -> 
A29: =#REF! -> 
A30: =#REF! -> 

Sheet 4. Data
A1: DATA | D1: Excel Toolkit for Mitigation Analysis for low carbon development planning | O1: XLMT-Livestock v17.1
F3: XLMT considers Red cells only
A4: Ruminants | BC4: delete/data repeats | BL4: Species | BM4: Year | BN4: 2006 | BO4: 2007 | BP4: 2008 | BQ4: 2009 | BR4: 2010 | BS4: 2011 | BT4: 2012 | BU4: 2013
A5: Species | B5: Goats | F5: Sheep | J5: Deer | N5: Cattles | BB5: Pig | BC5: Cattle | BK5: Cattle | BL5: Local (heads) | BM5: 6560 | BN5: 7081 | BO5: 7327 | BP5: 7237 | BQ5: 7491 | BR5: 6596 | BS5: 7302 | BT5: 7240
A6: Sources | B6: DIGEST OF AGRICULTURAL STATISTICS Table 5.1 Pg 97 | C6: MMA Annual Report Importation | D6: Transit period for slaughter 3 months | F6: DIGEST OF AGRICULTURAL STATISTICS Table 5.1 Pg 97 | G6: MMA Annual Report Importation | H6: Transit period for slaughter 3 months | J6: Under paddock system…………………………. FAREI Estimate | BB6: FAREI for 2006 & 2010- DIGEST OF AGRICULTURAL STATISTICS Table 5.1 Pg 97 | BC6: FAREI for year 2006 2007 - DIGEST OF AGRICULTURAL STATISTICS Table 5.1 Pg 97 | BD6: MMA Annual Report Importation | BE6: Transit period for slaughter 3 months | BG6: FAREI | BL6: Imported (heads) | BM6: 10772 | BN6: 7586 | BO6: 8389 | BP6: 8338 | BQ6: 8135 | BR6: 7678 | BS6: 7277 | BT6: 7045
A7: Year | B7: Local (heads) | C7: Imported (heads) | D7: Annualised figure for Imported goat | E7: Total local and imported | F7: Local (heads) | G7: Imported (heads) | H7: Annualised figure for Imported goat | I7: Total local and imported | J7: Total | N7: Total local and imported | O7: Dairy cattle (heads) | P7: Non Dairy cattle (heads) | Q7: Annualised figure for Imported cattle | R7: Local (heads) | S7: Imported (heads) | U7: 2013 SPLIT (INFO) | BC7: Local (heads) | BD7: Imported (heads) | BE7: Annualised figure for Imported cattle | BF7: Total local and imported | BG7: Dairy cattle (heads) | BH7: Non Dairy cattle (heads) | BL7: Annualised figure for Imported cattle | BM7: 2693 | BN7: 1896.5 | BO7: 2097.25 | BP7: 2084.5 | BQ7: 2033.75 | BR7: 1919.5 | BS7: 1819.25 | BT7: 1761.25
A8: 2006 | B8: 23734 | C8: 3252 | D8: 813 | E8: 24547 | F8: 1264 | G8: 55 | H8: 13.75 | I8: 1277.75 | J8: 16000 | N8: 9253 | O8: 2237 | P8: 7016 | Q8: 2693 | R8: 6560 | S8: 10772 | U8: 2874 | V8: Dairy cow | BB8: 15319 | BC8: 6560 | BD8: 10772 | BE8: 2693 | BF8: 9253 | BG8: 2237 | BH8: 7016 | BL8: Total local and imported | BM8: 9253 | BN8: 8977.5 | BO8: 9424.25 | BP8: 9321.5 | BQ8: 9524.75 | BR8: 8515.5 | BS8: 9121.25 | BT8: 9001.25
A9: 2007 | B9: 24805 | C9: 1980 | D9: 495 | E9: 25300 | F9: 1110 | G9: 323 | H9: 80.75 | I9: 1190.75 | J9: 16000 | N9: 8978 | O9: 2163 | P9: 6814.5 | Q9: 1897 | R9: 7081 | S9: 7586 | U9: 2267 | V9: Local Bull | BB9: 17413 | BC9: 7081 | BD9: 7586 | BE9: 1896.5 | BF9: 8977.5 | BG9: 2163 | BH9: 6814.5 | BL9: Dairy cattle (heads) | BM9: 2237 | BN9: 2163 | BO9: 2457 | BP9: 2316 | BQ9: 2679 | BR9: 2525 | BS9: 3022 | BT9: 2874
A10: 2008 | B10: 25994 | C10: 2414 | D10: 603.5 | E10: 26597.5 | F10: 1548 | G10: 416 | H10: 104 | I10: 1652 | J10: 16000 | N10: 9424 | O10: 2457 | P10: 6967.25 | Q10: 2097 | R10: 7327 | S10: 8389 | U10: 516 | V10: Calf | BB10: 6699 | BC10: 7327 | BD10: 8389 | BE10: 2097.25 | BF10: 9424.25 | BG10: 2457 | BH10: 6967.25 | BL10: Non Dairy cattle (heads) | BM10: 7016 | BN10: 6814.5 | BO10: 6967.25 | BP10: 7005.5 | BQ10: 6845.75 | BR10: 5990.5 | BS10: 6099.25 | BT10: 6127.25
A11: 2009 | B11: 26014 | C11: 2727 | D11: 681.75 | E11: 26695.75 | F11: 2023 | G11: 427 | H11: 106.75 | I11: 2129.75 | J11: 16000 | N11: 9322 | O11: 2316 | P11: 7005.5 | Q11: 2085 | R11: 7237 | S11: 8338 | U11: 1583 | V11: Heifer | BB11: 14108 | BC11: 7237 | BD11: 8338 | BE11: 2084.5 | BF11: 9321.5 | BG11: 2316 | BH11: 7005.5
A12: 2010 | B12: 27819 | C12: 1793 | D12: 448.25 | E12: 28267.25 | F12: 2022 | G12: 296 | H12: 74 | I12: 2096 | J12: 16000 | N12: 9525 | O12: 2679 | P12: 6845.75 | Q12: 2034 | R12: 7491 | S12: 8135 | U12: 1761 | V12: Imported bull | BB12: 22327 | BC12: 7491 | BD12: 8135 | BE12: 2033.75 | BF12: 9524.75 | BG12: 2679 | BH12: 6845.75 | BK12: Goat | BL12: Local (heads) | BM12: 23734 | BN12: 24805 | BO12: 25994 | BP12: 26014 | BQ12: 27819 | BR12: 28176 | BS12: 27430 | BT12: 25702
A13: 2011 | B13: 28176 | C13: 430 | D13: 107.5 | E13: 28283.5 | F13: 1931 | G13: 250 | H13: 62.5 | I13: 1993.5 | J13: 16000 | N13: 8516 | O13: 2525 | P13: 5990.5 | Q13: 1920 | R13: 6596 | S13: 7678 | U13: 329 | V13: Boar | BB13: 23285 | BC13: 6596 | BD13: 7678 | BE13: 1919.5 | BF13: 8515.5 | BG13: 2525 | BH13: 5990.5 | BL13: Imported (heads) | BM13: 3252 | BN13: 1980 | BO13: 2414 | BP13: 2727 | BQ13: 1793 | BR13: 430 | BS13: 395 | BT13: 923
A14: 2012 | B14: 27430 | C14: 395 | D14: 98.75 | E14: 27528.75 | F14: 2211 | G14: 204 | H14: 51 | I14: 2262 | J14: 16000 | N14: 9121 | O14: 3022 | P14: 6099.25 | Q14: 1819 | R14: 7302 | S14: 7277 | U14: 8747 | V14: Fattener | BB14: 15287 | BC14: 7302 | BD14: 7277 | BE14: 1819.25 | BF14: 9121.25 | BG14: 3022 | BH14: 6099.25 | BL14: Annualised figure for Imported goat | BM14: 813 | BN14: 495 | BO14: 603.5 | BP14: 681.75 | BQ14: 448.25 | BR14: 107.5 | BS14: 98.75 | BT14: 230.75
A15: 2013 | B15: 25702 | C15: 923 | D15: 230.75 | E15: 25932.75 | F15: 2510 | G15: 118 | H15: 29.5 | I15: 2539.5 | J15: 16000 | N15: 9001 | O15: 2874 | P15: 6127.25 | Q15: 1761 | R15: 7240 | S15: 7045 | U15: 3944 | V15: Piglet | BB15: 15961 | BC15: 7240 | BD15: 7045 | BE15: 1761.25 | BF15: 9001.25 | BG15: 2874 | BH15: 6127.25 | BL15: Total local and imported | BM15: 24547 | BN15: 25300 | BO15: 26597.5 | BP15: 26695.75 | BQ15: 28267.25 | BR15: 28283.5 | BS15: 27528.75 | BT15: 25932.75
A16: 2014 | E16: 25966.375 | I16: =(I15+I17)/2 -> 2569.75 | J16: 16000 | O16: 2887 | P16: 6113.625 | Q16: 1880.5 | U16: 2941 | V16: sow/gilt
A17: 2015 | E17: 26000 | I17: 2600 | J17: 16000 | O17: 2900 | P17: 6100 | Q17: 2000 | U17: 2539.5 | V17: Sheep | BK17: Sheep | BL17: Local (heads) | BM17: 1264 | BN17: 1110 | BO17: 1548 | BP17: 2023 | BQ17: 2022 | BR17: 1931 | BS17: 2211 | BT17: 2510
A18: 2016 | E18: 25900 | I18: 2620 | J18: 15800 | O18: 2860 | P18: 6040 | Q18: 2020 | U18: 25932.75 | V18: Goat | BK18: Pig | BL18: x | BM18: 15319 | BN18: 17413 | BO18: 6699 | BP18: 14108 | BQ18: 22327 | BR18: 23285 | BS18: 15287 | BT18: 15961
A19: 2017 | E19: 25800 | I19: 2640 | J19: 15600 | O19: 2820 | P19: 5980 | Q19: 2040 | U19: 855 | V19: Horse | BL19: No of cycle/year (Cycle 2 months) | BM19: 6 | BN19: 6 | BO19: 6 | BP19: 6 | BQ19: 6 | BR19: 6 | BS19: 6 | BT19: 6
A20: 2018 | E20: 25700 | I20: 2660 | J20: 15400 | O20: 2780 | P20: 5920 | Q20: 2060 | U20: 5200000 | V20: Broiler | BK20: Eggs (million) | BL20: Local production | BM20: 228.5 | BN20: 211.8 | BO20: 211.8 | BP20: 170.9 | BQ20: 185.4 | BR20: 185.4 | BS20: 203.6 | BT20: 205.5
A21: 2019 | E21: 25600 | I21: 2680 | J21: 15200 | O21: 2740 | P21: 5860 | Q21: 2080 | U21: 104000 | V21: Broiler parent | BK21: Duck | BM21: 5500 | BN21: 5758 | BO21: 6126 | BP21: 7653 | BQ21: 7653 | BR21: 8077 | BS21: 7194 | BT21: 8497
A22: 2020 | E22: 25500 | I22: 2700 | J22: 15000 | O22: 2700 | P22: 5800 | Q22: 2100 | U22: 687283.3333 | V22: Layer/Parent | BL22: Number of Pekin ducks (Cycle: 2 months) | BM22: 458.3333333 | BN22: 479.8333333 | BO22: 510.5 | BP22: 1606.666667 | BQ22: 2689.833333 | BR22: 3889.5 | BS22: 2370 | BT22: 1279.333333
A23: 2025 | E23: 25500 | I23: 2700 | J23: 15000 | O23: 2500 | P23: 5600 | Q23: 2200 | U23: 6648.833333 | V23: Duck
A24: 2030 | E24: 25000 | I24: 2800 | J24: 15250 | O24: 2400 | P24: 5500 | Q24: 2300 | U24: 16000 | V24: Deer
A25: 2035 | E25: 25000 | I25: 2900 | J25: 15350 | O25: 2400 | P25: 5500 | Q25: 2650
A26: 2040 | E26: 25000 | I26: 3000 | J26: 15500 | O26: 2400 | P26: 5500 | Q26: 3000
A27: 2045 | E27: 24900 | I27: 3000 | J27: 15750 | O27: 2425 | P27: 5515 | Q27: 3250 | BK27: Horse | BM27: 655 | BN27: 700 | BO27: 725 | BP27: 750 | BQ27: 775 | BR27: 800 | BS27: 824 | BT27: 855
A28: 2050 | E28: 24800 | I28: 3000 | J28: 16000 | O28: 2450 | P28: 5530 | Q28: 3500
A30: POULTRY | B30: Chicken meat (T) | I30: Eggs (million) | N30: Ducks | V30: Total poultry
A31: Sources | B31: FOOD BALANCE SHEETS Table 6.4 Pg 127/128 | I31: FOOD BALANCE SHEETS Table 6.4 Pg 127/128 | N31: FAREI | O31: APD, MAIFS | P31: APD, MAIFS
A32: Year | B32: Local production | C32: Convertion to number of broilers (Assumption: 1.5kg/carcass LWT) | D32: Total broilers | E32: No of cycle/year (Cycle 2 months) | F32: Total broiler per year | G32: Conversion to number of parents stock (300 eggs/year)- Broiler parent stock | H32: Total broilers and parent stock | I32: Local production | J32: Convertion to number of layers (Assumption: 300 eggs/layer) | K32: Conversion to number of parents stock (300 eggs/year) | L32: Total layers and parent stock | M32: M | O32: Assumption ratio Muskovy: Pekin 1:1 | P32: No of Muskovy ducks | Q32: Parent stock of Pekin ducks | R32: Number of Pekin ducklings sold/year | S32: Number of Pekin ducks (Cycle: 2 months) | T32: Total number of ducks | U32: Sum (G+L+T) | V32: Broiler + Layer + Duck (birds)
A33: 2006 | B33: 36000 | C33: 1.5 | D33: 24000000 | E33: 6 | F33: 4000000 | G33: =F33/50 -> 80000 | H33: =F33+G33 -> 4080000 | I33: 228.5 | J33: 761666.6667 | K33: 2538.888889 | L33: 764205.5556 | N33: 5500 | O33: 2 | P33: 2750 | Q33: 0 | R33: n/a | S33: 458.3333333 | T33: 3208.333333 | U33: =G33+L33+T33 -> 847413.8889 | V33: 4847413.889
A34: 2007 | B34: 40160 | C34: 1.5 | D34: 26773333.33 | E34: 6 | F34: 4462222.222 | G34: =F34/50 -> 89244.44444 | H34: =F34+G34 -> 4551466.667 | I34: 211.8 | J34: 706000 | K34: 2353.333333 | L34: 708353.3333 | N34: 5758 | O34: 2 | P34: 2879 | Q34: 0 | R34: n/a | S34: 479.8333333 | T34: 3358.833333 | U34: 800956.6111 | V34: 5263178.833
A35: 2008 | B35: 42200 | C35: 1.5 | D35: 28133333.33 | E35: 6 | F35: 4688888.889 | G35: 93777.77778 | H35: 4782666.667 | I35: 211.8 | J35: 706000 | K35: 2353.333333 | L35: 708353.3333 | N35: 6126 | O35: 2 | P35: 3063 | Q35: 0 | R35: n/a | S35: 510.5 | T35: 3573.5 | U35: 805704.6111 | V35: 5494593.5
A36: 2009 | B36: 44200 | C36: 1.5 | D36: 29466666.67 | E36: 6 | F36: 4911111.111 | G36: 98222.22222 | H36: 5009333.333 | I36: 170.9 | J36: 569666.6667 | K36: 1898.888889 | L36: 571565.5556 | N36: 7653 | O36: 2 | P36: 3826.5 | Q36: 400 | R36: 9640 | S36: 1606.666667 | T36: 5833.166667 | U36: 675620.9444 | V36: 5586732.056
A37: 2010 | B37: 46200 | C37: 1.5 | D37: 30800000 | E37: 6 | F37: 5133333.333 | G37: 102666.6667 | H37: 5236000 | I37: 185.4 | J37: 618000 | K37: 2060 | L37: 620060 | N37: 7653 | O37: 2 | P37: 3826.5 | Q37: 513 | R37: 16139 | S37: 2689.833333 | T37: 7029.333333 | U37: 729756 | V37: 5863089.333
A38: 2011 | B38: 47200 | C38: 1.5 | D38: 31466666.67 | E38: 6 | F38: 5244444.444 | G38: 104888.8889 | H38: 5349333.333 | I38: 185.4 | J38: 618000 | K38: 2060 | L38: 620060 | N38: 8077 | O38: 2 | P38: 4038.5 | Q38: 699 | R38: 23337 | S38: 3889.5 | T38: 8627 | U38: 733575.8889 | V38: 5978020.333
A39: 2012 | B39: 47400 | C39: 1.5 | D39: 31600000 | E39: 6 | F39: 5266666.667 | G39: 105333.3333 | H39: 5372000 | I39: 203.6 | J39: 678666.6667 | K39: 2262.222222 | L39: 680928.8889 | N39: 7194 | O39: 2 | P39: 3597 | Q39: 1060 | R39: 14220 | S39: 2370 | T39: 7027 | U39: 793289.2222 | V39: 6059955.889
A40: 2013 | B40: 46800 | C40: 1.5 | D40: 31200000 | E40: 6 | F40: 5200000 | G40: 104000 | H40: 5304000 | I40: 205.5 | J40: 685000 | K40: 2283.333333 | L40: 687283.3333 | N40: 8497 | O40: 2 | P40: 4248.5 | Q40: 1121 | R40: 7676 | S40: 1279.333333 | T40: 6648.833333 | U40: 797932.1667 | V40: 5997932.167
A41: 2014 | F41: 5250000 | L41: 668641.6667 | T41: 6324.416667 | U41: 674966.0833
A42: 2015 | F42: 5300000 | L42: 650000 | T42: 6000 | U42: 656000
A43: 2016 | F43: 5340000 | L43: 655000 | T43: 6200 | U43: 661200
A44: 2017 | F44: 5380000 | L44: 660000 | T44: 6400 | U44: 666400
A45: 2018 | F45: 5420000 | L45: 665000 | T45: 6600 | U45: 671600
A46: 2019 | F46: 5460000 | L46: 670000 | T46: 6800 | U46: 676800
A47: 2020 | F47: 5500000 | L47: 675000 | T47: 7000 | U47: 682000
A48: 2025 | F48: 5700000 | L48: 685000 | T48: 8000 | U48: 693000
A49: 2030 | F49: 5800000 | L49: 690000 | T49: 9000 | U49: 699000
A50: 2035 | F50: 5950000 | L50: 710000 | T50: 10500 | U50: 720500
A51: 2040 | F51: 6100000 | L51: 725000 | T51: 12000 | U51: 737000
A52: 2045 | F52: 6300000 | L52: 737500 | T52: 12500 | U52: 750000
A53: 2050 | F53: 6500000 | L53: 750000 | T53: 13000 | U53: 763000
A55: Others | B55: Pigs | H55: Horses
C56: 22 | D56: 24 | E56: 25
A57: Note: Year 2007/2008: African Swine Fever | B57: YEAR | C57: Plaines Wilhems/ Moka | D57: Flacq/Palmar LPU | E57: Pamplemousses/Grand Port/ Savanne/ Black River/ Port Louis | F57: Grand Total | H57: Mauritius Turf Club
B58: 2006 | C58: 581 | D58: 2785 | E58: 11953 | F58: 15319 | H58: 655
B59: 2007 | C59: 659 | D59: 2991 | E59: 13763 | F59: 17413 | H59: 700
B60: 2008 | C60: 753 | D60: 1366 | E60: 4580 | F60: 6699 | H60: 725
B61: 2009 | C61: 720 | D61: 3560 | E61: 9828 | F61: 14108 | H61: 750
B62: 2010 | C62: 1266 | D62: 3533 | E62: 17528 | F62: 22327 | H62: 775
B63: 2011 | C63: 1343 | D63: 3355 | E63: 18587 | F63: 23285 | H63: 800
B64: 2012 | C64: 1419 | D64: 3354 | E64: 10514 | F64: 15287 | H64: 824
B65: 2013 | C65: 1389 | D65: 3034 | E65: 11538 | F65: 15961 | H65: 855
B66: 2014 | F66: 18480.5 | H66: 855
B67: 2015 | F67: 21000 | H67: 855
B68: 2016 | F68: 21200 | H68: 855
B69: 2017 | F69: 21400 | H69: 855
B70: 2018 | F70: 21600 | H70: 855
B71: 2019 | F71: 21800 | H71: 855
B72: 2020 | F72: 22000 | H72: 855
B73: 2025 | F73: 22000 | H73: 855
B74: 2030 | F74: 22500 | H74: 855
B75: 2035 | F75: 22750 | H75: 855
B76: 2040 | F76: 23000 | H76: 855
B77: 2045 | F77: 23000 | H77: 855
B78: 2050 | F78: 23000 | H78: 855

Sheet .. (hidden)

Sheet Diff (hidden)
A1: Variable1 | B1: Variable2 | C1: %Change
A2: 19.91576875 | B2: 33.52657024 | C2: =(B2-A2)*100/A2 -> 68.34183336
A3: 19.83035625 | B3: 32.97487335 | C3: =(B3-A3)*100/A3 -> 66.28482584
A4: 20.25008125 | B4: 32.92723395 | C4: 62.60297201
A5: 20.38605 | B5: 33.40750262 | C5: 63.87432888
A6: 21.0886375 | B6: 34.84868375 | C6: 65.24862617
A7: 20.2731375 | B7: 33.99727038 | C7: 67.69614658
A8: 20.6790375 | B8: 34.05260133 | C8: 64.67208075
A9: 20.396525 | B9: 33.60230542 | C9: 64.74524667
A10: 20.4718875 | B10: 33.64804514 | C10: 64.36220227
A11: 20.54725 | B11: 35.26888746 | C11: 71.64772638
A12: 20.34975 | B12: 35.12265116 | C12: 72.59500072
A13: 20.15225 | B13: 34.97641486 | C13: 73.56084238
A14: 19.95475 | B14: 34.83017856 | C14: 74.54580267
A15: 19.75725 | B15: 34.68394226 | C15: 75.55045494
A16: 19.55975 | B16: 34.65877983 | C16: 77.19439065
A17: 19.17475 | B17: 34.53092275 | C17: 80.08538704
A18: 19.06975 | B18: 34.65803041 | C18: 81.74349641
A19: 19.1385 | B19: 35.40248986 | C19: 84.98048364
A20: 19.23225 | B20: 36.1558601 | C20: 87.99599685
A21: 19.385125 | B21: 36.84934071 | C21: 90.09080784
A22: 19.538 | B22: 37.54282132 | C22: 92.15283715

Sheet TNC Scenarios (hidden)
AH3: New Technology | AK3: New Technology | AN3: New Technology | AQ3: New Technology | AT3: New Technology | AW3: New Technology | BD3: New Technolgy | BG3: New Technolgy | BJ3: New Technolgy | BO3: OLD TECHNOLOGY | BR3: OLD TECHNOLOGY | BT3: OLD TECHNOLOGY | BV3: OLD TECHNOLOGY | BX3: OLD TECHNOLOGY
B4: BAU - CO2e from enteric fermentation, Gg/yr | K4: BAU - CO2e emissions from livestock manure management, Gg/yr | U4: BAU - CO2e emissions from livestock manure management, Gg/yr | AI4: Policy - CO2e from enteric fermentation, Gg/yr | AR4: Policy scenario - CO2e emissions from livestock manure management, Gg/yr | BB4: Policy scenario - CO2e emissions from livestock manure, Gg/yr | BO4: Policy with MMS unchanged, Gg CO2e | BQ4: Policy scenario without technological change - CO2e emissions from livestock manure, Gg/yr
B5: CALCULATING EMISSIONS FROM ENTERIC FERMENTATION | I5: Gg CO2e | K5: CALCULATING DIRECT CH4 EMISSIONS FROM MANURE MANAGEMENT SYSTEM | R5: Gg CO2e | U5: CALCULATING N20 EMISSIONS FROM MANURE MANAGEMENT | AC5: Gg CO2e | AE5: All | AI5: CALCULATING EMISSIONS FROM ENTERIC FERMENTATION | AP5: Gg CO2e | AR5: CALCULATING DIRECT CH4 EMISSIONS FROM MANURE MANAGEMENT SYSTEM | AZ5: Gg CO2e | BB5: CALCULATING N20 EMISSIONS FROM MANURE MANAGEMENT | BJ5: Gg CO2e | BK5: Gg CO2e
A6: YEAR | B6: Dairy cows | C6: other cattle | D6: sheep | E6: goats | F6: horses | G6: swine | H6: other (deer) | I6: Total Enteric | K6: Dairy cows | L6: other cattle | M6: sheep | N6: goats | O6: horses | P6: swine | Q6: Poultry | R6: other (deer) | S6: Total LMMCH4 | U6: Dairy cows | V6: other cattle | W6: sheep | X6: goats | Y6: horses | Z6: swine | AA6: Poultry | AB6: other (deer) | AC6: Total LMMN2O | AE6: BAU Total | AH6: YEAR | AI6: Dairy cows | AJ6: other cattle | AK6: sheep | AL6: goats | AM6: horses | AN6: swine | AO6: other (deer) | AP6: Enteric | AR6: Dairy cows | AS6: other cattle | AT6: sheep | AU6: goats | AV6: horses | AW6: swine | AX6: Poultry | AY6: other (deer) | AZ6: Total LMMCH4 | BB6: Dairy cows | BC6: other cattle | BD6: sheep | BE6: goats | BF6: horses | BG6: swine | BH6: Poultry | BI6: other (deer) | BJ6: Total LMMN2O | BK6: All Total | BN6: YEAR | BO6: Enteric | BP6: LMMCH4 | BQ6: Dairy cows | BR6: other cattle | BS6: sheep | BT6: goats | BU6: horses | BV6: swine | BW6: Poultry | BX6: other (deer) | BY6: LMMN2O | BZ6: Total | CE6: i | CF6: ap | CG6: ae | CH6: bk | CI6: ca
A7: 2006 | B7: ='6. TNC Assumptions'!T9*'5. TNC Parameters'!$C$5*'5. TNC Parameters'!B$27*0.000001 -> 2.57255 | C7: ='6. TNC Assumptions'!V9*'5. TNC Parameters'!$C$6*'5. TNC Parameters'!B$27*0.000001 -> 5.4374 | D7: ='6. TNC Assumptions'!E9*'5. TNC Parameters'!$C$11*'5. TNC Parameters'!B$27*0.000001 -> 0.15971875 | E7: ='6. TNC Assumptions'!C9*'5. TNC Parameters'!$C$12*'5. TNC Parameters'!B$27*0.000001 -> 3.068375 | F7: ='6. TNC Assumptions'!G9*'5. TNC Parameters'!$C$13*'5. TNC Parameters'!B$27*0.000001 -> 0.29475 | G7: ='6. TNC Assumptions'!Z9*'5. TNC Parameters'!$C$16*'5. TNC Parameters'!B$27*0.000001 -> 0.382975 | H7: ='6. TNC Assumptions'!I9*'5. TNC Parameters'!$C$25*'5. TNC Parameters'!B$27*0.000001 -> 8 | I7: =SUM(B7:H7) -> 19.91576875 | K7: ='6. TNC Assumptions'!T9*'5. TNC Parameters'!$D$5*'5. TNC Parameters'!B$27*0.000001 -> 0.055925 | L7: ='6. TNC Assumptions'!V9*'5. TNC Parameters'!$D$6*'5. TNC Parameters'!B$27*0.000001 -> 0.1754 | M7: ='6. TNC Assumptions'!E9*'5. TNC Parameters'!$D$11*'5. TNC Parameters'!B$27*0.000001 -> 0.0047915625 | N7: ='6. TNC Assumptions'!C9*'5. TNC Parameters'!$D$12*'5. TNC Parameters'!B$27*0.000001 -> 0.10432475 | O7: ='6. TNC Assumptions'!G9*'5. TNC Parameters'!$D$13*'5. TNC Parameters'!B$27*0.000001 -> 0.026855 | P7: ='6. TNC Assumptions'!Z9*'5. TNC Parameters'!$D$16*'5. TNC Parameters'!B$27*0.000001 -> 0.382975 | Q7: =(('6. TNC Assumptions'!K$9*'5. TNC Parameters'!$D$20)+(('6. TNC Assumptions'!R9)*'5. TNC Parameters'!$D$22))*'5. TNC Parameters'!B$27*0.000001 -> 2.635560417 | R7: ='6. TNC Assumptions'!I9*'5. TNC Parameters'!$D$25*'5. TNC Parameters'!B$27*0.000001 -> 0.088 | S7: =SUM(K7:R7) -> 3.473831729 | U7: ='TNC LS'!J$4 -> 0.5582421356 | V7: ='TNC LS'!J$9 -> 3.786616672 | W7: ='6. TNC Assumptions'!E9*'TNC LS'!$FP$29*'TNC LS'!$FQ$29*'5. TNC Parameters'!$B$28*365*0.001*(44/28)*0.000001*(('TNC LS'!$FI$29*'5. TNC Parameters'!$C$59)+('TNC LS'!$FK$29*'5. TNC Parameters'!$E$59)) -> 0.05921820893 | X7: ='6. TNC Assumptions'!C9*'TNC LS'!$FP$30*'TNC LS'!$FQ$30*'5. TNC Parameters'!$B$28*365*0.001*(44/28)*0.000001*(('TNC LS'!$FI$30*'5. TNC Parameters'!$C$60)+('TNC LS'!$FK$30*'5. TNC Parameters'!$E$60)) -> 0.9398109925 | Z7: ='TNC LS'!$E$34 -> 1.264546964 | AA7: =(('6. TNC Assumptions'!K$9*'TNC LS'!$FP$32*'TNC LS'!$FQ$32*'5. TNC Parameters'!$H$62)+((('6. TNC Assumptions'!K9/50)*'TNC LS'!$FP$33*'TNC LS'!$FQ$33)+('6. TNC Assumptions'!P9*'TNC LS'!$FP$35*'TNC LS'!$FQ$35)+('6. TNC Assumptions'!M9*'TNC LS'!$FP$34*'TNC LS'!$FQ$34))*'5. TNC Parameters'!$H$63)*'5. TNC Parameters'!$B$28*365*0.001*0.000001*44/28 -> 3.528534789 | AC7: =SUM(U7:AB7) -> 10.13696976 | AE7: =I7+S7+AC7 -> 33.52657024 | AH7: =A7 -> 2006 | AI7: ='TNC Scenarios'!B7 -> 2.57255 | AJ7: ='TNC Scenarios'!C7 -> 5.4374 | AK7: ='TNC Scenarios'!D7 -> 0.15971875 | AL7: ='TNC Scenarios'!E7 -> 3.068375 | AM7: ='TNC Scenarios'!F7 -> 0.29475 | AN7: ='TNC Scenarios'!G7 -> 0.382975 | AO7: ='TNC Scenarios'!H7 -> 8 | AP7: =SUM(AI7:AO7) -> 19.91576875 | AR7: ='TNC Scenarios'!K7 -> 0.055925 | AS7: ='TNC Scenarios'!L7 -> 0.1754 | AT7: ='TNC Scenarios'!M7 -> 0.0047915625 | AU7: ='TNC Scenarios'!N7 -> 0.10432475 | AV7: ='TNC Scenarios'!O7 -> 0.026855 | AW7: ='TNC Scenarios'!P7 -> 0.382975 | AX7: ='TNC Scenarios'!Q7 -> 2.635560417 | AY7: ='TNC Scenarios'!R7 -> 0.088 | AZ7: =SUM(AR7:AY7) -> 3.473831729 | BB7: ='TNC Scenarios'!U7 -> 0.5582421356 | BC7: ='TNC Scenarios'!V7 -> 3.786616672 | BD7: ='TNC Scenarios'!W7 -> 0.05921820893 | BE7: ='TNC Scenarios'!X7 -> 0.9398109925 | BG7: ='TNC Scenarios'!Z7 -> 1.264546964 | BH7: ='TNC Scenarios'!AA7 -> 3.528534789 | BJ7: =SUM(BB7:BI7) -> 10.13696976 | BK7: =AP7+AZ7+BJ7 -> 33.52657024 | BN7: =AH7 -> 2006 | BO7: =AP7 -> 19.91576875 | BP7: =AZ7 -> 3.473831729 | BQ7: ='TNC Scenarios'!BB7 -> 0.5582421356 | BR7: ='TNC Scenarios'!BC7 -> 3.786616672 | BS7: ='TNC Scenarios'!BD7 -> 0.05921820893 | BT7: ='TNC Scenarios'!BE7 -> 0.9398109925 | BV7: ='TNC Scenarios'!BG7 -> 1.264546964 | BW7: ='TNC Scenarios'!BH7 -> 3.528534789 | BY7: =SUM(BQ7:BX7) -> 10.13696976 | BZ7: =BO7+BP7+BY7 -> 33.52657024 | CB7: =BZ7-BK7 -> 0 | CE7: 19.91576875 | CF7: 19.91576875 | CG7: 33.52657024 | CH7: 33.52657024 | CI7: 33.52657024
A8: 2007 | B8: ='6. TNC Assumptions'!T10*'5. TNC Parameters'!$C$5*'5. TNC Parameters'!B$27*0.000001 -> 2.48745 | C8: ='6. TNC Assumptions'!V10*'5. TNC Parameters'!$C$6*'5. TNC Parameters'!B$27*0.000001 -> 5.2812375 | D8: ='6. TNC Assumptions'!E10*'5. TNC Parameters'!$C$11*'5. TNC Parameters'!B$27*0.000001 -> 0.14884375 | E8: ='6. TNC Assumptions'!C10*'5. TNC Parameters'!$C$12*'5. TNC Parameters'!B$27*0.000001 -> 3.1625 | F8: ='6. TNC Assumptions'!G10*'5. TNC Parameters'!$C$13*'5. TNC Parameters'!B$27*0.000001 -> 0.315 | G8: ='6. TNC Assumptions'!Z10*'5. TNC Parameters'!$C$16*'5. TNC Parameters'!B$27*0.000001 -> 0.435325 | H8: ='6. TNC Assumptions'!I10*'5. TNC Parameters'!$C$25*'5. TNC Parameters'!B$27*0.000001 -> 8 | I8: 19.83035625 | K8: ='6. TNC Assumptions'!T10*'5. TNC Parameters'!$D$5*'5. TNC Parameters'!B$27*0.000001 -> 0.054075 | L8: ='6. TNC Assumptions'!V10*'5. TNC Parameters'!$D$6*'5. TNC Parameters'!B$27*0.000001 -> 0.1703625 | M8: ='6. TNC Assumptions'!E10*'5. TNC Parameters'!$D$11*'5. TNC Parameters'!B$27*0.000001 -> 0.0044653125 | N8: ='6. TNC Assumptions'!C10*'5. TNC Parameters'!$D$12*'5. TNC Parameters'!B$27*0.000001 -> 0.107525 | O8: ='6. TNC Assumptions'!G10*'5. TNC Parameters'!$D$13*'5. TNC Parameters'!B$27*0.000001 -> 0.0287 | P8: ='6. TNC Assumptions'!Z10*'5. TNC Parameters'!$D$16*'5. TNC Parameters'!B$27*0.000001 -> 0.435325 | Q8: =(('6. TNC Assumptions'!K$10*'5. TNC Parameters'!$D$20)+(('6. TNC Assumptions'!R10)*'5. TNC Parameters'!$D$22))*'5. TNC Parameters'!B$27*0.000001 -> 2.831828569 | R8: ='6. TNC Assumptions'!I10*'5. TNC Parameters'!$D$25*'5. TNC Parameters'!B$27*0.000001 -> 0.088 | S8: 3.720281382 | U8: ='TNC LS'!Z$4 -> 0.5397754758 | V8: ='TNC LS'!Z$9 -> 2.872454623 | W8: ='6. TNC Assumptions'!E10*'TNC LS'!$FP$29*'TNC LS'!$FQ$29*'5. TNC Parameters'!$B$28*365*0.001*(44/28)*0.000001*(('TNC LS'!$FI$29*'5. TNC Parameters'!$C$59)+('TNC LS'!$FK$29*'5. TNC Parameters'!$E$59)) -> 0.05518613365 | X8: ='6. TNC Assumptions'!C10*'TNC LS'!$FP$30*'TNC LS'!$FQ$30*'5. TNC Parameters'!$B$28*365*0.001*(44/28)*0.000001*(('TNC LS'!$FI$30*'5. TNC Parameters'!$C$60)+('TNC LS'!$FK$30*'5. TNC Parameters'!$E$60)) -> 0.9686404901 | Z8: ='TNC LS'!$U$34 -> 1.416377562 | AA8: =(('6. TNC Assumptions'!K10*'TNC LS'!$FP$32*'TNC LS'!$FQ$32)*'5. TNC Parameters'!$H$62+((('6. TNC Assumptions'!K10/50)*'TNC LS'!$FP$33*'TNC LS'!$FQ$33)+('6. TNC Assumptions'!P10*'TNC LS'!$FP$35*'TNC LS'!$FQ$35)+('6. TNC Assumptions'!M10*'TNC LS'!$FP$34*'TNC LS'!$FQ$34))*'5. TNC Parameters'!$H$63)*'5. TNC Parameters'!$B$28*365*0.001*0.000001*44/28 -> 3.571801436 | AC8: 9.424235721 | AE8: 32.97487335 | AH8: 2007 | AI8: ='TNC Scenarios'!B8 -> 2.48745 | AJ8: ='TNC Scenarios'!C8 -> 5.2812375 | AK8: ='TNC Scenarios'!D8 -> 0.14884375 | AL8: ='TNC Scenarios'!E8 -> 3.1625 | AM8: ='TNC Scenarios'!F8 -> 0.315 | AN8: ='TNC Scenarios'!G8 -> 0.435325 | AO8: ='TNC Scenarios'!H8 -> 8 | AP8: 19.83035625 | AR8: ='TNC Scenarios'!K8 -> 0.054075 | AS8: ='TNC Scenarios'!L8 -> 0.1703625 | AT8: ='TNC Scenarios'!M8 -> 0.0044653125 | AU8: ='TNC Scenarios'!N8 -> 0.107525 | AV8: ='TNC Scenarios'!O8 -> 0.0287 | AW8: ='TNC Scenarios'!P8 -> 0.435325 | AX8: ='TNC Scenarios'!Q8 -> 2.831828569 | AY8: ='TNC Scenarios'!R8 -> 0.088 | AZ8: 3.720281382 | BB8: ='TNC Scenarios'!U8 -> 0.5397754758 | BC8: ='TNC Scenarios'!V8 -> 2.872454623 | BD8: ='TNC Scenarios'!W8 -> 0.05518613365 | BE8: ='TNC Scenarios'!X8 -> 0.9686404901 | BG8: ='TNC Scenarios'!Z8 -> 1.416377562 | BH8: ='TNC Scenarios'!AA8 -> 3.571801436 | BJ8: 9.424235721 | BK8: 32.97487335 | BN8: 2007 | BO8: 19.83035625 | BP8: 3.720281382 | BQ8: ='TNC Scenarios'!BB8 -> 0.5397754758 | BR8: ='TNC Scenarios'!BC8 -> 2.872454623 | BS8: ='TNC Scenarios'!BD8 -> 0.05518613365 | BT8: ='TNC Scenarios'!BE8 -> 0.9686404901 | BV8: ='TNC Scenarios'!BG8 -> 1.416377562 | BW8: ='TNC Scenarios'!BH8 -> 3.571801436 | BY8: =SUM(BQ8:BX8) -> 9.424235721 | BZ8: 32.97487335 | CB8: 0 | CE8: 19.83035625 | CF8: 19.83035625 | CG8: 32.97487335 | CH8: 32.97487335 | CI8: 32.97487335
A9: 2008 | B9: ='6. TNC Assumptions'!T11*'5. TNC Parameters'!$C$5*'5. TNC Parameters'!B$27*0.000001 -> 2.82555 | C9: ='6. TNC Assumptions'!V11*'5. TNC Parameters'!$C$6*'5. TNC Parameters'!B$27*0.000001 -> 5.39961875 | D9: ='6. TNC Assumptions'!E11*'5. TNC Parameters'!$C$11*'5. TNC Parameters'!B$27*0.000001 -> 0.2065 | E9: ='6. TNC Assumptions'!C11*'5. TNC Parameters'!$C$12*'5. TNC Parameters'!B$27*0.000001 -> 3.3246875 | F9: ='6. TNC Assumptions'!G11*'5. TNC Parameters'!$C$13*'5. TNC Parameters'!B$27*0.000001 -> 0.32625 | G9: ='6. TNC Assumptions'!Z11*'5. TNC Parameters'!$C$16*'5. TNC Parameters'!B$27*0.000001 -> 0.167475 | H9: ='6. TNC Assumptions'!I11*'5. TNC Parameters'!$C$25*'5. TNC Parameters'!B$27*0.000001 -> 8 | I9: 20.25008125 | K9: ='6. TNC Assumptions'!T11*'5. TNC Parameters'!$D$5*'5. TNC Parameters'!B$27*0.000001 -> 0.061425 | L9: ='6. TNC Assumptions'!V11*'5. TNC Parameters'!$D$6*'5. TNC Parameters'!B$27*0.000001 -> 0.17418125 | M9: ='6. TNC Assumptions'!E11*'5. TNC Parameters'!$D$11*'5. TNC Parameters'!B$27*0.000001 -> 0.006195 | N9: ='6. TNC Assumptions'!C11*'5. TNC Parameters'!$D$12*'5. TNC Parameters'!B$27*0.000001 -> 0.113039375 | O9: ='6. TNC Assumptions'!G11*'5. TNC Parameters'!$D$13*'5. TNC Parameters'!B$27*0.000001 -> 0.029725 | P9: ='6. TNC Assumptions'!Z11*'5. TNC Parameters'!$D$16*'5. TNC Parameters'!B$27*0.000001 -> 0.167475 | Q9: =(('6. TNC Assumptions'!K11*'5. TNC Parameters'!$D$20)+(('6. TNC Assumptions'!R11)*'5. TNC Parameters'!$D$22))*'5. TNC Parameters'!B$27*0.000001 -> 2.948722903 | R9: ='6. TNC Assumptions'!I11*'5. TNC Parameters'!$D$25*'5. TNC Parameters'!B$27*0.000001 -> 0.088 | S9: 3.588763528 | U9: ='TNC LS'!AP$4 -> 0.6131430162 | V9: ='TNC LS'!AP$9 -> 3.115219455 | W9: ='6. TNC Assumptions'!E11*'TNC LS'!$FP$29*'TNC LS'!$FQ$29*'5. TNC Parameters'!$B$28*365*0.001*(44/28)*0.000001*(('TNC LS'!$FI$29*'5. TNC Parameters'!$C$59)+('TNC LS'!$FK$29*'5. TNC Parameters'!$E$59)) -> 0.07656308444 | X9: ='6. TNC Assumptions'!C11*'TNC LS'!$FP$30*'TNC LS'!$FQ$30*'5. TNC Parameters'!$B$28*365*0.001*(44/28)*0.000001*(('TNC LS'!$FI$30*'5. TNC Parameters'!$C$60)+('TNC LS'!$FK$30*'5. TNC Parameters'!$E$60)) -> 1.018316816 | Z9: ='TNC LS'!$AK$35 -> 0.6025301564 | AA9: =(('6. TNC Assumptions'!K11*'TNC LS'!$FP$32*'TNC LS'!$FQ$32)*'5. TNC Parameters'!$H$62+((('6. TNC Assumptions'!K11/50)*'TNC LS'!$FP$33*'TNC LS'!$FQ$33)+('6. TNC Assumptions'!P11*'TNC LS'!$FP$35*'TNC LS'!$FQ$35)+('6. TNC Assumptions'!M11*'TNC LS'!$FP$34*'TNC LS'!$FQ$34))*'5. TNC Parameters'!$H$63)*'5. TNC Parameters'!$B$28*365*0.001*0.000001*44/28 -> 3.662616642 | AC9: 9.088389169 | AE9: 32.92723395 | AH9: 2008 | AI9: ='TNC Scenarios'!B9 -> 2.82555 | AJ9: ='TNC Scenarios'!C9 -> 5.39961875 | AK9: ='TNC Scenarios'!D9 -> 0.2065 | AL9: ='TNC Scenarios'!E9 -> 3.3246875 | AM9: ='TNC Scenarios'!F9 -> 0.32625 | AN9: ='TNC Scenarios'!G9 -> 0.167475 | AO9: ='TNC Scenarios'!H9 -> 8 | AP9: 20.25008125 | AR9: ='TNC Scenarios'!K9 -> 0.061425 | AS9: ='TNC Scenarios'!L9 -> 0.17418125 | AT9: ='TNC Scenarios'!M9 -> 0.006195 | AU9: ='TNC Scenarios'!N9 -> 0.113039375 | AV9: ='TNC Scenarios'!O9 -> 0.029725 | AW9: ='TNC Scenarios'!P9 -> 0.167475 | AX9: ='TNC Scenarios'!Q9 -> 2.948722903 | AY9: ='TNC Scenarios'!R9 -> 0.088 | AZ9: 3.588763528 | BB9: ='TNC Scenarios'!U9 -> 0.6131430162 | BC9: ='TNC Scenarios'!V9 -> 3.115219455 | BD9: ='TNC Scenarios'!W9 -> 0.07656308444 | BE9: ='TNC Scenarios'!X9 -> 1.018316816 | BG9: ='TNC Scenarios'!Z9 -> 0.6025301564 | BH9: ='TNC Scenarios'!AA9 -> 3.662616642 | BJ9: 9.088389169 | BK9: 32.92723395 | BN9: 2008 | BO9: 20.25008125 | BP9: 3.588763528 | BQ9: ='TNC Scenarios'!BB9 -> 0.6131430162 | BR9: ='TNC Scenarios'!BC9 -> 3.115219455 | BS9: ='TNC Scenarios'!BD9 -> 0.07656308444 | BT9: ='TNC Scenarios'!BE9 -> 1.018316816 | BV9: ='TNC Scenarios'!BG9 -> 0.6025301564 | BW9: ='TNC Scenarios'!BH9 -> 3.662616642 | BY9: 9.088389169 | BZ9: 32.92723395 | CB9: 0 | CE9: 20.25008125 | CF9: 20.25008125 | CG9: 32.92723395 | CH9: 32.92723395 | CI9: 32.92723395
A10: 2009 | B10: ='6. TNC Assumptions'!T12*'5. TNC Parameters'!$C$5*'5. TNC Parameters'!B$27*0.000001 -> 2.6634 | C10: ='6. TNC Assumptions'!V12*'5. TNC Parameters'!$C$6*'5. TNC Parameters'!B$27*0.000001 -> 5.4292625 | D10: ='6. TNC Assumptions'!E12*'5. TNC Parameters'!$C$11*'5. TNC Parameters'!B$27*0.000001 -> 0.26621875 | E10: ='6. TNC Assumptions'!C12*'5. TNC Parameters'!$C$12*'5. TNC Parameters'!B$27*0.000001 -> 3.33696875 | F10: ='6. TNC Assumptions'!G12*'5. TNC Parameters'!$C$13*'5. TNC Parameters'!B$27*0.000001 -> 0.3375 | G10: ='6. TNC Assumptions'!Z12*'5. TNC Parameters'!$C$16*'5. TNC Parameters'!B$27*0.000001 -> 0.3527 | H10: ='6. TNC Assumptions'!I12*'5. TNC Parameters'!$C$25*'5. TNC Parameters'!B$27*0.000001 -> 8 | I10: 20.38605 | K10: ='6. TNC Assumptions'!T12*'5. TNC Parameters'!$D$5*'5. TNC Parameters'!B$27*0.000001 -> 0.0579 | L10: ='6. TNC Assumptions'!V12*'5. TNC Parameters'!$D$6*'5. TNC Parameters'!B$27*0.000001 -> 0.1751375 | M10: ='6. TNC Assumptions'!E12*'5. TNC Parameters'!$D$11*'5. TNC Parameters'!B$27*0.000001 -> 0.0079865625 | N10: ='6. TNC Assumptions'!C12*'5. TNC Parameters'!$D$12*'5. TNC Parameters'!B$27*0.000001 -> 0.1134569375 | O10: ='6. TNC Assumptions'!G12*'5. TNC Parameters'!$D$13*'5. TNC Parameters'!B$27*0.000001 -> 0.03075 | P10: ='6. TNC Assumptions'!Z12*'5. TNC Parameters'!$D$16*'5. TNC Parameters'!B$27*0.000001 -> 0.3527 | Q10: =(('6. TNC Assumptions'!K12*'5. TNC Parameters'!$D$20)+(('6. TNC Assumptions'!R12)*'5. TNC Parameters'!$D$22))*'5. TNC Parameters'!B$27*0.000001 -> 2.962271264 | R10: ='6. TNC Assumptions'!I12*'5. TNC Parameters'!$D$25*'5. TNC Parameters'!B$27*0.000001 -> 0.088 | S10: 3.788202264 | U10: ='TNC LS'!BF$4 -> 0.5392763769 | V10: ='TNC LS'!BF$9 -> 3.05382249 | W10: ='6. TNC Assumptions'!E12*'TNC LS'!$FP$29*'TNC LS'!$FQ$29*'5. TNC Parameters'!$B$28*365*0.001*(44/28)*0.000001*(('TNC LS'!$FI$29*'5. TNC Parameters'!$C$59)+('TNC LS'!$FK$29*'5. TNC Parameters'!$E$59)) -> 0.09870473916 | X10: ='6. TNC Assumptions'!C12*'TNC LS'!$FP$30*'TNC LS'!$FQ$30*'5. TNC Parameters'!$B$28*365*0.001*(44/28)*0.000001*(('TNC LS'!$FI$30*'5. TNC Parameters'!$C$60)+('TNC LS'!$FK$30*'5. TNC Parameters'!$E$60)) -> 1.022078433 | Z10: ='TNC LS'!$BA$35 -> 1.105543288 | AA10: =(('6. TNC Assumptions'!K12*'TNC LS'!$FP$32*'TNC LS'!$FQ$32)*'5. TNC Parameters'!$H$62+((('6. TNC Assumptions'!K12/50)*'TNC LS'!$FP$33*'TNC LS'!$FQ$33)+('6. TNC Assumptions'!P12*'TNC LS'!$FP$35*'TNC LS'!$FQ$35)+('6. TNC Assumptions'!M12*'TNC LS'!$FP$34*'TNC LS'!$FQ$34))*'5. TNC Parameters'!$H$63)*'5. TNC Parameters'!$B$28*365*0.001*0.000001*44/28 -> 3.413825032 | AC10: 9.233250359 | AE10: 33.40750262 | AH10: 2009 | AI10: ='TNC Scenarios'!B10 -> 2.6634 | AJ10: ='TNC Scenarios'!C10 -> 5.4292625 | AK10: ='TNC Scenarios'!D10 -> 0.26621875 | AL10: ='TNC Scenarios'!E10 -> 3.33696875 | AM10: ='TNC Scenarios'!F10 -> 0.3375 | AN10: ='TNC Scenarios'!G10 -> 0.3527 | AO10: ='TNC Scenarios'!H10 -> 8 | AP10: 20.38605 | AR10: ='TNC Scenarios'!K10 -> 0.0579 | AS10: ='TNC Scenarios'!L10 -> 0.1751375 | AT10: ='TNC Scenarios'!M10 -> 0.0079865625 | AU10: ='TNC Scenarios'!N10 -> 0.1134569375 | AV10: ='TNC Scenarios'!O10 -> 0.03075 | AW10: ='TNC Scenarios'!P10 -> 0.3527 | AX10: ='TNC Scenarios'!Q10 -> 2.962271264 | AY10: ='TNC Scenarios'!R10 -> 0.088 | AZ10: 3.788202264 | BB10: ='TNC Scenarios'!U10 -> 0.5392763769 | BC10: ='TNC Scenarios'!V10 -> 3.05382249 | BD10: ='TNC Scenarios'!W10 -> 0.09870473916 | BE10: ='TNC Scenarios'!X10 -> 1.022078433 | BG10: ='TNC Scenarios'!Z10 -> 1.105543288 | BH10: ='TNC Scenarios'!AA10 -> 3.413825032 | BJ10: 9.233250359 | BK10: 33.40750262 | BN10: 2009 | BO10: 20.38605 | BP10: 3.788202264 | BQ10: ='TNC Scenarios'!BB10 -> 0.5392763769 | BR10: ='TNC Scenarios'!BC10 -> 3.05382249 | BS10: ='TNC Scenarios'!BD10 -> 0.09870473916 | BT10: ='TNC Scenarios'!BE10 -> 1.022078433 | BV10: ='TNC Scenarios'!BG10 -> 1.105543288 | BW10: ='TNC Scenarios'!BH10 -> 3.413825032 | BY10: 9.233250359 | BZ10: 33.40750262 | CB10: 0 | CE10: 20.38605 | CF10: 20.38605 | CG10: 33.40750262 | CH10: 33.40750262 | CI10: 33.40750262
A11: 2010 | B11: ='6. TNC Assumptions'!T13*'5. TNC Parameters'!$C$5*'5. TNC Parameters'!B$27*0.000001 -> 3.08085 | C11: ='6. TNC Assumptions'!V13*'5. TNC Parameters'!$C$6*'5. TNC Parameters'!B$27*0.000001 -> 5.30545625 | D11: ='6. TNC Assumptions'!E13*'5. TNC Parameters'!$C$11*'5. TNC Parameters'!B$27*0.000001 -> 0.262 | E11: ='6. TNC Assumptions'!C13*'5. TNC Parameters'!$C$12*'5. TNC Parameters'!B$27*0.000001 -> 3.53340625 | F11: ='6. TNC Assumptions'!G13*'5. TNC Parameters'!$C$13*'5. TNC Parameters'!B$27*0.000001 -> 0.34875 | G11: ='6. TNC Assumptions'!Z13*'5. TNC Parameters'!$C$16*'5. TNC Parameters'!B$27*0.000001 -> 0.558175 | H11: ='6. TNC Assumptions'!I13*'5. TNC Parameters'!$C$25*'5. TNC Parameters'!B$27*0.000001 -> 8 | I11: 21.0886375 | K11: ='6. TNC Assumptions'!T13*'5. TNC Parameters'!$D$5*'5. TNC Parameters'!B$27*0.000001 -> 0.066975 | L11: ='6. TNC Assumptions'!V13*'5. TNC Parameters'!$D$6*'5. TNC Parameters'!B$27*0.000001 -> 0.17114375 | M11: ='6. TNC Assumptions'!E13*'5. TNC Parameters'!$D$11*'5. TNC Parameters'!B$27*0.000001 -> 0.00786 | N11: ='6. TNC Assumptions'!C13*'5. TNC Parameters'!$D$12*'5. TNC Parameters'!B$27*0.000001 -> 0.1201358125 | O11: ='6. TNC Assumptions'!G13*'5. TNC Parameters'!$D$13*'5. TNC Parameters'!B$27*0.000001 -> 0.031775 | P11: ='6. TNC Assumptions'!Z13*'5. TNC Parameters'!$D$16*'5. TNC Parameters'!B$27*0.000001 -> 0.558175 | Q11: =(('6. TNC Assumptions'!K13*'5. TNC Parameters'!$D$20)+(('6. TNC Assumptions'!R13)*'5. TNC Parameters'!$D$22))*'5. TNC Parameters'!B$27*0.000001 -> 3.113983667 | R11: ='6. TNC Assumptions'!I13*'5. TNC Parameters'!$D$25*'5. TNC Parameters'!B$27*0.000001 -> 0.088 | S11: 4.158048229 | U11: ='TNC LS'!BV$4 -> 0.662419052 | V11: ='TNC LS'!BV$9 -> 3.029608082 | W11: ='6. TNC Assumptions'!E13*'TNC LS'!$FP$29*'TNC LS'!$FQ$29*'5. TNC Parameters'!$B$28*365*0.001*(44/28)*0.000001*(('TNC LS'!$FI$29*'5. TNC Parameters'!$C$59)+('TNC LS'!$FK$29*'5. TNC Parameters'!$E$59)) -> 0.09714057203 | X11: ='6. TNC Assumptions'!C13*'TNC LS'!$FP$30*'TNC LS'!$FQ$30*'5. TNC Parameters'!$B$28*365*0.001*(44/28)*0.000001*(('TNC LS'!$FI$30*'5. TNC Parameters'!$C$60)+('TNC LS'!$FK$30*'5. TNC Parameters'!$E$60)) -> 1.082245174 | Z11: ='TNC LS'!$BQ$38 -> 1.101885752 | AA11: =(('6. TNC Assumptions'!K13*'TNC LS'!$FP$32*'TNC LS'!$FQ$32)*'5. TNC Parameters'!$H$62+((('6. TNC Assumptions'!K13/50)*'TNC LS'!$FP$33*'TNC LS'!$FQ$33)+('6. TNC Assumptions'!P13*'TNC LS'!$FP$35*'TNC LS'!$FQ$35)+('6. TNC Assumptions'!M13*'TNC LS'!$FP$34*'TNC LS'!$FQ$34))*'5. TNC Parameters'!$H$63)*'5. TNC Parameters'!$B$28*365*0.001*0.000001*44/28 -> 3.628699386 | AC11: 9.601998017 | AE11: 34.84868375 | AH11: 2010 | AI11: ='TNC Scenarios'!B11 -> 3.08085 | AJ11: ='TNC Scenarios'!C11 -> 5.30545625 | AK11: ='TNC Scenarios'!D11 -> 0.262 | AL11: ='TNC Scenarios'!E11 -> 3.53340625 | AM11: ='TNC Scenarios'!F11 -> 0.34875 | AN11: ='TNC Scenarios'!G11 -> 0.558175 | AO11: ='TNC Scenarios'!H11 -> 8 | AP11: 21.0886375 | AR11: ='TNC Scenarios'!K11 -> 0.066975 | AS11: ='TNC Scenarios'!L11 -> 0.17114375 | AT11: ='TNC Scenarios'!M11 -> 0.00786 | AU11: ='TNC Scenarios'!N11 -> 0.1201358125 | AV11: ='TNC Scenarios'!O11 -> 0.031775 | AW11: ='TNC Scenarios'!P11 -> 0.558175 | AX11: ='TNC Scenarios'!Q11 -> 3.113983667 | AY11: ='TNC Scenarios'!R11 -> 0.088 | AZ11: 4.158048229 | BB11: ='TNC Scenarios'!U11 -> 0.662419052 | BC11: ='TNC Scenarios'!V11 -> 3.029608082 | BD11: ='TNC Scenarios'!W11 -> 0.09714057203 | BE11: ='TNC Scenarios'!X11 -> 1.082245174 | BG11: ='TNC Scenarios'!Z11 -> 1.101885752 | BH11: ='TNC Scenarios'!AA11 -> 3.628699386 | BJ11: 9.601998017 | BK11: 34.84868375 | BN11: 2010 | BO11: 21.0886375 | BP11: 4.158048229 | BQ11: ='TNC Scenarios'!BB11 -> 0.662419052 | BR11: ='TNC Scenarios'!BC11 -> 3.029608082 | BS11: ='TNC Scenarios'!BD11 -> 0.09714057203 | BT11: ='TNC Scenarios'!BE11 -> 1.082245174 | BV11: ='TNC Scenarios'!BG11 -> 1.101885752 | BW11: ='TNC Scenarios'!BH11 -> 3.628699386 | BY11: 9.601998017 | BZ11: 34.84868375 | CB11: 0 | CE11: 21.0886375 | CF11: 21.0886375 | CG11: 34.84868375 | CH11: 34.84868375 | CI11: 34.84868375
A12: 2011 | B12: ='6. TNC Assumptions'!T14*'5. TNC Parameters'!$C$5*'5. TNC Parameters'!B$27*0.000001 -> 2.90375 | C12: ='6. TNC Assumptions'!V14*'5. TNC Parameters'!$C$6*'5. TNC Parameters'!B$27*0.000001 -> 4.6426375 | D12: ='6. TNC Assumptions'!E14*'5. TNC Parameters'!$C$11*'5. TNC Parameters'!B$27*0.000001 -> 0.2491875 | E12: ='6. TNC Assumptions'!C14*'5. TNC Parameters'!$C$12*'5. TNC Parameters'!B$27*0.000001 -> 3.5354375 | F12: ='6. TNC Assumptions'!G14*'5. TNC Parameters'!$C$13*'5. TNC Parameters'!B$27*0.000001 -> 0.36 | G12: ='6. TNC Assumptions'!Z14*'5. TNC Parameters'!$C$16*'5. TNC Parameters'!B$27*0.000001 -> 0.582125 | H12: ='6. TNC Assumptions'!I14*'5. TNC Parameters'!$C$25*'5. TNC Parameters'!B$27*0.000001 -> 8 | I12: 20.2731375 | K12: ='6. TNC Assumptions'!T14*'5. TNC Parameters'!$D$5*'5. TNC Parameters'!B$27*0.000001 -> 0.063125 | L12: ='6. TNC Assumptions'!V14*'5. TNC Parameters'!$D$6*'5. TNC Parameters'!B$27*0.000001 -> 0.1497625 | M12: ='6. TNC Assumptions'!E14*'5. TNC Parameters'!$D$11*'5. TNC Parameters'!B$27*0.000001 -> 0.007475625 | N12: ='6. TNC Assumptions'!C14*'5. TNC Parameters'!$D$12*'5. TNC Parameters'!B$27*0.000001 -> 0.120204875 | O12: ='6. TNC Assumptions'!G14*'5. TNC Parameters'!$D$13*'5. TNC Parameters'!B$27*0.000001 -> 0.0328 | P12: ='6. TNC Assumptions'!Z14*'5. TNC Parameters'!$D$16*'5. TNC Parameters'!B$27*0.000001 -> 0.582125 | Q12: =(('6. TNC Assumptions'!K14*'5. TNC Parameters'!$D$20)+(('6. TNC Assumptions'!R14)*'5. TNC Parameters'!$D$22))*'5. TNC Parameters'!B$27*0.000001 -> 3.172404139 | R12: ='6. TNC Assumptions'!I14*'5. TNC Parameters'!$D$25*'5. TNC Parameters'!B$27*0.000001 -> 0.088 | S12: 4.215897139 | U12: ='TNC LS'!CM$4 -> 0.6237863005 | V12: ='TNC LS'!CM$9 -> 2.797930109 | W12: ='6. TNC Assumptions'!E14*'TNC LS'!$FP$29*'TNC LS'!$FQ$29*'5. TNC Parameters'!$B$28*365*0.001*(44/28)*0.000001*(('TNC LS'!$FI$29*'5. TNC Parameters'!$C$59)+('TNC LS'!$FK$29*'5. TNC Parameters'!$E$59)) -> 0.09239013852 | X12: ='6. TNC Assumptions'!C14*'TNC LS'!$FP$30*'TNC LS'!$FQ$30*'5. TNC Parameters'!$B$28*365*0.001*(44/28)*0.000001*(('TNC LS'!$FI$30*'5. TNC Parameters'!$C$60)+('TNC LS'!$FK$30*'5. TNC Parameters'!$E$60)) -> 1.082867324 | Z12: ='TNC LS'!$CH$39 -> 1.232752025 | AA12: =(('6. TNC Assumptions'!K14*'TNC LS'!$FP$32*'TNC LS'!$FQ$32)*'5. TNC Parameters'!$H$62+((('6. TNC Assumptions'!K14/50)*'TNC LS'!$FP$33*'TNC LS'!$FQ$33)+('6. TNC Assumptions'!P14*'TNC LS'!$FP$35*'TNC LS'!$FQ$35)+('6. TNC Assumptions'!M14*'TNC LS'!$FP$34*'TNC LS'!$FQ$34))*'5. TNC Parameters'!$H$63)*'5. TNC Parameters'!$B$28*365*0.001*0.000001*44/28 -> 3.678509842 | AC12: 9.50823574 | AE12: 33.99727038 | AH12: 2011 | AI12: ='TNC Scenarios'!B12 -> 2.90375 | AJ12: ='TNC Scenarios'!C12 -> 4.6426375 | AK12: ='TNC Scenarios'!D12 -> 0.2491875 | AL12: ='TNC Scenarios'!E12 -> 3.5354375 | AM12: ='TNC Scenarios'!F12 -> 0.36 | AN12: ='TNC Scenarios'!G12 -> 0.582125 | AO12: ='TNC Scenarios'!H12 -> 8 | AP12: 20.2731375 | AR12: ='TNC Scenarios'!K12 -> 0.063125 | AS12: ='TNC Scenarios'!L12 -> 0.1497625 | AT12: ='TNC Scenarios'!M12 -> 0.007475625 | AU12: ='TNC Scenarios'!N12 -> 0.120204875 | AV12: ='TNC Scenarios'!O12 -> 0.0328 | AW12: ='TNC Scenarios'!P12 -> 0.582125 | AX12: ='TNC Scenarios'!Q12 -> 3.172404139 | AY12: ='TNC Scenarios'!R12 -> 0.088 | AZ12: 4.215897139 | BB12: ='TNC Scenarios'!U12 -> 0.6237863005 | BC12: ='TNC Scenarios'!V12 -> 2.797930109 | BD12: ='TNC Scenarios'!W12 -> 0.09239013852 | BE12: ='TNC Scenarios'!X12 -> 1.082867324 | BG12: ='TNC Scenarios'!Z12 -> 1.232752025 | BH12: ='TNC Scenarios'!AA12 -> 3.678509842 | BJ12: 9.50823574 | BK12: 33.99727038 | BN12: 2011 | BO12: 20.2731375 | BP12: 4.215897139 | BQ12: ='TNC Scenarios'!BB12 -> 0.6237863005 | BR12: ='TNC Scenarios'!BC12 -> 2.797930109 | BS12: ='TNC Scenarios'!BD12 -> 0.09239013852 | BT12: ='TNC Scenarios'!BE12 -> 1.082867324 | BV12: ='TNC Scenarios'!BG12 -> 1.232752025 | BW12: ='TNC Scenarios'!BH12 -> 3.678509842 | BY12: 9.50823574 | BZ12: 33.99727038 | CB12: 0 | CE12: 20.2731375 | CF12: 20.2731375 | CG12: 33.99727038 | CH12: 33.99727038 | CI12: 33.99727038
A13: 2012 | B13: ='6. TNC Assumptions'!T15*'5. TNC Parameters'!$C$5*'5. TNC Parameters'!B$27*0.000001 -> 3.4753 | C13: ='6. TNC Assumptions'!V15*'5. TNC Parameters'!$C$6*'5. TNC Parameters'!B$27*0.000001 -> 4.72691875 | D13: ='6. TNC Assumptions'!E15*'5. TNC Parameters'!$C$11*'5. TNC Parameters'!B$27*0.000001 -> 0.28275 | E13: ='6. TNC Assumptions'!C15*'5. TNC Parameters'!$C$12*'5. TNC Parameters'!B$27*0.000001 -> 3.44109375 | F13: ='6. TNC Assumptions'!G15*'5. TNC Parameters'!$C$13*'5. TNC Parameters'!B$27*0.000001 -> 0.3708 | G13: ='6. TNC Assumptions'!Z15*'5. TNC Parameters'!$C$16*'5. TNC Parameters'!B$27*0.000001 -> 0.382175 | H13: ='6. TNC Assumptions'!I15*'5. TNC Parameters'!$C$25*'5. TNC Parameters'!B$27*0.000001 -> 8 | I13: 20.6790375 | K13: ='6. TNC Assumptions'!T15*'5. TNC Parameters'!$D$5*'5. TNC Parameters'!B$27*0.000001 -> 0.07555 | L13: ='6. TNC Assumptions'!V15*'5. TNC Parameters'!$D$6*'5. TNC Parameters'!B$27*0.000001 -> 0.15248125 | M13: ='6. TNC Assumptions'!E15*'5. TNC Parameters'!$D$11*'5. TNC Parameters'!B$27*0.000001 -> 0.0084825 | N13: ='6. TNC Assumptions'!C15*'5. TNC Parameters'!$D$12*'5. TNC Parameters'!B$27*0.000001 -> 0.1169971875 | O13: ='6. TNC Assumptions'!G15*'5. TNC Parameters'!$D$13*'5. TNC Parameters'!B$27*0.000001 -> 0.033784 | P13: ='6. TNC Assumptions'!Z15*'5. TNC Parameters'!$D$16*'5. TNC Parameters'!B$27*0.000001 -> 0.382175 | Q13: =(('6. TNC Assumptions'!K15*'5. TNC Parameters'!$D$20)+(('6. TNC Assumptions'!R15)*'5. TNC Parameters'!$D$22))*'5. TNC Parameters'!B$27*0.000001 -> 3.22830025 | R13: ='6. TNC Assumptions'!I15*'5. TNC Parameters'!$D$25*'5. TNC Parameters'!B$27*0.000001 -> 0.088 | S13: 4.085770187 | U13: ='TNC LS'!DD$4 -> 0.7461878138 | V13: ='TNC LS'!DD$9 -> 2.710887882 | W13: ='6. TNC Assumptions'!E15*'TNC LS'!$FP$29*'TNC LS'!$FQ$29*'5. TNC Parameters'!$B$28*365*0.001*(44/28)*0.000001*(('TNC LS'!$FI$29*'5. TNC Parameters'!$C$59)+('TNC LS'!$FK$29*'5. TNC Parameters'!$E$59)) -> 0.104833957 | X13: ='6. TNC Assumptions'!C15*'TNC LS'!$FP$30*'TNC LS'!$FQ$30*'5. TNC Parameters'!$B$28*365*0.001*(44/28)*0.000001*(('TNC LS'!$FI$30*'5. TNC Parameters'!$C$60)+('TNC LS'!$FK$30*'5. TNC Parameters'!$E$60)) -> 1.053970826 | Z13: ='TNC LS'!$CY$39 -> 0.8366865826 | AA13: =(('6. TNC Assumptions'!K15*'TNC LS'!$FP$32*'TNC LS'!$FQ$32)*'5. TNC Parameters'!$H$62+((('6. TNC Assumptions'!K15/50)*'TNC LS'!$FP$33*'TNC LS'!$FQ$33)+('6. TNC Assumptions'!P15*'TNC LS'!$FP$35*'TNC LS'!$FQ$35)+('6. TNC Assumptions'!M15*'TNC LS'!$FP$34*'TNC LS'!$FQ$34))*'5. TNC Parameters'!$H$63)*'5. TNC Parameters'!$B$28*365*0.001*0.000001*44/28 -> 3.835226582 | AC13: 9.287793643 | AE13: 34.05260133 | AH13: 2012 | AI13: ='TNC Scenarios'!B13 -> 3.4753 | AJ13: ='TNC Scenarios'!C13 -> 4.72691875 | AK13: ='TNC Scenarios'!D13 -> 0.28275 | AL13: ='TNC Scenarios'!E13 -> 3.44109375 | AM13: ='TNC Scenarios'!F13 -> 0.3708 | AN13: ='TNC Scenarios'!G13 -> 0.382175 | AO13: ='TNC Scenarios'!H13 -> 8 | AP13: 20.6790375 | AR13: ='TNC Scenarios'!K13 -> 0.07555 | AS13: ='TNC Scenarios'!L13 -> 0.15248125 | AT13: ='TNC Scenarios'!M13 -> 0.0084825 | AU13: ='TNC Scenarios'!N13 -> 0.1169971875 | AV13: ='TNC Scenarios'!O13 -> 0.033784 | AW13: ='TNC Scenarios'!P13 -> 0.382175 | AX13: ='TNC Scenarios'!Q13 -> 3.22830025 | AY13: ='TNC Scenarios'!R13 -> 0.088 | AZ13: 4.085770187 | BB13: ='TNC Scenarios'!U13 -> 0.7461878138 | BC13: ='TNC Scenarios'!V13 -> 2.710887882 | BD13: ='TNC Scenarios'!W13 -> 0.104833957 | BE13: ='TNC Scenarios'!X13 -> 1.053970826 | BG13: ='TNC Scenarios'!Z13 -> 0.8366865826 | BH13: ='TNC Scenarios'!AA13 -> 3.835226582 | BJ13: 9.287793643 | BK13: 34.05260133 | BN13: 2012 | BO13: 20.6790375 | BP13: 4.085770187 | BQ13: ='TNC Scenarios'!BB13 -> 0.7461878138 | BR13: ='TNC Scenarios'!BC13 -> 2.710887882 | BS13: ='TNC Scenarios'!BD13 -> 0.104833957 | BT13: ='TNC Scenarios'!BE13 -> 1.053970826 | BV13: ='TNC Scenarios'!BG13 -> 0.8366865826 | BW13: ='TNC Scenarios'!BH13 -> 3.835226582 | BY13: 9.287793643 | BZ13: 34.05260133 | CB13: 0 | CE13: 20.6790375 | CF13: 20.6790375 | CG13: 34.05260133 | CH13: 34.05260133 | CI13: 34.05260133
A14: 2013 | B14: ='6. TNC Assumptions'!T16*'5. TNC Parameters'!$C$5*'5. TNC Parameters'!B$27*0.000001 -> 3.3051 | C14: ='6. TNC Assumptions'!V16*'5. TNC Parameters'!$C$6*'5. TNC Parameters'!B$27*0.000001 -> 4.74861875 | D14: ='6. TNC Assumptions'!E16*'5. TNC Parameters'!$C$11*'5. TNC Parameters'!B$27*0.000001 -> 0.3174375 | E14: ='6. TNC Assumptions'!C16*'5. TNC Parameters'!$C$12*'5. TNC Parameters'!B$27*0.000001 -> 3.24159375 | F14: ='6. TNC Assumptions'!G16*'5. TNC Parameters'!$C$13*'5. TNC Parameters'!B$27*0.000001 -> 0.38475 | G14: ='6. TNC Assumptions'!Z16*'5. TNC Parameters'!$C$16*'5. TNC Parameters'!B$27*0.000001 -> 0.399025 | H14: ='6. TNC Assumptions'!I16*'5. TNC Parameters'!$C$25*'5. TNC Parameters'!B$27*0.000001 -> 8 | I14: 20.396525 | K14: ='6. TNC Assumptions'!T16*'5. TNC Parameters'!$D$5*'5. TNC Parameters'!B$27*0.000001 -> 0.07185 | L14: ='6. TNC Assumptions'!V16*'5. TNC Parameters'!$D$6*'5. TNC Parameters'!B$27*0.000001 -> 0.15318125 | M14: ='6. TNC Assumptions'!E16*'5. TNC Parameters'!$D$11*'5. TNC Parameters'!B$27*0.000001 -> 0.009523125 | N14: ='6. TNC Assumptions'!C16*'5. TNC Parameters'!$D$12*'5. TNC Parameters'!B$27*0.000001 -> 0.1102141875 | O14: ='6. TNC Assumptions'!G16*'5. TNC Parameters'!$D$13*'5. TNC Parameters'!B$27*0.000001 -> 0.035055 | P14: ='6. TNC Assumptions'!Z16*'5. TNC Parameters'!$D$16*'5. TNC Parameters'!B$27*0.000001 -> 0.399025 | Q14: =(('6. TNC Assumptions'!K16*'5. TNC Parameters'!$D$20)+(('6. TNC Assumptions'!R16)*'5. TNC Parameters'!$D$22))*'5. TNC Parameters'!B$27*0.000001 -> 3.198449125 | R14: ='6. TNC Assumptions'!I16*'5. TNC Parameters'!$D$25*'5. TNC Parameters'!B$27*0.000001 -> 0.088 | S14: 4.065297687 | U14: ='TNC LS'!DU$4 -> 0.7082288459 | V14: ='TNC LS'!DU$9 -> 2.650071744 | W14: ='6. TNC Assumptions'!E16*'TNC LS'!$FP$29*'TNC LS'!$FQ$29*'5. TNC Parameters'!$B$28*365*0.001*(44/28)*0.000001*(('TNC LS'!$FI$29*'5. TNC Parameters'!$C$59)+('TNC LS'!$FK$29*'5. TNC Parameters'!$E$59)) -> 0.1176948868 | X14: ='6. TNC Assumptions'!C16*'TNC LS'!$FP$30*'TNC LS'!$FQ$30*'5. TNC Parameters'!$B$28*365*0.001*(44/28)*0.000001*(('TNC LS'!$FI$30*'5. TNC Parameters'!$C$60)+('TNC LS'!$FK$30*'5. TNC Parameters'!$E$60)) -> 0.9928660739 | Z14: ='TNC LS'!$DP$39 -> 0.8481910048 | AA14: =(('6. TNC Assumptions'!K16*'TNC LS'!$FP$32*'TNC LS'!$FQ$32)*'5. TNC Parameters'!$H$62+((('6. TNC Assumptions'!K16/50)*'TNC LS'!$FP$33*'TNC LS'!$FQ$33)+('6. TNC Assumptions'!P16*'TNC LS'!$FP$35*'TNC LS'!$FQ$35)+('6. TNC Assumptions'!M16*'TNC LS'!$FP$34*'TNC LS'!$FQ$34))*'5. TNC Parameters'!$H$63)*'5. TNC Parameters'!$B$28*365*0.001*0.000001*44/28 -> 3.823430181 | AC14: 9.140482736 | AE14: 33.60230542 | AH14: 2013 | AI14: ='TNC Scenarios'!B14 -> 3.3051 | AJ14: ='TNC Scenarios'!C14 -> 4.74861875 | AK14: ='TNC Scenarios'!D14 -> 0.3174375 | AL14: ='TNC Scenarios'!E14 -> 3.24159375 | AM14: ='TNC Scenarios'!F14 -> 0.38475 | AN14: ='TNC Scenarios'!G14 -> 0.399025 | AO14: ='TNC Scenarios'!H14 -> 8 | AP14: 20.396525 | AR14: ='TNC Scenarios'!K14 -> 0.07185 | AS14: ='TNC Scenarios'!L14 -> 0.15318125 | AT14: ='TNC Scenarios'!M14 -> 0.009523125 | AU14: ='TNC Scenarios'!N14 -> 0.1102141875 | AV14: ='TNC Scenarios'!O14 -> 0.035055 | AW14: ='TNC Scenarios'!P14 -> 0.399025 | AX14: ='TNC Scenarios'!Q14 -> 3.198449125 | AY14: ='TNC Scenarios'!R14 -> 0.088 | AZ14: 4.065297687 | BB14: ='TNC Scenarios'!U14 -> 0.7082288459 | BC14: ='TNC Scenarios'!V14 -> 2.650071744 | BD14: ='TNC Scenarios'!W14 -> 0.1176948868 | BE14: ='TNC Scenarios'!X14 -> 0.9928660739 | BG14: ='TNC Scenarios'!Z14 -> 0.8481910048 | BH14: ='TNC Scenarios'!AA14 -> 3.823430181 | BJ14: 9.140482736 | BK14: 33.60230542 | BN14: 2013 | BO14: 20.396525 | BP14: 4.065297687 | BQ14: ='TNC Scenarios'!BB14 -> 0.7082288459 | BR14: ='TNC Scenarios'!BC14 -> 2.650071744 | BS14: ='TNC Scenarios'!BD14 -> 0.1176948868 | BT14: ='TNC Scenarios'!BE14 -> 0.9928660739 | BV14: ='TNC Scenarios'!BG14 -> 0.8481910048 | BW14: ='TNC Scenarios'!BH14 -> 3.823430181 | BY14: 9.140482736 | BZ14: 33.60230542 | CB14: 0 | CE14: 20.396525 | CF14: 20.396525 | CG14: 33.60230542 | CH14: 33.60230542 | CI14: 33.60230542
A15: 2014 | B15: ='6. TNC Assumptions'!T17*'5. TNC Parameters'!$C$5*'5. TNC Parameters'!B$27*0.000001 -> 3.32005 | C15: ='6. TNC Assumptions'!V17*'5. TNC Parameters'!$C$6*'5. TNC Parameters'!B$27*0.000001 -> 4.738059375 | D15: ='6. TNC Assumptions'!E17*'5. TNC Parameters'!$C$11*'5. TNC Parameters'!B$27*0.000001 -> 0.32121875 | E15: ='6. TNC Assumptions'!C17*'5. TNC Parameters'!$C$12*'5. TNC Parameters'!B$27*0.000001 -> 3.245796875 | F15: ='6. TNC Assumptions'!G17*'5. TNC Parameters'!$C$13*'5. TNC Parameters'!B$27*0.000001 -> 0.38475 | G15: ='6. TNC Assumptions'!Z17*'5. TNC Parameters'!$C$16*'5. TNC Parameters'!B$27*0.000001 -> 0.4620125 | H15: ='6. TNC Assumptions'!I17*'5. TNC Parameters'!$C$25*'5. TNC Parameters'!B$27*0.000001 -> 8 | I15: 20.4718875 | K15: ='6. TNC Assumptions'!T17*'5. TNC Parameters'!$D$5*'5. TNC Parameters'!B$27*0.000001 -> 0.072175 | L15: ='6. TNC Assumptions'!V17*'5. TNC Parameters'!$D$6*'5. TNC Parameters'!B$27*0.000001 -> 0.152840625 | M15: ='6. TNC Assumptions'!E17*'5. TNC Parameters'!$D$11*'5. TNC Parameters'!B$27*0.000001 -> 0.0096365625 | N15: ='6. TNC Assumptions'!C17*'5. TNC Parameters'!$D$12*'5. TNC Parameters'!B$27*0.000001 -> 0.1103570938 | O15: ='6. TNC Assumptions'!G17*'5. TNC Parameters'!$D$13*'5. TNC Parameters'!B$27*0.000001 -> 0.035055 | P15: ='6. TNC Assumptions'!Z17*'5. TNC Parameters'!$D$16*'5. TNC Parameters'!B$27*0.000001 -> 0.4620125 | Q15: =(('6. TNC Assumptions'!K17*'5. TNC Parameters'!$D$20)+(('6. TNC Assumptions'!R17)*'5. TNC Parameters'!$D$22))*'5. TNC Parameters'!B$27*0.000001 -> 3.131224562 | R15: ='6. TNC Assumptions'!I17*'5. TNC Parameters'!$D$25*'5. TNC Parameters'!B$27*0.000001 -> 0.088 | S15: 4.061301344 | U15: ='TNC LS'!DU$4 -> 0.7082288459 | V15: ='TNC LS'!DU$9 -> 2.650071744 | W15: ='6. TNC Assumptions'!E17*'TNC LS'!$FP$29*'TNC LS'!$FQ$29*'5. TNC Parameters'!$B$28*365*0.001*(44/28)*0.000001*(('TNC LS'!$FI$29*'5. TNC Parameters'!$C$59)+('TNC LS'!$FK$29*'5. TNC Parameters'!$E$59)) -> 0.119096844 | X15: ='6. TNC Assumptions'!C17*'TNC LS'!$FP$30*'TNC LS'!$FQ$30*'5. TNC Parameters'!$B$28*365*0.001*(44/28)*0.000001*(('TNC LS'!$FI$30*'5. TNC Parameters'!$C$60)+('TNC LS'!$FK$30*'5. TNC Parameters'!$E$60)) -> 0.9941534469 | Z15: ='TNC LS'!$DP$39 -> 0.8481910048 | AA15: =(('6. TNC Assumptions'!K17*'TNC LS'!$FP$32*'TNC LS'!$FQ$32)*'5. TNC Parameters'!$H$62+((('6. TNC Assumptions'!K17/50)*'TNC LS'!$FP$33*'TNC LS'!$FQ$33)+('6. TNC Assumptions'!P17*'TNC LS'!$FP$35*'TNC LS'!$FQ$35)+('6. TNC Assumptions'!M17*'TNC LS'!$FP$34*'TNC LS'!$FQ$34))*'5. TNC Parameters'!$H$63)*'5. TNC Parameters'!$B$28*365*0.001*0.000001*44/28 -> 3.795114412 | AC15: 9.114856297 | AE15: 33.64804514 | AH15: 2014 | AI15: ='TNC Scenarios'!B15 -> 3.32005 | AJ15: ='TNC Scenarios'!C15 -> 4.738059375 | AK15: ='TNC Scenarios'!D15 -> 0.32121875 | AL15: ='TNC Scenarios'!E15 -> 3.245796875 | AM15: ='TNC Scenarios'!F15 -> 0.38475 | AN15: ='TNC Scenarios'!G15 -> 0.4620125 | AO15: ='TNC Scenarios'!H15 -> 8 | AP15: 20.4718875 | AR15: ='TNC Scenarios'!K15 -> 0.072175 | AS15: ='TNC Scenarios'!L15 -> 0.152840625 | AT15: ='TNC Scenarios'!M15 -> 0.0096365625 | AU15: ='TNC Scenarios'!N15 -> 0.1103570938 | AV15: ='TNC Scenarios'!O15 -> 0.035055 | AW15: ='TNC Scenarios'!P15 -> 0.4620125 | AX15: ='TNC Scenarios'!Q15 -> 3.131224562 | AY15: ='TNC Scenarios'!R15 -> 0.088 | AZ15: 4.061301344 | BB15: ='TNC Scenarios'!U15 -> 0.7082288459 | BC15: ='TNC Scenarios'!V15 -> 2.650071744 | BD15: ='TNC Scenarios'!W15 -> 0.119096844 | BE15: ='TNC Scenarios'!X15 -> 0.9941534469 | BG15: ='TNC Scenarios'!Z15 -> 0.8481910048 | BH15: ='TNC Scenarios'!AA15 -> 3.795114412 | BJ15: 9.114856297 | BK15: 33.64804514 | BN15: 2014 | BO15: 20.4718875 | BP15: 4.061301344 | BQ15: ='TNC Scenarios'!BB15 -> 0.7082288459 | BR15: ='TNC Scenarios'!BC15 -> 2.650071744 | BS15: ='TNC Scenarios'!BD15 -> 0.119096844 | BT15: ='TNC Scenarios'!BE15 -> 0.9941534469 | BV15: ='TNC Scenarios'!BG15 -> 0.8481910048 | BW15: ='TNC Scenarios'!BH15 -> 3.795114412 | BY15: =SUM(BQ15:BX15) -> 9.114856297 | BZ15: 33.64804514 | CE15: 20.396525 | CF15: 20.396525 | CG15: 33.60230542 | CH15: 33.60230542 | CI15: 33.60230542
A16: 2015 | B16: ='6. TNC Assumptions'!T18*'5. TNC Parameters'!$C$5*'5. TNC Parameters'!B$27*0.000001 -> 3.335 | C16: ='6. TNC Assumptions'!V18*'5. TNC Parameters'!$C$6*'5. TNC Parameters'!B$27*0.000001 -> 4.7275 | D16: ='6. TNC Assumptions'!E18*'5. TNC Parameters'!$C$11*'5. TNC Parameters'!B$27*0.000001 -> 0.325 | E16: ='6. TNC Assumptions'!C18*'5. TNC Parameters'!$C$12*'5. TNC Parameters'!B$27*0.000001 -> 3.25 | F16: ='6. TNC Assumptions'!G18*'5. TNC Parameters'!$C$13*'5. TNC Parameters'!B$27*0.000001 -> 0.38475 | G16: ='6. TNC Assumptions'!Z18*'5. TNC Parameters'!$C$16*'5. TNC Parameters'!B$27*0.000001 -> 0.525 | H16: ='6. TNC Assumptions'!I18*'5. TNC Parameters'!$C$25*'5. TNC Parameters'!B$27*0.000001 -> 8 | I16: 20.54725 | K16: ='6. TNC Assumptions'!T18*'5. TNC Parameters'!$D$5*'5. TNC Parameters'!B$27*0.000001 -> 0.0725 | L16: ='6. TNC Assumptions'!V18*'5. TNC Parameters'!$D$6*'5. TNC Parameters'!B$27*0.000001 -> 0.1525 | M16: ='6. TNC Assumptions'!E18*'5. TNC Parameters'!$D$11*'5. TNC Parameters'!B$27*0.000001 -> 0.00975 | N16: ='6. TNC Assumptions'!C18*'5. TNC Parameters'!$D$12*'5. TNC Parameters'!B$27*0.000001 -> 0.1105 | O16: ='6. TNC Assumptions'!G18*'5. TNC Parameters'!$D$13*'5. TNC Parameters'!B$27*0.000001 -> 0.035055 | P16: ='6. TNC Assumptions'!Z18*'5. TNC Parameters'!$D$16*'5. TNC Parameters'!B$27*0.000001 -> 0.525 | Q16: =(('6. TNC Assumptions'!K18*'5. TNC Parameters'!$D$20)+('6. TNC Assumptions'!R18*'5. TNC Parameters'!$D$22))*'5. TNC Parameters'!B$27*0.000001 -> 3.142 | R16: ='6. TNC Assumptions'!I18*'5. TNC Parameters'!$D$25*'5. TNC Parameters'!B$27*0.000001 -> 0.088 | S16: 4.135305 | U16: ='TNC LS'!$EH$5 -> 0.7164564915 | V16: ='TNC LS'!$EH$8 -> 3.249009157 | W16: ='6. TNC Assumptions'!E18*'TNC LS'!$FP$29*'TNC LS'!$FQ$29*'5. TNC Parameters'!$B$28*365*0.001*(44/28)*0.000001*(('TNC LS'!$FI$29*'5. TNC Parameters'!$C$59)+('TNC LS'!$FK$29*'5. TNC Parameters'!$E$59)) -> 0.1204988012 | X16: ='6. TNC Assumptions'!C18*'TNC LS'!$FP$30*'TNC LS'!$FQ$30*'5. TNC Parameters'!$B$28*365*0.001*(44/28)*0.000001*(('TNC LS'!$FI$30*'5. TNC Parameters'!$C$60)+('TNC LS'!$FK$30*'5. TNC Parameters'!$E$60)) -> 0.9954408198 | Z16: ='TNC LS'!$EH$10 -> 1.738128547 | AA16: =(('6. TNC Assumptions'!K18*'TNC LS'!$FP$32*'TNC LS'!$FQ$32)*'5. TNC Parameters'!$H$62+((('6. TNC Assumptions'!K18/50)*'TNC LS'!$FP$33*'TNC LS'!$FQ$33)+('6. TNC Assumptions'!P18*'TNC LS'!$FP$35*'TNC LS'!$FQ$35)+('6. TNC Assumptions'!M18*'TNC LS'!$FP$34*'TNC LS'!$FQ$34))*'5. TNC Parameters'!$H$63)*'5. TNC Parameters'!$B$28*365*0.001*0.000001*44/28 -> 3.766798642 | AC16: 10.58633246 | AE16: 35.26888746 | AH16: 2015 | AI16: ='6. TNC Assumptions'!$T$46*'5. TNC Parameters'!$C$5*'5. TNC Parameters'!B$27*0.000001 -> 3.335 | AJ16: ='6. TNC Assumptions'!$V$46*'5. TNC Parameters'!$C$6*'5. TNC Parameters'!B$27*0.000001 -> 4.7275 | AK16: ='6. TNC Assumptions'!$E$46*'5. TNC Parameters'!$C$11*'5. TNC Parameters'!B$27*0.000001 -> 0.325 | AL16: ='6. TNC Assumptions'!$C$46*'5. TNC Parameters'!$C$12*'5. TNC Parameters'!B$27*0.000001 -> 3.25 | AM16: ='TNC Scenarios'!F16 -> 0.38475 | AN16: ='6. TNC Assumptions'!$Z$46*'5. TNC Parameters'!$C$16*'5. TNC Parameters'!B$27*0.000001 -> 0.525 | AO16: ='6. TNC Assumptions'!$I$46*'5. TNC Parameters'!$C$25*'5. TNC Parameters'!B$27*0.000001 -> 8 | AP16: 20.54725 | AR16: ='6. TNC Assumptions'!$T$46*'5. TNC Parameters'!$D$5*'5. TNC Parameters'!B$27*0.000001 -> 0.0725 | AS16: ='6. TNC Assumptions'!$V$46*'5. TNC Parameters'!$D$6*'5. TNC Parameters'!B$27*0.000001 -> 0.1525 | AT16: ='6. TNC Assumptions'!$E$46*'5. TNC Parameters'!$D$11*'5. TNC Parameters'!B$27*0.000001 -> 0.00975 | AU16: ='6. TNC Assumptions'!$C$46*'5. TNC Parameters'!$D$12*'5. TNC Parameters'!B$27*0.000001 -> 0.1105 | AV16: ='TNC Scenarios'!O16 -> 0.035055 | AW16: ='6. TNC Assumptions'!$Z$46*'5. TNC Parameters'!$D$16*'5. TNC Parameters'!B$27*0.000001 -> 0.525 | AX16: =(('6. TNC Assumptions'!$K$46*'5. TNC Parameters'!$D$20)+('6. TNC Assumptions'!$R$46*'5. TNC Parameters'!$D$22))*'5. TNC Parameters'!B$27*0.000001 -> 3.142 | AY16: ='6. TNC Assumptions'!$I$46*'5. TNC Parameters'!$D$25*'5. TNC Parameters'!B$27*0.000001 -> 0.088 | AZ16: 4.135305 | BB16: ='TNC LS'!$EH$16 -> 0.7164564915 | BC16: ='TNC LS'!$EH$19 -> 3.249009157 | BD16: ='6. TNC Assumptions'!$E$46*'TNC LS'!$FP$29*'TNC LS'!$FQ$29*'5. TNC Parameters'!$B$28*365*0.001*(44/28)*0.000001*(('TNC LS'!$FI$29*'5. TNC Parameters'!$C$59)+('TNC LS'!$FK$29*'5. TNC Parameters'!$E$59)) -> 0.1204988012 | BE16: ='6. TNC Assumptions'!$C$46*'TNC LS'!$FP$30*'TNC LS'!$FQ$30*'5. TNC Parameters'!$B$28*365*0.001*(44/28)*0.000001*(('TNC LS'!$FI$30*'5. TNC Parameters'!$C$60)+('TNC LS'!$FK$30*'5. TNC Parameters'!$E$60)) -> 0.9954408198 | BG16: ='TNC LS'!$EH$21 -> 1.738128547 | BH16: =(('6. TNC Assumptions'!$K$46*'TNC LS'!$FP$32*'TNC LS'!$FQ$32)*'5. TNC Parameters'!$H$62+(('TNC LS'!EH$4*'TNC LS'!$FP$33*'TNC LS'!$FQ$33)+('6. TNC Assumptions'!$P$46*'TNC LS'!$FP$35*'TNC LS'!$FQ$35)+('6. TNC Assumptions'!$M$46*'TNC LS'!$FP$34*'TNC LS'!$FQ$34))*'5. TNC Parameters'!$H$63)*'5. TNC Parameters'!$B$28*365*0.001*0.000001*44/28 -> 3.454807125 | BJ16: 10.27434094 | BK16: 34.95689594 | BN16: 2015 | BO16: 20.54725 | BP16: 4.135305 | BQ16: ='TNC LS'!$EH$29 -> 0.7164564915 | BR16: ='TNC LS'!$EH$32 -> 3.249009157 | BS16: ='TNC Scenarios'!BD16 -> 0.1204988012 | BT16: ='TNC Scenarios'!BE16 -> 0.9954408198 | BV16: ='TNC LS'!$EH$34 -> 1.738128547 | BW16: ='TNC Scenarios'!BH16 -> 3.454807125 | BY16: 10.27434094 | BZ16: 34.95689594 | CB16: =BZ16-BK16 -> 0 | CE16: 20.54725 | CF16: 20.54725 | CG16: 34.95680458 | CH16: 34.95680458 | CI16: 34.95680458
A17: 2016 | B17: ='6. TNC Assumptions'!T19*'5. TNC Parameters'!$C$5*'5. TNC Parameters'!B$27*0.000001 -> 3.289 | C17: ='6. TNC Assumptions'!V19*'5. TNC Parameters'!$C$6*'5. TNC Parameters'!B$27*0.000001 -> 4.681 | D17: ='6. TNC Assumptions'!E19*'5. TNC Parameters'!$C$11*'5. TNC Parameters'!B$27*0.000001 -> 0.3275 | E17: ='6. TNC Assumptions'!C19*'5. TNC Parameters'!$C$12*'5. TNC Parameters'!B$27*0.000001 -> 3.2375 | F17: ='6. TNC Assumptions'!G19*'5. TNC Parameters'!$C$13*'5. TNC Parameters'!B$27*0.000001 -> 0.38475 | G17: ='6. TNC Assumptions'!Z19*'5. TNC Parameters'!$C$16*'5. TNC Parameters'!B$27*0.000001 -> 0.53 | H17: ='6. TNC Assumptions'!I19*'5. TNC Parameters'!$C$25*'5. TNC Parameters'!B$27*0.000001 -> 7.9 | I17: 20.34975 | K17: ='6. TNC Assumptions'!T19*'5. TNC Parameters'!$D$5*'5. TNC Parameters'!B$27*0.000001 -> 0.0715 | L17: ='6. TNC Assumptions'!V19*'5. TNC Parameters'!$D$6*'5. TNC Parameters'!B$27*0.000001 -> 0.151 | M17: ='6. TNC Assumptions'!E19*'5. TNC Parameters'!$D$11*'5. TNC Parameters'!B$27*0.000001 -> 0.009825 | N17: ='6. TNC Assumptions'!C19*'5. TNC Parameters'!$D$12*'5. TNC Parameters'!B$27*0.000001 -> 0.110075 | O17: ='6. TNC Assumptions'!G19*'5. TNC Parameters'!$D$13*'5. TNC Parameters'!B$27*0.000001 -> 0.035055 | P17: ='6. TNC Assumptions'!Z19*'5. TNC Parameters'!$D$16*'5. TNC Parameters'!B$27*0.000001 -> 0.53 | Q17: =(('6. TNC Assumptions'!K19*'5. TNC Parameters'!$D$20)+('6. TNC Assumptions'!R19*'5. TNC Parameters'!$D$22))*'5. TNC Parameters'!B$27*0.000001 -> 3.1659 | R17: ='6. TNC Assumptions'!I19*'5. TNC Parameters'!$D$25*'5. TNC Parameters'!B$27*0.000001 -> 0.0869 | S17: =SUM(K17:R17) -> 4.160255 | U17: ='TNC LS'!$EH$5 -> 0.7164564915 | V17: ='TNC LS'!$EH$8 -> 3.249009157 | W17: ='6. TNC Assumptions'!E19*'TNC LS'!$FP$29*'TNC LS'!$FQ$29*'5. TNC Parameters'!$B$28*365*0.001*(44/28)*0.000001*(('TNC LS'!$FI$29*'5. TNC Parameters'!$C$59)+('TNC LS'!$FK$29*'5. TNC Parameters'!$E$59)) -> 0.121425715 | X17: ='6. TNC Assumptions'!C19*'TNC LS'!$FP$30*'TNC LS'!$FQ$30*'5. TNC Parameters'!$B$28*365*0.001*(44/28)*0.000001*(('TNC LS'!$FI$30*'5. TNC Parameters'!$C$60)+('TNC LS'!$FK$30*'5. TNC Parameters'!$E$60)) -> 0.9916122013 | Z17: ='TNC LS'!$EH$10 -> 1.738128547 | AA17: =(('6. TNC Assumptions'!K19*'TNC LS'!$FP$32*'TNC LS'!$FQ$32)*'5. TNC Parameters'!$H$62+((('6. TNC Assumptions'!K19/50)*'TNC LS'!$FP$33*'TNC LS'!$FQ$33)+('6. TNC Assumptions'!P19*'TNC LS'!$FP$35*'TNC LS'!$FQ$35)+('6. TNC Assumptions'!M19*'TNC LS'!$FP$34*'TNC LS'!$FQ$34))*'5. TNC Parameters'!$H$63)*'5. TNC Parameters'!$B$28*365*0.001*0.000001*44/28 -> 3.796014047 | AC17: =SUM(U17:AB17) -> 10.61264616 | AE17: =I17+S17+AC17 -> 35.12265116 | AH17: =A17 -> 2016 | AI17: ='6. TNC Assumptions'!$T$46*'5. TNC Parameters'!$C$5*'5. TNC Parameters'!B$27*0.000001 -> 3.335 | AJ17: ='6. TNC Assumptions'!$V$46*'5. TNC Parameters'!$C$6*'5. TNC Parameters'!B$27*0.000001 -> 4.7275 | AK17: ='6. TNC Assumptions'!$E$46*'5. TNC Parameters'!$C$11*'5. TNC Parameters'!B$27*0.000001 -> 0.325 | AL17: ='6. TNC Assumptions'!$C$46*'5. TNC Parameters'!$C$12*'5. TNC Parameters'!B$27*0.000001 -> 3.25 | AM17: ='TNC Scenarios'!F17 -> 0.38475 | AN17: ='6. TNC Assumptions'!$Z$46*'5. TNC Parameters'!$C$16*'5. TNC Parameters'!B$27*0.000001 -> 0.525 | AO17: ='6. TNC Assumptions'!$I$46*'5. TNC Parameters'!$C$25*'5. TNC Parameters'!B$27*0.000001 -> 8 | AP17: =SUM(AI17:AO17) -> 20.54725 | AR17: ='6. TNC Assumptions'!$T$46*'5. TNC Parameters'!$D$5*'5. TNC Parameters'!B$27*0.000001 -> 0.0725 | AS17: ='6. TNC Assumptions'!$V$46*'5. TNC Parameters'!$D$6*'5. TNC Parameters'!B$27*0.000001 -> 0.1525 | AT17: ='6. TNC Assumptions'!$E$46*'5. TNC Parameters'!$D$11*'5. TNC Parameters'!B$27*0.000001 -> 0.00975 | AU17: ='6. TNC Assumptions'!$C$46*'5. TNC Parameters'!$D$12*'5. TNC Parameters'!B$27*0.000001 -> 0.1105 | AV17: ='TNC Scenarios'!O17 -> 0.035055 | AW17: ='6. TNC Assumptions'!$Z$46*'5. TNC Parameters'!$D$16*'5. TNC Parameters'!B$27*0.000001 -> 0.525 | AX17: =(('6. TNC Assumptions'!$K$46*'5. TNC Parameters'!$D$20)+('6. TNC Assumptions'!$R$46*'5. TNC Parameters'!$D$22))*'5. TNC Parameters'!B$27*0.000001 -> 3.142 | AY17: ='6. TNC Assumptions'!$I$46*'5. TNC Parameters'!$D$25*'5. TNC Parameters'!B$27*0.000001 -> 0.088 | AZ17: =SUM(AR17:AY17) -> 4.135305 | BB17: ='TNC LS'!$EH$16 -> 0.7164564915 | BC17: ='TNC LS'!$EH$19 -> 3.249009157 | BD17: ='6. TNC Assumptions'!$E$46*'TNC LS'!$FP$29*'TNC LS'!$FQ$29*'5. TNC Parameters'!$B$28*365*0.001*(44/28)*0.000001*(('TNC LS'!$FI$29*'5. TNC Parameters'!$C$59)+('TNC LS'!$FK$29*'5. TNC Parameters'!$E$59)) -> 0.1204988012 | BE17: ='6. TNC Assumptions'!$C$46*'TNC LS'!$FP$30*'TNC LS'!$FQ$30*'5. TNC Parameters'!$B$28*365*0.001*(44/28)*0.000001*(('TNC LS'!$FI$30*'5. TNC Parameters'!$C$60)+('TNC LS'!$FK$30*'5. TNC Parameters'!$E$60)) -> 0.9954408198 | BG17: ='TNC LS'!$EH$21 -> 1.738128547 | BH17: =(('6. TNC Assumptions'!$K$46*'TNC LS'!$FP$32*'TNC LS'!$FQ$32)*'5. TNC Parameters'!$H$62+(('TNC LS'!EH$4*'TNC LS'!$FP$33*'TNC LS'!$FQ$33)+('6. TNC Assumptions'!$P$46*'TNC LS'!$FP$35*'TNC LS'!$FQ$35)+('6. TNC Assumptions'!$M$46*'TNC LS'!$FP$34*'TNC LS'!$FQ$34))*'5. TNC Parameters'!$H$63)*'5. TNC Parameters'!$B$28*365*0.001*0.000001*44/28 -> 3.454807125 | BJ17: =SUM(BB17:BI17) -> 10.27434094 | BK17: =AP17+AZ17+BJ17 -> 34.95689594 | BN17: =AH17 -> 2016 | BO17: =AP17 -> 20.54725 | BP17: =AZ17 -> 4.135305 | BQ17: ='TNC LS'!$EH$29 -> 0.7164564915 | BR17: ='TNC LS'!$EH$32 -> 3.249009157 | BS17: ='TNC Scenarios'!BD17 -> 0.1204988012 | BT17: ='TNC Scenarios'!BE17 -> 0.9954408198 | BV17: ='TNC LS'!$EH$34 -> 1.738128547 | BW17: ='TNC Scenarios'!BH17 -> 3.454807125 | BY17: =SUM(BQ17:BX17) -> 10.27434094 | BZ17: 34.95689594 | CE17: 20.54725 | CF17: 20.54725 | CG17: 34.95680458 | CH17: 34.95680458 | CI17: 34.95680458
A18: 2017 | B18: ='6. TNC Assumptions'!T20*'5. TNC Parameters'!$C$5*'5. TNC Parameters'!B$27*0.000001 -> 3.243 | C18: ='6. TNC Assumptions'!V20*'5. TNC Parameters'!$C$6*'5. TNC Parameters'!B$27*0.000001 -> 4.6345 | D18: ='6. TNC Assumptions'!E20*'5. TNC Parameters'!$C$11*'5. TNC Parameters'!B$27*0.000001 -> 0.33 | E18: ='6. TNC Assumptions'!C20*'5. TNC Parameters'!$C$12*'5. TNC Parameters'!B$27*0.000001 -> 3.225 | F18: ='6. TNC Assumptions'!G20*'5. TNC Parameters'!$C$13*'5. TNC Parameters'!B$27*0.000001 -> 0.38475 | G18: ='6. TNC Assumptions'!Z20*'5. TNC Parameters'!$C$16*'5. TNC Parameters'!B$27*0.000001 -> 0.535 | H18: ='6. TNC Assumptions'!I20*'5. TNC Parameters'!$C$25*'5. TNC Parameters'!B$27*0.000001 -> 7.8 | I18: 20.15225 | K18: ='6. TNC Assumptions'!T20*'5. TNC Parameters'!$D$5*'5. TNC Parameters'!B$27*0.000001 -> 0.0705 | L18: ='6. TNC Assumptions'!V20*'5. TNC Parameters'!$D$6*'5. TNC Parameters'!B$27*0.000001 -> 0.1495 | M18: ='6. TNC Assumptions'!E20*'5. TNC Parameters'!$D$11*'5. TNC Parameters'!B$27*0.000001 -> 0.0099 | N18: ='6. TNC Assumptions'!C20*'5. TNC Parameters'!$D$12*'5. TNC Parameters'!B$27*0.000001 -> 0.10965 | O18: ='6. TNC Assumptions'!G20*'5. TNC Parameters'!$D$13*'5. TNC Parameters'!B$27*0.000001 -> 0.035055 | P18: ='6. TNC Assumptions'!Z20*'5. TNC Parameters'!$D$16*'5. TNC Parameters'!B$27*0.000001 -> 0.535 | Q18: =(('6. TNC Assumptions'!K20*'5. TNC Parameters'!$D$20)+('6. TNC Assumptions'!R20*'5. TNC Parameters'!$D$22))*'5. TNC Parameters'!B$27*0.000001 -> 3.1898 | R18: ='6. TNC Assumptions'!I20*'5. TNC Parameters'!$D$25*'5. TNC Parameters'!B$27*0.000001 -> 0.0858 | S18: 4.185205 | U18: ='TNC LS'!$EH$5 -> 0.7164564915 | V18: ='TNC LS'!$EH$8 -> 3.249009157 | W18: ='6. TNC Assumptions'!E20*'TNC LS'!$FP$29*'TNC LS'!$FQ$29*'5. TNC Parameters'!$B$28*365*0.001*(44/28)*0.000001*(('TNC LS'!$FI$29*'5. TNC Parameters'!$C$59)+('TNC LS'!$FK$29*'5. TNC Parameters'!$E$59)) -> 0.1223526289 | X18: ='6. TNC Assumptions'!C20*'TNC LS'!$FP$30*'TNC LS'!$FQ$30*'5. TNC Parameters'!$B$28*365*0.001*(44/28)*0.000001*(('TNC LS'!$FI$30*'5. TNC Parameters'!$C$60)+('TNC LS'!$FK$30*'5. TNC Parameters'!$E$60)) -> 0.9877835828 | Z18: ='TNC LS'!$EH$10 -> 1.738128547 | AA18: =(('6. TNC Assumptions'!K20*'TNC LS'!$FP$32*'TNC LS'!$FQ$32)*'5. TNC Parameters'!$H$62+((('6. TNC Assumptions'!K20/50)*'TNC LS'!$FP$33*'TNC LS'!$FQ$33)+('6. TNC Assumptions'!P20*'TNC LS'!$FP$35*'TNC LS'!$FQ$35)+('6. TNC Assumptions'!M20*'TNC LS'!$FP$34*'TNC LS'!$FQ$34))*'5. TNC Parameters'!$H$63)*'5. TNC Parameters'!$B$28*365*0.001*0.000001*44/28 -> 3.825229451 | AC18: 10.63895986 | AE18: 34.97641486 | AH18: 2017 | AI18: ='6. TNC Assumptions'!$T$46*'5. TNC Parameters'!$C$5*'5. TNC Parameters'!B$27*0.000001 -> 3.335 | AJ18: ='6. TNC Assumptions'!$V$46*'5. TNC Parameters'!$C$6*'5. TNC Parameters'!B$27*0.000001 -> 4.7275 | AK18: ='6. TNC Assumptions'!$E$46*'5. TNC Parameters'!$C$11*'5. TNC Parameters'!B$27*0.000001 -> 0.325 | AL18: ='6. TNC Assumptions'!$C$46*'5. TNC Parameters'!$C$12*'5. TNC Parameters'!B$27*0.000001 -> 3.25 | AM18: ='TNC Scenarios'!F18 -> 0.38475 | AN18: ='6. TNC Assumptions'!$Z$46*'5. TNC Parameters'!$C$16*'5. TNC Parameters'!B$27*0.000001 -> 0.525 | AO18: ='6. TNC Assumptions'!$I$46*'5. TNC Parameters'!$C$25*'5. TNC Parameters'!B$27*0.000001 -> 8 | AP18: 20.54725 | AR18: ='6. TNC Assumptions'!$T$46*'5. TNC Parameters'!$D$5*'5. TNC Parameters'!B$27*0.000001 -> 0.0725 | AS18: ='6. TNC Assumptions'!$V$46*'5. TNC Parameters'!$D$6*'5. TNC Parameters'!B$27*0.000001 -> 0.1525 | AT18: ='6. TNC Assumptions'!$E$46*'5. TNC Parameters'!$D$11*'5. TNC Parameters'!B$27*0.000001 -> 0.00975 | AU18: ='6. TNC Assumptions'!$C$46*'5. TNC Parameters'!$D$12*'5. TNC Parameters'!B$27*0.000001 -> 0.1105 | AV18: ='TNC Scenarios'!O18 -> 0.035055 | AW18: ='6. TNC Assumptions'!$Z$46*'5. TNC Parameters'!$D$16*'5. TNC Parameters'!B$27*0.000001 -> 0.525 | AX18: =(('6. TNC Assumptions'!$K$46*'5. TNC Parameters'!$D$20)+('6. TNC Assumptions'!$R$46*'5. TNC Parameters'!$D$22))*'5. TNC Parameters'!B$27*0.000001 -> 3.142 | AY18: ='6. TNC Assumptions'!$I$46*'5. TNC Parameters'!$D$25*'5. TNC Parameters'!B$27*0.000001 -> 0.088 | AZ18: 4.135305 | BB18: ='TNC LS'!$EH$16 -> 0.7164564915 | BC18: ='TNC LS'!$EH$19 -> 3.249009157 | BD18: ='6. TNC Assumptions'!$E$46*'TNC LS'!$FP$29*'TNC LS'!$FQ$29*'5. TNC Parameters'!$B$28*365*0.001*(44/28)*0.000001*(('TNC LS'!$FI$29*'5. TNC Parameters'!$C$59)+('TNC LS'!$FK$29*'5. TNC Parameters'!$E$59)) -> 0.1204988012 | BE18: ='6. TNC Assumptions'!$C$46*'TNC LS'!$FP$30*'TNC LS'!$FQ$30*'5. TNC Parameters'!$B$28*365*0.001*(44/28)*0.000001*(('TNC LS'!$FI$30*'5. TNC Parameters'!$C$60)+('TNC LS'!$FK$30*'5. TNC Parameters'!$E$60)) -> 0.9954408198 | BG18: ='TNC LS'!$EH$21 -> 1.738128547 | BH18: =(('6. TNC Assumptions'!$K$46*'TNC LS'!$FP$32*'TNC LS'!$FQ$32)*'5. TNC Parameters'!$H$62+(('TNC LS'!EH$4*'TNC LS'!$FP$33*'TNC LS'!$FQ$33)+('6. TNC Assumptions'!$P$46*'TNC LS'!$FP$35*'TNC LS'!$FQ$35)+('6. TNC Assumptions'!$M$46*'TNC LS'!$FP$34*'TNC LS'!$FQ$34))*'5. TNC Parameters'!$H$63)*'5. TNC Parameters'!$B$28*365*0.001*0.000001*44/28 -> 3.454807125 | BJ18: 10.27434094 | BK18: 34.95689594 | BN18: 2017 | BO18: 20.54725 | BP18: 4.135305 | BQ18: ='TNC LS'!$EH$29 -> 0.7164564915 | BR18: ='TNC LS'!$EH$32 -> 3.249009157 | BS18: ='TNC Scenarios'!BD18 -> 0.1204988012 | BT18: ='TNC Scenarios'!BE18 -> 0.9954408198 | BV18: ='TNC LS'!$EH$34 -> 1.738128547 | BW18: ='TNC Scenarios'!BH18 -> 3.454807125 | BY18: 10.27434094 | BZ18: 34.95689594 | CE18: 20.54725 | CF18: 20.54725 | CG18: 34.95680458 | CH18: 34.95680458 | CI18: 34.95680458
A19: 2018 | B19: ='6. TNC Assumptions'!T21*'5. TNC Parameters'!$C$5*'5. TNC Parameters'!B$27*0.000001 -> 3.197 | C19: ='6. TNC Assumptions'!V21*'5. TNC Parameters'!$C$6*'5. TNC Parameters'!B$27*0.000001 -> 4.588 | D19: ='6. TNC Assumptions'!E21*'5. TNC Parameters'!$C$11*'5. TNC Parameters'!B$27*0.000001 -> 0.3325 | E19: ='6. TNC Assumptions'!C21*'5. TNC Parameters'!$C$12*'5. TNC Parameters'!B$27*0.000001 -> 3.2125 | F19: ='6. TNC Assumptions'!G21*'5. TNC Parameters'!$C$13*'5. TNC Parameters'!B$27*0.000001 -> 0.38475 | G19: ='6. TNC Assumptions'!Z21*'5. TNC Parameters'!$C$16*'5. TNC Parameters'!B$27*0.000001 -> 0.54 | H19: ='6. TNC Assumptions'!I21*'5. TNC Parameters'!$C$25*'5. TNC Parameters'!B$27*0.000001 -> 7.7 | I19: 19.95475 | K19: ='6. TNC Assumptions'!T21*'5. TNC Parameters'!$D$5*'5. TNC Parameters'!B$27*0.000001 -> 0.0695 | L19: ='6. TNC Assumptions'!V21*'5. TNC Parameters'!$D$6*'5. TNC Parameters'!B$27*0.000001 -> 0.148 | M19: ='6. TNC Assumptions'!E21*'5. TNC Parameters'!$D$11*'5. TNC Parameters'!B$27*0.000001 -> 0.009975 | N19: ='6. TNC Assumptions'!C21*'5. TNC Parameters'!$D$12*'5. TNC Parameters'!B$27*0.000001 -> 0.109225 | O19: ='6. TNC Assumptions'!G21*'5. TNC Parameters'!$D$13*'5. TNC Parameters'!B$27*0.000001 -> 0.035055 | P19: ='6. TNC Assumptions'!Z21*'5. TNC Parameters'!$D$16*'5. TNC Parameters'!B$27*0.000001 -> 0.54 | Q19: =(('6. TNC Assumptions'!K21*'5. TNC Parameters'!$D$20)+('6. TNC Assumptions'!R21*'5. TNC Parameters'!$D$22))*'5. TNC Parameters'!B$27*0.000001 -> 3.2137 | R19: ='6. TNC Assumptions'!I21*'5. TNC Parameters'!$D$25*'5. TNC Parameters'!B$27*0.000001 -> 0.0847 | S19: 4.210155 | U19: ='TNC LS'!$EH$5 -> 0.7164564915 | V19: ='TNC LS'!$EH$8 -> 3.249009157 | W19: ='6. TNC Assumptions'!E21*'TNC LS'!$FP$29*'TNC LS'!$FQ$29*'5. TNC Parameters'!$B$28*365*0.001*(44/28)*0.000001*(('TNC LS'!$FI$29*'5. TNC Parameters'!$C$59)+('TNC LS'!$FK$29*'5. TNC Parameters'!$E$59)) -> 0.1232795427 | X19: ='6. TNC Assumptions'!C21*'TNC LS'!$FP$30*'TNC LS'!$FQ$30*'5. TNC Parameters'!$B$28*365*0.001*(44/28)*0.000001*(('TNC LS'!$FI$30*'5. TNC Parameters'!$C$60)+('TNC LS'!$FK$30*'5. TNC Parameters'!$E$60)) -> 0.9839549642 | Z19: ='TNC LS'!$EH$10 -> 1.738128547 | AA19: =(('6. TNC Assumptions'!K21*'TNC LS'!$FP$32*'TNC LS'!$FQ$32)*'5. TNC Parameters'!$H$62+((('6. TNC Assumptions'!K21/50)*'TNC LS'!$FP$33*'TNC LS'!$FQ$33)+('6. TNC Assumptions'!P21*'TNC LS'!$FP$35*'TNC LS'!$FQ$35)+('6. TNC Assumptions'!M21*'TNC LS'!$FP$34*'TNC LS'!$FQ$34))*'5. TNC Parameters'!$H$63)*'5. TNC Parameters'!$B$28*365*0.001*0.000001*44/28 -> 3.854444856 | AC19: 10.66527356 | AE19: 34.83017856 | AH19: 2018 | AI19: ='6. TNC Assumptions'!$T$46*'5. TNC Parameters'!$C$5*'5. TNC Parameters'!B$27*0.000001 -> 3.335 | AJ19: ='6. TNC Assumptions'!$V$46*'5. TNC Parameters'!$C$6*'5. TNC Parameters'!B$27*0.000001 -> 4.7275 | AK19: ='6. TNC Assumptions'!$E$46*'5. TNC Parameters'!$C$11*'5. TNC Parameters'!B$27*0.000001 -> 0.325 | AL19: ='6. TNC Assumptions'!$C$46*'5. TNC Parameters'!$C$12*'5. TNC Parameters'!B$27*0.000001 -> 3.25 | AM19: ='TNC Scenarios'!F19 -> 0.38475 | AN19: ='6. TNC Assumptions'!$Z$46*'5. TNC Parameters'!$C$16*'5. TNC Parameters'!B$27*0.000001 -> 0.525 | AO19: ='6. TNC Assumptions'!$I$46*'5. TNC Parameters'!$C$25*'5. TNC Parameters'!B$27*0.000001 -> 8 | AP19: 20.54725 | AR19: ='6. TNC Assumptions'!$T$46*'5. TNC Parameters'!$D$5*'5. TNC Parameters'!B$27*0.000001 -> 0.0725 | AS19: ='6. TNC Assumptions'!$V$46*'5. TNC Parameters'!$D$6*'5. TNC Parameters'!B$27*0.000001 -> 0.1525 | AT19: ='6. TNC Assumptions'!$E$46*'5. TNC Parameters'!$D$11*'5. TNC Parameters'!B$27*0.000001 -> 0.00975 | AU19: ='6. TNC Assumptions'!$C$46*'5. TNC Parameters'!$D$12*'5. TNC Parameters'!B$27*0.000001 -> 0.1105 | AV19: ='TNC Scenarios'!O19 -> 0.035055 | AW19: ='6. TNC Assumptions'!$Z$46*'5. TNC Parameters'!$D$16*'5. TNC Parameters'!B$27*0.000001 -> 0.525 | AX19: =(('6. TNC Assumptions'!$K$46*'5. TNC Parameters'!$D$20)+('6. TNC Assumptions'!$R$46*'5. TNC Parameters'!$D$22))*'5. TNC Parameters'!B$27*0.000001 -> 3.142 | AY19: ='6. TNC Assumptions'!$I$46*'5. TNC Parameters'!$D$25*'5. TNC Parameters'!B$27*0.000001 -> 0.088 | AZ19: 4.135305 | BB19: ='TNC LS'!$EH$16 -> 0.7164564915 | BC19: ='TNC LS'!$EH$19 -> 3.249009157 | BD19: ='6. TNC Assumptions'!$E$46*'TNC LS'!$FP$29*'TNC LS'!$FQ$29*'5. TNC Parameters'!$B$28*365*0.001*(44/28)*0.000001*(('TNC LS'!$FI$29*'5. TNC Parameters'!$C$59)+('TNC LS'!$FK$29*'5. TNC Parameters'!$E$59)) -> 0.1204988012 | BE19: ='6. TNC Assumptions'!$C$46*'TNC LS'!$FP$30*'TNC LS'!$FQ$30*'5. TNC Parameters'!$B$28*365*0.001*(44/28)*0.000001*(('TNC LS'!$FI$30*'5. TNC Parameters'!$C$60)+('TNC LS'!$FK$30*'5. TNC Parameters'!$E$60)) -> 0.9954408198 | BG19: ='TNC LS'!$EH$21 -> 1.738128547 | BH19: =(('6. TNC Assumptions'!$K$46*'TNC LS'!$FP$32*'TNC LS'!$FQ$32)*'5. TNC Parameters'!$H$62+(('TNC LS'!EH$4*'TNC LS'!$FP$33*'TNC LS'!$FQ$33)+('6. TNC Assumptions'!$P$46*'TNC LS'!$FP$35*'TNC LS'!$FQ$35)+('6. TNC Assumptions'!$M$46*'TNC LS'!$FP$34*'TNC LS'!$FQ$34))*'5. TNC Parameters'!$H$63)*'5. TNC Parameters'!$B$28*365*0.001*0.000001*44/28 -> 3.454807125 | BJ19: 10.27434094 | BK19: 34.95689594 | BN19: 2018 | BO19: 20.54725 | BP19: 4.135305 | BQ19: ='TNC LS'!$EH$29 -> 0.7164564915 | BR19: ='TNC LS'!$EH$32 -> 3.249009157 | BS19: ='TNC Scenarios'!BD19 -> 0.1204988012 | BT19: ='TNC Scenarios'!BE19 -> 0.9954408198 | BV19: ='TNC LS'!$EH$34 -> 1.738128547 | BW19: ='TNC Scenarios'!BH19 -> 3.454807125 | BY19: 10.27434094 | BZ19: 34.95689594 | CE19: 20.54725 | CF19: 20.54725 | CG19: 34.95680458 | CH19: 34.95680458 | CI19: 34.95680458
A20: 2019 | B20: ='6. TNC Assumptions'!T22*'5. TNC Parameters'!$C$5*'5. TNC Parameters'!B$27*0.000001 -> 3.151 | C20: ='6. TNC Assumptions'!V22*'5. TNC Parameters'!$C$6*'5. TNC Parameters'!B$27*0.000001 -> 4.5415 | D20: ='6. TNC Assumptions'!E22*'5. TNC Parameters'!$C$11*'5. TNC Parameters'!B$27*0.000001 -> 0.335 | E20: ='6. TNC Assumptions'!C22*'5. TNC Parameters'!$C$12*'5. TNC Parameters'!B$27*0.000001 -> 3.2 | F20: ='6. TNC Assumptions'!G22*'5. TNC Parameters'!$C$13*'5. TNC Parameters'!B$27*0.000001 -> 0.38475 | G20: ='6. TNC Assumptions'!Z22*'5. TNC Parameters'!$C$16*'5. TNC Parameters'!B$27*0.000001 -> 0.545 | H20: ='6. TNC Assumptions'!I22*'5. TNC Parameters'!$C$25*'5. TNC Parameters'!B$27*0.000001 -> 7.6 | I20: 19.75725 | K20: ='6. TNC Assumptions'!T22*'5. TNC Parameters'!$D$5*'5. TNC Parameters'!B$27*0.000001 -> 0.0685 | L20: ='6. TNC Assumptions'!V22*'5. TNC Parameters'!$D$6*'5. TNC Parameters'!B$27*0.000001 -> 0.1465 | M20: ='6. TNC Assumptions'!E22*'5. TNC Parameters'!$D$11*'5. TNC Parameters'!B$27*0.000001 -> 0.01005 | N20: ='6. TNC Assumptions'!C22*'5. TNC Parameters'!$D$12*'5. TNC Parameters'!B$27*0.000001 -> 0.1088 | O20: ='6. TNC Assumptions'!G22*'5. TNC Parameters'!$D$13*'5. TNC Parameters'!B$27*0.000001 -> 0.035055 | P20: ='6. TNC Assumptions'!Z22*'5. TNC Parameters'!$D$16*'5. TNC Parameters'!B$27*0.000001 -> 0.545 | Q20: =(('6. TNC Assumptions'!K22*'5. TNC Parameters'!$D$20)+('6. TNC Assumptions'!R22*'5. TNC Parameters'!$D$22))*'5. TNC Parameters'!B$27*0.000001 -> 3.2376 | R20: ='6. TNC Assumptions'!I22*'5. TNC Parameters'!$D$25*'5. TNC Parameters'!B$27*0.000001 -> 0.0836 | S20: 4.235105 | U20: ='TNC LS'!$EH$5 -> 0.7164564915 | V20: ='TNC LS'!$EH$8 -> 3.249009157 | W20: ='6. TNC Assumptions'!E22*'TNC LS'!$FP$29*'TNC LS'!$FQ$29*'5. TNC Parameters'!$B$28*365*0.001*(44/28)*0.000001*(('TNC LS'!$FI$29*'5. TNC Parameters'!$C$59)+('TNC LS'!$FK$29*'5. TNC Parameters'!$E$59)) -> 0.1242064566 | X20: ='6. TNC Assumptions'!C22*'TNC LS'!$FP$30*'TNC LS'!$FQ$30*'5. TNC Parameters'!$B$28*365*0.001*(44/28)*0.000001*(('TNC LS'!$FI$30*'5. TNC Parameters'!$C$60)+('TNC LS'!$FK$30*'5. TNC Parameters'!$E$60)) -> 0.9801263457 | Z20: ='TNC LS'!$EH$10 -> 1.738128547 | AA20: =(('6. TNC Assumptions'!K22*'TNC LS'!$FP$32*'TNC LS'!$FQ$32)*'5. TNC Parameters'!$H$62+((('6. TNC Assumptions'!K22/50)*'TNC LS'!$FP$33*'TNC LS'!$FQ$33)+('6. TNC Assumptions'!P22*'TNC LS'!$FP$35*'TNC LS'!$FQ$35)+('6. TNC Assumptions'!M22*'TNC LS'!$FP$34*'TNC LS'!$FQ$34))*'5. TNC Parameters'!$H$63)*'5. TNC Parameters'!$B$28*365*0.001*0.000001*44/28 -> 3.88366026 | AC20: 10.69158726 | AE20: 34.68394226 | AH20: 2019 | AI20: ='6. TNC Assumptions'!$T$46*'5. TNC Parameters'!$C$5*'5. TNC Parameters'!B$27*0.000001 -> 3.335 | AJ20: ='6. TNC Assumptions'!$V$46*'5. TNC Parameters'!$C$6*'5. TNC Parameters'!B$27*0.000001 -> 4.7275 | AK20: ='6. TNC Assumptions'!$E$46*'5. TNC Parameters'!$C$11*'5. TNC Parameters'!B$27*0.000001 -> 0.325 | AL20: ='6. TNC Assumptions'!$C$46*'5. TNC Parameters'!$C$12*'5. TNC Parameters'!B$27*0.000001 -> 3.25 | AM20: ='TNC Scenarios'!F20 -> 0.38475 | AN20: ='6. TNC Assumptions'!$Z$46*'5. TNC Parameters'!$C$16*'5. TNC Parameters'!B$27*0.000001 -> 0.525 | AO20: ='6. TNC Assumptions'!$I$46*'5. TNC Parameters'!$C$25*'5. TNC Parameters'!B$27*0.000001 -> 8 | AP20: 20.54725 | AR20: ='6. TNC Assumptions'!$T$46*'5. TNC Parameters'!$D$5*'5. TNC Parameters'!B$27*0.000001 -> 0.0725 | AS20: ='6. TNC Assumptions'!$V$46*'5. TNC Parameters'!$D$6*'5. TNC Parameters'!B$27*0.000001 -> 0.1525 | AT20: ='6. TNC Assumptions'!$E$46*'5. TNC Parameters'!$D$11*'5. TNC Parameters'!B$27*0.000001 -> 0.00975 | AU20: ='6. TNC Assumptions'!$C$46*'5. TNC Parameters'!$D$12*'5. TNC Parameters'!B$27*0.000001 -> 0.1105 | AV20: ='TNC Scenarios'!O20 -> 0.035055 | AW20: ='6. TNC Assumptions'!$Z$46*'5. TNC Parameters'!$D$16*'5. TNC Parameters'!B$27*0.000001 -> 0.525 | AX20: =(('6. TNC Assumptions'!$K$46*'5. TNC Parameters'!$D$20)+('6. TNC Assumptions'!$R$46*'5. TNC Parameters'!$D$22))*'5. TNC Parameters'!B$27*0.000001 -> 3.142 | AY20: ='6. TNC Assumptions'!$I$46*'5. TNC Parameters'!$D$25*'5. TNC Parameters'!B$27*0.000001 -> 0.088 | AZ20: 4.135305 | BB20: ='TNC LS'!$EH$16 -> 0.7164564915 | BC20: ='TNC LS'!$EH$19 -> 3.249009157 | BD20: ='6. TNC Assumptions'!$E$46*'TNC LS'!$FP$29*'TNC LS'!$FQ$29*'5. TNC Parameters'!$B$28*365*0.001*(44/28)*0.000001*(('TNC LS'!$FI$29*'5. TNC Parameters'!$C$59)+('TNC LS'!$FK$29*'5. TNC Parameters'!$E$59)) -> 0.1204988012 | BE20: ='6. TNC Assumptions'!$C$46*'TNC LS'!$FP$30*'TNC LS'!$FQ$30*'5. TNC Parameters'!$B$28*365*0.001*(44/28)*0.000001*(('TNC LS'!$FI$30*'5. TNC Parameters'!$C$60)+('TNC LS'!$FK$30*'5. TNC Parameters'!$E$60)) -> 0.9954408198 | BG20: ='TNC LS'!$EH$21 -> 1.738128547 | BH20: =(('6. TNC Assumptions'!$K$46*'TNC LS'!$FP$32*'TNC LS'!$FQ$32)*'5. TNC Parameters'!$H$62+(('TNC LS'!EH$4*'TNC LS'!$FP$33*'TNC LS'!$FQ$33)+('6. TNC Assumptions'!$P$46*'TNC LS'!$FP$35*'TNC LS'!$FQ$35)+('6. TNC Assumptions'!$M$46*'TNC LS'!$FP$34*'TNC LS'!$FQ$34))*'5. TNC Parameters'!$H$63)*'5. TNC Parameters'!$B$28*365*0.001*0.000001*44/28 -> 3.454807125 | BJ20: 10.27434094 | BK20: 34.95689594 | BN20: 2019 | BO20: 20.54725 | BP20: 4.135305 | BQ20: ='TNC LS'!$EH$29 -> 0.7164564915 | BR20: ='TNC LS'!$EH$32 -> 3.249009157 | BS20: ='TNC Scenarios'!BD20 -> 0.1204988012 | BT20: ='TNC Scenarios'!BE20 -> 0.9954408198 | BV20: ='TNC LS'!$EH$34 -> 1.738128547 | BW20: ='TNC Scenarios'!BH20 -> 3.454807125 | BY20: 10.27434094 | BZ20: 34.95689594 | CE20: 20.54725 | CF20: 20.54725 | CG20: 34.95680458 | CH20: 34.95680458 | CI20: 34.95680458
A21: 2020 | B21: ='6. TNC Assumptions'!T23*'5. TNC Parameters'!$C$5*'5. TNC Parameters'!B$27*0.000001 -> 3.105 | C21: ='6. TNC Assumptions'!V23*'5. TNC Parameters'!$C$6*'5. TNC Parameters'!B$27*0.000001 -> 4.495 | D21: ='6. TNC Assumptions'!E23*'5. TNC Parameters'!$C$11*'5. TNC Parameters'!B$27*0.000001 -> 0.3375 | E21: ='6. TNC Assumptions'!C23*'5. TNC Parameters'!$C$12*'5. TNC Parameters'!B$27*0.000001 -> 3.1875 | F21: ='6. TNC Assumptions'!G23*'5. TNC Parameters'!$C$13*'5. TNC Parameters'!B$27*0.000001 -> 0.38475 | G21: ='6. TNC Assumptions'!Z23*'5. TNC Parameters'!$C$16*'5. TNC Parameters'!B$27*0.000001 -> 0.55 | H21: ='6. TNC Assumptions'!I23*'5. TNC Parameters'!$C$25*'5. TNC Parameters'!B$27*0.000001 -> 7.5 | I21: 19.55975 | K21: ='6. TNC Assumptions'!T23*'5. TNC Parameters'!$D$5*'5. TNC Parameters'!B$27*0.000001 -> 0.0675 | L21: ='6. TNC Assumptions'!V23*'5. TNC Parameters'!$D$6*'5. TNC Parameters'!B$27*0.000001 -> 0.145 | M21: ='6. TNC Assumptions'!E23*'5. TNC Parameters'!$D$11*'5. TNC Parameters'!B$27*0.000001 -> 0.010125 | N21: ='6. TNC Assumptions'!C23*'5. TNC Parameters'!$D$12*'5. TNC Parameters'!B$27*0.000001 -> 0.108375 | O21: ='6. TNC Assumptions'!G23*'5. TNC Parameters'!$D$13*'5. TNC Parameters'!B$27*0.000001 -> 0.035055 | P21: ='6. TNC Assumptions'!Z23*'5. TNC Parameters'!$D$16*'5. TNC Parameters'!B$27*0.000001 -> 0.55 | Q21: =(('6. TNC Assumptions'!K23*'5. TNC Parameters'!$D$20)+('6. TNC Assumptions'!R23*'5. TNC Parameters'!$D$22))*'5. TNC Parameters'!B$27*0.000001 -> 3.2615 | R21: ='6. TNC Assumptions'!I23*'5. TNC Parameters'!$D$25*'5. TNC Parameters'!B$27*0.000001 -> 0.0825 | S21: =SUM(K21:R21) -> 4.260055 | U21: ='TNC LS'!$EI$5 -> 0.6670456989 | V21: ='TNC LS'!$EI$8 -> 3.336725791 | W21: ='6. TNC Assumptions'!E23*'TNC LS'!$FP$29*'TNC LS'!$FQ$29*'5. TNC Parameters'!$B$28*365*0.001*(44/28)*0.000001*(('TNC LS'!$FI$29*'5. TNC Parameters'!$C$59)+('TNC LS'!$FK$29*'5. TNC Parameters'!$E$59)) -> 0.1251333705 | X21: ='6. TNC Assumptions'!C23*'TNC LS'!$FP$30*'TNC LS'!$FQ$30*'5. TNC Parameters'!$B$28*365*0.001*(44/28)*0.000001*(('TNC LS'!$FI$30*'5. TNC Parameters'!$C$60)+('TNC LS'!$FK$30*'5. TNC Parameters'!$E$60)) -> 0.9762977272 | Z21: ='TNC LS'!$EI$10 -> 1.820896573 | AA21: =(('6. TNC Assumptions'!K23*'TNC LS'!$FP$32*'TNC LS'!$FQ$32)*'5. TNC Parameters'!$H$62+((('6. TNC Assumptions'!K23/50)*'TNC LS'!$FP$33*'TNC LS'!$FQ$33)+('6. TNC Assumptions'!P23*'TNC LS'!$FP$35*'TNC LS'!$FQ$35)+('6. TNC Assumptions'!M23*'TNC LS'!$FP$34*'TNC LS'!$FQ$34))*'5. TNC Parameters'!$H$63)*'5. TNC Parameters'!$B$28*365*0.001*0.000001*44/28 -> 3.912875664 | AC21: =SUM(U21:AB21) -> 10.83897483 | AE21: =I21+S21+AC21 -> 34.65877983 | AF21: =I21/AE21% -> 56.43519506 | AH21: =A21 -> 2020 | AI21: ='6. TNC Assumptions'!T51*'5. TNC Parameters'!$C$5*'5. TNC Parameters'!B$27*0.000001 -> 3.45 | AJ21: ='6. TNC Assumptions'!V51*'5. TNC Parameters'!$C$6*'5. TNC Parameters'!B$27*0.000001 -> 4.8825 | AK21: ='6. TNC Assumptions'!E51*'5. TNC Parameters'!$C$11*'5. TNC Parameters'!B$27*0.000001 -> 0.375 | AL21: ='6. TNC Assumptions'!C51*'5. TNC Parameters'!$C$12*'5. TNC Parameters'!B$27*0.000001 -> 3.3375 | AM21: ='TNC Scenarios'!F21 -> 0.38475 | AN21: ='6. TNC Assumptions'!Z51*'5. TNC Parameters'!$C$16*'5. TNC Parameters'!B$27*0.000001 -> 0.55 | AO21: ='6. TNC Assumptions'!I51*'5. TNC Parameters'!$C$25*'5. TNC Parameters'!B$27*0.000001 -> 8.5 | AP21: =SUM(AI21:AO21) -> 21.47975 | AR21: ='6. TNC Assumptions'!T51*'5. TNC Parameters'!$D$5*'5. TNC Parameters'!B$27*0.000001 -> 0.075 | AS21: ='6. TNC Assumptions'!V51*'5. TNC Parameters'!$D$6*'5. TNC Parameters'!B$27*0.000001 -> 0.1575 | AT21: ='6. TNC Assumptions'!E51*'5. TNC Parameters'!$D$11*'5. TNC Parameters'!B$27*0.000001 -> 0.01125 | AU21: ='6. TNC Assumptions'!C51*'5. TNC Parameters'!$D$12*'5. TNC Parameters'!B$27*0.000001 -> 0.113475 | AV21: ='TNC Scenarios'!O21 -> 0.035055 | AW21: ='6. TNC Assumptions'!Z51*'5. TNC Parameters'!$D$16*'5. TNC Parameters'!B$27*0.000001 -> 0.55 | AX21: =(('6. TNC Assumptions'!$K51*'5. TNC Parameters'!$D$20)+('6. TNC Assumptions'!$R51*'5. TNC Parameters'!$D$22))*'5. TNC Parameters'!B$27*0.000001 -> 3.2615 | AY21: ='6. TNC Assumptions'!I51*'5. TNC Parameters'!$D$25*'5. TNC Parameters'!B$27*0.000001 -> 0.0935 | AZ21: =SUM(AR21:AY21) -> 4.29728 | BB21: ='TNC LS'!$EI$16 -> 0.7187024366 | BC21: ='TNC LS'!$EI$19 -> 3.374906858 | BD21: ='6. TNC Assumptions'!E51*'TNC LS'!$FP$29*'TNC LS'!$FQ$29*'5. TNC Parameters'!$B$28*365*0.001*(44/28)*0.000001*(('TNC LS'!$FI$29*'5. TNC Parameters'!$C$59)+('TNC LS'!$FK$29*'5. TNC Parameters'!$E$59)) -> 0.1390370783 | BE21: ='6. TNC Assumptions'!C51*'TNC LS'!$FP$30*'TNC LS'!$FQ$30*'5. TNC Parameters'!$B$28*365*0.001*(44/28)*0.000001*(('TNC LS'!$FI$30*'5. TNC Parameters'!$C$60)+('TNC LS'!$FK$30*'5. TNC Parameters'!$E$60)) -> 1.02224115 | BG21: ='TNC LS'!$EI$21 -> 1.820896573 | BH21: =(('6. TNC Assumptions'!$K51*'TNC LS'!$FP$32*'TNC LS'!$FQ$32)*'5. TNC Parameters'!$H$62+(('TNC LS'!EH$4*'TNC LS'!$FP$33*'TNC LS'!$FQ$33)+('6. TNC Assumptions'!$P51*'TNC LS'!$FP$35*'TNC LS'!$FQ$35)+('6. TNC Assumptions'!$M51*'TNC LS'!$FP$34*'TNC LS'!$FQ$34))*'5. TNC Parameters'!$H$63)*'5. TNC Parameters'!$B$28*365*0.001*0.000001*44/28 -> 3.589110882 | BJ21: =SUM(BB21:BI21) -> 10.66489498 | BK21: =AP21+AZ21+BJ21 -> 36.44192498 | BN21: =AH21 -> 2020 | BO21: =AP21 -> 21.47975 | BP21: =AZ21 -> 4.29728 | BQ21: ='TNC LS'!$EI$29 -> 0.7411618877 | BR21: ='TNC LS'!$EI$32 -> 3.398489282 | BS21: ='TNC Scenarios'!BD21 -> 0.1390370783 | BT21: ='TNC Scenarios'!BE21 -> 1.02224115 | BV21: ='TNC LS'!$EI$34 -> 1.820896573 | BW21: ='TNC Scenarios'!BH21 -> 3.589110882 | BY21: 10.71093685 | BZ21: 36.48796685 | CB21: =BZ21-BK21 -> 0.04604187484 | CE21: 19.55975 | CF21: 21.47975 | CG21: 34.33491934 | CH21: 36.44182927 | CI21: 36.48787115
A22: 2025 | B22: ='6. TNC Assumptions'!T24*'5. TNC Parameters'!$C$5*'5. TNC Parameters'!B$27*0.000001 -> 2.875 | C22: ='6. TNC Assumptions'!V24*'5. TNC Parameters'!$C$6*'5. TNC Parameters'!B$27*0.000001 -> 4.34 | D22: ='6. TNC Assumptions'!E24*'5. TNC Parameters'!$C$11*'5. TNC Parameters'!B$27*0.000001 -> 0.3375 | E22: ='6. TNC Assumptions'!C24*'5. TNC Parameters'!$C$12*'5. TNC Parameters'!B$27*0.000001 -> 3.1875 | F22: ='6. TNC Assumptions'!G24*'5. TNC Parameters'!$C$13*'5. TNC Parameters'!B$27*0.000001 -> 0.38475 | G22: ='6. TNC Assumptions'!Z24*'5. TNC Parameters'!$C$16*'5. TNC Parameters'!B$27*0.000001 -> 0.55 | H22: ='6. TNC Assumptions'!I24*'5. TNC Parameters'!$C$25*'5. TNC Parameters'!B$27*0.000001 -> 7.5 | I22: 19.17475 | K22: ='6. TNC Assumptions'!T24*'5. TNC Parameters'!$D$5*'5. TNC Parameters'!B$27*0.000001 -> 0.0625 | L22: ='6. TNC Assumptions'!V24*'5. TNC Parameters'!$D$6*'5. TNC Parameters'!B$27*0.000001 -> 0.14 | M22: ='6. TNC Assumptions'!E24*'5. TNC Parameters'!$D$11*'5. TNC Parameters'!B$27*0.000001 -> 0.010125 | N22: ='6. TNC Assumptions'!C24*'5. TNC Parameters'!$D$12*'5. TNC Parameters'!B$27*0.000001 -> 0.108375 | O22: ='6. TNC Assumptions'!G24*'5. TNC Parameters'!$D$13*'5. TNC Parameters'!B$27*0.000001 -> 0.035055 | P22: ='6. TNC Assumptions'!Z24*'5. TNC Parameters'!$D$16*'5. TNC Parameters'!B$27*0.000001 -> 0.55 | Q22: =(('6. TNC Assumptions'!K24*'5. TNC Parameters'!$D$20)+('6. TNC Assumptions'!R24*'5. TNC Parameters'!$D$22))*'5. TNC Parameters'!B$27*0.000001 -> 3.36975 | R22: ='6. TNC Assumptions'!I24*'5. TNC Parameters'!$D$25*'5. TNC Parameters'!B$27*0.000001 -> 0.0825 | S22: 4.358305 | U22: ='TNC LS'!$EJ$5 -> 0.6176349064 | V22: ='TNC LS'!$EJ$8 -> 3.436795124 | W22: ='6. TNC Assumptions'!E24*'TNC LS'!$FP$29*'TNC LS'!$FQ$29*'5. TNC Parameters'!$B$28*365*0.001*(44/28)*0.000001*(('TNC LS'!$FI$29*'5. TNC Parameters'!$C$59)+('TNC LS'!$FK$29*'5. TNC Parameters'!$E$59)) -> 0.1251333705 | X22: ='6. TNC Assumptions'!C24*'TNC LS'!$FP$30*'TNC LS'!$FQ$30*'5. TNC Parameters'!$B$28*365*0.001*(44/28)*0.000001*(('TNC LS'!$FI$30*'5. TNC Parameters'!$C$60)+('TNC LS'!$FK$30*'5. TNC Parameters'!$E$60)) -> 0.9762977272 | Z22: ='TNC LS'!$EJ$10 -> 1.820896573 | AA22: =(('6. TNC Assumptions'!K24*'TNC LS'!$FP$32*'TNC LS'!$FQ$32)*'5. TNC Parameters'!$H$62+((('6. TNC Assumptions'!K24/50)*'TNC LS'!$FP$33*'TNC LS'!$FQ$33)+('6. TNC Assumptions'!P24*'TNC LS'!$FP$35*'TNC LS'!$FQ$35)+('6. TNC Assumptions'!M24*'TNC LS'!$FP$34*'TNC LS'!$FQ$34))*'5. TNC Parameters'!$H$63)*'5. TNC Parameters'!$B$28*365*0.001*0.000001*44/28 -> 4.02111005 | AC22: 10.99786775 | AE22: 34.53092275 | AF22: 55.52921403 | AH22: 2025 | AI22: ='6. TNC Assumptions'!T52*'5. TNC Parameters'!$C$5*'5. TNC Parameters'!B$27*0.000001 -> 3.68 | AJ22: ='6. TNC Assumptions'!V52*'5. TNC Parameters'!$C$6*'5. TNC Parameters'!B$27*0.000001 -> 5.23125 | AK22: ='6. TNC Assumptions'!E52*'5. TNC Parameters'!$C$11*'5. TNC Parameters'!B$27*0.000001 -> 0.4375 | AL22: ='6. TNC Assumptions'!C52*'5. TNC Parameters'!$C$12*'5. TNC Parameters'!B$27*0.000001 -> 3.5 | AM22: ='TNC Scenarios'!F22 -> 0.38475 | AN22: ='6. TNC Assumptions'!Z52*'5. TNC Parameters'!$C$16*'5. TNC Parameters'!B$27*0.000001 -> 0.575 | AO22: ='6. TNC Assumptions'!I52*'5. TNC Parameters'!$C$25*'5. TNC Parameters'!B$27*0.000001 -> 8.75 | AP22: 22.5585 | AR22: ='6. TNC Assumptions'!T52*'5. TNC Parameters'!$D$5*'5. TNC Parameters'!B$27*0.000001 -> 0.08 | AS22: ='6. TNC Assumptions'!V52*'5. TNC Parameters'!$D$6*'5. TNC Parameters'!B$27*0.000001 -> 0.16875 | AT22: ='6. TNC Assumptions'!E52*'5. TNC Parameters'!$D$11*'5. TNC Parameters'!B$27*0.000001 -> 0.013125 | AU22: ='6. TNC Assumptions'!C52*'5. TNC Parameters'!$D$12*'5. TNC Parameters'!B$27*0.000001 -> 0.119 | AV22: ='TNC Scenarios'!O22 -> 0.035055 | AW22: ='6. TNC Assumptions'!Z52*'5. TNC Parameters'!$D$16*'5. TNC Parameters'!B$27*0.000001 -> 0.575 | AX22: =(('6. TNC Assumptions'!$K52*'5. TNC Parameters'!$D$20)+('6. TNC Assumptions'!$R52*'5. TNC Parameters'!$D$22))*'5. TNC Parameters'!B$27*0.000001 -> 3.36975 | AY22: ='6. TNC Assumptions'!I52*'5. TNC Parameters'!$D$25*'5. TNC Parameters'!B$27*0.000001 -> 0.09625 | AZ22: 4.45693 | BB22: ='TNC LS'!$EJ$16 -> 0.7666159323 | BC22: ='TNC LS'!$EJ$19 -> 3.55358427 | BD22: ='6. TNC Assumptions'!E52*'TNC LS'!$FP$29*'TNC LS'!$FQ$29*'5. TNC Parameters'!$B$28*365*0.001*(44/28)*0.000001*(('TNC LS'!$FI$29*'5. TNC Parameters'!$C$59)+('TNC LS'!$FK$29*'5. TNC Parameters'!$E$59)) -> 0.1622099247 | BE22: ='6. TNC Assumptions'!C52*'TNC LS'!$FP$30*'TNC LS'!$FQ$30*'5. TNC Parameters'!$B$28*365*0.001*(44/28)*0.000001*(('TNC LS'!$FI$30*'5. TNC Parameters'!$C$60)+('TNC LS'!$FK$30*'5. TNC Parameters'!$E$60)) -> 1.072013191 | BG22: ='TNC LS'!$EJ$21 -> 1.903664599 | BH22: =(('6. TNC Assumptions'!$K52*'TNC LS'!$FP$32*'TNC LS'!$FQ$32)*'5. TNC Parameters'!$H$62+(('TNC LS'!EH$4*'TNC LS'!$FP$33*'TNC LS'!$FQ$33)+('6. TNC Assumptions'!$P52*'TNC LS'!$FP$35*'TNC LS'!$FQ$35)+('6. TNC Assumptions'!$M52*'TNC LS'!$FP$34*'TNC LS'!$FQ$34))*'5. TNC Parameters'!$H$63)*'5. TNC Parameters'!$B$28*365*0.001*0.000001*44/28 -> 3.685572003 | BJ22: 11.14365992 | BK22: 38.15908992 | BN22: 2025 | BO22: 22.5585 | BP22: 4.45693 | BQ22: ='TNC LS'!$EJ$29 -> 0.7905726802 | BR22: ='TNC LS'!$EJ$32 -> 3.578851152 | BS22: ='TNC Scenarios'!BD22 -> 0.1622099247 | BT22: ='TNC Scenarios'!BE22 -> 1.072013191 | BV22: ='TNC LS'!$EJ$34 -> 1.903664599 | BW22: ='TNC Scenarios'!BH22 -> 3.685572003 | BY22: 11.19288355 | BZ22: 38.20831355 | CB22: 0.04922363042 | CE22: 19.17475 | CF22: 22.53525 | CG22: 34.195289 | CH22: 38.13139635 | CI22: 38.18050768
A23: 2030 | B23: ='6. TNC Assumptions'!T25*'5. TNC Parameters'!$C$5*'5. TNC Parameters'!B$27*0.000001 -> 2.76 | C23: ='6. TNC Assumptions'!V25*'5. TNC Parameters'!$C$6*'5. TNC Parameters'!B$27*0.000001 -> 4.2625 | D23: ='6. TNC Assumptions'!E25*'5. TNC Parameters'!$C$11*'5. TNC Parameters'!B$27*0.000001 -> 0.35 | E23: ='6. TNC Assumptions'!C25*'5. TNC Parameters'!$C$12*'5. TNC Parameters'!B$27*0.000001 -> 3.125 | F23: ='6. TNC Assumptions'!G25*'5. TNC Parameters'!$C$13*'5. TNC Parameters'!B$27*0.000001 -> 0.38475 | G23: ='6. TNC Assumptions'!Z25*'5. TNC Parameters'!$C$16*'5. TNC Parameters'!B$27*0.000001 -> 0.5625 | H23: ='6. TNC Assumptions'!I25*'5. TNC Parameters'!$C$25*'5. TNC Parameters'!B$27*0.000001 -> 7.625 | I23: 19.06975 | K23: ='6. TNC Assumptions'!T25*'5. TNC Parameters'!$D$5*'5. TNC Parameters'!B$27*0.000001 -> 0.06 | L23: ='6. TNC Assumptions'!V25*'5. TNC Parameters'!$D$6*'5. TNC Parameters'!B$27*0.000001 -> 0.1375 | M23: ='6. TNC Assumptions'!E25*'5. TNC Parameters'!$D$11*'5. TNC Parameters'!B$27*0.000001 -> 0.0105 | N23: ='6. TNC Assumptions'!C25*'5. TNC Parameters'!$D$12*'5. TNC Parameters'!B$27*0.000001 -> 0.10625 | O23: ='6. TNC Assumptions'!G25*'5. TNC Parameters'!$D$13*'5. TNC Parameters'!B$27*0.000001 -> 0.035055 | P23: ='6. TNC Assumptions'!Z25*'5. TNC Parameters'!$D$16*'5. TNC Parameters'!B$27*0.000001 -> 0.5625 | Q23: =(('6. TNC Assumptions'!K25*'5. TNC Parameters'!$D$20)+('6. TNC Assumptions'!R25*'5. TNC Parameters'!$D$22))*'5. TNC Parameters'!B$27*0.000001 -> 3.42425 | R23: ='6. TNC Assumptions'!I25*'5. TNC Parameters'!$D$25*'5. TNC Parameters'!B$27*0.000001 -> 0.083875 | S23: 4.41993 | U23: ='TNC LS'!$EK$5 -> 0.5929295102 | V23: ='TNC LS'!$EK$8 -> 3.549217154 | W23: ='6. TNC Assumptions'!E25*'TNC LS'!$FP$29*'TNC LS'!$FQ$29*'5. TNC Parameters'!$B$28*365*0.001*(44/28)*0.000001*(('TNC LS'!$FI$29*'5. TNC Parameters'!$C$59)+('TNC LS'!$FK$29*'5. TNC Parameters'!$E$59)) -> 0.1297679397 | X23: ='6. TNC Assumptions'!C25*'TNC LS'!$FP$30*'TNC LS'!$FQ$30*'5. TNC Parameters'!$B$28*365*0.001*(44/28)*0.000001*(('TNC LS'!$FI$30*'5. TNC Parameters'!$C$60)+('TNC LS'!$FK$30*'5. TNC Parameters'!$E$60)) -> 0.9571546345 | Z23: ='TNC LS'!$EK$10 -> 1.862280586 | AA23: =(('6. TNC Assumptions'!K25*'TNC LS'!$FP$32*'TNC LS'!$FQ$32)*'5. TNC Parameters'!$H$62+((('6. TNC Assumptions'!K25/50)*'TNC LS'!$FP$33*'TNC LS'!$FQ$33)+('6. TNC Assumptions'!P25*'TNC LS'!$FP$35*'TNC LS'!$FQ$35)+('6. TNC Assumptions'!M25*'TNC LS'!$FP$34*'TNC LS'!$FQ$34))*'5. TNC Parameters'!$H$63)*'5. TNC Parameters'!$B$28*365*0.001*0.000001*44/28 -> 4.077000582 | AC23: 11.16835041 | AE23: 34.65803041 | AF23: 55.02260162 | AH23: 2030 | AI23: ='6. TNC Assumptions'!T53*'5. TNC Parameters'!$C$5*'5. TNC Parameters'!B$27*0.000001 -> 3.91 | AJ23: ='6. TNC Assumptions'!V53*'5. TNC Parameters'!$C$6*'5. TNC Parameters'!B$27*0.000001 -> 5.5335 | AK23: ='6. TNC Assumptions'!E53*'5. TNC Parameters'!$C$11*'5. TNC Parameters'!B$27*0.000001 -> 0.5 | AL23: ='6. TNC Assumptions'!C53*'5. TNC Parameters'!$C$12*'5. TNC Parameters'!B$27*0.000001 -> 3.75 | AM23: ='TNC Scenarios'!F23 -> 0.38475 | AN23: ='6. TNC Assumptions'!Z53*'5. TNC Parameters'!$C$16*'5. TNC Parameters'!B$27*0.000001 -> 0.6 | AO23: ='6. TNC Assumptions'!I53*'5. TNC Parameters'!$C$25*'5. TNC Parameters'!B$27*0.000001 -> 9 | AP23: 23.67825 | AR23: ='6. TNC Assumptions'!T53*'5. TNC Parameters'!$D$5*'5. TNC Parameters'!B$27*0.000001 -> 0.085 | AS23: ='6. TNC Assumptions'!V53*'5. TNC Parameters'!$D$6*'5. TNC Parameters'!B$27*0.000001 -> 0.1785 | AT23: ='6. TNC Assumptions'!E53*'5. TNC Parameters'!$D$11*'5. TNC Parameters'!B$27*0.000001 -> 0.015 | AU23: ='6. TNC Assumptions'!C53*'5. TNC Parameters'!$D$12*'5. TNC Parameters'!B$27*0.000001 -> 0.1275 | AV23: ='TNC Scenarios'!O23 -> 0.035055 | AW23: ='6. TNC Assumptions'!Z53*'5. TNC Parameters'!$D$16*'5. TNC Parameters'!B$27*0.000001 -> 0.6 | AX23: =(('6. TNC Assumptions'!$K53*'5. TNC Parameters'!$D$20)+('6. TNC Assumptions'!$R53*'5. TNC Parameters'!$D$22))*'5. TNC Parameters'!B$27*0.000001 -> 3.42425 | AY23: ='6. TNC Assumptions'!I53*'5. TNC Parameters'!$D$25*'5. TNC Parameters'!B$27*0.000001 -> 0.099 | AZ23: 4.564305 | BB23: ='TNC LS'!$EK$16 -> 0.8230141097 | BC23: ='TNC LS'!$EK$19 -> 3.733983572 | BD23: ='6. TNC Assumptions'!E53*'TNC LS'!$FP$29*'TNC LS'!$FQ$29*'5. TNC Parameters'!$B$28*365*0.001*(44/28)*0.000001*(('TNC LS'!$FI$29*'5. TNC Parameters'!$C$59)+('TNC LS'!$FK$29*'5. TNC Parameters'!$E$59)) -> 0.185382771 | BE23: ='6. TNC Assumptions'!C53*'TNC LS'!$FP$30*'TNC LS'!$FQ$30*'5. TNC Parameters'!$B$28*365*0.001*(44/28)*0.000001*(('TNC LS'!$FI$30*'5. TNC Parameters'!$C$60)+('TNC LS'!$FK$30*'5. TNC Parameters'!$E$60)) -> 1.148585561 | BG23: ='TNC LS'!$EK$21 -> 1.986432625 | BH23: =(('6. TNC Assumptions'!$K53*'TNC LS'!$FP$32*'TNC LS'!$FQ$32)*'5. TNC Parameters'!$H$62+(('TNC LS'!EH$4*'TNC LS'!$FP$33*'TNC LS'!$FQ$33)+('6. TNC Assumptions'!$P53*'TNC LS'!$FP$35*'TNC LS'!$FQ$35)+('6. TNC Assumptions'!$M53*'TNC LS'!$FP$34*'TNC LS'!$FQ$34))*'5. TNC Parameters'!$H$63)*'5. TNC Parameters'!$B$28*365*0.001*0.000001*44/28 -> 3.735575903 | BJ23: 11.61297454 | BK23: 39.85552954 | BN23: 2030 | BO23: 23.67825 | BP23: 4.564305 | BQ23: ='TNC LS'!$EK$29 -> 0.8399834727 | BR23: ='TNC LS'!$EK$32 -> 3.751801404 | BS23: ='TNC Scenarios'!BD23 -> 0.185382771 | BT23: ='TNC Scenarios'!BE23 -> 1.148585561 | BV23: ='TNC LS'!$EK$34 -> 1.986432625 | BW23: ='TNC Scenarios'!BH23 -> 3.735575903 | BY23: 11.64776174 | BZ23: 39.89031674 | CB23: 0.03478719433 | CE23: 19.06975 | CF23: 23.67825 | CG23: 34.31650784 | CH23: 39.85542513 | CI23: 39.89021233
A24: 2035 | B24: ='6. TNC Assumptions'!T26*'5. TNC Parameters'!$C$5*'5. TNC Parameters'!B$27*0.000001 -> 2.76 | C24: ='6. TNC Assumptions'!V26*'5. TNC Parameters'!$C$6*'5. TNC Parameters'!B$27*0.000001 -> 4.2625 | D24: ='6. TNC Assumptions'!E26*'5. TNC Parameters'!$C$11*'5. TNC Parameters'!B$27*0.000001 -> 0.3625 | E24: ='6. TNC Assumptions'!C26*'5. TNC Parameters'!$C$12*'5. TNC Parameters'!B$27*0.000001 -> 3.125 | F24: ='6. TNC Assumptions'!G26*'5. TNC Parameters'!$C$13*'5. TNC Parameters'!B$27*0.000001 -> 0.38475 | G24: ='6. TNC Assumptions'!Z26*'5. TNC Parameters'!$C$16*'5. TNC Parameters'!B$27*0.000001 -> 0.56875 | H24: ='6. TNC Assumptions'!I26*'5. TNC Parameters'!$C$25*'5. TNC Parameters'!B$27*0.000001 -> 7.675 | I24: 19.1385 | K24: ='6. TNC Assumptions'!T26*'5. TNC Parameters'!$D$5*'5. TNC Parameters'!B$27*0.000001 -> 0.06 | L24: ='6. TNC Assumptions'!V26*'5. TNC Parameters'!$D$6*'5. TNC Parameters'!B$27*0.000001 -> 0.1375 | M24: ='6. TNC Assumptions'!E26*'5. TNC Parameters'!$D$11*'5. TNC Parameters'!B$27*0.000001 -> 0.010875 | N24: ='6. TNC Assumptions'!C26*'5. TNC Parameters'!$D$12*'5. TNC Parameters'!B$27*0.000001 -> 0.10625 | O24: ='6. TNC Assumptions'!G26*'5. TNC Parameters'!$D$13*'5. TNC Parameters'!B$27*0.000001 -> 0.035055 | P24: ='6. TNC Assumptions'!Z26*'5. TNC Parameters'!$D$16*'5. TNC Parameters'!B$27*0.000001 -> 0.56875 | Q24: =(('6. TNC Assumptions'!K26*'5. TNC Parameters'!$D$20)+('6. TNC Assumptions'!R26*'5. TNC Parameters'!$D$22))*'5. TNC Parameters'!B$27*0.000001 -> 3.515375 | R24: ='6. TNC Assumptions'!I26*'5. TNC Parameters'!$D$25*'5. TNC Parameters'!B$27*0.000001 -> 0.084425 | S24: 4.51823 | U24: ='TNC LS'!$EL$5 -> 0.5929295102 | V24: ='TNC LS'!$EL$8 -> 3.985928704 | W24: ='6. TNC Assumptions'!E26*'TNC LS'!$FP$29*'TNC LS'!$FQ$29*'5. TNC Parameters'!$B$28*365*0.001*(44/28)*0.000001*(('TNC LS'!$FI$29*'5. TNC Parameters'!$C$59)+('TNC LS'!$FK$29*'5. TNC Parameters'!$E$59)) -> 0.134402509 | X24: ='6. TNC Assumptions'!C26*'TNC LS'!$FP$30*'TNC LS'!$FQ$30*'5. TNC Parameters'!$B$28*365*0.001*(44/28)*0.000001*(('TNC LS'!$FI$30*'5. TNC Parameters'!$C$60)+('TNC LS'!$FK$30*'5. TNC Parameters'!$E$60)) -> 0.9571546345 | Z24: ='TNC LS'!$EL$10 -> 1.882972592 | AA24: =(('6. TNC Assumptions'!K26*'TNC LS'!$FP$32*'TNC LS'!$FQ$32)*'5. TNC Parameters'!$H$62+((('6. TNC Assumptions'!K26/50)*'TNC LS'!$FP$33*'TNC LS'!$FQ$33)+('6. TNC Assumptions'!P26*'TNC LS'!$FP$35*'TNC LS'!$FQ$35)+('6. TNC Assumptions'!M26*'TNC LS'!$FP$34*'TNC LS'!$FQ$34))*'5. TNC Parameters'!$H$63)*'5. TNC Parameters'!$B$28*365*0.001*0.000001*44/28 -> 4.192371911 | AC24: 11.74575986 | AE24: 35.40248986 | AF24: 54.05975703 | AH24: 2035 | AI24: ='6. TNC Assumptions'!T54*'5. TNC Parameters'!$C$5*'5. TNC Parameters'!B$27*0.000001 -> 4.255 | AJ24: ='6. TNC Assumptions'!V54*'5. TNC Parameters'!$C$6*'5. TNC Parameters'!B$27*0.000001 -> 5.86675 | AK24: ='6. TNC Assumptions'!E54*'5. TNC Parameters'!$C$11*'5. TNC Parameters'!B$27*0.000001 -> 0.625 | AL24: ='6. TNC Assumptions'!C54*'5. TNC Parameters'!$C$12*'5. TNC Parameters'!B$27*0.000001 -> 4.0625 | AM24: ='TNC Scenarios'!F24 -> 0.38475 | AN24: ='6. TNC Assumptions'!Z54*'5. TNC Parameters'!$C$16*'5. TNC Parameters'!B$27*0.000001 -> 0.675 | AO24: ='6. TNC Assumptions'!I54*'5. TNC Parameters'!$C$25*'5. TNC Parameters'!B$27*0.000001 -> 9.5 | AP24: 25.369 | AR24: ='6. TNC Assumptions'!T54*'5. TNC Parameters'!$D$5*'5. TNC Parameters'!B$27*0.000001 -> 0.0925 | AS24: ='6. TNC Assumptions'!V54*'5. TNC Parameters'!$D$6*'5. TNC Parameters'!B$27*0.000001 -> 0.18925 | AT24: ='6. TNC Assumptions'!E54*'5. TNC Parameters'!$D$11*'5. TNC Parameters'!B$27*0.000001 -> 0.01875 | AU24: ='6. TNC Assumptions'!C54*'5. TNC Parameters'!$D$12*'5. TNC Parameters'!B$27*0.000001 -> 0.138125 | AV24: ='TNC Scenarios'!O24 -> 0.035055 | AW24: ='6. TNC Assumptions'!Z54*'5. TNC Parameters'!$D$16*'5. TNC Parameters'!B$27*0.000001 -> 0.675 | AX24: =(('6. TNC Assumptions'!$K54*'5. TNC Parameters'!$D$20)+('6. TNC Assumptions'!$R54*'5. TNC Parameters'!$D$22))*'5. TNC Parameters'!B$27*0.000001 -> 3.515375 | AY24: ='6. TNC Assumptions'!I54*'5. TNC Parameters'!$D$25*'5. TNC Parameters'!B$27*0.000001 -> 0.1045 | AZ24: 4.768555 | BB24: ='TNC LS'!$EL$16 -> 0.8863996718 | BC24: ='TNC LS'!$EL$19 -> 4.213293215 | BD24: ='6. TNC Assumptions'!E54*'TNC LS'!$FP$29*'TNC LS'!$FQ$29*'5. TNC Parameters'!$B$28*365*0.001*(44/28)*0.000001*(('TNC LS'!$FI$29*'5. TNC Parameters'!$C$59)+('TNC LS'!$FK$29*'5. TNC Parameters'!$E$59)) -> 0.2317284638 | BE24: ='6. TNC Assumptions'!C54*'TNC LS'!$FP$30*'TNC LS'!$FQ$30*'5. TNC Parameters'!$B$28*365*0.001*(44/28)*0.000001*(('TNC LS'!$FI$30*'5. TNC Parameters'!$C$60)+('TNC LS'!$FK$30*'5. TNC Parameters'!$E$60)) -> 1.244301025 | BG24: ='TNC LS'!$EL$21 -> 2.011263033 | BH24: =(('6. TNC Assumptions'!$K54*'TNC LS'!$FP$32*'TNC LS'!$FQ$32)*'5. TNC Parameters'!$H$62+(('TNC LS'!EH$4*'TNC LS'!$FP$33*'TNC LS'!$FQ$33)+('6. TNC Assumptions'!$P54*'TNC LS'!$FP$35*'TNC LS'!$FQ$35)+('6. TNC Assumptions'!$M54*'TNC LS'!$FP$34*'TNC LS'!$FQ$34))*'5. TNC Parameters'!$H$63)*'5. TNC Parameters'!$B$28*365*0.001*0.000001*44/28 -> 3.842117283 | BJ24: 12.42910269 | BK24: 42.56665769 | BN24: 2035 | BO24: 25.369 | BP24: 4.768555 | BQ24: ='TNC LS'!$EL$29 -> 0.9140996615 | BR24: ='TNC LS'!$EL$32 -> 4.241629555 | BS24: ='TNC Scenarios'!BD24 -> 0.2317284638 | BT24: ='TNC Scenarios'!BE24 -> 1.244301025 | BV24: ='TNC LS'!$EL$34 -> 2.234736703 | BW24: ='TNC Scenarios'!BH24 -> 3.842117283 | BY24: 12.70861269 | BZ24: 42.84616769 | CB24: 0.2795100009 | CE24: 19.1385 | CF24: 25.369 | CG24: 35.05213626 | CH24: 42.56655198 | CI24: 42.84605023
A25: 2040 | B25: ='6. TNC Assumptions'!T27*'5. TNC Parameters'!$C$5*'5. TNC Parameters'!B$27*0.000001 -> 2.76 | C25: ='6. TNC Assumptions'!V27*'5. TNC Parameters'!$C$6*'5. TNC Parameters'!B$27*0.000001 -> 4.2625 | D25: ='6. TNC Assumptions'!E27*'5. TNC Parameters'!$C$11*'5. TNC Parameters'!B$27*0.000001 -> 0.375 | E25: ='6. TNC Assumptions'!C27*'5. TNC Parameters'!$C$12*'5. TNC Parameters'!B$27*0.000001 -> 3.125 | F25: ='6. TNC Assumptions'!G27*'5. TNC Parameters'!$C$13*'5. TNC Parameters'!B$27*0.000001 -> 0.38475 | G25: ='6. TNC Assumptions'!Z27*'5. TNC Parameters'!$C$16*'5. TNC Parameters'!B$27*0.000001 -> 0.575 | H25: ='6. TNC Assumptions'!I27*'5. TNC Parameters'!$C$25*'5. TNC Parameters'!B$27*0.000001 -> 7.75 | I25: 19.23225 | K25: ='6. TNC Assumptions'!T27*'5. TNC Parameters'!$D$5*'5. TNC Parameters'!B$27*0.000001 -> 0.06 | L25: ='6. TNC Assumptions'!V27*'5. TNC Parameters'!$D$6*'5. TNC Parameters'!B$27*0.000001 -> 0.1375 | M25: ='6. TNC Assumptions'!E27*'5. TNC Parameters'!$D$11*'5. TNC Parameters'!B$27*0.000001 -> 0.01125 | N25: ='6. TNC Assumptions'!C27*'5. TNC Parameters'!$D$12*'5. TNC Parameters'!B$27*0.000001 -> 0.10625 | O25: ='6. TNC Assumptions'!G27*'5. TNC Parameters'!$D$13*'5. TNC Parameters'!B$27*0.000001 -> 0.035055 | P25: ='6. TNC Assumptions'!Z27*'5. TNC Parameters'!$D$16*'5. TNC Parameters'!B$27*0.000001 -> 0.575 | Q25: =(('6. TNC Assumptions'!K27*'5. TNC Parameters'!$D$20)+('6. TNC Assumptions'!R27*'5. TNC Parameters'!$D$22))*'5. TNC Parameters'!B$27*0.000001 -> 3.60275 | R25: ='6. TNC Assumptions'!I27*'5. TNC Parameters'!$D$25*'5. TNC Parameters'!B$27*0.000001 -> 0.08525 | S25: 4.613055 | U25: ='TNC LS'!$EM$5 -> 0.5929295102 | V25: ='TNC LS'!$EM$8 -> 4.422640254 | W25: ='6. TNC Assumptions'!E27*'TNC LS'!$FP$29*'TNC LS'!$FQ$29*'5. TNC Parameters'!$B$28*365*0.001*(44/28)*0.000001*(('TNC LS'!$FI$29*'5. TNC Parameters'!$C$59)+('TNC LS'!$FK$29*'5. TNC Parameters'!$E$59)) -> 0.1390370783 | X25: ='6. TNC Assumptions'!C27*'TNC LS'!$FP$30*'TNC LS'!$FQ$30*'5. TNC Parameters'!$B$28*365*0.001*(44/28)*0.000001*(('TNC LS'!$FI$30*'5. TNC Parameters'!$C$60)+('TNC LS'!$FK$30*'5. TNC Parameters'!$E$60)) -> 0.9571546345 | Z25: ='TNC LS'!$EM$10 -> 1.903664599 | AA25: =(('6. TNC Assumptions'!K27*'TNC LS'!$FP$32*'TNC LS'!$FQ$32)*'5. TNC Parameters'!$H$62+((('6. TNC Assumptions'!K27/50)*'TNC LS'!$FP$33*'TNC LS'!$FQ$33)+('6. TNC Assumptions'!P27*'TNC LS'!$FP$35*'TNC LS'!$FQ$35)+('6. TNC Assumptions'!M27*'TNC LS'!$FP$34*'TNC LS'!$FQ$34))*'5. TNC Parameters'!$H$63)*'5. TNC Parameters'!$B$28*365*0.001*0.000001*44/28 -> 4.295129028 | AC25: =SUM(U25:AB25) -> 12.3105551 | AE25: 36.1558601 | AF25: 53.19262201 | AH25: 2040 | AI25: ='6. TNC Assumptions'!T55*'5. TNC Parameters'!$C$5*'5. TNC Parameters'!B$27*0.000001 -> 4.6 | AJ25: ='6. TNC Assumptions'!V55*'5. TNC Parameters'!$C$6*'5. TNC Parameters'!B$27*0.000001 -> 6.2 | AK25: ='6. TNC Assumptions'!E55*'5. TNC Parameters'!$C$11*'5. TNC Parameters'!B$27*0.000001 -> 0.75 | AL25: ='6. TNC Assumptions'!C55*'5. TNC Parameters'!$C$12*'5. TNC Parameters'!B$27*0.000001 -> 4.375 | AM25: ='TNC Scenarios'!F25 -> 0.38475 | AN25: ='6. TNC Assumptions'!Z55*'5. TNC Parameters'!$C$16*'5. TNC Parameters'!B$27*0.000001 -> 0.75 | AO25: ='6. TNC Assumptions'!I55*'5. TNC Parameters'!$C$25*'5. TNC Parameters'!B$27*0.000001 -> 10 | AP25: 27.05975 | AR25: ='6. TNC Assumptions'!T55*'5. TNC Parameters'!$D$5*'5. TNC Parameters'!B$27*0.000001 -> 0.1 | AS25: ='6. TNC Assumptions'!V55*'5. TNC Parameters'!$D$6*'5. TNC Parameters'!B$27*0.000001 -> 0.2 | AT25: ='6. TNC Assumptions'!E55*'5. TNC Parameters'!$D$11*'5. TNC Parameters'!B$27*0.000001 -> 0.0225 | AU25: ='6. TNC Assumptions'!C55*'5. TNC Parameters'!$D$12*'5. TNC Parameters'!B$27*0.000001 -> 0.14875 | AV25: ='TNC Scenarios'!O25 -> 0.035055 | AW25: ='6. TNC Assumptions'!Z55*'5. TNC Parameters'!$D$16*'5. TNC Parameters'!B$27*0.000001 -> 0.75 | AX25: =(('6. TNC Assumptions'!$K55*'5. TNC Parameters'!$D$20)+('6. TNC Assumptions'!$R55*'5. TNC Parameters'!$D$22))*'5. TNC Parameters'!B$27*0.000001 -> 3.60275 | AY25: ='6. TNC Assumptions'!I55*'5. TNC Parameters'!$D$25*'5. TNC Parameters'!B$27*0.000001 -> 0.11 | AZ25: 4.969055 | BB25: ='TNC LS'!$EM$16 -> 0.9582699154 | BC25: ='TNC LS'!$EM$19 -> 4.701511773 | BD25: ='6. TNC Assumptions'!E55*'TNC LS'!$FP$29*'TNC LS'!$FQ$29*'5. TNC Parameters'!$B$28*365*0.001*(44/28)*0.000001*(('TNC LS'!$FI$29*'5. TNC Parameters'!$C$59)+('TNC LS'!$FK$29*'5. TNC Parameters'!$E$59)) -> 0.2780741566 | BE25: ='6. TNC Assumptions'!C55*'TNC LS'!$FP$30*'TNC LS'!$FQ$30*'5. TNC Parameters'!$B$28*365*0.001*(44/28)*0.000001*(('TNC LS'!$FI$30*'5. TNC Parameters'!$C$60)+('TNC LS'!$FK$30*'5. TNC Parameters'!$E$60)) -> 1.340016488 | BG25: ='TNC LS'!$EM$21 -> 1.986432625 | BH25: =(('6. TNC Assumptions'!$K55*'TNC LS'!$FP$32*'TNC LS'!$FQ$32)*'5. TNC Parameters'!$H$62+(('TNC LS'!EH$4*'TNC LS'!$FP$33*'TNC LS'!$FQ$33)+('6. TNC Assumptions'!$P55*'TNC LS'!$FP$35*'TNC LS'!$FQ$35)+('6. TNC Assumptions'!$M55*'TNC LS'!$FP$34*'TNC LS'!$FQ$34))*'5. TNC Parameters'!$H$63)*'5. TNC Parameters'!$B$28*365*0.001*0.000001*44/28 -> 3.936044451 | BJ25: 13.20034941 | BK25: 45.22915441 | BN25: 2040 | BO25: 27.05975 | BP25: 4.969055 | BQ25: ='TNC LS'!$EM$29 -> 0.9882158503 | BR25: ='TNC LS'!$EM$32 -> 4.731457707 | BS25: ='TNC Scenarios'!BD25 -> 0.2780741566 | BT25: ='TNC Scenarios'!BE25 -> 1.340016488 | BV25: ='TNC LS'!$EM$34 -> 2.483040781 | BW25: ='TNC Scenarios'!BH25 -> 3.936044451 | BY25: 13.75684944 | BZ25: 45.78565444 | CB25: 0.556500026 | CE25: 19.23225 | CF25: 27.05975 | CG25: 35.79667547 | CH25: 45.22905 | CI25: 45.78552392
A26: 2045 | B26: ='6. TNC Assumptions'!T28*'5. TNC Parameters'!$C$5*'5. TNC Parameters'!B$27*0.000001 -> 2.78875 | C26: ='6. TNC Assumptions'!V28*'5. TNC Parameters'!$C$6*'5. TNC Parameters'!B$27*0.000001 -> 4.274125 | D26: ='6. TNC Assumptions'!E28*'5. TNC Parameters'!$C$11*'5. TNC Parameters'!B$27*0.000001 -> 0.375 | E26: ='6. TNC Assumptions'!C28*'5. TNC Parameters'!$C$12*'5. TNC Parameters'!B$27*0.000001 -> 3.1125 | F26: ='6. TNC Assumptions'!G28*'5. TNC Parameters'!$C$13*'5. TNC Parameters'!B$27*0.000001 -> 0.38475 | G26: ='6. TNC Assumptions'!Z28*'5. TNC Parameters'!$C$16*'5. TNC Parameters'!B$27*0.000001 -> 0.575 | H26: ='6. TNC Assumptions'!I28*'5. TNC Parameters'!$C$25*'5. TNC Parameters'!B$27*0.000001 -> 7.875 | I26: 19.385125 | K26: ='6. TNC Assumptions'!T28*'5. TNC Parameters'!$D$5*'5. TNC Parameters'!B$27*0.000001 -> 0.060625 | L26: ='6. TNC Assumptions'!V28*'5. TNC Parameters'!$D$6*'5. TNC Parameters'!B$27*0.000001 -> 0.137875 | M26: ='6. TNC Assumptions'!E28*'5. TNC Parameters'!$D$11*'5. TNC Parameters'!B$27*0.000001 -> 0.01125 | N26: ='6. TNC Assumptions'!C28*'5. TNC Parameters'!$D$12*'5. TNC Parameters'!B$27*0.000001 -> 0.105825 | O26: ='6. TNC Assumptions'!G28*'5. TNC Parameters'!$D$13*'5. TNC Parameters'!B$27*0.000001 -> 0.035055 | P26: ='6. TNC Assumptions'!Z28*'5. TNC Parameters'!$D$16*'5. TNC Parameters'!B$27*0.000001 -> 0.575 | Q26: =(('6. TNC Assumptions'!K28*'5. TNC Parameters'!$D$20)+('6. TNC Assumptions'!R28*'5. TNC Parameters'!$D$22))*'5. TNC Parameters'!B$27*0.000001 -> 3.7125 | R26: ='6. TNC Assumptions'!I28*'5. TNC Parameters'!$D$25*'5. TNC Parameters'!B$27*0.000001 -> 0.086625 | S26: 4.724755 | U26: ='TNC LS'!$EN$5 -> 0.5991058592 | V26: ='TNC LS'!$EN$8 -> 4.73642998 | W26: ='6. TNC Assumptions'!E28*'TNC LS'!$FP$29*'TNC LS'!$FQ$29*'5. TNC Parameters'!$B$28*365*0.001*(44/28)*0.000001*(('TNC LS'!$FI$29*'5. TNC Parameters'!$C$59)+('TNC LS'!$FK$29*'5. TNC Parameters'!$E$59)) -> 0.1390370783 | X26: ='6. TNC Assumptions'!C28*'TNC LS'!$FP$30*'TNC LS'!$FQ$30*'5. TNC Parameters'!$B$28*365*0.001*(44/28)*0.000001*(('TNC LS'!$FI$30*'5. TNC Parameters'!$C$60)+('TNC LS'!$FK$30*'5. TNC Parameters'!$E$60)) -> 0.9533260159 | Z26: ='TNC LS'!$EN$10 -> 1.903664599 | AA26: =(('6. TNC Assumptions'!K28*'TNC LS'!$FP$32*'TNC LS'!$FQ$32)*'5. TNC Parameters'!$H$62+((('6. TNC Assumptions'!K28/50)*'TNC LS'!$FP$33*'TNC LS'!$FQ$33)+('6. TNC Assumptions'!P28*'TNC LS'!$FP$35*'TNC LS'!$FQ$35)+('6. TNC Assumptions'!M28*'TNC LS'!$FP$34*'TNC LS'!$FQ$34))*'5. TNC Parameters'!$H$63)*'5. TNC Parameters'!$B$28*365*0.001*0.000001*44/28 -> 4.40789718 | AC26: 12.73946071 | AE26: 36.84934071 | AF26: 52.60643644 | AH26: 2045 | AI26: ='6. TNC Assumptions'!T56*'5. TNC Parameters'!$C$5*'5. TNC Parameters'!B$27*0.000001 -> 4.8875 | AJ26: ='6. TNC Assumptions'!V56*'5. TNC Parameters'!$C$6*'5. TNC Parameters'!B$27*0.000001 -> 6.5875 | AK26: ='6. TNC Assumptions'!E56*'5. TNC Parameters'!$C$11*'5. TNC Parameters'!B$27*0.000001 -> 0.875 | AL26: ='6. TNC Assumptions'!C56*'5. TNC Parameters'!$C$12*'5. TNC Parameters'!B$27*0.000001 -> 4.6875 | AM26: ='TNC Scenarios'!F26 -> 0.38475 | AN26: ='6. TNC Assumptions'!Z56*'5. TNC Parameters'!$C$16*'5. TNC Parameters'!B$27*0.000001 -> 0.8125 | AO26: ='6. TNC Assumptions'!I56*'5. TNC Parameters'!$C$25*'5. TNC Parameters'!B$27*0.000001 -> 10.5 | AP26: 28.73475 | AR26: ='6. TNC Assumptions'!T56*'5. TNC Parameters'!$D$5*'5. TNC Parameters'!B$27*0.000001 -> 0.10625 | AS26: ='6. TNC Assumptions'!V56*'5. TNC Parameters'!$D$6*'5. TNC Parameters'!B$27*0.000001 -> 0.2125 | AT26: ='6. TNC Assumptions'!E56*'5. TNC Parameters'!$D$11*'5. TNC Parameters'!B$27*0.000001 -> 0.02625 | AU26: ='6. TNC Assumptions'!C56*'5. TNC Parameters'!$D$12*'5. TNC Parameters'!B$27*0.000001 -> 0.159375 | AV26: ='TNC Scenarios'!O26 -> 0.035055 | AW26: ='6. TNC Assumptions'!Z56*'5. TNC Parameters'!$D$16*'5. TNC Parameters'!B$27*0.000001 -> 0.8125 | AX26: =(('6. TNC Assumptions'!$K56*'5. TNC Parameters'!$D$20)+('6. TNC Assumptions'!$R56*'5. TNC Parameters'!$D$22))*'5. TNC Parameters'!B$27*0.000001 -> 3.7125 | AY26: ='6. TNC Assumptions'!I56*'5. TNC Parameters'!$D$25*'5. TNC Parameters'!B$27*0.000001 -> 0.1155 | AZ26: 5.17993 | BB26: ='TNC LS'!$EN$16 -> 1.018161785 | BC26: ='TNC LS'!$EN$19 -> 5.073340464 | BD26: ='6. TNC Assumptions'!E56*'TNC LS'!$FP$29*'TNC LS'!$FQ$29*'5. TNC Parameters'!$B$28*365*0.001*(44/28)*0.000001*(('TNC LS'!$FI$29*'5. TNC Parameters'!$C$59)+('TNC LS'!$FK$29*'5. TNC Parameters'!$E$59)) -> 0.3244198493 | BE26: ='6. TNC Assumptions'!C56*'TNC LS'!$FP$30*'TNC LS'!$FQ$30*'5. TNC Parameters'!$B$28*365*0.001*(44/28)*0.000001*(('TNC LS'!$FI$30*'5. TNC Parameters'!$C$60)+('TNC LS'!$FK$30*'5. TNC Parameters'!$E$60)) -> 1.435731952 | BG26: ='TNC LS'!$EN$21 -> 1.721574942 | BH26: =(('6. TNC Assumptions'!$K56*'TNC LS'!$FP$32*'TNC LS'!$FQ$32)*'5. TNC Parameters'!$H$62+(('TNC LS'!EH$4*'TNC LS'!$FP$33*'TNC LS'!$FQ$33)+('6. TNC Assumptions'!$P56*'TNC LS'!$FP$35*'TNC LS'!$FQ$35)+('6. TNC Assumptions'!$M56*'TNC LS'!$FP$34*'TNC LS'!$FQ$34))*'5. TNC Parameters'!$H$63)*'5. TNC Parameters'!$B$28*365*0.001*0.000001*44/28 -> 4.037039339 | BJ26: 13.61026833 | BK26: 47.52494833 | BN26: 2045 | BO26: 28.73475 | BP26: 5.17993 | BQ26: ='TNC LS'!$EN$29 -> 1.049979341 | BR26: ='TNC LS'!$EN$32 -> 5.105158019 | BS26: ='TNC Scenarios'!BD26 -> 0.3244198493 | BT26: ='TNC Scenarios'!BE26 -> 1.435731952 | BV26: ='TNC LS'!$EN$34 -> 2.689960846 | BW26: ='TNC Scenarios'!BH26 -> 4.037039339 | BY26: 14.64228935 | BZ26: 48.55696935 | CB26: 1.032021016 | CE26: 19.385125 | CF26: 28.73475 | CG26: 36.47838281 | CH26: 47.52485784 | CI26: 48.55682796
A27: 2050 | B27: ='6. TNC Assumptions'!T29*'5. TNC Parameters'!$C$5*'5. TNC Parameters'!B$27*0.000001 -> 2.8175 | C27: ='6. TNC Assumptions'!V29*'5. TNC Parameters'!$C$6*'5. TNC Parameters'!B$27*0.000001 -> 4.28575 | D27: ='6. TNC Assumptions'!E29*'5. TNC Parameters'!$C$11*'5. TNC Parameters'!B$27*0.000001 -> 0.375 | E27: ='6. TNC Assumptions'!C29*'5. TNC Parameters'!$C$12*'5. TNC Parameters'!B$27*0.000001 -> 3.1 | F27: ='6. TNC Assumptions'!G29*'5. TNC Parameters'!$C$13*'5. TNC Parameters'!B$27*0.000001 -> 0.38475 | G27: ='6. TNC Assumptions'!Z29*'5. TNC Parameters'!$C$16*'5. TNC Parameters'!B$27*0.000001 -> 0.575 | H27: ='6. TNC Assumptions'!I29*'5. TNC Parameters'!$C$25*'5. TNC Parameters'!B$27*0.000001 -> 8 | I27: 19.538 | K27: ='6. TNC Assumptions'!T29*'5. TNC Parameters'!$D$5*'5. TNC Parameters'!B$27*0.000001 -> 0.06125 | L27: ='6. TNC Assumptions'!V29*'5. TNC Parameters'!$D$6*'5. TNC Parameters'!B$27*0.000001 -> 0.13825 | M27: ='6. TNC Assumptions'!E29*'5. TNC Parameters'!$D$11*'5. TNC Parameters'!B$27*0.000001 -> 0.01125 | N27: ='6. TNC Assumptions'!C29*'5. TNC Parameters'!$D$12*'5. TNC Parameters'!B$27*0.000001 -> 0.1054 | O27: ='6. TNC Assumptions'!G29*'5. TNC Parameters'!$D$13*'5. TNC Parameters'!B$27*0.000001 -> 0.035055 | P27: ='6. TNC Assumptions'!Z29*'5. TNC Parameters'!$D$16*'5. TNC Parameters'!B$27*0.000001 -> 0.575 | Q27: =(('6. TNC Assumptions'!K29*'5. TNC Parameters'!$D$20)+('6. TNC Assumptions'!R29*'5. TNC Parameters'!$D$22))*'5. TNC Parameters'!B$27*0.000001 -> 3.82225 | R27: ='6. TNC Assumptions'!I29*'5. TNC Parameters'!$D$25*'5. TNC Parameters'!B$27*0.000001 -> 0.088 | S27: 4.836455 | U27: ='TNC LS'!$EO$5 -> 0.6052822083 | V27: ='TNC LS'!$EO$8 -> 5.050219707 | W27: ='6. TNC Assumptions'!E29*'TNC LS'!$FP$29*'TNC LS'!$FQ$29*'5. TNC Parameters'!$B$28*365*0.001*(44/28)*0.000001*(('TNC LS'!$FI$29*'5. TNC Parameters'!$C$59)+('TNC LS'!$FK$29*'5. TNC Parameters'!$E$59)) -> 0.1390370783 | X27: ='6. TNC Assumptions'!C29*'TNC LS'!$FP$30*'TNC LS'!$FQ$30*'5. TNC Parameters'!$B$28*365*0.001*(44/28)*0.000001*(('TNC LS'!$FI$30*'5. TNC Parameters'!$C$60)+('TNC LS'!$FK$30*'5. TNC Parameters'!$E$60)) -> 0.9494973974 | Z27: ='TNC LS'!$EO$10 -> 1.903664599 | AA27: =(('6. TNC Assumptions'!K29*'TNC LS'!$FP$32*'TNC LS'!$FQ$32)*'5. TNC Parameters'!$H$62+((('6. TNC Assumptions'!K29/50)*'TNC LS'!$FP$33*'TNC LS'!$FQ$33)+('6. TNC Assumptions'!P29*'TNC LS'!$FP$35*'TNC LS'!$FQ$35)+('6. TNC Assumptions'!M29*'TNC LS'!$FP$34*'TNC LS'!$FQ$34))*'5. TNC Parameters'!$H$63)*'5. TNC Parameters'!$B$28*365*0.001*0.000001*44/28 -> 4.520665332 | AC27: 13.16836632 | AE27: 37.54282132 | AF27: 52.04190658 | AH27: 2050 | AI27: ='6. TNC Assumptions'!T57*'5. TNC Parameters'!$C$5*'5. TNC Parameters'!B$27*0.000001 -> 5.175 | AJ27: ='6. TNC Assumptions'!V57*'5. TNC Parameters'!$C$6*'5. TNC Parameters'!B$27*0.000001 -> 6.975 | AK27: ='6. TNC Assumptions'!E57*'5. TNC Parameters'!$C$11*'5. TNC Parameters'!B$27*0.000001 -> 1 | AL27: ='6. TNC Assumptions'!C57*'5. TNC Parameters'!$C$12*'5. TNC Parameters'!B$27*0.000001 -> 5 | AM27: ='TNC Scenarios'!F27 -> 0.38475 | AN27: ='6. TNC Assumptions'!Z57*'5. TNC Parameters'!$C$16*'5. TNC Parameters'!B$27*0.000001 -> 0.875 | AO27: ='6. TNC Assumptions'!I57*'5. TNC Parameters'!$C$25*'5. TNC Parameters'!B$27*0.000001 -> 11 | AP27: 30.40975 | AR27: ='6. TNC Assumptions'!T57*'5. TNC Parameters'!$D$5*'5. TNC Parameters'!B$27*0.000001 -> 0.1125 | AS27: ='6. TNC Assumptions'!V57*'5. TNC Parameters'!$D$6*'5. TNC Parameters'!B$27*0.000001 -> 0.225 | AT27: ='6. TNC Assumptions'!E57*'5. TNC Parameters'!$D$11*'5. TNC Parameters'!B$27*0.000001 -> 0.03 | AU27: ='6. TNC Assumptions'!C57*'5. TNC Parameters'!$D$12*'5. TNC Parameters'!B$27*0.000001 -> 0.17 | AV27: ='TNC Scenarios'!O27 -> 0.035055 | AW27: ='6. TNC Assumptions'!Z57*'5. TNC Parameters'!$D$16*'5. TNC Parameters'!B$27*0.000001 -> 0.875 | AX27: =(('6. TNC Assumptions'!$K57*'5. TNC Parameters'!$D$20)+('6. TNC Assumptions'!$R57*'5. TNC Parameters'!$D$22))*'5. TNC Parameters'!B$27*0.000001 -> 3.82225 | AY27: ='6. TNC Assumptions'!I57*'5. TNC Parameters'!$D$25*'5. TNC Parameters'!B$27*0.000001 -> 0.121 | AZ27: 5.390805 | BB27: ='TNC LS'!$EO$16 -> 1.08928338 | BC27: ='TNC LS'!$EO$19 -> 5.45639888 | BD27: ='6. TNC Assumptions'!E57*'TNC LS'!$FP$29*'TNC LS'!$FQ$29*'5. TNC Parameters'!$B$28*365*0.001*(44/28)*0.000001*(('TNC LS'!$FI$29*'5. TNC Parameters'!$C$59)+('TNC LS'!$FK$29*'5. TNC Parameters'!$E$59)) -> 0.3707655421 | BE27: ='6. TNC Assumptions'!C57*'TNC LS'!$FP$30*'TNC LS'!$FQ$30*'5. TNC Parameters'!$B$28*365*0.001*(44/28)*0.000001*(('TNC LS'!$FI$30*'5. TNC Parameters'!$C$60)+('TNC LS'!$FK$30*'5. TNC Parameters'!$E$60)) -> 1.531447415 | BG27: ='TNC LS'!$EO$21 -> 1.448440456 | BH27: =(('6. TNC Assumptions'!$K57*'TNC LS'!$FP$32*'TNC LS'!$FQ$32)*'5. TNC Parameters'!$H$62+(('TNC LS'!EH$4*'TNC LS'!$FP$33*'TNC LS'!$FQ$33)+('6. TNC Assumptions'!$P57*'TNC LS'!$FP$35*'TNC LS'!$FQ$35)+('6. TNC Assumptions'!$M57*'TNC LS'!$FP$34*'TNC LS'!$FQ$34))*'5. TNC Parameters'!$H$63)*'5. TNC Parameters'!$B$28*365*0.001*0.000001*44/28 -> 4.138034226 | BJ27: 14.0343699 | BK27: 49.8349249 | BN27: 2050 | BO27: 30.40975 | BP27: 5.390805 | BQ27: ='TNC LS'!$EO$29 -> 1.111742832 | BR27: ='TNC LS'!$EO$32 -> 5.478858332 | BS27: ='TNC Scenarios'!BD27 -> 0.3707655421 | BT27: ='TNC Scenarios'!BE27 -> 1.531447415 | BV27: ='TNC LS'!$EO$34 -> 2.896880911 | BW27: ='TNC Scenarios'!BH27 -> 4.138034226 | BY27: 15.52772926 | BZ27: 51.32828426 | CB27: 1.493359358 | CE27: 19.538 | CF27: 30.40975 | CG27: 37.16009016 | CH27: 49.83484877 | CI27: 51.328132

Sheet UD1 Scenarios (hidden)
AH3: New Technology | AK3: New Technology | AN3: New Technology | AQ3: New Technology | AT3: New Technology | AW3: New Technology | BD3: New Technolgy | BG3: New Technolgy | BJ3: New Technolgy | BO3: OLD TECHNOLOGY | BR3: OLD TECHNOLOGY | BT3: OLD TECHNOLOGY | BV3: OLD TECHNOLOGY | BX3: OLD TECHNOLOGY
B4: BAU - CO2e from enteric fermentation, Gg/yr | K4: BAU - CO2e emissions from livestock manure management, Gg/yr | U4: BAU - CO2e emissions from livestock manure management, Gg/yr | AI4: Policy - CO2e from enteric fermentation, Gg/yr | AR4: Policy scenario - CO2e emissions from livestock manure management, Gg/yr | BB4: Policy scenario - CO2e emissions from livestock manure, Gg/yr | BO4: Policy with MMS unchanged, Gg CO2e | BQ4: Policy scenario without technological change - CO2e emissions from livestock manure, Gg/yr
B5: CALCULATING EMISSIONS FROM ENTERIC FERMENTATION | I5: Gg CO2e | K5: CALCULATING DIRECT CH4 EMISSIONS FROM MANURE MANAGEMENT SYSTEM | R5: Gg CO2e | U5: CALCULATING N20 EMISSIONS FROM MANURE MANAGEMENT | AC5: Gg CO2e | AE5: All | AI5: CALCULATING EMISSIONS FROM ENTERIC FERMENTATION | AP5: Gg CO2e | AR5: CALCULATING DIRECT CH4 EMISSIONS FROM MANURE MANAGEMENT SYSTEM | AZ5: Gg CO2e | BB5: CALCULATING N20 EMISSIONS FROM MANURE MANAGEMENT | BJ5: Gg CO2e | BK5: Gg CO2e
A6: YEAR | B6: Dairy cows | C6: other cattle | D6: sheep | E6: goats | F6: horses | G6: swine | H6: other (deer) | I6: Total Enteric | K6: Dairy cows | L6: other cattle | M6: sheep | N6: goats | O6: horses | P6: swine | Q6: Poultry | R6: other (deer) | S6: Total LMMCH4 | U6: Dairy cows | V6: other cattle | W6: sheep | X6: goats | Y6: horses | Z6: swine | AA6: Poultry | AB6: other (deer) | AC6: Total LMMN2O | AE6: BAU Total | AH6: YEAR | AI6: Dairy cows | AJ6: other cattle | AK6: sheep | AL6: goats | AM6: horses | AN6: swine | AO6: other (deer) | AP6: Enteric | AR6: Dairy cows | AS6: other cattle | AT6: sheep | AU6: goats | AV6: horses | AW6: swine | AX6: Poultry | AY6: other (deer) | AZ6: Total LMMCH4 | BB6: Dairy cows | BC6: other cattle | BD6: sheep | BE6: goats | BF6: horses | BG6: swine | BH6: Poultry | BI6: other (deer) | BJ6: Total LMMN2O | BK6: All Total | BN6: YEAR | BO6: Enteric | BP6: LMMCH4 | BQ6: Dairy cows | BR6: other cattle | BS6: sheep | BT6: goats | BU6: horses | BV6: swine | BW6: Poultry | BX6: other (deer) | BY6: LMMN2O | BZ6: Total | CE6: i | CF6: ap | CG6: ae | CH6: bk | CI6: ca
A7: 2006 | B7: ='6. UD1 Assumptions'!T9*'5. UD1 Parameters'!$C$5*'5. UD1 Parameters'!B$27*0.000001 -> 2.160942 | C7: ='6. UD1 Assumptions'!V9*'5. UD1 Parameters'!$C$6*'5. UD1 Parameters'!B$27*0.000001 -> 4.567416 | D7: ='6. UD1 Assumptions'!E9*'5. UD1 Parameters'!$C$11*'5. UD1 Parameters'!B$27*0.000001 -> 0.13416375 | E7: ='6. UD1 Assumptions'!C9*'5. UD1 Parameters'!$C$12*'5. UD1 Parameters'!B$27*0.000001 -> 2.577435 | F7: ='6. UD1 Assumptions'!G9*'5. UD1 Parameters'!$C$13*'5. UD1 Parameters'!B$27*0.000001 -> 0.24759 | G7: ='6. UD1 Assumptions'!Z9*'5. UD1 Parameters'!$C$16*'5. UD1 Parameters'!B$27*0.000001 -> 0.321699 | H7: ='6. UD1 Assumptions'!I9*'5. UD1 Parameters'!$C$25*'5. UD1 Parameters'!B$27*0.000001 -> 6.72 | I7: =SUM(B7:H7) -> 16.72924575 | K7: ='6. UD1 Assumptions'!T9*'5. UD1 Parameters'!$D$5*'5. UD1 Parameters'!B$27*0.000001 -> 0.046977 | L7: ='6. UD1 Assumptions'!V9*'5. UD1 Parameters'!$D$6*'5. UD1 Parameters'!B$27*0.000001 -> 0.147336 | M7: ='6. UD1 Assumptions'!E9*'5. UD1 Parameters'!$D$11*'5. UD1 Parameters'!B$27*0.000001 -> 0.0040249125 | N7: ='6. UD1 Assumptions'!C9*'5. UD1 Parameters'!$D$12*'5. UD1 Parameters'!B$27*0.000001 -> 0.08763279 | O7: ='6. UD1 Assumptions'!G9*'5. UD1 Parameters'!$D$13*'5. UD1 Parameters'!B$27*0.000001 -> 0.0225582 | P7: ='6. UD1 Assumptions'!Z9*'5. UD1 Parameters'!$D$16*'5. UD1 Parameters'!B$27*0.000001 -> 0.321699 | Q7: =(('6. UD1 Assumptions'!K$9*'5. UD1 Parameters'!$D$20)+(('6. UD1 Assumptions'!R9)*'5. UD1 Parameters'!$D$22))*'5. UD1 Parameters'!B$27*0.000001 -> 2.21387075 | R7: ='6. UD1 Assumptions'!I9*'5. UD1 Parameters'!$D$25*'5. UD1 Parameters'!B$27*0.000001 -> 0.07392 | S7: =SUM(K7:R7) -> 2.918018652 | U7: ='UD1 LS'!J$4 -> 0.5582421356 | V7: ='UD1 LS'!J$9 -> 3.786616672 | W7: ='6. UD1 Assumptions'!E9*'UD1 LS'!$FP$29*'UD1 LS'!$FQ$29*'5. UD1 Parameters'!$B$28*365*0.001*(44/28)*0.000001*(('UD1 LS'!$FI$29*'5. UD1 Parameters'!$C$59)+('UD1 LS'!$FK$29*'5. UD1 Parameters'!$E$59)) -> 0.05921820893 | X7: ='6. UD1 Assumptions'!C9*'UD1 LS'!$FP$30*'UD1 LS'!$FQ$30*'5. UD1 Parameters'!$B$28*365*0.001*(44/28)*0.000001*(('UD1 LS'!$FI$30*'5. UD1 Parameters'!$C$60)+('UD1 LS'!$FK$30*'5. UD1 Parameters'!$E$60)) -> 0.9398109925 | Z7: ='UD1 LS'!$E$34 -> 1.264546964 | AA7: =(('6. UD1 Assumptions'!K$9*'UD1 LS'!$FP$32*'UD1 LS'!$FQ$32*'5. UD1 Parameters'!$H$62)+((('6. UD1 Assumptions'!K9/50)*'UD1 LS'!$FP$33*'UD1 LS'!$FQ$33)+('6. UD1 Assumptions'!P9*'UD1 LS'!$FP$35*'UD1 LS'!$FQ$35)+('6. UD1 Assumptions'!M9*'UD1 LS'!$FP$34*'UD1 LS'!$FQ$34))*'5. UD1 Parameters'!$H$63)*'5. UD1 Parameters'!$B$28*365*0.001*0.000001*44/28 -> 3.528534789 | AC7: =SUM(U7:AB7) -> 10.13696976 | AE7: =I7+S7+AC7 -> 29.78423416 | AH7: =A7 -> 2006 | AI7: ='UD1 Scenarios'!B7 -> 2.160942 | AJ7: ='UD1 Scenarios'!C7 -> 4.567416 | AK7: ='UD1 Scenarios'!D7 -> 0.13416375 | AL7: ='UD1 Scenarios'!E7 -> 2.577435 | AM7: ='UD1 Scenarios'!F7 -> 0.24759 | AN7: ='UD1 Scenarios'!G7 -> 0.321699 | AO7: ='UD1 Scenarios'!H7 -> 6.72 | AP7: =SUM(AI7:AO7) -> 16.72924575 | AR7: ='UD1 Scenarios'!K7 -> 0.046977 | AS7: ='UD1 Scenarios'!L7 -> 0.147336 | AT7: ='UD1 Scenarios'!M7 -> 0.0040249125 | AU7: ='UD1 Scenarios'!N7 -> 0.08763279 | AV7: ='UD1 Scenarios'!O7 -> 0.0225582 | AW7: ='UD1 Scenarios'!P7 -> 0.321699 | AX7: ='UD1 Scenarios'!Q7 -> 2.21387075 | AY7: ='UD1 Scenarios'!R7 -> 0.07392 | AZ7: =SUM(AR7:AY7) -> 2.918018652 | BB7: ='UD1 Scenarios'!U7 -> 0.5582421356 | BC7: ='UD1 Scenarios'!V7 -> 3.786616672 | BD7: ='UD1 Scenarios'!W7 -> 0.05921820893 | BE7: ='UD1 Scenarios'!X7 -> 0.9398109925 | BG7: ='UD1 Scenarios'!Z7 -> 1.264546964 | BH7: ='UD1 Scenarios'!AA7 -> 3.528534789 | BJ7: =SUM(BB7:BI7) -> 10.13696976 | BK7: =AP7+AZ7+BJ7 -> 29.78423416 | BN7: =AH7 -> 2006 | BO7: =AP7 -> 16.72924575 | BP7: =AZ7 -> 2.918018652 | BQ7: ='UD1 Scenarios'!BB7 -> 0.5582421356 | BR7: ='UD1 Scenarios'!BC7 -> 3.786616672 | BS7: ='UD1 Scenarios'!BD7 -> 0.05921820893 | BT7: ='UD1 Scenarios'!BE7 -> 0.9398109925 | BV7: ='UD1 Scenarios'!BG7 -> 1.264546964 | BW7: ='UD1 Scenarios'!BH7 -> 3.528534789 | BY7: =SUM(BQ7:BX7) -> 10.13696976 | BZ7: =BO7+BP7+BY7 -> 29.78423416 | CB7: =BZ7-BK7 -> 0 | CE7: 19.91576875 | CF7: 19.91576875 | CG7: 33.52657024 | CH7: 33.52657024 | CI7: 33.52657024
A8: 2007 | B8: ='6. UD1 Assumptions'!T10*'5. UD1 Parameters'!$C$5*'5. UD1 Parameters'!B$27*0.000001 -> 2.089458 | C8: ='6. UD1 Assumptions'!V10*'5. UD1 Parameters'!$C$6*'5. UD1 Parameters'!B$27*0.000001 -> 4.4362395 | D8: ='6. UD1 Assumptions'!E10*'5. UD1 Parameters'!$C$11*'5. UD1 Parameters'!B$27*0.000001 -> 0.12502875 | E8: ='6. UD1 Assumptions'!C10*'5. UD1 Parameters'!$C$12*'5. UD1 Parameters'!B$27*0.000001 -> 2.6565 | F8: ='6. UD1 Assumptions'!G10*'5. UD1 Parameters'!$C$13*'5. UD1 Parameters'!B$27*0.000001 -> 0.2646 | G8: ='6. UD1 Assumptions'!Z10*'5. UD1 Parameters'!$C$16*'5. UD1 Parameters'!B$27*0.000001 -> 0.365673 | H8: ='6. UD1 Assumptions'!I10*'5. UD1 Parameters'!$C$25*'5. UD1 Parameters'!B$27*0.000001 -> 6.72 | I8: 16.65749925 | K8: ='6. UD1 Assumptions'!T10*'5. UD1 Parameters'!$D$5*'5. UD1 Parameters'!B$27*0.000001 -> 0.045423 | L8: ='6. UD1 Assumptions'!V10*'5. UD1 Parameters'!$D$6*'5. UD1 Parameters'!B$27*0.000001 -> 0.1431045 | M8: ='6. UD1 Assumptions'!E10*'5. UD1 Parameters'!$D$11*'5. UD1 Parameters'!B$27*0.000001 -> 0.0037508625 | N8: ='6. UD1 Assumptions'!C10*'5. UD1 Parameters'!$D$12*'5. UD1 Parameters'!B$27*0.000001 -> 0.090321 | O8: ='6. UD1 Assumptions'!G10*'5. UD1 Parameters'!$D$13*'5. UD1 Parameters'!B$27*0.000001 -> 0.024108 | P8: ='6. UD1 Assumptions'!Z10*'5. UD1 Parameters'!$D$16*'5. UD1 Parameters'!B$27*0.000001 -> 0.365673 | Q8: =(('6. UD1 Assumptions'!K$10*'5. UD1 Parameters'!$D$20)+(('6. UD1 Assumptions'!R10)*'5. UD1 Parameters'!$D$22))*'5. UD1 Parameters'!B$27*0.000001 -> 2.378735998 | R8: ='6. UD1 Assumptions'!I10*'5. UD1 Parameters'!$D$25*'5. UD1 Parameters'!B$27*0.000001 -> 0.07392 | S8: 3.125036361 | U8: ='UD1 LS'!Z$4 -> 0.5397754758 | V8: ='UD1 LS'!Z$9 -> 2.872454623 | W8: ='6. UD1 Assumptions'!E10*'UD1 LS'!$FP$29*'UD1 LS'!$FQ$29*'5. UD1 Parameters'!$B$28*365*0.001*(44/28)*0.000001*(('UD1 LS'!$FI$29*'5. UD1 Parameters'!$C$59)+('UD1 LS'!$FK$29*'5. UD1 Parameters'!$E$59)) -> 0.05518613365 | X8: ='6. UD1 Assumptions'!C10*'UD1 LS'!$FP$30*'UD1 LS'!$FQ$30*'5. UD1 Parameters'!$B$28*365*0.001*(44/28)*0.000001*(('UD1 LS'!$FI$30*'5. UD1 Parameters'!$C$60)+('UD1 LS'!$FK$30*'5. UD1 Parameters'!$E$60)) -> 0.9686404901 | Z8: ='UD1 LS'!$U$34 -> 1.416377562 | AA8: =(('6. UD1 Assumptions'!K10*'UD1 LS'!$FP$32*'UD1 LS'!$FQ$32)*'5. UD1 Parameters'!$H$62+((('6. UD1 Assumptions'!K10/50)*'UD1 LS'!$FP$33*'UD1 LS'!$FQ$33)+('6. UD1 Assumptions'!P10*'UD1 LS'!$FP$35*'UD1 LS'!$FQ$35)+('6. UD1 Assumptions'!M10*'UD1 LS'!$FP$34*'UD1 LS'!$FQ$34))*'5. UD1 Parameters'!$H$63)*'5. UD1 Parameters'!$B$28*365*0.001*0.000001*44/28 -> 3.571801436 | AC8: 9.424235721 | AE8: 29.20677133 | AH8: 2007 | AI8: ='UD1 Scenarios'!B8 -> 2.089458 | AJ8: ='UD1 Scenarios'!C8 -> 4.4362395 | AK8: ='UD1 Scenarios'!D8 -> 0.12502875 | AL8: ='UD1 Scenarios'!E8 -> 2.6565 | AM8: ='UD1 Scenarios'!F8 -> 0.2646 | AN8: ='UD1 Scenarios'!G8 -> 0.365673 | AO8: ='UD1 Scenarios'!H8 -> 6.72 | AP8: 16.65749925 | AR8: ='UD1 Scenarios'!K8 -> 0.045423 | AS8: ='UD1 Scenarios'!L8 -> 0.1431045 | AT8: ='UD1 Scenarios'!M8 -> 0.0037508625 | AU8: ='UD1 Scenarios'!N8 -> 0.090321 | AV8: ='UD1 Scenarios'!O8 -> 0.024108 | AW8: ='UD1 Scenarios'!P8 -> 0.365673 | AX8: ='UD1 Scenarios'!Q8 -> 2.378735998 | AY8: ='UD1 Scenarios'!R8 -> 0.07392 | AZ8: 3.125036361 | BB8: ='UD1 Scenarios'!U8 -> 0.5397754758 | BC8: ='UD1 Scenarios'!V8 -> 2.872454623 | BD8: ='UD1 Scenarios'!W8 -> 0.05518613365 | BE8: ='UD1 Scenarios'!X8 -> 0.9686404901 | BG8: ='UD1 Scenarios'!Z8 -> 1.416377562 | BH8: ='UD1 Scenarios'!AA8 -> 3.571801436 | BJ8: 9.424235721 | BK8: 29.20677133 | BN8: 2007 | BO8: 16.65749925 | BP8: 3.125036361 | BQ8: ='UD1 Scenarios'!BB8 -> 0.5397754758 | BR8: ='UD1 Scenarios'!BC8 -> 2.872454623 | BS8: ='UD1 Scenarios'!BD8 -> 0.05518613365 | BT8: ='UD1 Scenarios'!BE8 -> 0.9686404901 | BV8: ='UD1 Scenarios'!BG8 -> 1.416377562 | BW8: ='UD1 Scenarios'!BH8 -> 3.571801436 | BY8: =SUM(BQ8:BX8) -> 9.424235721 | BZ8: 29.20677133 | CB8: 0 | CE8: 19.83035625 | CF8: 19.83035625 | CG8: 32.97487335 | CH8: 32.97487335 | CI8: 32.97487335
A9: 2008 | B9: ='6. UD1 Assumptions'!T11*'5. UD1 Parameters'!$C$5*'5. UD1 Parameters'!B$27*0.000001 -> 2.373462 | C9: ='6. UD1 Assumptions'!V11*'5. UD1 Parameters'!$C$6*'5. UD1 Parameters'!B$27*0.000001 -> 4.53567975 | D9: ='6. UD1 Assumptions'!E11*'5. UD1 Parameters'!$C$11*'5. UD1 Parameters'!B$27*0.000001 -> 0.17346 | E9: ='6. UD1 Assumptions'!C11*'5. UD1 Parameters'!$C$12*'5. UD1 Parameters'!B$27*0.000001 -> 2.7927375 | F9: ='6. UD1 Assumptions'!G11*'5. UD1 Parameters'!$C$13*'5. UD1 Parameters'!B$27*0.000001 -> 0.27405 | G9: ='6. UD1 Assumptions'!Z11*'5. UD1 Parameters'!$C$16*'5. UD1 Parameters'!B$27*0.000001 -> 0.140679 | H9: ='6. UD1 Assumptions'!I11*'5. UD1 Parameters'!$C$25*'5. UD1 Parameters'!B$27*0.000001 -> 6.72 | I9: 17.01006825 | K9: ='6. UD1 Assumptions'!T11*'5. UD1 Parameters'!$D$5*'5. UD1 Parameters'!B$27*0.000001 -> 0.051597 | L9: ='6. UD1 Assumptions'!V11*'5. UD1 Parameters'!$D$6*'5. UD1 Parameters'!B$27*0.000001 -> 0.14631225 | M9: ='6. UD1 Assumptions'!E11*'5. UD1 Parameters'!$D$11*'5. UD1 Parameters'!B$27*0.000001 -> 0.0052038 | N9: ='6. UD1 Assumptions'!C11*'5. UD1 Parameters'!$D$12*'5. UD1 Parameters'!B$27*0.000001 -> 0.094953075 | O9: ='6. UD1 Assumptions'!G11*'5. UD1 Parameters'!$D$13*'5. UD1 Parameters'!B$27*0.000001 -> 0.024969 | P9: ='6. UD1 Assumptions'!Z11*'5. UD1 Parameters'!$D$16*'5. UD1 Parameters'!B$27*0.000001 -> 0.140679 | Q9: =(('6. UD1 Assumptions'!K11*'5. UD1 Parameters'!$D$20)+(('6. UD1 Assumptions'!R11)*'5. UD1 Parameters'!$D$22))*'5. UD1 Parameters'!B$27*0.000001 -> 2.476927238 | R9: ='6. UD1 Assumptions'!I11*'5. UD1 Parameters'!$D$25*'5. UD1 Parameters'!B$27*0.000001 -> 0.07392 | S9: 3.014561363 | U9: ='UD1 LS'!AP$4 -> 0.6131430162 | V9: ='UD1 LS'!AP$9 -> 3.115219455 | W9: ='6. UD1 Assumptions'!E11*'UD1 LS'!$FP$29*'UD1 LS'!$FQ$29*'5. UD1 Parameters'!$B$28*365*0.001*(44/28)*0.000001*(('UD1 LS'!$FI$29*'5. UD1 Parameters'!$C$59)+('UD1 LS'!$FK$29*'5. UD1 Parameters'!$E$59)) -> 0.07656308444 | X9: ='6. UD1 Assumptions'!C11*'UD1 LS'!$FP$30*'UD1 LS'!$FQ$30*'5. UD1 Parameters'!$B$28*365*0.001*(44/28)*0.000001*(('UD1 LS'!$FI$30*'5. UD1 Parameters'!$C$60)+('UD1 LS'!$FK$30*'5. UD1 Parameters'!$E$60)) -> 1.018316816 | Z9: ='UD1 LS'!$AK$35 -> 0.6025301564 | AA9: =(('6. UD1 Assumptions'!K11*'UD1 LS'!$FP$32*'UD1 LS'!$FQ$32)*'5. UD1 Parameters'!$H$62+((('6. UD1 Assumptions'!K11/50)*'UD1 LS'!$FP$33*'UD1 LS'!$FQ$33)+('6. UD1 Assumptions'!P11*'UD1 LS'!$FP$35*'UD1 LS'!$FQ$35)+('6. UD1 Assumptions'!M11*'UD1 LS'!$FP$34*'UD1 LS'!$FQ$34))*'5. UD1 Parameters'!$H$63)*'5. UD1 Parameters'!$B$28*365*0.001*0.000001*44/28 -> 3.662616642 | AC9: 9.088389169 | AE9: 29.11301878 | AH9: 2008 | AI9: ='UD1 Scenarios'!B9 -> 2.373462 | AJ9: ='UD1 Scenarios'!C9 -> 4.53567975 | AK9: ='UD1 Scenarios'!D9 -> 0.17346 | AL9: ='UD1 Scenarios'!E9 -> 2.7927375 | AM9: ='UD1 Scenarios'!F9 -> 0.27405 | AN9: ='UD1 Scenarios'!G9 -> 0.140679 | AO9: ='UD1 Scenarios'!H9 -> 6.72 | AP9: 17.01006825 | AR9: ='UD1 Scenarios'!K9 -> 0.051597 | AS9: ='UD1 Scenarios'!L9 -> 0.14631225 | AT9: ='UD1 Scenarios'!M9 -> 0.0052038 | AU9: ='UD1 Scenarios'!N9 -> 0.094953075 | AV9: ='UD1 Scenarios'!O9 -> 0.024969 | AW9: ='UD1 Scenarios'!P9 -> 0.140679 | AX9: ='UD1 Scenarios'!Q9 -> 2.476927238 | AY9: ='UD1 Scenarios'!R9 -> 0.07392 | AZ9: 3.014561363 | BB9: ='UD1 Scenarios'!U9 -> 0.6131430162 | BC9: ='UD1 Scenarios'!V9 -> 3.115219455 | BD9: ='UD1 Scenarios'!W9 -> 0.07656308444 | BE9: ='UD1 Scenarios'!X9 -> 1.018316816 | BG9: ='UD1 Scenarios'!Z9 -> 0.6025301564 | BH9: ='UD1 Scenarios'!AA9 -> 3.662616642 | BJ9: 9.088389169 | BK9: 29.11301878 | BN9: 2008 | BO9: 17.01006825 | BP9: 3.014561363 | BQ9: ='UD1 Scenarios'!BB9 -> 0.6131430162 | BR9: ='UD1 Scenarios'!BC9 -> 3.115219455 | BS9: ='UD1 Scenarios'!BD9 -> 0.07656308444 | BT9: ='UD1 Scenarios'!BE9 -> 1.018316816 | BV9: ='UD1 Scenarios'!BG9 -> 0.6025301564 | BW9: ='UD1 Scenarios'!BH9 -> 3.662616642 | BY9: 9.088389169 | BZ9: 29.11301878 | CB9: 0 | CE9: 20.25008125 | CF9: 20.25008125 | CG9: 32.92723395 | CH9: 32.92723395 | CI9: 32.92723395
A10: 2009 | B10: ='6. UD1 Assumptions'!T12*'5. UD1 Parameters'!$C$5*'5. UD1 Parameters'!B$27*0.000001 -> 2.237256 | C10: ='6. UD1 Assumptions'!V12*'5. UD1 Parameters'!$C$6*'5. UD1 Parameters'!B$27*0.000001 -> 4.5605805 | D10: ='6. UD1 Assumptions'!E12*'5. UD1 Parameters'!$C$11*'5. UD1 Parameters'!B$27*0.000001 -> 0.22362375 | E10: ='6. UD1 Assumptions'!C12*'5. UD1 Parameters'!$C$12*'5. UD1 Parameters'!B$27*0.000001 -> 2.80305375 | F10: ='6. UD1 Assumptions'!G12*'5. UD1 Parameters'!$C$13*'5. UD1 Parameters'!B$27*0.000001 -> 0.2835 | G10: ='6. UD1 Assumptions'!Z12*'5. UD1 Parameters'!$C$16*'5. UD1 Parameters'!B$27*0.000001 -> 0.296268 | H10: ='6. UD1 Assumptions'!I12*'5. UD1 Parameters'!$C$25*'5. UD1 Parameters'!B$27*0.000001 -> 6.72 | I10: 17.124282 | K10: ='6. UD1 Assumptions'!T12*'5. UD1 Parameters'!$D$5*'5. UD1 Parameters'!B$27*0.000001 -> 0.048636 | L10: ='6. UD1 Assumptions'!V12*'5. UD1 Parameters'!$D$6*'5. UD1 Parameters'!B$27*0.000001 -> 0.1471155 | M10: ='6. UD1 Assumptions'!E12*'5. UD1 Parameters'!$D$11*'5. UD1 Parameters'!B$27*0.000001 -> 0.0067087125 | N10: ='6. UD1 Assumptions'!C12*'5. UD1 Parameters'!$D$12*'5. UD1 Parameters'!B$27*0.000001 -> 0.0953038275 | O10: ='6. UD1 Assumptions'!G12*'5. UD1 Parameters'!$D$13*'5. UD1 Parameters'!B$27*0.000001 -> 0.02583 | P10: ='6. UD1 Assumptions'!Z12*'5. UD1 Parameters'!$D$16*'5. UD1 Parameters'!B$27*0.000001 -> 0.296268 | Q10: =(('6. UD1 Assumptions'!K12*'5. UD1 Parameters'!$D$20)+(('6. UD1 Assumptions'!R12)*'5. UD1 Parameters'!$D$22))*'5. UD1 Parameters'!B$27*0.000001 -> 2.488307862 | R10: ='6. UD1 Assumptions'!I12*'5. UD1 Parameters'!$D$25*'5. UD1 Parameters'!B$27*0.000001 -> 0.07392 | S10: 3.182089902 | U10: ='UD1 LS'!BF$4 -> 0.5392763769 | V10: ='UD1 LS'!BF$9 -> 3.05382249 | W10: ='6. UD1 Assumptions'!E12*'UD1 LS'!$FP$29*'UD1 LS'!$FQ$29*'5. UD1 Parameters'!$B$28*365*0.001*(44/28)*0.000001*(('UD1 LS'!$FI$29*'5. UD1 Parameters'!$C$59)+('UD1 LS'!$FK$29*'5. UD1 Parameters'!$E$59)) -> 0.09870473916 | X10: ='6. UD1 Assumptions'!C12*'UD1 LS'!$FP$30*'UD1 LS'!$FQ$30*'5. UD1 Parameters'!$B$28*365*0.001*(44/28)*0.000001*(('UD1 LS'!$FI$30*'5. UD1 Parameters'!$C$60)+('UD1 LS'!$FK$30*'5. UD1 Parameters'!$E$60)) -> 1.022078433 | Z10: ='UD1 LS'!$BA$35 -> 1.105543288 | AA10: =(('6. UD1 Assumptions'!K12*'UD1 LS'!$FP$32*'UD1 LS'!$FQ$32)*'5. UD1 Parameters'!$H$62+((('6. UD1 Assumptions'!K12/50)*'UD1 LS'!$FP$33*'UD1 LS'!$FQ$33)+('6. UD1 Assumptions'!P12*'UD1 LS'!$FP$35*'UD1 LS'!$FQ$35)+('6. UD1 Assumptions'!M12*'UD1 LS'!$FP$34*'UD1 LS'!$FQ$34))*'5. UD1 Parameters'!$H$63)*'5. UD1 Parameters'!$B$28*365*0.001*0.000001*44/28 -> 3.413825032 | AC10: 9.233250359 | AE10: 29.53962226 | AH10: 2009 | AI10: ='UD1 Scenarios'!B10 -> 2.237256 | AJ10: ='UD1 Scenarios'!C10 -> 4.5605805 | AK10: ='UD1 Scenarios'!D10 -> 0.22362375 | AL10: ='UD1 Scenarios'!E10 -> 2.80305375 | AM10: ='UD1 Scenarios'!F10 -> 0.2835 | AN10: ='UD1 Scenarios'!G10 -> 0.296268 | AO10: ='UD1 Scenarios'!H10 -> 6.72 | AP10: 17.124282 | AR10: ='UD1 Scenarios'!K10 -> 0.048636 | AS10: ='UD1 Scenarios'!L10 -> 0.1471155 | AT10: ='UD1 Scenarios'!M10 -> 0.0067087125 | AU10: ='UD1 Scenarios'!N10 -> 0.0953038275 | AV10: ='UD1 Scenarios'!O10 -> 0.02583 | AW10: ='UD1 Scenarios'!P10 -> 0.296268 | AX10: ='UD1 Scenarios'!Q10 -> 2.488307862 | AY10: ='UD1 Scenarios'!R10 -> 0.07392 | AZ10: 3.182089902 | BB10: ='UD1 Scenarios'!U10 -> 0.5392763769 | BC10: ='UD1 Scenarios'!V10 -> 3.05382249 | BD10: ='UD1 Scenarios'!W10 -> 0.09870473916 | BE10: ='UD1 Scenarios'!X10 -> 1.022078433 | BG10: ='UD1 Scenarios'!Z10 -> 1.105543288 | BH10: ='UD1 Scenarios'!AA10 -> 3.413825032 | BJ10: 9.233250359 | BK10: 29.53962226 | BN10: 2009 | BO10: 17.124282 | BP10: 3.182089902 | BQ10: ='UD1 Scenarios'!BB10 -> 0.5392763769 | BR10: ='UD1 Scenarios'!BC10 -> 3.05382249 | BS10: ='UD1 Scenarios'!BD10 -> 0.09870473916 | BT10: ='UD1 Scenarios'!BE10 -> 1.022078433 | BV10: ='UD1 Scenarios'!BG10 -> 1.105543288 | BW10: ='UD1 Scenarios'!BH10 -> 3.413825032 | BY10: 9.233250359 | BZ10: 29.53962226 | CB10: 0 | CE10: 20.38605 | CF10: 20.38605 | CG10: 33.40750262 | CH10: 33.40750262 | CI10: 33.40750262
A11: 2010 | B11: ='6. UD1 Assumptions'!T13*'5. UD1 Parameters'!$C$5*'5. UD1 Parameters'!B$27*0.000001 -> 2.587914 | C11: ='6. UD1 Assumptions'!V13*'5. UD1 Parameters'!$C$6*'5. UD1 Parameters'!B$27*0.000001 -> 4.45658325 | D11: ='6. UD1 Assumptions'!E13*'5. UD1 Parameters'!$C$11*'5. UD1 Parameters'!B$27*0.000001 -> 0.22008 | E11: ='6. UD1 Assumptions'!C13*'5. UD1 Parameters'!$C$12*'5. UD1 Parameters'!B$27*0.000001 -> 2.96806125 | F11: ='6. UD1 Assumptions'!G13*'5. UD1 Parameters'!$C$13*'5. UD1 Parameters'!B$27*0.000001 -> 0.29295 | G11: ='6. UD1 Assumptions'!Z13*'5. UD1 Parameters'!$C$16*'5. UD1 Parameters'!B$27*0.000001 -> 0.468867 | H11: ='6. UD1 Assumptions'!I13*'5. UD1 Parameters'!$C$25*'5. UD1 Parameters'!B$27*0.000001 -> 6.72 | I11: 17.7144555 | K11: ='6. UD1 Assumptions'!T13*'5. UD1 Parameters'!$D$5*'5. UD1 Parameters'!B$27*0.000001 -> 0.056259 | L11: ='6. UD1 Assumptions'!V13*'5. UD1 Parameters'!$D$6*'5. UD1 Parameters'!B$27*0.000001 -> 0.14376075 | M11: ='6. UD1 Assumptions'!E13*'5. UD1 Parameters'!$D$11*'5. UD1 Parameters'!B$27*0.000001 -> 0.0066024 | N11: ='6. UD1 Assumptions'!C13*'5. UD1 Parameters'!$D$12*'5. UD1 Parameters'!B$27*0.000001 -> 0.1009140825 | O11: ='6. UD1 Assumptions'!G13*'5. UD1 Parameters'!$D$13*'5. UD1 Parameters'!B$27*0.000001 -> 0.026691 | P11: ='6. UD1 Assumptions'!Z13*'5. UD1 Parameters'!$D$16*'5. UD1 Parameters'!B$27*0.000001 -> 0.468867 | Q11: =(('6. UD1 Assumptions'!K13*'5. UD1 Parameters'!$D$20)+(('6. UD1 Assumptions'!R13)*'5. UD1 Parameters'!$D$22))*'5. UD1 Parameters'!B$27*0.000001 -> 2.61574628 | R11: ='6. UD1 Assumptions'!I13*'5. UD1 Parameters'!$D$25*'5. UD1 Parameters'!B$27*0.000001 -> 0.07392 | S11: 3.492760512 | U11: ='UD1 LS'!BV$4 -> 0.662419052 | V11: ='UD1 LS'!BV$9 -> 3.029608082 | W11: ='6. UD1 Assumptions'!E13*'UD1 LS'!$FP$29*'UD1 LS'!$FQ$29*'5. UD1 Parameters'!$B$28*365*0.001*(44/28)*0.000001*(('UD1 LS'!$FI$29*'5. UD1 Parameters'!$C$59)+('UD1 LS'!$FK$29*'5. UD1 Parameters'!$E$59)) -> 0.09714057203 | X11: ='6. UD1 Assumptions'!C13*'UD1 LS'!$FP$30*'UD1 LS'!$FQ$30*'5. UD1 Parameters'!$B$28*365*0.001*(44/28)*0.000001*(('UD1 LS'!$FI$30*'5. UD1 Parameters'!$C$60)+('UD1 LS'!$FK$30*'5. UD1 Parameters'!$E$60)) -> 1.082245174 | Z11: ='UD1 LS'!$BQ$38 -> 1.101885752 | AA11: =(('6. UD1 Assumptions'!K13*'UD1 LS'!$FP$32*'UD1 LS'!$FQ$32)*'5. UD1 Parameters'!$H$62+((('6. UD1 Assumptions'!K13/50)*'UD1 LS'!$FP$33*'UD1 LS'!$FQ$33)+('6. UD1 Assumptions'!P13*'UD1 LS'!$FP$35*'UD1 LS'!$FQ$35)+('6. UD1 Assumptions'!M13*'UD1 LS'!$FP$34*'UD1 LS'!$FQ$34))*'5. UD1 Parameters'!$H$63)*'5. UD1 Parameters'!$B$28*365*0.001*0.000001*44/28 -> 3.628699386 | AC11: 9.601998017 | AE11: 30.80921403 | AH11: 2010 | AI11: ='UD1 Scenarios'!B11 -> 2.587914 | AJ11: ='UD1 Scenarios'!C11 -> 4.45658325 | AK11: ='UD1 Scenarios'!D11 -> 0.22008 | AL11: ='UD1 Scenarios'!E11 -> 2.96806125 | AM11: ='UD1 Scenarios'!F11 -> 0.29295 | AN11: ='UD1 Scenarios'!G11 -> 0.468867 | AO11: ='UD1 Scenarios'!H11 -> 6.72 | AP11: 17.7144555 | AR11: ='UD1 Scenarios'!K11 -> 0.056259 | AS11: ='UD1 Scenarios'!L11 -> 0.14376075 | AT11: ='UD1 Scenarios'!M11 -> 0.0066024 | AU11: ='UD1 Scenarios'!N11 -> 0.1009140825 | AV11: ='UD1 Scenarios'!O11 -> 0.026691 | AW11: ='UD1 Scenarios'!P11 -> 0.468867 | AX11: ='UD1 Scenarios'!Q11 -> 2.61574628 | AY11: ='UD1 Scenarios'!R11 -> 0.07392 | AZ11: 3.492760512 | BB11: ='UD1 Scenarios'!U11 -> 0.662419052 | BC11: ='UD1 Scenarios'!V11 -> 3.029608082 | BD11: ='UD1 Scenarios'!W11 -> 0.09714057203 | BE11: ='UD1 Scenarios'!X11 -> 1.082245174 | BG11: ='UD1 Scenarios'!Z11 -> 1.101885752 | BH11: ='UD1 Scenarios'!AA11 -> 3.628699386 | BJ11: 9.601998017 | BK11: 30.80921403 | BN11: 2010 | BO11: 17.7144555 | BP11: 3.492760512 | BQ11: ='UD1 Scenarios'!BB11 -> 0.662419052 | BR11: ='UD1 Scenarios'!BC11 -> 3.029608082 | BS11: ='UD1 Scenarios'!BD11 -> 0.09714057203 | BT11: ='UD1 Scenarios'!BE11 -> 1.082245174 | BV11: ='UD1 Scenarios'!BG11 -> 1.101885752 | BW11: ='UD1 Scenarios'!BH11 -> 3.628699386 | BY11: 9.601998017 | BZ11: 30.80921403 | CB11: 0 | CE11: 21.0886375 | CF11: 21.0886375 | CG11: 34.84868375 | CH11: 34.84868375 | CI11: 34.84868375
A12: 2011 | B12: ='6. UD1 Assumptions'!T14*'5. UD1 Parameters'!$C$5*'5. UD1 Parameters'!B$27*0.000001 -> 2.43915 | C12: ='6. UD1 Assumptions'!V14*'5. UD1 Parameters'!$C$6*'5. UD1 Parameters'!B$27*0.000001 -> 3.8998155 | D12: ='6. UD1 Assumptions'!E14*'5. UD1 Parameters'!$C$11*'5. UD1 Parameters'!B$27*0.000001 -> 0.2093175 | E12: ='6. UD1 Assumptions'!C14*'5. UD1 Parameters'!$C$12*'5. UD1 Parameters'!B$27*0.000001 -> 2.9697675 | F12: ='6. UD1 Assumptions'!G14*'5. UD1 Parameters'!$C$13*'5. UD1 Parameters'!B$27*0.000001 -> 0.3024 | G12: ='6. UD1 Assumptions'!Z14*'5. UD1 Parameters'!$C$16*'5. UD1 Parameters'!B$27*0.000001 -> 0.488985 | H12: ='6. UD1 Assumptions'!I14*'5. UD1 Parameters'!$C$25*'5. UD1 Parameters'!B$27*0.000001 -> 6.72 | I12: 17.0294355 | K12: ='6. UD1 Assumptions'!T14*'5. UD1 Parameters'!$D$5*'5. UD1 Parameters'!B$27*0.000001 -> 0.053025 | L12: ='6. UD1 Assumptions'!V14*'5. UD1 Parameters'!$D$6*'5. UD1 Parameters'!B$27*0.000001 -> 0.1258005 | M12: ='6. UD1 Assumptions'!E14*'5. UD1 Parameters'!$D$11*'5. UD1 Parameters'!B$27*0.000001 -> 0.006279525 | N12: ='6. UD1 Assumptions'!C14*'5. UD1 Parameters'!$D$12*'5. UD1 Parameters'!B$27*0.000001 -> 0.100972095 | O12: ='6. UD1 Assumptions'!G14*'5. UD1 Parameters'!$D$13*'5. UD1 Parameters'!B$27*0.000001 -> 0.027552 | P12: ='6. UD1 Assumptions'!Z14*'5. UD1 Parameters'!$D$16*'5. UD1 Parameters'!B$27*0.000001 -> 0.488985 | Q12: =(('6. UD1 Assumptions'!K14*'5. UD1 Parameters'!$D$20)+(('6. UD1 Assumptions'!R14)*'5. UD1 Parameters'!$D$22))*'5. UD1 Parameters'!B$27*0.000001 -> 2.664819477 | R12: ='6. UD1 Assumptions'!I14*'5. UD1 Parameters'!$D$25*'5. UD1 Parameters'!B$27*0.000001 -> 0.07392 | S12: 3.541353597 | U12: ='UD1 LS'!CM$4 -> 0.6237863005 | V12: ='UD1 LS'!CM$9 -> 2.797930109 | W12: ='6. UD1 Assumptions'!E14*'UD1 LS'!$FP$29*'UD1 LS'!$FQ$29*'5. UD1 Parameters'!$B$28*365*0.001*(44/28)*0.000001*(('UD1 LS'!$FI$29*'5. UD1 Parameters'!$C$59)+('UD1 LS'!$FK$29*'5. UD1 Parameters'!$E$59)) -> 0.09239013852 | X12: ='6. UD1 Assumptions'!C14*'UD1 LS'!$FP$30*'UD1 LS'!$FQ$30*'5. UD1 Parameters'!$B$28*365*0.001*(44/28)*0.000001*(('UD1 LS'!$FI$30*'5. UD1 Parameters'!$C$60)+('UD1 LS'!$FK$30*'5. UD1 Parameters'!$E$60)) -> 1.082867324 | Z12: ='UD1 LS'!$CH$39 -> 1.232752025 | AA12: =(('6. UD1 Assumptions'!K14*'UD1 LS'!$FP$32*'UD1 LS'!$FQ$32)*'5. UD1 Parameters'!$H$62+((('6. UD1 Assumptions'!K14/50)*'UD1 LS'!$FP$33*'UD1 LS'!$FQ$33)+('6. UD1 Assumptions'!P14*'UD1 LS'!$FP$35*'UD1 LS'!$FQ$35)+('6. UD1 Assumptions'!M14*'UD1 LS'!$FP$34*'UD1 LS'!$FQ$34))*'5. UD1 Parameters'!$H$63)*'5. UD1 Parameters'!$B$28*365*0.001*0.000001*44/28 -> 3.678509842 | AC12: 9.50823574 | AE12: 30.07902484 | AH12: 2011 | AI12: ='UD1 Scenarios'!B12 -> 2.43915 | AJ12: ='UD1 Scenarios'!C12 -> 3.8998155 | AK12: ='UD1 Scenarios'!D12 -> 0.2093175 | AL12: ='UD1 Scenarios'!E12 -> 2.9697675 | AM12: ='UD1 Scenarios'!F12 -> 0.3024 | AN12: ='UD1 Scenarios'!G12 -> 0.488985 | AO12: ='UD1 Scenarios'!H12 -> 6.72 | AP12: 17.0294355 | AR12: ='UD1 Scenarios'!K12 -> 0.053025 | AS12: ='UD1 Scenarios'!L12 -> 0.1258005 | AT12: ='UD1 Scenarios'!M12 -> 0.006279525 | AU12: ='UD1 Scenarios'!N12 -> 0.100972095 | AV12: ='UD1 Scenarios'!O12 -> 0.027552 | AW12: ='UD1 Scenarios'!P12 -> 0.488985 | AX12: ='UD1 Scenarios'!Q12 -> 2.664819477 | AY12: ='UD1 Scenarios'!R12 -> 0.07392 | AZ12: 3.541353597 | BB12: ='UD1 Scenarios'!U12 -> 0.6237863005 | BC12: ='UD1 Scenarios'!V12 -> 2.797930109 | BD12: ='UD1 Scenarios'!W12 -> 0.09239013852 | BE12: ='UD1 Scenarios'!X12 -> 1.082867324 | BG12: ='UD1 Scenarios'!Z12 -> 1.232752025 | BH12: ='UD1 Scenarios'!AA12 -> 3.678509842 | BJ12: 9.50823574 | BK12: 30.07902484 | BN12: 2011 | BO12: 17.0294355 | BP12: 3.541353597 | BQ12: ='UD1 Scenarios'!BB12 -> 0.6237863005 | BR12: ='UD1 Scenarios'!BC12 -> 2.797930109 | BS12: ='UD1 Scenarios'!BD12 -> 0.09239013852 | BT12: ='UD1 Scenarios'!BE12 -> 1.082867324 | BV12: ='UD1 Scenarios'!BG12 -> 1.232752025 | BW12: ='UD1 Scenarios'!BH12 -> 3.678509842 | BY12: 9.50823574 | BZ12: 30.07902484 | CB12: 0 | CE12: 20.2731375 | CF12: 20.2731375 | CG12: 33.99727038 | CH12: 33.99727038 | CI12: 33.99727038
A13: 2012 | B13: ='6. UD1 Assumptions'!T15*'5. UD1 Parameters'!$C$5*'5. UD1 Parameters'!B$27*0.000001 -> 2.919252 | C13: ='6. UD1 Assumptions'!V15*'5. UD1 Parameters'!$C$6*'5. UD1 Parameters'!B$27*0.000001 -> 3.97061175 | D13: ='6. UD1 Assumptions'!E15*'5. UD1 Parameters'!$C$11*'5. UD1 Parameters'!B$27*0.000001 -> 0.23751 | E13: ='6. UD1 Assumptions'!C15*'5. UD1 Parameters'!$C$12*'5. UD1 Parameters'!B$27*0.000001 -> 2.89051875 | F13: ='6. UD1 Assumptions'!G15*'5. UD1 Parameters'!$C$13*'5. UD1 Parameters'!B$27*0.000001 -> 0.311472 | G13: ='6. UD1 Assumptions'!Z15*'5. UD1 Parameters'!$C$16*'5. UD1 Parameters'!B$27*0.000001 -> 0.321027 | H13: ='6. UD1 Assumptions'!I15*'5. UD1 Parameters'!$C$25*'5. UD1 Parameters'!B$27*0.000001 -> 6.72 | I13: 17.3703915 | K13: ='6. UD1 Assumptions'!T15*'5. UD1 Parameters'!$D$5*'5. UD1 Parameters'!B$27*0.000001 -> 0.063462 | L13: ='6. UD1 Assumptions'!V15*'5. UD1 Parameters'!$D$6*'5. UD1 Parameters'!B$27*0.000001 -> 0.12808425 | M13: ='6. UD1 Assumptions'!E15*'5. UD1 Parameters'!$D$11*'5. UD1 Parameters'!B$27*0.000001 -> 0.0071253 | N13: ='6. UD1 Assumptions'!C15*'5. UD1 Parameters'!$D$12*'5. UD1 Parameters'!B$27*0.000001 -> 0.0982776375 | O13: ='6. UD1 Assumptions'!G15*'5. UD1 Parameters'!$D$13*'5. UD1 Parameters'!B$27*0.000001 -> 0.02837856 | P13: ='6. UD1 Assumptions'!Z15*'5. UD1 Parameters'!$D$16*'5. UD1 Parameters'!B$27*0.000001 -> 0.321027 | Q13: =(('6. UD1 Assumptions'!K15*'5. UD1 Parameters'!$D$20)+(('6. UD1 Assumptions'!R15)*'5. UD1 Parameters'!$D$22))*'5. UD1 Parameters'!B$27*0.000001 -> 2.71177221 | R13: ='6. UD1 Assumptions'!I15*'5. UD1 Parameters'!$D$25*'5. UD1 Parameters'!B$27*0.000001 -> 0.07392 | S13: 3.432046957 | U13: ='UD1 LS'!DD$4 -> 0.7461878138 | V13: ='UD1 LS'!DD$9 -> 2.710887882 | W13: ='6. UD1 Assumptions'!E15*'UD1 LS'!$FP$29*'UD1 LS'!$FQ$29*'5. UD1 Parameters'!$B$28*365*0.001*(44/28)*0.000001*(('UD1 LS'!$FI$29*'5. UD1 Parameters'!$C$59)+('UD1 LS'!$FK$29*'5. UD1 Parameters'!$E$59)) -> 0.104833957 | X13: ='6. UD1 Assumptions'!C15*'UD1 LS'!$FP$30*'UD1 LS'!$FQ$30*'5. UD1 Parameters'!$B$28*365*0.001*(44/28)*0.000001*(('UD1 LS'!$FI$30*'5. UD1 Parameters'!$C$60)+('UD1 LS'!$FK$30*'5. UD1 Parameters'!$E$60)) -> 1.053970826 | Z13: ='UD1 LS'!$CY$39 -> 0.8366865826 | AA13: =(('6. UD1 Assumptions'!K15*'UD1 LS'!$FP$32*'UD1 LS'!$FQ$32)*'5. UD1 Parameters'!$H$62+((('6. UD1 Assumptions'!K15/50)*'UD1 LS'!$FP$33*'UD1 LS'!$FQ$33)+('6. UD1 Assumptions'!P15*'UD1 LS'!$FP$35*'UD1 LS'!$FQ$35)+('6. UD1 Assumptions'!M15*'UD1 LS'!$FP$34*'UD1 LS'!$FQ$34))*'5. UD1 Parameters'!$H$63)*'5. UD1 Parameters'!$B$28*365*0.001*0.000001*44/28 -> 3.835226582 | AC13: 9.287793643 | AE13: 30.0902321 | AH13: 2012 | AI13: ='UD1 Scenarios'!B13 -> 2.919252 | AJ13: ='UD1 Scenarios'!C13 -> 3.97061175 | AK13: ='UD1 Scenarios'!D13 -> 0.23751 | AL13: ='UD1 Scenarios'!E13 -> 2.89051875 | AM13: ='UD1 Scenarios'!F13 -> 0.311472 | AN13: ='UD1 Scenarios'!G13 -> 0.321027 | AO13: ='UD1 Scenarios'!H13 -> 6.72 | AP13: 17.3703915 | AR13: ='UD1 Scenarios'!K13 -> 0.063462 | AS13: ='UD1 Scenarios'!L13 -> 0.12808425 | AT13: ='UD1 Scenarios'!M13 -> 0.0071253 | AU13: ='UD1 Scenarios'!N13 -> 0.0982776375 | AV13: ='UD1 Scenarios'!O13 -> 0.02837856 | AW13: ='UD1 Scenarios'!P13 -> 0.321027 | AX13: ='UD1 Scenarios'!Q13 -> 2.71177221 | AY13: ='UD1 Scenarios'!R13 -> 0.07392 | AZ13: 3.432046957 | BB13: ='UD1 Scenarios'!U13 -> 0.7461878138 | BC13: ='UD1 Scenarios'!V13 -> 2.710887882 | BD13: ='UD1 Scenarios'!W13 -> 0.104833957 | BE13: ='UD1 Scenarios'!X13 -> 1.053970826 | BG13: ='UD1 Scenarios'!Z13 -> 0.8366865826 | BH13: ='UD1 Scenarios'!AA13 -> 3.835226582 | BJ13: 9.287793643 | BK13: 30.0902321 | BN13: 2012 | BO13: 17.3703915 | BP13: 3.432046957 | BQ13: ='UD1 Scenarios'!BB13 -> 0.7461878138 | BR13: ='UD1 Scenarios'!BC13 -> 2.710887882 | BS13: ='UD1 Scenarios'!BD13 -> 0.104833957 | BT13: ='UD1 Scenarios'!BE13 -> 1.053970826 | BV13: ='UD1 Scenarios'!BG13 -> 0.8366865826 | BW13: ='UD1 Scenarios'!BH13 -> 3.835226582 | BY13: 9.287793643 | BZ13: 30.0902321 | CB13: 0 | CE13: 20.6790375 | CF13: 20.6790375 | CG13: 34.05260133 | CH13: 34.05260133 | CI13: 34.05260133
A14: 2013 | B14: ='6. UD1 Assumptions'!T16*'5. UD1 Parameters'!$C$5*'5. UD1 Parameters'!B$27*0.000001 -> 2.776284 | C14: ='6. UD1 Assumptions'!V16*'5. UD1 Parameters'!$C$6*'5. UD1 Parameters'!B$27*0.000001 -> 3.98883975 | D14: ='6. UD1 Assumptions'!E16*'5. UD1 Parameters'!$C$11*'5. UD1 Parameters'!B$27*0.000001 -> 0.2666475 | E14: ='6. UD1 Assumptions'!C16*'5. UD1 Parameters'!$C$12*'5. UD1 Parameters'!B$27*0.000001 -> 2.72293875 | F14: ='6. UD1 Assumptions'!G16*'5. UD1 Parameters'!$C$13*'5. UD1 Parameters'!B$27*0.000001 -> 0.32319 | G14: ='6. UD1 Assumptions'!Z16*'5. UD1 Parameters'!$C$16*'5. UD1 Parameters'!B$27*0.000001 -> 0.335181 | H14: ='6. UD1 Assumptions'!I16*'5. UD1 Parameters'!$C$25*'5. UD1 Parameters'!B$27*0.000001 -> 6.72 | I14: 17.133081 | K14: ='6. UD1 Assumptions'!T16*'5. UD1 Parameters'!$D$5*'5. UD1 Parameters'!B$27*0.000001 -> 0.060354 | L14: ='6. UD1 Assumptions'!V16*'5. UD1 Parameters'!$D$6*'5. UD1 Parameters'!B$27*0.000001 -> 0.12867225 | M14: ='6. UD1 Assumptions'!E16*'5. UD1 Parameters'!$D$11*'5. UD1 Parameters'!B$27*0.000001 -> 0.007999425 | N14: ='6. UD1 Assumptions'!C16*'5. UD1 Parameters'!$D$12*'5. UD1 Parameters'!B$27*0.000001 -> 0.0925799175 | O14: ='6. UD1 Assumptions'!G16*'5. UD1 Parameters'!$D$13*'5. UD1 Parameters'!B$27*0.000001 -> 0.0294462 | P14: ='6. UD1 Assumptions'!Z16*'5. UD1 Parameters'!$D$16*'5. UD1 Parameters'!B$27*0.000001 -> 0.335181 | Q14: =(('6. UD1 Assumptions'!K16*'5. UD1 Parameters'!$D$20)+(('6. UD1 Assumptions'!R16)*'5. UD1 Parameters'!$D$22))*'5. UD1 Parameters'!B$27*0.000001 -> 2.686697265 | R14: ='6. UD1 Assumptions'!I16*'5. UD1 Parameters'!$D$25*'5. UD1 Parameters'!B$27*0.000001 -> 0.07392 | S14: 3.414850057 | U14: ='UD1 LS'!DU$4 -> 0.7082288459 | V14: ='UD1 LS'!DU$9 -> 2.650071744 | W14: ='6. UD1 Assumptions'!E16*'UD1 LS'!$FP$29*'UD1 LS'!$FQ$29*'5. UD1 Parameters'!$B$28*365*0.001*(44/28)*0.000001*(('UD1 LS'!$FI$29*'5. UD1 Parameters'!$C$59)+('UD1 LS'!$FK$29*'5. UD1 Parameters'!$E$59)) -> 0.1176948868 | X14: ='6. UD1 Assumptions'!C16*'UD1 LS'!$FP$30*'UD1 LS'!$FQ$30*'5. UD1 Parameters'!$B$28*365*0.001*(44/28)*0.000001*(('UD1 LS'!$FI$30*'5. UD1 Parameters'!$C$60)+('UD1 LS'!$FK$30*'5. UD1 Parameters'!$E$60)) -> 0.9928660739 | Z14: ='UD1 LS'!$DP$39 -> 0.8481910048 | AA14: =(('6. UD1 Assumptions'!K16*'UD1 LS'!$FP$32*'UD1 LS'!$FQ$32)*'5. UD1 Parameters'!$H$62+((('6. UD1 Assumptions'!K16/50)*'UD1 LS'!$FP$33*'UD1 LS'!$FQ$33)+('6. UD1 Assumptions'!P16*'UD1 LS'!$FP$35*'UD1 LS'!$FQ$35)+('6. UD1 Assumptions'!M16*'UD1 LS'!$FP$34*'UD1 LS'!$FQ$34))*'5. UD1 Parameters'!$H$63)*'5. UD1 Parameters'!$B$28*365*0.001*0.000001*44/28 -> 3.823430181 | AC14: 9.140482736 | AE14: 29.68841379 | AH14: 2013 | AI14: ='UD1 Scenarios'!B14 -> 2.776284 | AJ14: ='UD1 Scenarios'!C14 -> 3.98883975 | AK14: ='UD1 Scenarios'!D14 -> 0.2666475 | AL14: ='UD1 Scenarios'!E14 -> 2.72293875 | AM14: ='UD1 Scenarios'!F14 -> 0.32319 | AN14: ='UD1 Scenarios'!G14 -> 0.335181 | AO14: ='UD1 Scenarios'!H14 -> 6.72 | AP14: 17.133081 | AR14: ='UD1 Scenarios'!K14 -> 0.060354 | AS14: ='UD1 Scenarios'!L14 -> 0.12867225 | AT14: ='UD1 Scenarios'!M14 -> 0.007999425 | AU14: ='UD1 Scenarios'!N14 -> 0.0925799175 | AV14: ='UD1 Scenarios'!O14 -> 0.0294462 | AW14: ='UD1 Scenarios'!P14 -> 0.335181 | AX14: ='UD1 Scenarios'!Q14 -> 2.686697265 | AY14: ='UD1 Scenarios'!R14 -> 0.07392 | AZ14: 3.414850057 | BB14: ='UD1 Scenarios'!U14 -> 0.7082288459 | BC14: ='UD1 Scenarios'!V14 -> 2.650071744 | BD14: ='UD1 Scenarios'!W14 -> 0.1176948868 | BE14: ='UD1 Scenarios'!X14 -> 0.9928660739 | BG14: ='UD1 Scenarios'!Z14 -> 0.8481910048 | BH14: ='UD1 Scenarios'!AA14 -> 3.823430181 | BJ14: 9.140482736 | BK14: 29.68841379 | BN14: 2013 | BO14: 17.133081 | BP14: 3.414850057 | BQ14: ='UD1 Scenarios'!BB14 -> 0.7082288459 | BR14: ='UD1 Scenarios'!BC14 -> 2.650071744 | BS14: ='UD1 Scenarios'!BD14 -> 0.1176948868 | BT14: ='UD1 Scenarios'!BE14 -> 0.9928660739 | BV14: ='UD1 Scenarios'!BG14 -> 0.8481910048 | BW14: ='UD1 Scenarios'!BH14 -> 3.823430181 | BY14: 9.140482736 | BZ14: 29.68841379 | CB14: 0 | CE14: 20.396525 | CF14: 20.396525 | CG14: 33.60230542 | CH14: 33.60230542 | CI14: 33.60230542
A15: 2014 | B15: ='6. UD1 Assumptions'!T17*'5. UD1 Parameters'!$C$5*'5. UD1 Parameters'!B$27*0.000001 -> 2.788842 | C15: ='6. UD1 Assumptions'!V17*'5. UD1 Parameters'!$C$6*'5. UD1 Parameters'!B$27*0.000001 -> 3.979969875 | D15: ='6. UD1 Assumptions'!E17*'5. UD1 Parameters'!$C$11*'5. UD1 Parameters'!B$27*0.000001 -> 0.26982375 | E15: ='6. UD1 Assumptions'!C17*'5. UD1 Parameters'!$C$12*'5. UD1 Parameters'!B$27*0.000001 -> 2.726469375 | F15: ='6. UD1 Assumptions'!G17*'5. UD1 Parameters'!$C$13*'5. UD1 Parameters'!B$27*0.000001 -> 0.32319 | G15: ='6. UD1 Assumptions'!Z17*'5. UD1 Parameters'!$C$16*'5. UD1 Parameters'!B$27*0.000001 -> 0.3880905 | H15: ='6. UD1 Assumptions'!I17*'5. UD1 Parameters'!$C$25*'5. UD1 Parameters'!B$27*0.000001 -> 6.72 | I15: 17.1963855 | K15: ='6. UD1 Assumptions'!T17*'5. UD1 Parameters'!$D$5*'5. UD1 Parameters'!B$27*0.000001 -> 0.060627 | L15: ='6. UD1 Assumptions'!V17*'5. UD1 Parameters'!$D$6*'5. UD1 Parameters'!B$27*0.000001 -> 0.128386125 | M15: ='6. UD1 Assumptions'!E17*'5. UD1 Parameters'!$D$11*'5. UD1 Parameters'!B$27*0.000001 -> 0.0080947125 | N15: ='6. UD1 Assumptions'!C17*'5. UD1 Parameters'!$D$12*'5. UD1 Parameters'!B$27*0.000001 -> 0.09269995875 | O15: ='6. UD1 Assumptions'!G17*'5. UD1 Parameters'!$D$13*'5. UD1 Parameters'!B$27*0.000001 -> 0.0294462 | P15: ='6. UD1 Assumptions'!Z17*'5. UD1 Parameters'!$D$16*'5. UD1 Parameters'!B$27*0.000001 -> 0.3880905 | Q15: =(('6. UD1 Assumptions'!K17*'5. UD1 Parameters'!$D$20)+(('6. UD1 Assumptions'!R17)*'5. UD1 Parameters'!$D$22))*'5. UD1 Parameters'!B$27*0.000001 -> 2.630228632 | R15: ='6. UD1 Assumptions'!I17*'5. UD1 Parameters'!$D$25*'5. UD1 Parameters'!B$27*0.000001 -> 0.07392 | S15: 3.411493129 | U15: ='UD1 LS'!DU$4 -> 0.7082288459 | V15: ='UD1 LS'!DU$9 -> 2.650071744 | W15: ='6. UD1 Assumptions'!E17*'UD1 LS'!$FP$29*'UD1 LS'!$FQ$29*'5. UD1 Parameters'!$B$28*365*0.001*(44/28)*0.000001*(('UD1 LS'!$FI$29*'5. UD1 Parameters'!$C$59)+('UD1 LS'!$FK$29*'5. UD1 Parameters'!$E$59)) -> 0.119096844 | X15: ='6. UD1 Assumptions'!C17*'UD1 LS'!$FP$30*'UD1 LS'!$FQ$30*'5. UD1 Parameters'!$B$28*365*0.001*(44/28)*0.000001*(('UD1 LS'!$FI$30*'5. UD1 Parameters'!$C$60)+('UD1 LS'!$FK$30*'5. UD1 Parameters'!$E$60)) -> 0.9941534469 | Z15: ='UD1 LS'!$DP$39 -> 0.8481910048 | AA15: =(('6. UD1 Assumptions'!K17*'UD1 LS'!$FP$32*'UD1 LS'!$FQ$32)*'5. UD1 Parameters'!$H$62+((('6. UD1 Assumptions'!K17/50)*'UD1 LS'!$FP$33*'UD1 LS'!$FQ$33)+('6. UD1 Assumptions'!P17*'UD1 LS'!$FP$35*'UD1 LS'!$FQ$35)+('6. UD1 Assumptions'!M17*'UD1 LS'!$FP$34*'UD1 LS'!$FQ$34))*'5. UD1 Parameters'!$H$63)*'5. UD1 Parameters'!$B$28*365*0.001*0.000001*44/28 -> 3.795114412 | AC15: 9.114856297 | AE15: 29.72273493 | AH15: 2014 | AI15: ='UD1 Scenarios'!B15 -> 2.788842 | AJ15: ='UD1 Scenarios'!C15 -> 3.979969875 | AK15: ='UD1 Scenarios'!D15 -> 0.26982375 | AL15: ='UD1 Scenarios'!E15 -> 2.726469375 | AM15: ='UD1 Scenarios'!F15 -> 0.32319 | AN15: ='UD1 Scenarios'!G15 -> 0.3880905 | AO15: ='UD1 Scenarios'!H15 -> 6.72 | AP15: 17.1963855 | AR15: ='UD1 Scenarios'!K15 -> 0.060627 | AS15: ='UD1 Scenarios'!L15 -> 0.128386125 | AT15: ='UD1 Scenarios'!M15 -> 0.0080947125 | AU15: ='UD1 Scenarios'!N15 -> 0.09269995875 | AV15: ='UD1 Scenarios'!O15 -> 0.0294462 | AW15: ='UD1 Scenarios'!P15 -> 0.3880905 | AX15: ='UD1 Scenarios'!Q15 -> 2.630228632 | AY15: ='UD1 Scenarios'!R15 -> 0.07392 | AZ15: 3.411493129 | BB15: ='UD1 Scenarios'!U15 -> 0.7082288459 | BC15: ='UD1 Scenarios'!V15 -> 2.650071744 | BD15: ='UD1 Scenarios'!W15 -> 0.119096844 | BE15: ='UD1 Scenarios'!X15 -> 0.9941534469 | BG15: ='UD1 Scenarios'!Z15 -> 0.8481910048 | BH15: ='UD1 Scenarios'!AA15 -> 3.795114412 | BJ15: 9.114856297 | BK15: 29.72273493 | BN15: 2014 | BO15: 17.1963855 | BP15: 3.411493129 | BQ15: ='UD1 Scenarios'!BB15 -> 0.7082288459 | BR15: ='UD1 Scenarios'!BC15 -> 2.650071744 | BS15: ='UD1 Scenarios'!BD15 -> 0.119096844 | BT15: ='UD1 Scenarios'!BE15 -> 0.9941534469 | BV15: ='UD1 Scenarios'!BG15 -> 0.8481910048 | BW15: ='UD1 Scenarios'!BH15 -> 3.795114412 | BY15: =SUM(BQ15:BX15) -> 9.114856297 | BZ15: 29.72273493 | CE15: 20.396525 | CF15: 20.396525 | CG15: 33.60230542 | CH15: 33.60230542 | CI15: 33.60230542
A16: 2015 | B16: ='6. UD1 Assumptions'!T18*'5. UD1 Parameters'!$C$5*'5. UD1 Parameters'!B$27*0.000001 -> 2.8014 | C16: ='6. UD1 Assumptions'!V18*'5. UD1 Parameters'!$C$6*'5. UD1 Parameters'!B$27*0.000001 -> 3.9711 | D16: ='6. UD1 Assumptions'!E18*'5. UD1 Parameters'!$C$11*'5. UD1 Parameters'!B$27*0.000001 -> 0.273 | E16: ='6. UD1 Assumptions'!C18*'5. UD1 Parameters'!$C$12*'5. UD1 Parameters'!B$27*0.000001 -> 2.73 | F16: ='6. UD1 Assumptions'!G18*'5. UD1 Parameters'!$C$13*'5. UD1 Parameters'!B$27*0.000001 -> 0.32319 | G16: ='6. UD1 Assumptions'!Z18*'5. UD1 Parameters'!$C$16*'5. UD1 Parameters'!B$27*0.000001 -> 0.441 | H16: ='6. UD1 Assumptions'!I18*'5. UD1 Parameters'!$C$25*'5. UD1 Parameters'!B$27*0.000001 -> 6.72 | I16: 17.25969 | K16: ='6. UD1 Assumptions'!T18*'5. UD1 Parameters'!$D$5*'5. UD1 Parameters'!B$27*0.000001 -> 0.0609 | L16: ='6. UD1 Assumptions'!V18*'5. UD1 Parameters'!$D$6*'5. UD1 Parameters'!B$27*0.000001 -> 0.1281 | M16: ='6. UD1 Assumptions'!E18*'5. UD1 Parameters'!$D$11*'5. UD1 Parameters'!B$27*0.000001 -> 0.00819 | N16: ='6. UD1 Assumptions'!C18*'5. UD1 Parameters'!$D$12*'5. UD1 Parameters'!B$27*0.000001 -> 0.09282 | O16: ='6. UD1 Assumptions'!G18*'5. UD1 Parameters'!$D$13*'5. UD1 Parameters'!B$27*0.000001 -> 0.0294462 | P16: ='6. UD1 Assumptions'!Z18*'5. UD1 Parameters'!$D$16*'5. UD1 Parameters'!B$27*0.000001 -> 0.441 | Q16: =(('6. UD1 Assumptions'!K18*'5. UD1 Parameters'!$D$20)+('6. UD1 Assumptions'!R18*'5. UD1 Parameters'!$D$22))*'5. UD1 Parameters'!B$27*0.000001 -> 2.63928 | R16: ='6. UD1 Assumptions'!I18*'5. UD1 Parameters'!$D$25*'5. UD1 Parameters'!B$27*0.000001 -> 0.07392 | S16: 3.4736562 | U16: ='UD1 LS'!$EH$5 -> 0.7164564915 | V16: ='UD1 LS'!$EH$8 -> 3.249009157 | W16: ='6. UD1 Assumptions'!E18*'UD1 LS'!$FP$29*'UD1 LS'!$FQ$29*'5. UD1 Parameters'!$B$28*365*0.001*(44/28)*0.000001*(('UD1 LS'!$FI$29*'5. UD1 Parameters'!$C$59)+('UD1 LS'!$FK$29*'5. UD1 Parameters'!$E$59)) -> 0.1204988012 | X16: ='6. UD1 Assumptions'!C18*'UD1 LS'!$FP$30*'UD1 LS'!$FQ$30*'5. UD1 Parameters'!$B$28*365*0.001*(44/28)*0.000001*(('UD1 LS'!$FI$30*'5. UD1 Parameters'!$C$60)+('UD1 LS'!$FK$30*'5. UD1 Parameters'!$E$60)) -> 0.9954408198 | Z16: ='UD1 LS'!$EH$10 -> 1.738128547 | AA16: =(('6. UD1 Assumptions'!K18*'UD1 LS'!$FP$32*'UD1 LS'!$FQ$32)*'5. UD1 Parameters'!$H$62+((('6. UD1 Assumptions'!K18/50)*'UD1 LS'!$FP$33*'UD1 LS'!$FQ$33)+('6. UD1 Assumptions'!P18*'UD1 LS'!$FP$35*'UD1 LS'!$FQ$35)+('6. UD1 Assumptions'!M18*'UD1 LS'!$FP$34*'UD1 LS'!$FQ$34))*'5. UD1 Parameters'!$H$63)*'5. UD1 Parameters'!$B$28*365*0.001*0.000001*44/28 -> 3.766798642 | AC16: 10.58633246 | AE16: 31.31967866 | AH16: 2015 | AI16: ='6. UD1 Assumptions'!$T$46*'5. UD1 Parameters'!$C$5*'5. UD1 Parameters'!B$27*0.000001 -> 2.8014 | AJ16: ='6. UD1 Assumptions'!$V$46*'5. UD1 Parameters'!$C$6*'5. UD1 Parameters'!B$27*0.000001 -> 3.9711 | AK16: ='6. UD1 Assumptions'!$E$46*'5. UD1 Parameters'!$C$11*'5. UD1 Parameters'!B$27*0.000001 -> 0.273 | AL16: ='6. UD1 Assumptions'!$C$46*'5. UD1 Parameters'!$C$12*'5. UD1 Parameters'!B$27*0.000001 -> 2.73 | AM16: ='UD1 Scenarios'!F16 -> 0.32319 | AN16: ='6. UD1 Assumptions'!$Z$46*'5. UD1 Parameters'!$C$16*'5. UD1 Parameters'!B$27*0.000001 -> 0.441 | AO16: ='6. UD1 Assumptions'!$I$46*'5. UD1 Parameters'!$C$25*'5. UD1 Parameters'!B$27*0.000001 -> 6.72 | AP16: 17.25969 | AR16: ='6. UD1 Assumptions'!$T$46*'5. UD1 Parameters'!$D$5*'5. UD1 Parameters'!B$27*0.000001 -> 0.0609 | AS16: ='6. UD1 Assumptions'!$V$46*'5. UD1 Parameters'!$D$6*'5. UD1 Parameters'!B$27*0.000001 -> 0.1281 | AT16: ='6. UD1 Assumptions'!$E$46*'5. UD1 Parameters'!$D$11*'5. UD1 Parameters'!B$27*0.000001 -> 0.00819 | AU16: ='6. UD1 Assumptions'!$C$46*'5. UD1 Parameters'!$D$12*'5. UD1 Parameters'!B$27*0.000001 -> 0.09282 | AV16: ='UD1 Scenarios'!O16 -> 0.0294462 | AW16: ='6. UD1 Assumptions'!$Z$46*'5. UD1 Parameters'!$D$16*'5. UD1 Parameters'!B$27*0.000001 -> 0.441 | AX16: =(('6. UD1 Assumptions'!$K$46*'5. UD1 Parameters'!$D$20)+('6. UD1 Assumptions'!$R$46*'5. UD1 Parameters'!$D$22))*'5. UD1 Parameters'!B$27*0.000001 -> 2.63928 | AY16: ='6. UD1 Assumptions'!$I$46*'5. UD1 Parameters'!$D$25*'5. UD1 Parameters'!B$27*0.000001 -> 0.07392 | AZ16: 3.4736562 | BB16: ='UD1 LS'!$EH$16 -> 0.7164564915 | BC16: ='UD1 LS'!$EH$19 -> 3.249009157 | BD16: ='6. UD1 Assumptions'!$E$46*'UD1 LS'!$FP$29*'UD1 LS'!$FQ$29*'5. UD1 Parameters'!$B$28*365*0.001*(44/28)*0.000001*(('UD1 LS'!$FI$29*'5. UD1 Parameters'!$C$59)+('UD1 LS'!$FK$29*'5. UD1 Parameters'!$E$59)) -> 0.1204988012 | BE16: ='6. UD1 Assumptions'!$C$46*'UD1 LS'!$FP$30*'UD1 LS'!$FQ$30*'5. UD1 Parameters'!$B$28*365*0.001*(44/28)*0.000001*(('UD1 LS'!$FI$30*'5. UD1 Parameters'!$C$60)+('UD1 LS'!$FK$30*'5. UD1 Parameters'!$E$60)) -> 0.9954408198 | BG16: ='UD1 LS'!$EH$21 -> 1.738128547 | BH16: =(('6. UD1 Assumptions'!$K$46*'UD1 LS'!$FP$32*'UD1 LS'!$FQ$32)*'5. UD1 Parameters'!$H$62+(('UD1 LS'!EH$4*'UD1 LS'!$FP$33*'UD1 LS'!$FQ$33)+('6. UD1 Assumptions'!$P$46*'UD1 LS'!$FP$35*'UD1 LS'!$FQ$35)+('6. UD1 Assumptions'!$M$46*'UD1 LS'!$FP$34*'UD1 LS'!$FQ$34))*'5. UD1 Parameters'!$H$63)*'5. UD1 Parameters'!$B$28*365*0.001*0.000001*44/28 -> 3.454807125 | BJ16: 10.27434094 | BK16: 31.00768714 | BN16: 2015 | BO16: 17.25969 | BP16: 3.4736562 | BQ16: ='UD1 LS'!$EH$29 -> 0.7164564915 | BR16: ='UD1 LS'!$EH$32 -> 3.249009157 | BS16: ='UD1 Scenarios'!BD16 -> 0.1204988012 | BT16: ='UD1 Scenarios'!BE16 -> 0.9954408198 | BV16: ='UD1 LS'!$EH$34 -> 1.738128547 | BW16: ='UD1 Scenarios'!BH16 -> 3.454807125 | BY16: 10.27434094 | BZ16: 31.00768714 | CB16: =BZ16-BK16 -> 0 | CE16: 20.54725 | CF16: 20.54725 | CG16: 34.95680458 | CH16: 34.95680458 | CI16: 34.95680458
A17: 2016 | B17: ='6. UD1 Assumptions'!T19*'5. UD1 Parameters'!$C$5*'5. UD1 Parameters'!B$27*0.000001 -> 2.76276 | C17: ='6. UD1 Assumptions'!V19*'5. UD1 Parameters'!$C$6*'5. UD1 Parameters'!B$27*0.000001 -> 3.93204 | D17: ='6. UD1 Assumptions'!E19*'5. UD1 Parameters'!$C$11*'5. UD1 Parameters'!B$27*0.000001 -> 0.2751 | E17: ='6. UD1 Assumptions'!C19*'5. UD1 Parameters'!$C$12*'5. UD1 Parameters'!B$27*0.000001 -> 2.7195 | F17: ='6. UD1 Assumptions'!G19*'5. UD1 Parameters'!$C$13*'5. UD1 Parameters'!B$27*0.000001 -> 0.32319 | G17: ='6. UD1 Assumptions'!Z19*'5. UD1 Parameters'!$C$16*'5. UD1 Parameters'!B$27*0.000001 -> 0.4452 | H17: ='6. UD1 Assumptions'!I19*'5. UD1 Parameters'!$C$25*'5. UD1 Parameters'!B$27*0.000001 -> 6.636 | I17: 17.09379 | K17: ='6. UD1 Assumptions'!T19*'5. UD1 Parameters'!$D$5*'5. UD1 Parameters'!B$27*0.000001 -> 0.06006 | L17: ='6. UD1 Assumptions'!V19*'5. UD1 Parameters'!$D$6*'5. UD1 Parameters'!B$27*0.000001 -> 0.12684 | M17: ='6. UD1 Assumptions'!E19*'5. UD1 Parameters'!$D$11*'5. UD1 Parameters'!B$27*0.000001 -> 0.008253 | N17: ='6. UD1 Assumptions'!C19*'5. UD1 Parameters'!$D$12*'5. UD1 Parameters'!B$27*0.000001 -> 0.092463 | O17: ='6. UD1 Assumptions'!G19*'5. UD1 Parameters'!$D$13*'5. UD1 Parameters'!B$27*0.000001 -> 0.0294462 | P17: ='6. UD1 Assumptions'!Z19*'5. UD1 Parameters'!$D$16*'5. UD1 Parameters'!B$27*0.000001 -> 0.4452 | Q17: =(('6. UD1 Assumptions'!K19*'5. UD1 Parameters'!$D$20)+('6. UD1 Assumptions'!R19*'5. UD1 Parameters'!$D$22))*'5. UD1 Parameters'!B$27*0.000001 -> 2.659356 | R17: ='6. UD1 Assumptions'!I19*'5. UD1 Parameters'!$D$25*'5. UD1 Parameters'!B$27*0.000001 -> 0.072996 | S17: 3.4946142 | U17: ='UD1 LS'!$EH$5 -> 0.7164564915 | V17: ='UD1 LS'!$EH$8 -> 3.249009157 | W17: ='6. UD1 Assumptions'!E19*'UD1 LS'!$FP$29*'UD1 LS'!$FQ$29*'5. UD1 Parameters'!$B$28*365*0.001*(44/28)*0.000001*(('UD1 LS'!$FI$29*'5. UD1 Parameters'!$C$59)+('UD1 LS'!$FK$29*'5. UD1 Parameters'!$E$59)) -> 0.121425715 | X17: ='6. UD1 Assumptions'!C19*'UD1 LS'!$FP$30*'UD1 LS'!$FQ$30*'5. UD1 Parameters'!$B$28*365*0.001*(44/28)*0.000001*(('UD1 LS'!$FI$30*'5. UD1 Parameters'!$C$60)+('UD1 LS'!$FK$30*'5. UD1 Parameters'!$E$60)) -> 0.9916122013 | Z17: ='UD1 LS'!$EH$10 -> 1.738128547 | AA17: =(('6. UD1 Assumptions'!K19*'UD1 LS'!$FP$32*'UD1 LS'!$FQ$32)*'5. UD1 Parameters'!$H$62+((('6. UD1 Assumptions'!K19/50)*'UD1 LS'!$FP$33*'UD1 LS'!$FQ$33)+('6. UD1 Assumptions'!P19*'UD1 LS'!$FP$35*'UD1 LS'!$FQ$35)+('6. UD1 Assumptions'!M19*'UD1 LS'!$FP$34*'UD1 LS'!$FQ$34))*'5. UD1 Parameters'!$H$63)*'5. UD1 Parameters'!$B$28*365*0.001*0.000001*44/28 -> 3.796014047 | AC17: 10.61264616 | AE17: 31.20105036 | AH17: 2016 | AI17: ='6. UD1 Assumptions'!$T$46*'5. UD1 Parameters'!$C$5*'5. UD1 Parameters'!B$27*0.000001 -> 2.8014 | AJ17: ='6. UD1 Assumptions'!$V$46*'5. UD1 Parameters'!$C$6*'5. UD1 Parameters'!B$27*0.000001 -> 3.9711 | AK17: ='6. UD1 Assumptions'!$E$46*'5. UD1 Parameters'!$C$11*'5. UD1 Parameters'!B$27*0.000001 -> 0.273 | AL17: ='6. UD1 Assumptions'!$C$46*'5. UD1 Parameters'!$C$12*'5. UD1 Parameters'!B$27*0.000001 -> 2.73 | AM17: ='UD1 Scenarios'!F17 -> 0.32319 | AN17: ='6. UD1 Assumptions'!$Z$46*'5. UD1 Parameters'!$C$16*'5. UD1 Parameters'!B$27*0.000001 -> 0.441 | AO17: ='6. UD1 Assumptions'!$I$46*'5. UD1 Parameters'!$C$25*'5. UD1 Parameters'!B$27*0.000001 -> 6.72 | AP17: =SUM(AI17:AO17) -> 17.25969 | AR17: ='6. UD1 Assumptions'!$T$46*'5. UD1 Parameters'!$D$5*'5. UD1 Parameters'!B$27*0.000001 -> 0.0609 | AS17: ='6. UD1 Assumptions'!$V$46*'5. UD1 Parameters'!$D$6*'5. UD1 Parameters'!B$27*0.000001 -> 0.1281 | AT17: ='6. UD1 Assumptions'!$E$46*'5. UD1 Parameters'!$D$11*'5. UD1 Parameters'!B$27*0.000001 -> 0.00819 | AU17: ='6. UD1 Assumptions'!$C$46*'5. UD1 Parameters'!$D$12*'5. UD1 Parameters'!B$27*0.000001 -> 0.09282 | AV17: ='UD1 Scenarios'!O17 -> 0.0294462 | AW17: ='6. UD1 Assumptions'!$Z$46*'5. UD1 Parameters'!$D$16*'5. UD1 Parameters'!B$27*0.000001 -> 0.441 | AX17: =(('6. UD1 Assumptions'!$K$46*'5. UD1 Parameters'!$D$20)+('6. UD1 Assumptions'!$R$46*'5. UD1 Parameters'!$D$22))*'5. UD1 Parameters'!B$27*0.000001 -> 2.63928 | AY17: ='6. UD1 Assumptions'!$I$46*'5. UD1 Parameters'!$D$25*'5. UD1 Parameters'!B$27*0.000001 -> 0.07392 | AZ17: =SUM(AR17:AY17) -> 3.4736562 | BB17: ='UD1 LS'!$EH$16 -> 0.7164564915 | BC17: ='UD1 LS'!$EH$19 -> 3.249009157 | BD17: ='6. UD1 Assumptions'!$E$46*'UD1 LS'!$FP$29*'UD1 LS'!$FQ$29*'5. UD1 Parameters'!$B$28*365*0.001*(44/28)*0.000001*(('UD1 LS'!$FI$29*'5. UD1 Parameters'!$C$59)+('UD1 LS'!$FK$29*'5. UD1 Parameters'!$E$59)) -> 0.1204988012 | BE17: ='6. UD1 Assumptions'!$C$46*'UD1 LS'!$FP$30*'UD1 LS'!$FQ$30*'5. UD1 Parameters'!$B$28*365*0.001*(44/28)*0.000001*(('UD1 LS'!$FI$30*'5. UD1 Parameters'!$C$60)+('UD1 LS'!$FK$30*'5. UD1 Parameters'!$E$60)) -> 0.9954408198 | BG17: ='UD1 LS'!$EH$21 -> 1.738128547 | BH17: =(('6. UD1 Assumptions'!$K$46*'UD1 LS'!$FP$32*'UD1 LS'!$FQ$32)*'5. UD1 Parameters'!$H$62+(('UD1 LS'!EH$4*'UD1 LS'!$FP$33*'UD1 LS'!$FQ$33)+('6. UD1 Assumptions'!$P$46*'UD1 LS'!$FP$35*'UD1 LS'!$FQ$35)+('6. UD1 Assumptions'!$M$46*'UD1 LS'!$FP$34*'UD1 LS'!$FQ$34))*'5. UD1 Parameters'!$H$63)*'5. UD1 Parameters'!$B$28*365*0.001*0.000001*44/28 -> 3.454807125 | BJ17: =SUM(BB17:BI17) -> 10.27434094 | BK17: 31.00768714 | BN17: 2016 | BO17: 17.25969 | BP17: 3.4736562 | BQ17: ='UD1 LS'!$EH$29 -> 0.7164564915 | BR17: ='UD1 LS'!$EH$32 -> 3.249009157 | BS17: ='UD1 Scenarios'!BD17 -> 0.1204988012 | BT17: ='UD1 Scenarios'!BE17 -> 0.9954408198 | BV17: ='UD1 LS'!$EH$34 -> 1.738128547 | BW17: ='UD1 Scenarios'!BH17 -> 3.454807125 | BY17: =SUM(BQ17:BX17) -> 10.27434094 | BZ17: 31.00768714 | CE17: 20.54725 | CF17: 20.54725 | CG17: 34.95680458 | CH17: 34.95680458 | CI17: 34.95680458
A18: 2017 | B18: ='6. UD1 Assumptions'!T20*'5. UD1 Parameters'!$C$5*'5. UD1 Parameters'!B$27*0.000001 -> 2.72412 | C18: ='6. UD1 Assumptions'!V20*'5. UD1 Parameters'!$C$6*'5. UD1 Parameters'!B$27*0.000001 -> 3.89298 | D18: ='6. UD1 Assumptions'!E20*'5. UD1 Parameters'!$C$11*'5. UD1 Parameters'!B$27*0.000001 -> 0.2772 | E18: ='6. UD1 Assumptions'!C20*'5. UD1 Parameters'!$C$12*'5. UD1 Parameters'!B$27*0.000001 -> 2.709 | F18: ='6. UD1 Assumptions'!G20*'5. UD1 Parameters'!$C$13*'5. UD1 Parameters'!B$27*0.000001 -> 0.32319 | G18: ='6. UD1 Assumptions'!Z20*'5. UD1 Parameters'!$C$16*'5. UD1 Parameters'!B$27*0.000001 -> 0.4494 | H18: ='6. UD1 Assumptions'!I20*'5. UD1 Parameters'!$C$25*'5. UD1 Parameters'!B$27*0.000001 -> 6.552 | I18: 16.92789 | K18: ='6. UD1 Assumptions'!T20*'5. UD1 Parameters'!$D$5*'5. UD1 Parameters'!B$27*0.000001 -> 0.05922 | L18: ='6. UD1 Assumptions'!V20*'5. UD1 Parameters'!$D$6*'5. UD1 Parameters'!B$27*0.000001 -> 0.12558 | M18: ='6. UD1 Assumptions'!E20*'5. UD1 Parameters'!$D$11*'5. UD1 Parameters'!B$27*0.000001 -> 0.008316 | N18: ='6. UD1 Assumptions'!C20*'5. UD1 Parameters'!$D$12*'5. UD1 Parameters'!B$27*0.000001 -> 0.092106 | O18: ='6. UD1 Assumptions'!G20*'5. UD1 Parameters'!$D$13*'5. UD1 Parameters'!B$27*0.000001 -> 0.0294462 | P18: ='6. UD1 Assumptions'!Z20*'5. UD1 Parameters'!$D$16*'5. UD1 Parameters'!B$27*0.000001 -> 0.4494 | Q18: =(('6. UD1 Assumptions'!K20*'5. UD1 Parameters'!$D$20)+('6. UD1 Assumptions'!R20*'5. UD1 Parameters'!$D$22))*'5. UD1 Parameters'!B$27*0.000001 -> 2.679432 | R18: ='6. UD1 Assumptions'!I20*'5. UD1 Parameters'!$D$25*'5. UD1 Parameters'!B$27*0.000001 -> 0.072072 | S18: 3.5155722 | U18: ='UD1 LS'!$EH$5 -> 0.7164564915 | V18: ='UD1 LS'!$EH$8 -> 3.249009157 | W18: ='6. UD1 Assumptions'!E20*'UD1 LS'!$FP$29*'UD1 LS'!$FQ$29*'5. UD1 Parameters'!$B$28*365*0.001*(44/28)*0.000001*(('UD1 LS'!$FI$29*'5. UD1 Parameters'!$C$59)+('UD1 LS'!$FK$29*'5. UD1 Parameters'!$E$59)) -> 0.1223526289 | X18: ='6. UD1 Assumptions'!C20*'UD1 LS'!$FP$30*'UD1 LS'!$FQ$30*'5. UD1 Parameters'!$B$28*365*0.001*(44/28)*0.000001*(('UD1 LS'!$FI$30*'5. UD1 Parameters'!$C$60)+('UD1 LS'!$FK$30*'5. UD1 Parameters'!$E$60)) -> 0.9877835828 | Z18: ='UD1 LS'!$EH$10 -> 1.738128547 | AA18: =(('6. UD1 Assumptions'!K20*'UD1 LS'!$FP$32*'UD1 LS'!$FQ$32)*'5. UD1 Parameters'!$H$62+((('6. UD1 Assumptions'!K20/50)*'UD1 LS'!$FP$33*'UD1 LS'!$FQ$33)+('6. UD1 Assumptions'!P20*'UD1 LS'!$FP$35*'UD1 LS'!$FQ$35)+('6. UD1 Assumptions'!M20*'UD1 LS'!$FP$34*'UD1 LS'!$FQ$34))*'5. UD1 Parameters'!$H$63)*'5. UD1 Parameters'!$B$28*365*0.001*0.000001*44/28 -> 3.825229451 | AC18: 10.63895986 | AE18: 31.08242206 | AH18: 2017 | AI18: ='6. UD1 Assumptions'!$T$46*'5. UD1 Parameters'!$C$5*'5. UD1 Parameters'!B$27*0.000001 -> 2.8014 | AJ18: ='6. UD1 Assumptions'!$V$46*'5. UD1 Parameters'!$C$6*'5. UD1 Parameters'!B$27*0.000001 -> 3.9711 | AK18: ='6. UD1 Assumptions'!$E$46*'5. UD1 Parameters'!$C$11*'5. UD1 Parameters'!B$27*0.000001 -> 0.273 | AL18: ='6. UD1 Assumptions'!$C$46*'5. UD1 Parameters'!$C$12*'5. UD1 Parameters'!B$27*0.000001 -> 2.73 | AM18: ='UD1 Scenarios'!F18 -> 0.32319 | AN18: ='6. UD1 Assumptions'!$Z$46*'5. UD1 Parameters'!$C$16*'5. UD1 Parameters'!B$27*0.000001 -> 0.441 | AO18: ='6. UD1 Assumptions'!$I$46*'5. UD1 Parameters'!$C$25*'5. UD1 Parameters'!B$27*0.000001 -> 6.72 | AP18: 17.25969 | AR18: ='6. UD1 Assumptions'!$T$46*'5. UD1 Parameters'!$D$5*'5. UD1 Parameters'!B$27*0.000001 -> 0.0609 | AS18: ='6. UD1 Assumptions'!$V$46*'5. UD1 Parameters'!$D$6*'5. UD1 Parameters'!B$27*0.000001 -> 0.1281 | AT18: ='6. UD1 Assumptions'!$E$46*'5. UD1 Parameters'!$D$11*'5. UD1 Parameters'!B$27*0.000001 -> 0.00819 | AU18: ='6. UD1 Assumptions'!$C$46*'5. UD1 Parameters'!$D$12*'5. UD1 Parameters'!B$27*0.000001 -> 0.09282 | AV18: ='UD1 Scenarios'!O18 -> 0.0294462 | AW18: ='6. UD1 Assumptions'!$Z$46*'5. UD1 Parameters'!$D$16*'5. UD1 Parameters'!B$27*0.000001 -> 0.441 | AX18: =(('6. UD1 Assumptions'!$K$46*'5. UD1 Parameters'!$D$20)+('6. UD1 Assumptions'!$R$46*'5. UD1 Parameters'!$D$22))*'5. UD1 Parameters'!B$27*0.000001 -> 2.63928 | AY18: ='6. UD1 Assumptions'!$I$46*'5. UD1 Parameters'!$D$25*'5. UD1 Parameters'!B$27*0.000001 -> 0.07392 | AZ18: 3.4736562 | BB18: ='UD1 LS'!$EH$16 -> 0.7164564915 | BC18: ='UD1 LS'!$EH$19 -> 3.249009157 | BD18: ='6. UD1 Assumptions'!$E$46*'UD1 LS'!$FP$29*'UD1 LS'!$FQ$29*'5. UD1 Parameters'!$B$28*365*0.001*(44/28)*0.000001*(('UD1 LS'!$FI$29*'5. UD1 Parameters'!$C$59)+('UD1 LS'!$FK$29*'5. UD1 Parameters'!$E$59)) -> 0.1204988012 | BE18: ='6. UD1 Assumptions'!$C$46*'UD1 LS'!$FP$30*'UD1 LS'!$FQ$30*'5. UD1 Parameters'!$B$28*365*0.001*(44/28)*0.000001*(('UD1 LS'!$FI$30*'5. UD1 Parameters'!$C$60)+('UD1 LS'!$FK$30*'5. UD1 Parameters'!$E$60)) -> 0.9954408198 | BG18: ='UD1 LS'!$EH$21 -> 1.738128547 | BH18: =(('6. UD1 Assumptions'!$K$46*'UD1 LS'!$FP$32*'UD1 LS'!$FQ$32)*'5. UD1 Parameters'!$H$62+(('UD1 LS'!EH$4*'UD1 LS'!$FP$33*'UD1 LS'!$FQ$33)+('6. UD1 Assumptions'!$P$46*'UD1 LS'!$FP$35*'UD1 LS'!$FQ$35)+('6. UD1 Assumptions'!$M$46*'UD1 LS'!$FP$34*'UD1 LS'!$FQ$34))*'5. UD1 Parameters'!$H$63)*'5. UD1 Parameters'!$B$28*365*0.001*0.000001*44/28 -> 3.454807125 | BJ18: 10.27434094 | BK18: 31.00768714 | BN18: 2017 | BO18: 17.25969 | BP18: 3.4736562 | BQ18: ='UD1 LS'!$EH$29 -> 0.7164564915 | BR18: ='UD1 LS'!$EH$32 -> 3.249009157 | BS18: ='UD1 Scenarios'!BD18 -> 0.1204988012 | BT18: ='UD1 Scenarios'!BE18 -> 0.9954408198 | BV18: ='UD1 LS'!$EH$34 -> 1.738128547 | BW18: ='UD1 Scenarios'!BH18 -> 3.454807125 | BY18: 10.27434094 | BZ18: 31.00768714 | CE18: 20.54725 | CF18: 20.54725 | CG18: 34.95680458 | CH18: 34.95680458 | CI18: 34.95680458
A19: 2018 | B19: ='6. UD1 Assumptions'!T21*'5. UD1 Parameters'!$C$5*'5. UD1 Parameters'!B$27*0.000001 -> 2.68548 | C19: ='6. UD1 Assumptions'!V21*'5. UD1 Parameters'!$C$6*'5. UD1 Parameters'!B$27*0.000001 -> 3.85392 | D19: ='6. UD1 Assumptions'!E21*'5. UD1 Parameters'!$C$11*'5. UD1 Parameters'!B$27*0.000001 -> 0.2793 | E19: ='6. UD1 Assumptions'!C21*'5. UD1 Parameters'!$C$12*'5. UD1 Parameters'!B$27*0.000001 -> 2.6985 | F19: ='6. UD1 Assumptions'!G21*'5. UD1 Parameters'!$C$13*'5. UD1 Parameters'!B$27*0.000001 -> 0.32319 | G19: ='6. UD1 Assumptions'!Z21*'5. UD1 Parameters'!$C$16*'5. UD1 Parameters'!B$27*0.000001 -> 0.4536 | H19: ='6. UD1 Assumptions'!I21*'5. UD1 Parameters'!$C$25*'5. UD1 Parameters'!B$27*0.000001 -> 6.468 | I19: 16.76199 | K19: ='6. UD1 Assumptions'!T21*'5. UD1 Parameters'!$D$5*'5. UD1 Parameters'!B$27*0.000001 -> 0.05838 | L19: ='6. UD1 Assumptions'!V21*'5. UD1 Parameters'!$D$6*'5. UD1 Parameters'!B$27*0.000001 -> 0.12432 | M19: ='6. UD1 Assumptions'!E21*'5. UD1 Parameters'!$D$11*'5. UD1 Parameters'!B$27*0.000001 -> 0.008379 | N19: ='6. UD1 Assumptions'!C21*'5. UD1 Parameters'!$D$12*'5. UD1 Parameters'!B$27*0.000001 -> 0.091749 | O19: ='6. UD1 Assumptions'!G21*'5. UD1 Parameters'!$D$13*'5. UD1 Parameters'!B$27*0.000001 -> 0.0294462 | P19: ='6. UD1 Assumptions'!Z21*'5. UD1 Parameters'!$D$16*'5. UD1 Parameters'!B$27*0.000001 -> 0.4536 | Q19: =(('6. UD1 Assumptions'!K21*'5. UD1 Parameters'!$D$20)+('6. UD1 Assumptions'!R21*'5. UD1 Parameters'!$D$22))*'5. UD1 Parameters'!B$27*0.000001 -> 2.699508 | R19: ='6. UD1 Assumptions'!I21*'5. UD1 Parameters'!$D$25*'5. UD1 Parameters'!B$27*0.000001 -> 0.071148 | S19: 3.5365302 | U19: ='UD1 LS'!$EH$5 -> 0.7164564915 | V19: ='UD1 LS'!$EH$8 -> 3.249009157 | W19: ='6. UD1 Assumptions'!E21*'UD1 LS'!$FP$29*'UD1 LS'!$FQ$29*'5. UD1 Parameters'!$B$28*365*0.001*(44/28)*0.000001*(('UD1 LS'!$FI$29*'5. UD1 Parameters'!$C$59)+('UD1 LS'!$FK$29*'5. UD1 Parameters'!$E$59)) -> 0.1232795427 | X19: ='6. UD1 Assumptions'!C21*'UD1 LS'!$FP$30*'UD1 LS'!$FQ$30*'5. UD1 Parameters'!$B$28*365*0.001*(44/28)*0.000001*(('UD1 LS'!$FI$30*'5. UD1 Parameters'!$C$60)+('UD1 LS'!$FK$30*'5. UD1 Parameters'!$E$60)) -> 0.9839549642 | Z19: ='UD1 LS'!$EH$10 -> 1.738128547 | AA19: =(('6. UD1 Assumptions'!K21*'UD1 LS'!$FP$32*'UD1 LS'!$FQ$32)*'5. UD1 Parameters'!$H$62+((('6. UD1 Assumptions'!K21/50)*'UD1 LS'!$FP$33*'UD1 LS'!$FQ$33)+('6. UD1 Assumptions'!P21*'UD1 LS'!$FP$35*'UD1 LS'!$FQ$35)+('6. UD1 Assumptions'!M21*'UD1 LS'!$FP$34*'UD1 LS'!$FQ$34))*'5. UD1 Parameters'!$H$63)*'5. UD1 Parameters'!$B$28*365*0.001*0.000001*44/28 -> 3.854444856 | AC19: 10.66527356 | AE19: 30.96379376 | AH19: 2018 | AI19: ='6. UD1 Assumptions'!$T$46*'5. UD1 Parameters'!$C$5*'5. UD1 Parameters'!B$27*0.000001 -> 2.8014 | AJ19: ='6. UD1 Assumptions'!$V$46*'5. UD1 Parameters'!$C$6*'5. UD1 Parameters'!B$27*0.000001 -> 3.9711 | AK19: ='6. UD1 Assumptions'!$E$46*'5. UD1 Parameters'!$C$11*'5. UD1 Parameters'!B$27*0.000001 -> 0.273 | AL19: ='6. UD1 Assumptions'!$C$46*'5. UD1 Parameters'!$C$12*'5. UD1 Parameters'!B$27*0.000001 -> 2.73 | AM19: ='UD1 Scenarios'!F19 -> 0.32319 | AN19: ='6. UD1 Assumptions'!$Z$46*'5. UD1 Parameters'!$C$16*'5. UD1 Parameters'!B$27*0.000001 -> 0.441 | AO19: ='6. UD1 Assumptions'!$I$46*'5. UD1 Parameters'!$C$25*'5. UD1 Parameters'!B$27*0.000001 -> 6.72 | AP19: 17.25969 | AR19: ='6. UD1 Assumptions'!$T$46*'5. UD1 Parameters'!$D$5*'5. UD1 Parameters'!B$27*0.000001 -> 0.0609 | AS19: ='6. UD1 Assumptions'!$V$46*'5. UD1 Parameters'!$D$6*'5. UD1 Parameters'!B$27*0.000001 -> 0.1281 | AT19: ='6. UD1 Assumptions'!$E$46*'5. UD1 Parameters'!$D$11*'5. UD1 Parameters'!B$27*0.000001 -> 0.00819 | AU19: ='6. UD1 Assumptions'!$C$46*'5. UD1 Parameters'!$D$12*'5. UD1 Parameters'!B$27*0.000001 -> 0.09282 | AV19: ='UD1 Scenarios'!O19 -> 0.0294462 | AW19: ='6. UD1 Assumptions'!$Z$46*'5. UD1 Parameters'!$D$16*'5. UD1 Parameters'!B$27*0.000001 -> 0.441 | AX19: =(('6. UD1 Assumptions'!$K$46*'5. UD1 Parameters'!$D$20)+('6. UD1 Assumptions'!$R$46*'5. UD1 Parameters'!$D$22))*'5. UD1 Parameters'!B$27*0.000001 -> 2.63928 | AY19: ='6. UD1 Assumptions'!$I$46*'5. UD1 Parameters'!$D$25*'5. UD1 Parameters'!B$27*0.000001 -> 0.07392 | AZ19: 3.4736562 | BB19: ='UD1 LS'!$EH$16 -> 0.7164564915 | BC19: ='UD1 LS'!$EH$19 -> 3.249009157 | BD19: ='6. UD1 Assumptions'!$E$46*'UD1 LS'!$FP$29*'UD1 LS'!$FQ$29*'5. UD1 Parameters'!$B$28*365*0.001*(44/28)*0.000001*(('UD1 LS'!$FI$29*'5. UD1 Parameters'!$C$59)+('UD1 LS'!$FK$29*'5. UD1 Parameters'!$E$59)) -> 0.1204988012 | BE19: ='6. UD1 Assumptions'!$C$46*'UD1 LS'!$FP$30*'UD1 LS'!$FQ$30*'5. UD1 Parameters'!$B$28*365*0.001*(44/28)*0.000001*(('UD1 LS'!$FI$30*'5. UD1 Parameters'!$C$60)+('UD1 LS'!$FK$30*'5. UD1 Parameters'!$E$60)) -> 0.9954408198 | BG19: ='UD1 LS'!$EH$21 -> 1.738128547 | BH19: =(('6. UD1 Assumptions'!$K$46*'UD1 LS'!$FP$32*'UD1 LS'!$FQ$32)*'5. UD1 Parameters'!$H$62+(('UD1 LS'!EH$4*'UD1 LS'!$FP$33*'UD1 LS'!$FQ$33)+('6. UD1 Assumptions'!$P$46*'UD1 LS'!$FP$35*'UD1 LS'!$FQ$35)+('6. UD1 Assumptions'!$M$46*'UD1 LS'!$FP$34*'UD1 LS'!$FQ$34))*'5. UD1 Parameters'!$H$63)*'5. UD1 Parameters'!$B$28*365*0.001*0.000001*44/28 -> 3.454807125 | BJ19: 10.27434094 | BK19: 31.00768714 | BN19: 2018 | BO19: 17.25969 | BP19: 3.4736562 | BQ19: ='UD1 LS'!$EH$29 -> 0.7164564915 | BR19: ='UD1 LS'!$EH$32 -> 3.249009157 | BS19: ='UD1 Scenarios'!BD19 -> 0.1204988012 | BT19: ='UD1 Scenarios'!BE19 -> 0.9954408198 | BV19: ='UD1 LS'!$EH$34 -> 1.738128547 | BW19: ='UD1 Scenarios'!BH19 -> 3.454807125 | BY19: 10.27434094 | BZ19: 31.00768714 | CE19: 20.54725 | CF19: 20.54725 | CG19: 34.95680458 | CH19: 34.95680458 | CI19: 34.95680458
A20: 2019 | B20: ='6. UD1 Assumptions'!T22*'5. UD1 Parameters'!$C$5*'5. UD1 Parameters'!B$27*0.000001 -> 2.64684 | C20: ='6. UD1 Assumptions'!V22*'5. UD1 Parameters'!$C$6*'5. UD1 Parameters'!B$27*0.000001 -> 3.81486 | D20: ='6. UD1 Assumptions'!E22*'5. UD1 Parameters'!$C$11*'5. UD1 Parameters'!B$27*0.000001 -> 0.2814 | E20: ='6. UD1 Assumptions'!C22*'5. UD1 Parameters'!$C$12*'5. UD1 Parameters'!B$27*0.000001 -> 2.688 | F20: ='6. UD1 Assumptions'!G22*'5. UD1 Parameters'!$C$13*'5. UD1 Parameters'!B$27*0.000001 -> 0.32319 | G20: ='6. UD1 Assumptions'!Z22*'5. UD1 Parameters'!$C$16*'5. UD1 Parameters'!B$27*0.000001 -> 0.4578 | H20: ='6. UD1 Assumptions'!I22*'5. UD1 Parameters'!$C$25*'5. UD1 Parameters'!B$27*0.000001 -> 6.384 | I20: 16.59609 | K20: ='6. UD1 Assumptions'!T22*'5. UD1 Parameters'!$D$5*'5. UD1 Parameters'!B$27*0.000001 -> 0.05754 | L20: ='6. UD1 Assumptions'!V22*'5. UD1 Parameters'!$D$6*'5. UD1 Parameters'!B$27*0.000001 -> 0.12306 | M20: ='6. UD1 Assumptions'!E22*'5. UD1 Parameters'!$D$11*'5. UD1 Parameters'!B$27*0.000001 -> 0.008442 | N20: ='6. UD1 Assumptions'!C22*'5. UD1 Parameters'!$D$12*'5. UD1 Parameters'!B$27*0.000001 -> 0.091392 | O20: ='6. UD1 Assumptions'!G22*'5. UD1 Parameters'!$D$13*'5. UD1 Parameters'!B$27*0.000001 -> 0.0294462 | P20: ='6. UD1 Assumptions'!Z22*'5. UD1 Parameters'!$D$16*'5. UD1 Parameters'!B$27*0.000001 -> 0.4578 | Q20: =(('6. UD1 Assumptions'!K22*'5. UD1 Parameters'!$D$20)+('6. UD1 Assumptions'!R22*'5. UD1 Parameters'!$D$22))*'5. UD1 Parameters'!B$27*0.000001 -> 2.719584 | R20: ='6. UD1 Assumptions'!I22*'5. UD1 Parameters'!$D$25*'5. UD1 Parameters'!B$27*0.000001 -> 0.070224 | S20: 3.5574882 | U20: ='UD1 LS'!$EH$5 -> 0.7164564915 | V20: ='UD1 LS'!$EH$8 -> 3.249009157 | W20: ='6. UD1 Assumptions'!E22*'UD1 LS'!$FP$29*'UD1 LS'!$FQ$29*'5. UD1 Parameters'!$B$28*365*0.001*(44/28)*0.000001*(('UD1 LS'!$FI$29*'5. UD1 Parameters'!$C$59)+('UD1 LS'!$FK$29*'5. UD1 Parameters'!$E$59)) -> 0.1242064566 | X20: ='6. UD1 Assumptions'!C22*'UD1 LS'!$FP$30*'UD1 LS'!$FQ$30*'5. UD1 Parameters'!$B$28*365*0.001*(44/28)*0.000001*(('UD1 LS'!$FI$30*'5. UD1 Parameters'!$C$60)+('UD1 LS'!$FK$30*'5. UD1 Parameters'!$E$60)) -> 0.9801263457 | Z20: ='UD1 LS'!$EH$10 -> 1.738128547 | AA20: =(('6. UD1 Assumptions'!K22*'UD1 LS'!$FP$32*'UD1 LS'!$FQ$32)*'5. UD1 Parameters'!$H$62+((('6. UD1 Assumptions'!K22/50)*'UD1 LS'!$FP$33*'UD1 LS'!$FQ$33)+('6. UD1 Assumptions'!P22*'UD1 LS'!$FP$35*'UD1 LS'!$FQ$35)+('6. UD1 Assumptions'!M22*'UD1 LS'!$FP$34*'UD1 LS'!$FQ$34))*'5. UD1 Parameters'!$H$63)*'5. UD1 Parameters'!$B$28*365*0.001*0.000001*44/28 -> 3.88366026 | AC20: 10.69158726 | AE20: 30.84516546 | AH20: 2019 | AI20: ='6. UD1 Assumptions'!$T$46*'5. UD1 Parameters'!$C$5*'5. UD1 Parameters'!B$27*0.000001 -> 2.8014 | AJ20: ='6. UD1 Assumptions'!$V$46*'5. UD1 Parameters'!$C$6*'5. UD1 Parameters'!B$27*0.000001 -> 3.9711 | AK20: ='6. UD1 Assumptions'!$E$46*'5. UD1 Parameters'!$C$11*'5. UD1 Parameters'!B$27*0.000001 -> 0.273 | AL20: ='6. UD1 Assumptions'!$C$46*'5. UD1 Parameters'!$C$12*'5. UD1 Parameters'!B$27*0.000001 -> 2.73 | AM20: ='UD1 Scenarios'!F20 -> 0.32319 | AN20: ='6. UD1 Assumptions'!$Z$46*'5. UD1 Parameters'!$C$16*'5. UD1 Parameters'!B$27*0.000001 -> 0.441 | AO20: ='6. UD1 Assumptions'!$I$46*'5. UD1 Parameters'!$C$25*'5. UD1 Parameters'!B$27*0.000001 -> 6.72 | AP20: 17.25969 | AR20: ='6. UD1 Assumptions'!$T$46*'5. UD1 Parameters'!$D$5*'5. UD1 Parameters'!B$27*0.000001 -> 0.0609 | AS20: ='6. UD1 Assumptions'!$V$46*'5. UD1 Parameters'!$D$6*'5. UD1 Parameters'!B$27*0.000001 -> 0.1281 | AT20: ='6. UD1 Assumptions'!$E$46*'5. UD1 Parameters'!$D$11*'5. UD1 Parameters'!B$27*0.000001 -> 0.00819 | AU20: ='6. UD1 Assumptions'!$C$46*'5. UD1 Parameters'!$D$12*'5. UD1 Parameters'!B$27*0.000001 -> 0.09282 | AV20: ='UD1 Scenarios'!O20 -> 0.0294462 | AW20: ='6. UD1 Assumptions'!$Z$46*'5. UD1 Parameters'!$D$16*'5. UD1 Parameters'!B$27*0.000001 -> 0.441 | AX20: =(('6. UD1 Assumptions'!$K$46*'5. UD1 Parameters'!$D$20)+('6. UD1 Assumptions'!$R$46*'5. UD1 Parameters'!$D$22))*'5. UD1 Parameters'!B$27*0.000001 -> 2.63928 | AY20: ='6. UD1 Assumptions'!$I$46*'5. UD1 Parameters'!$D$25*'5. UD1 Parameters'!B$27*0.000001 -> 0.07392 | AZ20: 3.4736562 | BB20: ='UD1 LS'!$EH$16 -> 0.7164564915 | BC20: ='UD1 LS'!$EH$19 -> 3.249009157 | BD20: ='6. UD1 Assumptions'!$E$46*'UD1 LS'!$FP$29*'UD1 LS'!$FQ$29*'5. UD1 Parameters'!$B$28*365*0.001*(44/28)*0.000001*(('UD1 LS'!$FI$29*'5. UD1 Parameters'!$C$59)+('UD1 LS'!$FK$29*'5. UD1 Parameters'!$E$59)) -> 0.1204988012 | BE20: ='6. UD1 Assumptions'!$C$46*'UD1 LS'!$FP$30*'UD1 LS'!$FQ$30*'5. UD1 Parameters'!$B$28*365*0.001*(44/28)*0.000001*(('UD1 LS'!$FI$30*'5. UD1 Parameters'!$C$60)+('UD1 LS'!$FK$30*'5. UD1 Parameters'!$E$60)) -> 0.9954408198 | BG20: ='UD1 LS'!$EH$21 -> 1.738128547 | BH20: =(('6. UD1 Assumptions'!$K$46*'UD1 LS'!$FP$32*'UD1 LS'!$FQ$32)*'5. UD1 Parameters'!$H$62+(('UD1 LS'!EH$4*'UD1 LS'!$FP$33*'UD1 LS'!$FQ$33)+('6. UD1 Assumptions'!$P$46*'UD1 LS'!$FP$35*'UD1 LS'!$FQ$35)+('6. UD1 Assumptions'!$M$46*'UD1 LS'!$FP$34*'UD1 LS'!$FQ$34))*'5. UD1 Parameters'!$H$63)*'5. UD1 Parameters'!$B$28*365*0.001*0.000001*44/28 -> 3.454807125 | BJ20: 10.27434094 | BK20: 31.00768714 | BN20: 2019 | BO20: 17.25969 | BP20: 3.4736562 | BQ20: ='UD1 LS'!$EH$29 -> 0.7164564915 | BR20: ='UD1 LS'!$EH$32 -> 3.249009157 | BS20: ='UD1 Scenarios'!BD20 -> 0.1204988012 | BT20: ='UD1 Scenarios'!BE20 -> 0.9954408198 | BV20: ='UD1 LS'!$EH$34 -> 1.738128547 | BW20: ='UD1 Scenarios'!BH20 -> 3.454807125 | BY20: 10.27434094 | BZ20: 31.00768714 | CE20: 20.54725 | CF20: 20.54725 | CG20: 34.95680458 | CH20: 34.95680458 | CI20: 34.95680458
A21: 2020 | B21: ='6. UD1 Assumptions'!T23*'5. UD1 Parameters'!$C$5*'5. UD1 Parameters'!B$27*0.000001 -> 2.6082 | C21: ='6. UD1 Assumptions'!V23*'5. UD1 Parameters'!$C$6*'5. UD1 Parameters'!B$27*0.000001 -> 3.7758 | D21: ='6. UD1 Assumptions'!E23*'5. UD1 Parameters'!$C$11*'5. UD1 Parameters'!B$27*0.000001 -> 0.2835 | E21: ='6. UD1 Assumptions'!C23*'5. UD1 Parameters'!$C$12*'5. UD1 Parameters'!B$27*0.000001 -> 2.6775 | F21: ='6. UD1 Assumptions'!G23*'5. UD1 Parameters'!$C$13*'5. UD1 Parameters'!B$27*0.000001 -> 0.32319 | G21: ='6. UD1 Assumptions'!Z23*'5. UD1 Parameters'!$C$16*'5. UD1 Parameters'!B$27*0.000001 -> 0.462 | H21: ='6. UD1 Assumptions'!I23*'5. UD1 Parameters'!$C$25*'5. UD1 Parameters'!B$27*0.000001 -> 6.3 | I21: 16.43019 | K21: ='6. UD1 Assumptions'!T23*'5. UD1 Parameters'!$D$5*'5. UD1 Parameters'!B$27*0.000001 -> 0.0567 | L21: ='6. UD1 Assumptions'!V23*'5. UD1 Parameters'!$D$6*'5. UD1 Parameters'!B$27*0.000001 -> 0.1218 | M21: ='6. UD1 Assumptions'!E23*'5. UD1 Parameters'!$D$11*'5. UD1 Parameters'!B$27*0.000001 -> 0.008505 | N21: ='6. UD1 Assumptions'!C23*'5. UD1 Parameters'!$D$12*'5. UD1 Parameters'!B$27*0.000001 -> 0.091035 | O21: ='6. UD1 Assumptions'!G23*'5. UD1 Parameters'!$D$13*'5. UD1 Parameters'!B$27*0.000001 -> 0.0294462 | P21: ='6. UD1 Assumptions'!Z23*'5. UD1 Parameters'!$D$16*'5. UD1 Parameters'!B$27*0.000001 -> 0.462 | Q21: =(('6. UD1 Assumptions'!K23*'5. UD1 Parameters'!$D$20)+('6. UD1 Assumptions'!R23*'5. UD1 Parameters'!$D$22))*'5. UD1 Parameters'!B$27*0.000001 -> 2.73966 | R21: ='6. UD1 Assumptions'!I23*'5. UD1 Parameters'!$D$25*'5. UD1 Parameters'!B$27*0.000001 -> 0.0693 | S21: 3.5784462 | U21: ='UD1 LS'!$EI$5 -> 0.6670456989 | V21: ='UD1 LS'!$EI$8 -> 3.336725791 | W21: ='6. UD1 Assumptions'!E23*'UD1 LS'!$FP$29*'UD1 LS'!$FQ$29*'5. UD1 Parameters'!$B$28*365*0.001*(44/28)*0.000001*(('UD1 LS'!$FI$29*'5. UD1 Parameters'!$C$59)+('UD1 LS'!$FK$29*'5. UD1 Parameters'!$E$59)) -> 0.1251333705 | X21: ='6. UD1 Assumptions'!C23*'UD1 LS'!$FP$30*'UD1 LS'!$FQ$30*'5. UD1 Parameters'!$B$28*365*0.001*(44/28)*0.000001*(('UD1 LS'!$FI$30*'5. UD1 Parameters'!$C$60)+('UD1 LS'!$FK$30*'5. UD1 Parameters'!$E$60)) -> 0.9762977272 | Z21: ='UD1 LS'!$EI$10 -> 1.820896573 | AA21: =(('6. UD1 Assumptions'!K23*'UD1 LS'!$FP$32*'UD1 LS'!$FQ$32)*'5. UD1 Parameters'!$H$62+((('6. UD1 Assumptions'!K23/50)*'UD1 LS'!$FP$33*'UD1 LS'!$FQ$33)+('6. UD1 Assumptions'!P23*'UD1 LS'!$FP$35*'UD1 LS'!$FQ$35)+('6. UD1 Assumptions'!M23*'UD1 LS'!$FP$34*'UD1 LS'!$FQ$34))*'5. UD1 Parameters'!$H$63)*'5. UD1 Parameters'!$B$28*365*0.001*0.000001*44/28 -> 3.912875664 | AC21: 10.83897483 | AE21: 30.84761103 | AH21: 2020 | AI21: ='6. UD1 Assumptions'!T51*'5. UD1 Parameters'!$C$5*'5. UD1 Parameters'!B$27*0.000001 -> 2.898 | AJ21: ='6. UD1 Assumptions'!V51*'5. UD1 Parameters'!$C$6*'5. UD1 Parameters'!B$27*0.000001 -> 4.1013 | AK21: ='6. UD1 Assumptions'!E51*'5. UD1 Parameters'!$C$11*'5. UD1 Parameters'!B$27*0.000001 -> 0.315 | AL21: ='6. UD1 Assumptions'!C51*'5. UD1 Parameters'!$C$12*'5. UD1 Parameters'!B$27*0.000001 -> 2.8035 | AM21: ='UD1 Scenarios'!F21 -> 0.32319 | AN21: ='6. UD1 Assumptions'!Z51*'5. UD1 Parameters'!$C$16*'5. UD1 Parameters'!B$27*0.000001 -> 0.462 | AO21: ='6. UD1 Assumptions'!I51*'5. UD1 Parameters'!$C$25*'5. UD1 Parameters'!B$27*0.000001 -> 7.14 | AP21: 18.04299 | AR21: ='6. UD1 Assumptions'!T51*'5. UD1 Parameters'!$D$5*'5. UD1 Parameters'!B$27*0.000001 -> 0.063 | AS21: ='6. UD1 Assumptions'!V51*'5. UD1 Parameters'!$D$6*'5. UD1 Parameters'!B$27*0.000001 -> 0.1323 | AT21: ='6. UD1 Assumptions'!E51*'5. UD1 Parameters'!$D$11*'5. UD1 Parameters'!B$27*0.000001 -> 0.00945 | AU21: ='6. UD1 Assumptions'!C51*'5. UD1 Parameters'!$D$12*'5. UD1 Parameters'!B$27*0.000001 -> 0.095319 | AV21: ='UD1 Scenarios'!O21 -> 0.0294462 | AW21: ='6. UD1 Assumptions'!Z51*'5. UD1 Parameters'!$D$16*'5. UD1 Parameters'!B$27*0.000001 -> 0.462 | AX21: =(('6. UD1 Assumptions'!$K51*'5. UD1 Parameters'!$D$20)+('6. UD1 Assumptions'!$R51*'5. UD1 Parameters'!$D$22))*'5. UD1 Parameters'!B$27*0.000001 -> 2.73966 | AY21: ='6. UD1 Assumptions'!I51*'5. UD1 Parameters'!$D$25*'5. UD1 Parameters'!B$27*0.000001 -> 0.07854 | AZ21: 3.6097152 | BB21: ='UD1 LS'!$EI$16 -> 0.7187024366 | BC21: ='UD1 LS'!$EI$19 -> 3.374906858 | BD21: ='6. UD1 Assumptions'!E51*'UD1 LS'!$FP$29*'UD1 LS'!$FQ$29*'5. UD1 Parameters'!$B$28*365*0.001*(44/28)*0.000001*(('UD1 LS'!$FI$29*'5. UD1 Parameters'!$C$59)+('UD1 LS'!$FK$29*'5. UD1 Parameters'!$E$59)) -> 0.1390370783 | BE21: ='6. UD1 Assumptions'!C51*'UD1 LS'!$FP$30*'UD1 LS'!$FQ$30*'5. UD1 Parameters'!$B$28*365*0.001*(44/28)*0.000001*(('UD1 LS'!$FI$30*'5. UD1 Parameters'!$C$60)+('UD1 LS'!$FK$30*'5. UD1 Parameters'!$E$60)) -> 1.02224115 | BG21: ='UD1 LS'!$EI$21 -> 1.820896573 | BH21: =(('6. UD1 Assumptions'!$K51*'UD1 LS'!$FP$32*'UD1 LS'!$FQ$32)*'5. UD1 Parameters'!$H$62+(('UD1 LS'!EH$4*'UD1 LS'!$FP$33*'UD1 LS'!$FQ$33)+('6. UD1 Assumptions'!$P51*'UD1 LS'!$FP$35*'UD1 LS'!$FQ$35)+('6. UD1 Assumptions'!$M51*'UD1 LS'!$FP$34*'UD1 LS'!$FQ$34))*'5. UD1 Parameters'!$H$63)*'5. UD1 Parameters'!$B$28*365*0.001*0.000001*44/28 -> 3.589110882 | BJ21: 10.66489498 | BK21: 32.31760018 | BL21: =AP21/BK21% -> 55.83022842 | BN21: 2020 | BO21: 18.04299 | BP21: 3.6097152 | BQ21: ='UD1 LS'!$EI$29 -> 0.7411618877 | BR21: ='UD1 LS'!$EI$32 -> 3.398489282 | BS21: ='UD1 Scenarios'!BD21 -> 0.1390370783 | BT21: ='UD1 Scenarios'!BE21 -> 1.02224115 | BV21: ='UD1 LS'!$EI$34 -> 1.820896573 | BW21: ='UD1 Scenarios'!BH21 -> 3.589110882 | BY21: 10.71093685 | BZ21: 32.36364205 | CB21: =BZ21-BK21 -> 0.04604187484 | CE21: 19.55975 | CF21: 21.47975 | CG21: 34.33491934 | CH21: 36.44182927 | CI21: 36.48787115
A22: 2025 | B22: ='6. UD1 Assumptions'!T24*'5. UD1 Parameters'!$C$5*'5. UD1 Parameters'!B$27*0.000001 -> 2.415 | C22: ='6. UD1 Assumptions'!V24*'5. UD1 Parameters'!$C$6*'5. UD1 Parameters'!B$27*0.000001 -> 3.6456 | D22: ='6. UD1 Assumptions'!E24*'5. UD1 Parameters'!$C$11*'5. UD1 Parameters'!B$27*0.000001 -> 0.2835 | E22: ='6. UD1 Assumptions'!C24*'5. UD1 Parameters'!$C$12*'5. UD1 Parameters'!B$27*0.000001 -> 2.6775 | F22: ='6. UD1 Assumptions'!G24*'5. UD1 Parameters'!$C$13*'5. UD1 Parameters'!B$27*0.000001 -> 0.32319 | G22: ='6. UD1 Assumptions'!Z24*'5. UD1 Parameters'!$C$16*'5. UD1 Parameters'!B$27*0.000001 -> 0.462 | H22: ='6. UD1 Assumptions'!I24*'5. UD1 Parameters'!$C$25*'5. UD1 Parameters'!B$27*0.000001 -> 6.3 | I22: 16.10679 | K22: ='6. UD1 Assumptions'!T24*'5. UD1 Parameters'!$D$5*'5. UD1 Parameters'!B$27*0.000001 -> 0.0525 | L22: ='6. UD1 Assumptions'!V24*'5. UD1 Parameters'!$D$6*'5. UD1 Parameters'!B$27*0.000001 -> 0.1176 | M22: ='6. UD1 Assumptions'!E24*'5. UD1 Parameters'!$D$11*'5. UD1 Parameters'!B$27*0.000001 -> 0.008505 | N22: ='6. UD1 Assumptions'!C24*'5. UD1 Parameters'!$D$12*'5. UD1 Parameters'!B$27*0.000001 -> 0.091035 | O22: ='6. UD1 Assumptions'!G24*'5. UD1 Parameters'!$D$13*'5. UD1 Parameters'!B$27*0.000001 -> 0.0294462 | P22: ='6. UD1 Assumptions'!Z24*'5. UD1 Parameters'!$D$16*'5. UD1 Parameters'!B$27*0.000001 -> 0.462 | Q22: =(('6. UD1 Assumptions'!K24*'5. UD1 Parameters'!$D$20)+('6. UD1 Assumptions'!R24*'5. UD1 Parameters'!$D$22))*'5. UD1 Parameters'!B$27*0.000001 -> 2.83059 | R22: ='6. UD1 Assumptions'!I24*'5. UD1 Parameters'!$D$25*'5. UD1 Parameters'!B$27*0.000001 -> 0.0693 | S22: 3.6609762 | U22: ='UD1 LS'!$EJ$5 -> 0.6176349064 | V22: ='UD1 LS'!$EJ$8 -> 3.436795124 | W22: ='6. UD1 Assumptions'!E24*'UD1 LS'!$FP$29*'UD1 LS'!$FQ$29*'5. UD1 Parameters'!$B$28*365*0.001*(44/28)*0.000001*(('UD1 LS'!$FI$29*'5. UD1 Parameters'!$C$59)+('UD1 LS'!$FK$29*'5. UD1 Parameters'!$E$59)) -> 0.1251333705 | X22: ='6. UD1 Assumptions'!C24*'UD1 LS'!$FP$30*'UD1 LS'!$FQ$30*'5. UD1 Parameters'!$B$28*365*0.001*(44/28)*0.000001*(('UD1 LS'!$FI$30*'5. UD1 Parameters'!$C$60)+('UD1 LS'!$FK$30*'5. UD1 Parameters'!$E$60)) -> 0.9762977272 | Z22: ='UD1 LS'!$EJ$10 -> 1.820896573 | AA22: =(('6. UD1 Assumptions'!K24*'UD1 LS'!$FP$32*'UD1 LS'!$FQ$32)*'5. UD1 Parameters'!$H$62+((('6. UD1 Assumptions'!K24/50)*'UD1 LS'!$FP$33*'UD1 LS'!$FQ$33)+('6. UD1 Assumptions'!P24*'UD1 LS'!$FP$35*'UD1 LS'!$FQ$35)+('6. UD1 Assumptions'!M24*'UD1 LS'!$FP$34*'UD1 LS'!$FQ$34))*'5. UD1 Parameters'!$H$63)*'5. UD1 Parameters'!$B$28*365*0.001*0.000001*44/28 -> 4.02111005 | AC22: 10.99786775 | AE22: 30.76563395 | AH22: 2025 | AI22: ='6. UD1 Assumptions'!T52*'5. UD1 Parameters'!$C$5*'5. UD1 Parameters'!B$27*0.000001 -> 3.0912 | AJ22: ='6. UD1 Assumptions'!V52*'5. UD1 Parameters'!$C$6*'5. UD1 Parameters'!B$27*0.000001 -> 4.39425 | AK22: ='6. UD1 Assumptions'!E52*'5. UD1 Parameters'!$C$11*'5. UD1 Parameters'!B$27*0.000001 -> 0.3675 | AL22: ='6. UD1 Assumptions'!C52*'5. UD1 Parameters'!$C$12*'5. UD1 Parameters'!B$27*0.000001 -> 2.94 | AM22: ='UD1 Scenarios'!F22 -> 0.32319 | AN22: ='6. UD1 Assumptions'!Z52*'5. UD1 Parameters'!$C$16*'5. UD1 Parameters'!B$27*0.000001 -> 0.483 | AO22: ='6. UD1 Assumptions'!I52*'5. UD1 Parameters'!$C$25*'5. UD1 Parameters'!B$27*0.000001 -> 7.35 | AP22: 18.94914 | AR22: ='6. UD1 Assumptions'!T52*'5. UD1 Parameters'!$D$5*'5. UD1 Parameters'!B$27*0.000001 -> 0.0672 | AS22: ='6. UD1 Assumptions'!V52*'5. UD1 Parameters'!$D$6*'5. UD1 Parameters'!B$27*0.000001 -> 0.14175 | AT22: ='6. UD1 Assumptions'!E52*'5. UD1 Parameters'!$D$11*'5. UD1 Parameters'!B$27*0.000001 -> 0.011025 | AU22: ='6. UD1 Assumptions'!C52*'5. UD1 Parameters'!$D$12*'5. UD1 Parameters'!B$27*0.000001 -> 0.09996 | AV22: ='UD1 Scenarios'!O22 -> 0.0294462 | AW22: ='6. UD1 Assumptions'!Z52*'5. UD1 Parameters'!$D$16*'5. UD1 Parameters'!B$27*0.000001 -> 0.483 | AX22: =(('6. UD1 Assumptions'!$K52*'5. UD1 Parameters'!$D$20)+('6. UD1 Assumptions'!$R52*'5. UD1 Parameters'!$D$22))*'5. UD1 Parameters'!B$27*0.000001 -> 2.83059 | AY22: ='6. UD1 Assumptions'!I52*'5. UD1 Parameters'!$D$25*'5. UD1 Parameters'!B$27*0.000001 -> 0.08085 | AZ22: 3.7438212 | BB22: ='UD1 LS'!$EJ$16 -> 0.7666159323 | BC22: ='UD1 LS'!$EJ$19 -> 3.55358427 | BD22: ='6. UD1 Assumptions'!E52*'UD1 LS'!$FP$29*'UD1 LS'!$FQ$29*'5. UD1 Parameters'!$B$28*365*0.001*(44/28)*0.000001*(('UD1 LS'!$FI$29*'5. UD1 Parameters'!$C$59)+('UD1 LS'!$FK$29*'5. UD1 Parameters'!$E$59)) -> 0.1622099247 | BE22: ='6. UD1 Assumptions'!C52*'UD1 LS'!$FP$30*'UD1 LS'!$FQ$30*'5. UD1 Parameters'!$B$28*365*0.001*(44/28)*0.000001*(('UD1 LS'!$FI$30*'5. UD1 Parameters'!$C$60)+('UD1 LS'!$FK$30*'5. UD1 Parameters'!$E$60)) -> 1.072013191 | BG22: ='UD1 LS'!$EJ$21 -> 1.903664599 | BH22: =(('6. UD1 Assumptions'!$K52*'UD1 LS'!$FP$32*'UD1 LS'!$FQ$32)*'5. UD1 Parameters'!$H$62+(('UD1 LS'!EH$4*'UD1 LS'!$FP$33*'UD1 LS'!$FQ$33)+('6. UD1 Assumptions'!$P52*'UD1 LS'!$FP$35*'UD1 LS'!$FQ$35)+('6. UD1 Assumptions'!$M52*'UD1 LS'!$FP$34*'UD1 LS'!$FQ$34))*'5. UD1 Parameters'!$H$63)*'5. UD1 Parameters'!$B$28*365*0.001*0.000001*44/28 -> 3.685572003 | BJ22: 11.14365992 | BK22: 33.83662112 | BL22: 56.00186831 | BN22: 2025 | BO22: 18.94914 | BP22: 3.7438212 | BQ22: ='UD1 LS'!$EJ$29 -> 0.7905726802 | BR22: ='UD1 LS'!$EJ$32 -> 3.578851152 | BS22: ='UD1 Scenarios'!BD22 -> 0.1622099247 | BT22: ='UD1 Scenarios'!BE22 -> 1.072013191 | BV22: ='UD1 LS'!$EJ$34 -> 1.903664599 | BW22: ='UD1 Scenarios'!BH22 -> 3.685572003 | BY22: 11.19288355 | BZ22: 33.88584475 | CB22: 0.04922363042 | CE22: 19.17475 | CF22: 22.53525 | CG22: 34.195289 | CH22: 38.13139635 | CI22: 38.18050768
A23: 2030 | B23: ='6. UD1 Assumptions'!T25*'5. UD1 Parameters'!$C$5*'5. UD1 Parameters'!B$27*0.000001 -> 2.3184 | C23: ='6. UD1 Assumptions'!V25*'5. UD1 Parameters'!$C$6*'5. UD1 Parameters'!B$27*0.000001 -> 3.5805 | D23: ='6. UD1 Assumptions'!E25*'5. UD1 Parameters'!$C$11*'5. UD1 Parameters'!B$27*0.000001 -> 0.294 | E23: ='6. UD1 Assumptions'!C25*'5. UD1 Parameters'!$C$12*'5. UD1 Parameters'!B$27*0.000001 -> 2.625 | F23: ='6. UD1 Assumptions'!G25*'5. UD1 Parameters'!$C$13*'5. UD1 Parameters'!B$27*0.000001 -> 0.32319 | G23: ='6. UD1 Assumptions'!Z25*'5. UD1 Parameters'!$C$16*'5. UD1 Parameters'!B$27*0.000001 -> 0.4725 | H23: ='6. UD1 Assumptions'!I25*'5. UD1 Parameters'!$C$25*'5. UD1 Parameters'!B$27*0.000001 -> 6.405 | I23: 16.01859 | K23: ='6. UD1 Assumptions'!T25*'5. UD1 Parameters'!$D$5*'5. UD1 Parameters'!B$27*0.000001 -> 0.0504 | L23: ='6. UD1 Assumptions'!V25*'5. UD1 Parameters'!$D$6*'5. UD1 Parameters'!B$27*0.000001 -> 0.1155 | M23: ='6. UD1 Assumptions'!E25*'5. UD1 Parameters'!$D$11*'5. UD1 Parameters'!B$27*0.000001 -> 0.00882 | N23: ='6. UD1 Assumptions'!C25*'5. UD1 Parameters'!$D$12*'5. UD1 Parameters'!B$27*0.000001 -> 0.08925 | O23: ='6. UD1 Assumptions'!G25*'5. UD1 Parameters'!$D$13*'5. UD1 Parameters'!B$27*0.000001 -> 0.0294462 | P23: ='6. UD1 Assumptions'!Z25*'5. UD1 Parameters'!$D$16*'5. UD1 Parameters'!B$27*0.000001 -> 0.4725 | Q23: =(('6. UD1 Assumptions'!K25*'5. UD1 Parameters'!$D$20)+('6. UD1 Assumptions'!R25*'5. UD1 Parameters'!$D$22))*'5. UD1 Parameters'!B$27*0.000001 -> 2.87637 | R23: ='6. UD1 Assumptions'!I25*'5. UD1 Parameters'!$D$25*'5. UD1 Parameters'!B$27*0.000001 -> 0.070455 | S23: 3.7127412 | U23: ='UD1 LS'!$EK$5 -> 0.5929295102 | V23: ='UD1 LS'!$EK$8 -> 3.549217154 | W23: ='6. UD1 Assumptions'!E25*'UD1 LS'!$FP$29*'UD1 LS'!$FQ$29*'5. UD1 Parameters'!$B$28*365*0.001*(44/28)*0.000001*(('UD1 LS'!$FI$29*'5. UD1 Parameters'!$C$59)+('UD1 LS'!$FK$29*'5. UD1 Parameters'!$E$59)) -> 0.1297679397 | X23: ='6. UD1 Assumptions'!C25*'UD1 LS'!$FP$30*'UD1 LS'!$FQ$30*'5. UD1 Parameters'!$B$28*365*0.001*(44/28)*0.000001*(('UD1 LS'!$FI$30*'5. UD1 Parameters'!$C$60)+('UD1 LS'!$FK$30*'5. UD1 Parameters'!$E$60)) -> 0.9571546345 | Z23: ='UD1 LS'!$EK$10 -> 1.862280586 | AA23: =(('6. UD1 Assumptions'!K25*'UD1 LS'!$FP$32*'UD1 LS'!$FQ$32)*'5. UD1 Parameters'!$H$62+((('6. UD1 Assumptions'!K25/50)*'UD1 LS'!$FP$33*'UD1 LS'!$FQ$33)+('6. UD1 Assumptions'!P25*'UD1 LS'!$FP$35*'UD1 LS'!$FQ$35)+('6. UD1 Assumptions'!M25*'UD1 LS'!$FP$34*'UD1 LS'!$FQ$34))*'5. UD1 Parameters'!$H$63)*'5. UD1 Parameters'!$B$28*365*0.001*0.000001*44/28 -> 4.077000582 | AC23: 11.16835041 | AE23: 30.89968161 | AH23: 2030 | AI23: ='6. UD1 Assumptions'!T53*'5. UD1 Parameters'!$C$5*'5. UD1 Parameters'!B$27*0.000001 -> 3.2844 | AJ23: ='6. UD1 Assumptions'!V53*'5. UD1 Parameters'!$C$6*'5. UD1 Parameters'!B$27*0.000001 -> 4.64814 | AK23: ='6. UD1 Assumptions'!E53*'5. UD1 Parameters'!$C$11*'5. UD1 Parameters'!B$27*0.000001 -> 0.42 | AL23: ='6. UD1 Assumptions'!C53*'5. UD1 Parameters'!$C$12*'5. UD1 Parameters'!B$27*0.000001 -> 3.15 | AM23: ='UD1 Scenarios'!F23 -> 0.32319 | AN23: ='6. UD1 Assumptions'!Z53*'5. UD1 Parameters'!$C$16*'5. UD1 Parameters'!B$27*0.000001 -> 0.504 | AO23: ='6. UD1 Assumptions'!I53*'5. UD1 Parameters'!$C$25*'5. UD1 Parameters'!B$27*0.000001 -> 7.56 | AP23: 19.88973 | AR23: ='6. UD1 Assumptions'!T53*'5. UD1 Parameters'!$D$5*'5. UD1 Parameters'!B$27*0.000001 -> 0.0714 | AS23: ='6. UD1 Assumptions'!V53*'5. UD1 Parameters'!$D$6*'5. UD1 Parameters'!B$27*0.000001 -> 0.14994 | AT23: ='6. UD1 Assumptions'!E53*'5. UD1 Parameters'!$D$11*'5. UD1 Parameters'!B$27*0.000001 -> 0.0126 | AU23: ='6. UD1 Assumptions'!C53*'5. UD1 Parameters'!$D$12*'5. UD1 Parameters'!B$27*0.000001 -> 0.1071 | AV23: ='UD1 Scenarios'!O23 -> 0.0294462 | AW23: ='6. UD1 Assumptions'!Z53*'5. UD1 Parameters'!$D$16*'5. UD1 Parameters'!B$27*0.000001 -> 0.504 | AX23: =(('6. UD1 Assumptions'!$K53*'5. UD1 Parameters'!$D$20)+('6. UD1 Assumptions'!$R53*'5. UD1 Parameters'!$D$22))*'5. UD1 Parameters'!B$27*0.000001 -> 2.87637 | AY23: ='6. UD1 Assumptions'!I53*'5. UD1 Parameters'!$D$25*'5. UD1 Parameters'!B$27*0.000001 -> 0.08316 | AZ23: 3.8340162 | BB23: ='UD1 LS'!$EK$16 -> 0.8230141097 | BC23: ='UD1 LS'!$EK$19 -> 3.733983572 | BD23: ='6. UD1 Assumptions'!E53*'UD1 LS'!$FP$29*'UD1 LS'!$FQ$29*'5. UD1 Parameters'!$B$28*365*0.001*(44/28)*0.000001*(('UD1 LS'!$FI$29*'5. UD1 Parameters'!$C$59)+('UD1 LS'!$FK$29*'5. UD1 Parameters'!$E$59)) -> 0.185382771 | BE23: ='6. UD1 Assumptions'!C53*'UD1 LS'!$FP$30*'UD1 LS'!$FQ$30*'5. UD1 Parameters'!$B$28*365*0.001*(44/28)*0.000001*(('UD1 LS'!$FI$30*'5. UD1 Parameters'!$C$60)+('UD1 LS'!$FK$30*'5. UD1 Parameters'!$E$60)) -> 1.148585561 | BG23: ='UD1 LS'!$EK$21 -> 1.986432625 | BH23: =(('6. UD1 Assumptions'!$K53*'UD1 LS'!$FP$32*'UD1 LS'!$FQ$32)*'5. UD1 Parameters'!$H$62+(('UD1 LS'!EH$4*'UD1 LS'!$FP$33*'UD1 LS'!$FQ$33)+('6. UD1 Assumptions'!$P53*'UD1 LS'!$FP$35*'UD1 LS'!$FQ$35)+('6. UD1 Assumptions'!$M53*'UD1 LS'!$FP$34*'UD1 LS'!$FQ$34))*'5. UD1 Parameters'!$H$63)*'5. UD1 Parameters'!$B$28*365*0.001*0.000001*44/28 -> 3.735575903 | BJ23: 11.61297454 | BK23: 35.33672074 | BL23: 56.28629251 | BN23: 2030 | BO23: 19.88973 | BP23: 3.8340162 | BQ23: ='UD1 LS'!$EK$29 -> 0.8399834727 | BR23: ='UD1 LS'!$EK$32 -> 3.751801404 | BS23: ='UD1 Scenarios'!BD23 -> 0.185382771 | BT23: ='UD1 Scenarios'!BE23 -> 1.148585561 | BV23: ='UD1 LS'!$EK$34 -> 1.986432625 | BW23: ='UD1 Scenarios'!BH23 -> 3.735575903 | BY23: 11.64776174 | BZ23: 35.37150794 | CB23: 0.03478719433 | CE23: 19.06975 | CF23: 23.67825 | CG23: 34.31650784 | CH23: 39.85542513 | CI23: 39.89021233
A24: 2035 | B24: ='6. UD1 Assumptions'!T26*'5. UD1 Parameters'!$C$5*'5. UD1 Parameters'!B$27*0.000001 -> 2.3184 | C24: ='6. UD1 Assumptions'!V26*'5. UD1 Parameters'!$C$6*'5. UD1 Parameters'!B$27*0.000001 -> 3.5805 | D24: ='6. UD1 Assumptions'!E26*'5. UD1 Parameters'!$C$11*'5. UD1 Parameters'!B$27*0.000001 -> 0.3045 | E24: ='6. UD1 Assumptions'!C26*'5. UD1 Parameters'!$C$12*'5. UD1 Parameters'!B$27*0.000001 -> 2.625 | F24: ='6. UD1 Assumptions'!G26*'5. UD1 Parameters'!$C$13*'5. UD1 Parameters'!B$27*0.000001 -> 0.32319 | G24: ='6. UD1 Assumptions'!Z26*'5. UD1 Parameters'!$C$16*'5. UD1 Parameters'!B$27*0.000001 -> 0.47775 | H24: ='6. UD1 Assumptions'!I26*'5. UD1 Parameters'!$C$25*'5. UD1 Parameters'!B$27*0.000001 -> 6.447 | I24: 16.07634 | K24: ='6. UD1 Assumptions'!T26*'5. UD1 Parameters'!$D$5*'5. UD1 Parameters'!B$27*0.000001 -> 0.0504 | L24: ='6. UD1 Assumptions'!V26*'5. UD1 Parameters'!$D$6*'5. UD1 Parameters'!B$27*0.000001 -> 0.1155 | M24: ='6. UD1 Assumptions'!E26*'5. UD1 Parameters'!$D$11*'5. UD1 Parameters'!B$27*0.000001 -> 0.009135 | N24: ='6. UD1 Assumptions'!C26*'5. UD1 Parameters'!$D$12*'5. UD1 Parameters'!B$27*0.000001 -> 0.08925 | O24: ='6. UD1 Assumptions'!G26*'5. UD1 Parameters'!$D$13*'5. UD1 Parameters'!B$27*0.000001 -> 0.0294462 | P24: ='6. UD1 Assumptions'!Z26*'5. UD1 Parameters'!$D$16*'5. UD1 Parameters'!B$27*0.000001 -> 0.47775 | Q24: =(('6. UD1 Assumptions'!K26*'5. UD1 Parameters'!$D$20)+('6. UD1 Assumptions'!R26*'5. UD1 Parameters'!$D$22))*'5. UD1 Parameters'!B$27*0.000001 -> 2.952915 | R24: ='6. UD1 Assumptions'!I26*'5. UD1 Parameters'!$D$25*'5. UD1 Parameters'!B$27*0.000001 -> 0.070917 | S24: 3.7953132 | U24: ='UD1 LS'!$EL$5 -> 0.5929295102 | V24: ='UD1 LS'!$EL$8 -> 3.985928704 | W24: ='6. UD1 Assumptions'!E26*'UD1 LS'!$FP$29*'UD1 LS'!$FQ$29*'5. UD1 Parameters'!$B$28*365*0.001*(44/28)*0.000001*(('UD1 LS'!$FI$29*'5. UD1 Parameters'!$C$59)+('UD1 LS'!$FK$29*'5. UD1 Parameters'!$E$59)) -> 0.134402509 | X24: ='6. UD1 Assumptions'!C26*'UD1 LS'!$FP$30*'UD1 LS'!$FQ$30*'5. UD1 Parameters'!$B$28*365*0.001*(44/28)*0.000001*(('UD1 LS'!$FI$30*'5. UD1 Parameters'!$C$60)+('UD1 LS'!$FK$30*'5. UD1 Parameters'!$E$60)) -> 0.9571546345 | Z24: ='UD1 LS'!$EL$10 -> 1.882972592 | AA24: =(('6. UD1 Assumptions'!K26*'UD1 LS'!$FP$32*'UD1 LS'!$FQ$32)*'5. UD1 Parameters'!$H$62+((('6. UD1 Assumptions'!K26/50)*'UD1 LS'!$FP$33*'UD1 LS'!$FQ$33)+('6. UD1 Assumptions'!P26*'UD1 LS'!$FP$35*'UD1 LS'!$FQ$35)+('6. UD1 Assumptions'!M26*'UD1 LS'!$FP$34*'UD1 LS'!$FQ$34))*'5. UD1 Parameters'!$H$63)*'5. UD1 Parameters'!$B$28*365*0.001*0.000001*44/28 -> 4.192371911 | AC24: 11.74575986 | AE24: 31.61741306 | AH24: 2035 | AI24: ='6. UD1 Assumptions'!T54*'5. UD1 Parameters'!$C$5*'5. UD1 Parameters'!B$27*0.000001 -> 3.5742 | AJ24: ='6. UD1 Assumptions'!V54*'5. UD1 Parameters'!$C$6*'5. UD1 Parameters'!B$27*0.000001 -> 4.92807 | AK24: ='6. UD1 Assumptions'!E54*'5. UD1 Parameters'!$C$11*'5. UD1 Parameters'!B$27*0.000001 -> 0.525 | AL24: ='6. UD1 Assumptions'!C54*'5. UD1 Parameters'!$C$12*'5. UD1 Parameters'!B$27*0.000001 -> 3.4125 | AM24: ='UD1 Scenarios'!F24 -> 0.32319 | AN24: ='6. UD1 Assumptions'!Z54*'5. UD1 Parameters'!$C$16*'5. UD1 Parameters'!B$27*0.000001 -> 0.567 | AO24: ='6. UD1 Assumptions'!I54*'5. UD1 Parameters'!$C$25*'5. UD1 Parameters'!B$27*0.000001 -> 7.98 | AP24: 21.30996 | AR24: ='6. UD1 Assumptions'!T54*'5. UD1 Parameters'!$D$5*'5. UD1 Parameters'!B$27*0.000001 -> 0.0777 | AS24: ='6. UD1 Assumptions'!V54*'5. UD1 Parameters'!$D$6*'5. UD1 Parameters'!B$27*0.000001 -> 0.15897 | AT24: ='6. UD1 Assumptions'!E54*'5. UD1 Parameters'!$D$11*'5. UD1 Parameters'!B$27*0.000001 -> 0.01575 | AU24: ='6. UD1 Assumptions'!C54*'5. UD1 Parameters'!$D$12*'5. UD1 Parameters'!B$27*0.000001 -> 0.116025 | AV24: ='UD1 Scenarios'!O24 -> 0.0294462 | AW24: ='6. UD1 Assumptions'!Z54*'5. UD1 Parameters'!$D$16*'5. UD1 Parameters'!B$27*0.000001 -> 0.567 | AX24: =(('6. UD1 Assumptions'!$K54*'5. UD1 Parameters'!$D$20)+('6. UD1 Assumptions'!$R54*'5. UD1 Parameters'!$D$22))*'5. UD1 Parameters'!B$27*0.000001 -> 2.952915 | AY24: ='6. UD1 Assumptions'!I54*'5. UD1 Parameters'!$D$25*'5. UD1 Parameters'!B$27*0.000001 -> 0.08778 | AZ24: 4.0055862 | BB24: ='UD1 LS'!$EL$16 -> 0.8863996718 | BC24: ='UD1 LS'!$EL$19 -> 4.213293215 | BD24: ='6. UD1 Assumptions'!E54*'UD1 LS'!$FP$29*'UD1 LS'!$FQ$29*'5. UD1 Parameters'!$B$28*365*0.001*(44/28)*0.000001*(('UD1 LS'!$FI$29*'5. UD1 Parameters'!$C$59)+('UD1 LS'!$FK$29*'5. UD1 Parameters'!$E$59)) -> 0.2317284638 | BE24: ='6. UD1 Assumptions'!C54*'UD1 LS'!$FP$30*'UD1 LS'!$FQ$30*'5. UD1 Parameters'!$B$28*365*0.001*(44/28)*0.000001*(('UD1 LS'!$FI$30*'5. UD1 Parameters'!$C$60)+('UD1 LS'!$FK$30*'5. UD1 Parameters'!$E$60)) -> 1.244301025 | BG24: ='UD1 LS'!$EL$21 -> 2.011263033 | BH24: =(('6. UD1 Assumptions'!$K54*'UD1 LS'!$FP$32*'UD1 LS'!$FQ$32)*'5. UD1 Parameters'!$H$62+(('UD1 LS'!EH$4*'UD1 LS'!$FP$33*'UD1 LS'!$FQ$33)+('6. UD1 Assumptions'!$P54*'UD1 LS'!$FP$35*'UD1 LS'!$FQ$35)+('6. UD1 Assumptions'!$M54*'UD1 LS'!$FP$34*'UD1 LS'!$FQ$34))*'5. UD1 Parameters'!$H$63)*'5. UD1 Parameters'!$B$28*365*0.001*0.000001*44/28 -> 3.842117283 | BJ24: 12.42910269 | BK24: 37.74464889 | BL24: 56.45822819 | BN24: 2035 | BO24: 21.30996 | BP24: 4.0055862 | BQ24: ='UD1 LS'!$EL$29 -> 0.9140996615 | BR24: ='UD1 LS'!$EL$32 -> 4.241629555 | BS24: ='UD1 Scenarios'!BD24 -> 0.2317284638 | BT24: ='UD1 Scenarios'!BE24 -> 1.244301025 | BV24: ='UD1 LS'!$EL$34 -> 2.234736703 | BW24: ='UD1 Scenarios'!BH24 -> 3.842117283 | BY24: 12.70861269 | BZ24: 38.02415889 | CB24: 0.2795100009 | CE24: 19.1385 | CF24: 25.369 | CG24: 35.05213626 | CH24: 42.56655198 | CI24: 42.84605023
A25: 2040 | B25: ='6. UD1 Assumptions'!T27*'5. UD1 Parameters'!$C$5*'5. UD1 Parameters'!B$27*0.000001 -> 2.3184 | C25: ='6. UD1 Assumptions'!V27*'5. UD1 Parameters'!$C$6*'5. UD1 Parameters'!B$27*0.000001 -> 3.5805 | D25: ='6. UD1 Assumptions'!E27*'5. UD1 Parameters'!$C$11*'5. UD1 Parameters'!B$27*0.000001 -> 0.315 | E25: ='6. UD1 Assumptions'!C27*'5. UD1 Parameters'!$C$12*'5. UD1 Parameters'!B$27*0.000001 -> 2.625 | F25: ='6. UD1 Assumptions'!G27*'5. UD1 Parameters'!$C$13*'5. UD1 Parameters'!B$27*0.000001 -> 0.32319 | G25: ='6. UD1 Assumptions'!Z27*'5. UD1 Parameters'!$C$16*'5. UD1 Parameters'!B$27*0.000001 -> 0.483 | H25: ='6. UD1 Assumptions'!I27*'5. UD1 Parameters'!$C$25*'5. UD1 Parameters'!B$27*0.000001 -> 6.51 | I25: 16.15509 | K25: ='6. UD1 Assumptions'!T27*'5. UD1 Parameters'!$D$5*'5. UD1 Parameters'!B$27*0.000001 -> 0.0504 | L25: ='6. UD1 Assumptions'!V27*'5. UD1 Parameters'!$D$6*'5. UD1 Parameters'!B$27*0.000001 -> 0.1155 | M25: ='6. UD1 Assumptions'!E27*'5. UD1 Parameters'!$D$11*'5. UD1 Parameters'!B$27*0.000001 -> 0.00945 | N25: ='6. UD1 Assumptions'!C27*'5. UD1 Parameters'!$D$12*'5. UD1 Parameters'!B$27*0.000001 -> 0.08925 | O25: ='6. UD1 Assumptions'!G27*'5. UD1 Parameters'!$D$13*'5. UD1 Parameters'!B$27*0.000001 -> 0.0294462 | P25: ='6. UD1 Assumptions'!Z27*'5. UD1 Parameters'!$D$16*'5. UD1 Parameters'!B$27*0.000001 -> 0.483 | Q25: =(('6. UD1 Assumptions'!K27*'5. UD1 Parameters'!$D$20)+('6. UD1 Assumptions'!R27*'5. UD1 Parameters'!$D$22))*'5. UD1 Parameters'!B$27*0.000001 -> 3.02631 | R25: ='6. UD1 Assumptions'!I27*'5. UD1 Parameters'!$D$25*'5. UD1 Parameters'!B$27*0.000001 -> 0.07161 | S25: 3.8749662 | U25: ='UD1 LS'!$EM$5 -> 0.5929295102 | V25: ='UD1 LS'!$EM$8 -> 4.422640254 | W25: ='6. UD1 Assumptions'!E27*'UD1 LS'!$FP$29*'UD1 LS'!$FQ$29*'5. UD1 Parameters'!$B$28*365*0.001*(44/28)*0.000001*(('UD1 LS'!$FI$29*'5. UD1 Parameters'!$C$59)+('UD1 LS'!$FK$29*'5. UD1 Parameters'!$E$59)) -> 0.1390370783 | X25: ='6. UD1 Assumptions'!C27*'UD1 LS'!$FP$30*'UD1 LS'!$FQ$30*'5. UD1 Parameters'!$B$28*365*0.001*(44/28)*0.000001*(('UD1 LS'!$FI$30*'5. UD1 Parameters'!$C$60)+('UD1 LS'!$FK$30*'5. UD1 Parameters'!$E$60)) -> 0.9571546345 | Z25: ='UD1 LS'!$EM$10 -> 1.903664599 | AA25: =(('6. UD1 Assumptions'!K27*'UD1 LS'!$FP$32*'UD1 LS'!$FQ$32)*'5. UD1 Parameters'!$H$62+((('6. UD1 Assumptions'!K27/50)*'UD1 LS'!$FP$33*'UD1 LS'!$FQ$33)+('6. UD1 Assumptions'!P27*'UD1 LS'!$FP$35*'UD1 LS'!$FQ$35)+('6. UD1 Assumptions'!M27*'UD1 LS'!$FP$34*'UD1 LS'!$FQ$34))*'5. UD1 Parameters'!$H$63)*'5. UD1 Parameters'!$B$28*365*0.001*0.000001*44/28 -> 4.295129028 | AC25: 12.3105551 | AE25: 32.3406113 | AH25: 2040 | AI25: ='6. UD1 Assumptions'!T55*'5. UD1 Parameters'!$C$5*'5. UD1 Parameters'!B$27*0.000001 -> 3.864 | AJ25: ='6. UD1 Assumptions'!V55*'5. UD1 Parameters'!$C$6*'5. UD1 Parameters'!B$27*0.000001 -> 5.208 | AK25: ='6. UD1 Assumptions'!E55*'5. UD1 Parameters'!$C$11*'5. UD1 Parameters'!B$27*0.000001 -> 0.63 | AL25: ='6. UD1 Assumptions'!C55*'5. UD1 Parameters'!$C$12*'5. UD1 Parameters'!B$27*0.000001 -> 3.675 | AM25: ='UD1 Scenarios'!F25 -> 0.32319 | AN25: ='6. UD1 Assumptions'!Z55*'5. UD1 Parameters'!$C$16*'5. UD1 Parameters'!B$27*0.000001 -> 0.63 | AO25: ='6. UD1 Assumptions'!I55*'5. UD1 Parameters'!$C$25*'5. UD1 Parameters'!B$27*0.000001 -> 8.4 | AP25: 22.73019 | AR25: ='6. UD1 Assumptions'!T55*'5. UD1 Parameters'!$D$5*'5. UD1 Parameters'!B$27*0.000001 -> 0.084 | AS25: ='6. UD1 Assumptions'!V55*'5. UD1 Parameters'!$D$6*'5. UD1 Parameters'!B$27*0.000001 -> 0.168 | AT25: ='6. UD1 Assumptions'!E55*'5. UD1 Parameters'!$D$11*'5. UD1 Parameters'!B$27*0.000001 -> 0.0189 | AU25: ='6. UD1 Assumptions'!C55*'5. UD1 Parameters'!$D$12*'5. UD1 Parameters'!B$27*0.000001 -> 0.12495 | AV25: ='UD1 Scenarios'!O25 -> 0.0294462 | AW25: ='6. UD1 Assumptions'!Z55*'5. UD1 Parameters'!$D$16*'5. UD1 Parameters'!B$27*0.000001 -> 0.63 | AX25: =(('6. UD1 Assumptions'!$K55*'5. UD1 Parameters'!$D$20)+('6. UD1 Assumptions'!$R55*'5. UD1 Parameters'!$D$22))*'5. UD1 Parameters'!B$27*0.000001 -> 3.02631 | AY25: ='6. UD1 Assumptions'!I55*'5. UD1 Parameters'!$D$25*'5. UD1 Parameters'!B$27*0.000001 -> 0.0924 | AZ25: 4.1740062 | BB25: ='UD1 LS'!$EM$16 -> 0.9582699154 | BC25: ='UD1 LS'!$EM$19 -> 4.701511773 | BD25: ='6. UD1 Assumptions'!E55*'UD1 LS'!$FP$29*'UD1 LS'!$FQ$29*'5. UD1 Parameters'!$B$28*365*0.001*(44/28)*0.000001*(('UD1 LS'!$FI$29*'5. UD1 Parameters'!$C$59)+('UD1 LS'!$FK$29*'5. UD1 Parameters'!$E$59)) -> 0.2780741566 | BE25: ='6. UD1 Assumptions'!C55*'UD1 LS'!$FP$30*'UD1 LS'!$FQ$30*'5. UD1 Parameters'!$B$28*365*0.001*(44/28)*0.000001*(('UD1 LS'!$FI$30*'5. UD1 Parameters'!$C$60)+('UD1 LS'!$FK$30*'5. UD1 Parameters'!$E$60)) -> 1.340016488 | BG25: ='UD1 LS'!$EM$21 -> 1.986432625 | BH25: =(('6. UD1 Assumptions'!$K55*'UD1 LS'!$FP$32*'UD1 LS'!$FQ$32)*'5. UD1 Parameters'!$H$62+(('UD1 LS'!EH$4*'UD1 LS'!$FP$33*'UD1 LS'!$FQ$33)+('6. UD1 Assumptions'!$P55*'UD1 LS'!$FP$35*'UD1 LS'!$FQ$35)+('6. UD1 Assumptions'!$M55*'UD1 LS'!$FP$34*'UD1 LS'!$FQ$34))*'5. UD1 Parameters'!$H$63)*'5. UD1 Parameters'!$B$28*365*0.001*0.000001*44/28 -> 3.936044451 | BJ25: 13.20034941 | BK25: 40.10454561 | BL25: 56.67734082 | BN25: 2040 | BO25: 22.73019 | BP25: 4.1740062 | BQ25: ='UD1 LS'!$EM$29 -> 0.9882158503 | BR25: ='UD1 LS'!$EM$32 -> 4.731457707 | BS25: ='UD1 Scenarios'!BD25 -> 0.2780741566 | BT25: ='UD1 Scenarios'!BE25 -> 1.340016488 | BV25: ='UD1 LS'!$EM$34 -> 2.483040781 | BW25: ='UD1 Scenarios'!BH25 -> 3.936044451 | BY25: 13.75684944 | BZ25: 40.66104564 | CB25: 0.556500026 | CE25: 19.23225 | CF25: 27.05975 | CG25: 35.79667547 | CH25: 45.22905 | CI25: 45.78552392
A26: 2045 | B26: ='6. UD1 Assumptions'!T28*'5. UD1 Parameters'!$C$5*'5. UD1 Parameters'!B$27*0.000001 -> 2.34255 | C26: ='6. UD1 Assumptions'!V28*'5. UD1 Parameters'!$C$6*'5. UD1 Parameters'!B$27*0.000001 -> 3.590265 | D26: ='6. UD1 Assumptions'!E28*'5. UD1 Parameters'!$C$11*'5. UD1 Parameters'!B$27*0.000001 -> 0.315 | E26: ='6. UD1 Assumptions'!C28*'5. UD1 Parameters'!$C$12*'5. UD1 Parameters'!B$27*0.000001 -> 2.6145 | F26: ='6. UD1 Assumptions'!G28*'5. UD1 Parameters'!$C$13*'5. UD1 Parameters'!B$27*0.000001 -> 0.32319 | G26: ='6. UD1 Assumptions'!Z28*'5. UD1 Parameters'!$C$16*'5. UD1 Parameters'!B$27*0.000001 -> 0.483 | H26: ='6. UD1 Assumptions'!I28*'5. UD1 Parameters'!$C$25*'5. UD1 Parameters'!B$27*0.000001 -> 6.615 | I26: 16.283505 | K26: ='6. UD1 Assumptions'!T28*'5. UD1 Parameters'!$D$5*'5. UD1 Parameters'!B$27*0.000001 -> 0.050925 | L26: ='6. UD1 Assumptions'!V28*'5. UD1 Parameters'!$D$6*'5. UD1 Parameters'!B$27*0.000001 -> 0.115815 | M26: ='6. UD1 Assumptions'!E28*'5. UD1 Parameters'!$D$11*'5. UD1 Parameters'!B$27*0.000001 -> 0.00945 | N26: ='6. UD1 Assumptions'!C28*'5. UD1 Parameters'!$D$12*'5. UD1 Parameters'!B$27*0.000001 -> 0.088893 | O26: ='6. UD1 Assumptions'!G28*'5. UD1 Parameters'!$D$13*'5. UD1 Parameters'!B$27*0.000001 -> 0.0294462 | P26: ='6. UD1 Assumptions'!Z28*'5. UD1 Parameters'!$D$16*'5. UD1 Parameters'!B$27*0.000001 -> 0.483 | Q26: =(('6. UD1 Assumptions'!K28*'5. UD1 Parameters'!$D$20)+('6. UD1 Assumptions'!R28*'5. UD1 Parameters'!$D$22))*'5. UD1 Parameters'!B$27*0.000001 -> 3.1185 | R26: ='6. UD1 Assumptions'!I28*'5. UD1 Parameters'!$D$25*'5. UD1 Parameters'!B$27*0.000001 -> 0.072765 | S26: 3.9687942 | U26: ='UD1 LS'!$EN$5 -> 0.5991058592 | V26: ='UD1 LS'!$EN$8 -> 4.73642998 | W26: ='6. UD1 Assumptions'!E28*'UD1 LS'!$FP$29*'UD1 LS'!$FQ$29*'5. UD1 Parameters'!$B$28*365*0.001*(44/28)*0.000001*(('UD1 LS'!$FI$29*'5. UD1 Parameters'!$C$59)+('UD1 LS'!$FK$29*'5. UD1 Parameters'!$E$59)) -> 0.1390370783 | X26: ='6. UD1 Assumptions'!C28*'UD1 LS'!$FP$30*'UD1 LS'!$FQ$30*'5. UD1 Parameters'!$B$28*365*0.001*(44/28)*0.000001*(('UD1 LS'!$FI$30*'5. UD1 Parameters'!$C$60)+('UD1 LS'!$FK$30*'5. UD1 Parameters'!$E$60)) -> 0.9533260159 | Z26: ='UD1 LS'!$EN$10 -> 1.903664599 | AA26: =(('6. UD1 Assumptions'!K28*'UD1 LS'!$FP$32*'UD1 LS'!$FQ$32)*'5. UD1 Parameters'!$H$62+((('6. UD1 Assumptions'!K28/50)*'UD1 LS'!$FP$33*'UD1 LS'!$FQ$33)+('6. UD1 Assumptions'!P28*'UD1 LS'!$FP$35*'UD1 LS'!$FQ$35)+('6. UD1 Assumptions'!M28*'UD1 LS'!$FP$34*'UD1 LS'!$FQ$34))*'5. UD1 Parameters'!$H$63)*'5. UD1 Parameters'!$B$28*365*0.001*0.000001*44/28 -> 4.40789718 | AC26: 12.73946071 | AE26: 32.99175991 | AH26: 2045 | AI26: ='6. UD1 Assumptions'!T56*'5. UD1 Parameters'!$C$5*'5. UD1 Parameters'!B$27*0.000001 -> 4.1055 | AJ26: ='6. UD1 Assumptions'!V56*'5. UD1 Parameters'!$C$6*'5. UD1 Parameters'!B$27*0.000001 -> 5.5335 | AK26: ='6. UD1 Assumptions'!E56*'5. UD1 Parameters'!$C$11*'5. UD1 Parameters'!B$27*0.000001 -> 0.735 | AL26: ='6. UD1 Assumptions'!C56*'5. UD1 Parameters'!$C$12*'5. UD1 Parameters'!B$27*0.000001 -> 3.9375 | AM26: ='UD1 Scenarios'!F26 -> 0.32319 | AN26: ='6. UD1 Assumptions'!Z56*'5. UD1 Parameters'!$C$16*'5. UD1 Parameters'!B$27*0.000001 -> 0.6825 | AO26: ='6. UD1 Assumptions'!I56*'5. UD1 Parameters'!$C$25*'5. UD1 Parameters'!B$27*0.000001 -> 8.82 | AP26: 24.13719 | AR26: ='6. UD1 Assumptions'!T56*'5. UD1 Parameters'!$D$5*'5. UD1 Parameters'!B$27*0.000001 -> 0.08925 | AS26: ='6. UD1 Assumptions'!V56*'5. UD1 Parameters'!$D$6*'5. UD1 Parameters'!B$27*0.000001 -> 0.1785 | AT26: ='6. UD1 Assumptions'!E56*'5. UD1 Parameters'!$D$11*'5. UD1 Parameters'!B$27*0.000001 -> 0.02205 | AU26: ='6. UD1 Assumptions'!C56*'5. UD1 Parameters'!$D$12*'5. UD1 Parameters'!B$27*0.000001 -> 0.133875 | AV26: ='UD1 Scenarios'!O26 -> 0.0294462 | AW26: ='6. UD1 Assumptions'!Z56*'5. UD1 Parameters'!$D$16*'5. UD1 Parameters'!B$27*0.000001 -> 0.6825 | AX26: =(('6. UD1 Assumptions'!$K56*'5. UD1 Parameters'!$D$20)+('6. UD1 Assumptions'!$R56*'5. UD1 Parameters'!$D$22))*'5. UD1 Parameters'!B$27*0.000001 -> 3.1185 | AY26: ='6. UD1 Assumptions'!I56*'5. UD1 Parameters'!$D$25*'5. UD1 Parameters'!B$27*0.000001 -> 0.09702 | AZ26: 4.3511412 | BB26: ='UD1 LS'!$EN$16 -> 1.018161785 | BC26: ='UD1 LS'!$EN$19 -> 5.073340464 | BD26: ='6. UD1 Assumptions'!E56*'UD1 LS'!$FP$29*'UD1 LS'!$FQ$29*'5. UD1 Parameters'!$B$28*365*0.001*(44/28)*0.000001*(('UD1 LS'!$FI$29*'5. UD1 Parameters'!$C$59)+('UD1 LS'!$FK$29*'5. UD1 Parameters'!$E$59)) -> 0.3244198493 | BE26: ='6. UD1 Assumptions'!C56*'UD1 LS'!$FP$30*'UD1 LS'!$FQ$30*'5. UD1 Parameters'!$B$28*365*0.001*(44/28)*0.000001*(('UD1 LS'!$FI$30*'5. UD1 Parameters'!$C$60)+('UD1 LS'!$FK$30*'5. UD1 Parameters'!$E$60)) -> 1.435731952 | BG26: ='UD1 LS'!$EN$21 -> 1.721574942 | BH26: =(('6. UD1 Assumptions'!$K56*'UD1 LS'!$FP$32*'UD1 LS'!$FQ$32)*'5. UD1 Parameters'!$H$62+(('UD1 LS'!EH$4*'UD1 LS'!$FP$33*'UD1 LS'!$FQ$33)+('6. UD1 Assumptions'!$P56*'UD1 LS'!$FP$35*'UD1 LS'!$FQ$35)+('6. UD1 Assumptions'!$M56*'UD1 LS'!$FP$34*'UD1 LS'!$FQ$34))*'5. UD1 Parameters'!$H$63)*'5. UD1 Parameters'!$B$28*365*0.001*0.000001*44/28 -> 4.037039339 | BJ26: 13.61026833 | BK26: 42.09859953 | BL26: 57.33490014 | BN26: 2045 | BO26: 24.13719 | BP26: 4.3511412 | BQ26: ='UD1 LS'!$EN$29 -> 1.049979341 | BR26: ='UD1 LS'!$EN$32 -> 5.105158019 | BS26: ='UD1 Scenarios'!BD26 -> 0.3244198493 | BT26: ='UD1 Scenarios'!BE26 -> 1.435731952 | BV26: ='UD1 LS'!$EN$34 -> 2.689960846 | BW26: ='UD1 Scenarios'!BH26 -> 4.037039339 | BY26: 14.64228935 | BZ26: 43.13062055 | CB26: 1.032021016 | CE26: 19.385125 | CF26: 28.73475 | CG26: 36.47838281 | CH26: 47.52485784 | CI26: 48.55682796
A27: 2050 | B27: ='6. UD1 Assumptions'!T29*'5. UD1 Parameters'!$C$5*'5. UD1 Parameters'!B$27*0.000001 -> 2.3667 | C27: ='6. UD1 Assumptions'!V29*'5. UD1 Parameters'!$C$6*'5. UD1 Parameters'!B$27*0.000001 -> 3.60003 | D27: ='6. UD1 Assumptions'!E29*'5. UD1 Parameters'!$C$11*'5. UD1 Parameters'!B$27*0.000001 -> 0.315 | E27: ='6. UD1 Assumptions'!C29*'5. UD1 Parameters'!$C$12*'5. UD1 Parameters'!B$27*0.000001 -> 2.604 | F27: ='6. UD1 Assumptions'!G29*'5. UD1 Parameters'!$C$13*'5. UD1 Parameters'!B$27*0.000001 -> 0.32319 | G27: ='6. UD1 Assumptions'!Z29*'5. UD1 Parameters'!$C$16*'5. UD1 Parameters'!B$27*0.000001 -> 0.483 | H27: ='6. UD1 Assumptions'!I29*'5. UD1 Parameters'!$C$25*'5. UD1 Parameters'!B$27*0.000001 -> 6.72 | I27: 16.41192 | K27: ='6. UD1 Assumptions'!T29*'5. UD1 Parameters'!$D$5*'5. UD1 Parameters'!B$27*0.000001 -> 0.05145 | L27: ='6. UD1 Assumptions'!V29*'5. UD1 Parameters'!$D$6*'5. UD1 Parameters'!B$27*0.000001 -> 0.11613 | M27: ='6. UD1 Assumptions'!E29*'5. UD1 Parameters'!$D$11*'5. UD1 Parameters'!B$27*0.000001 -> 0.00945 | N27: ='6. UD1 Assumptions'!C29*'5. UD1 Parameters'!$D$12*'5. UD1 Parameters'!B$27*0.000001 -> 0.088536 | O27: ='6. UD1 Assumptions'!G29*'5. UD1 Parameters'!$D$13*'5. UD1 Parameters'!B$27*0.000001 -> 0.0294462 | P27: ='6. UD1 Assumptions'!Z29*'5. UD1 Parameters'!$D$16*'5. UD1 Parameters'!B$27*0.000001 -> 0.483 | Q27: =(('6. UD1 Assumptions'!K29*'5. UD1 Parameters'!$D$20)+('6. UD1 Assumptions'!R29*'5. UD1 Parameters'!$D$22))*'5. UD1 Parameters'!B$27*0.000001 -> 3.21069 | R27: ='6. UD1 Assumptions'!I29*'5. UD1 Parameters'!$D$25*'5. UD1 Parameters'!B$27*0.000001 -> 0.07392 | S27: 4.0626222 | U27: ='UD1 LS'!$EO$5 -> 0.6052822083 | V27: ='UD1 LS'!$EO$8 -> 5.050219707 | W27: ='6. UD1 Assumptions'!E29*'UD1 LS'!$FP$29*'UD1 LS'!$FQ$29*'5. UD1 Parameters'!$B$28*365*0.001*(44/28)*0.000001*(('UD1 LS'!$FI$29*'5. UD1 Parameters'!$C$59)+('UD1 LS'!$FK$29*'5. UD1 Parameters'!$E$59)) -> 0.1390370783 | X27: ='6. UD1 Assumptions'!C29*'UD1 LS'!$FP$30*'UD1 LS'!$FQ$30*'5. UD1 Parameters'!$B$28*365*0.001*(44/28)*0.000001*(('UD1 LS'!$FI$30*'5. UD1 Parameters'!$C$60)+('UD1 LS'!$FK$30*'5. UD1 Parameters'!$E$60)) -> 0.9494973974 | Z27: ='UD1 LS'!$EO$10 -> 1.903664599 | AA27: =(('6. UD1 Assumptions'!K29*'UD1 LS'!$FP$32*'UD1 LS'!$FQ$32)*'5. UD1 Parameters'!$H$62+((('6. UD1 Assumptions'!K29/50)*'UD1 LS'!$FP$33*'UD1 LS'!$FQ$33)+('6. UD1 Assumptions'!P29*'UD1 LS'!$FP$35*'UD1 LS'!$FQ$35)+('6. UD1 Assumptions'!M29*'UD1 LS'!$FP$34*'UD1 LS'!$FQ$34))*'5. UD1 Parameters'!$H$63)*'5. UD1 Parameters'!$B$28*365*0.001*0.000001*44/28 -> 4.520665332 | AC27: 13.16836632 | AE27: 33.64290852 | AH27: 2050 | AI27: ='6. UD1 Assumptions'!T57*'5. UD1 Parameters'!$C$5*'5. UD1 Parameters'!B$27*0.000001 -> 4.347 | AJ27: ='6. UD1 Assumptions'!V57*'5. UD1 Parameters'!$C$6*'5. UD1 Parameters'!B$27*0.000001 -> 5.859 | AK27: ='6. UD1 Assumptions'!E57*'5. UD1 Parameters'!$C$11*'5. UD1 Parameters'!B$27*0.000001 -> 0.84 | AL27: ='6. UD1 Assumptions'!C57*'5. UD1 Parameters'!$C$12*'5. UD1 Parameters'!B$27*0.000001 -> 4.2 | AM27: ='UD1 Scenarios'!F27 -> 0.32319 | AN27: ='6. UD1 Assumptions'!Z57*'5. UD1 Parameters'!$C$16*'5. UD1 Parameters'!B$27*0.000001 -> 0.735 | AO27: ='6. UD1 Assumptions'!I57*'5. UD1 Parameters'!$C$25*'5. UD1 Parameters'!B$27*0.000001 -> 9.24 | AP27: 25.54419 | AR27: ='6. UD1 Assumptions'!T57*'5. UD1 Parameters'!$D$5*'5. UD1 Parameters'!B$27*0.000001 -> 0.0945 | AS27: ='6. UD1 Assumptions'!V57*'5. UD1 Parameters'!$D$6*'5. UD1 Parameters'!B$27*0.000001 -> 0.189 | AT27: ='6. UD1 Assumptions'!E57*'5. UD1 Parameters'!$D$11*'5. UD1 Parameters'!B$27*0.000001 -> 0.0252 | AU27: ='6. UD1 Assumptions'!C57*'5. UD1 Parameters'!$D$12*'5. UD1 Parameters'!B$27*0.000001 -> 0.1428 | AV27: ='UD1 Scenarios'!O27 -> 0.0294462 | AW27: ='6. UD1 Assumptions'!Z57*'5. UD1 Parameters'!$D$16*'5. UD1 Parameters'!B$27*0.000001 -> 0.735 | AX27: =(('6. UD1 Assumptions'!$K57*'5. UD1 Parameters'!$D$20)+('6. UD1 Assumptions'!$R57*'5. UD1 Parameters'!$D$22))*'5. UD1 Parameters'!B$27*0.000001 -> 3.21069 | AY27: ='6. UD1 Assumptions'!I57*'5. UD1 Parameters'!$D$25*'5. UD1 Parameters'!B$27*0.000001 -> 0.10164 | AZ27: 4.5282762 | BB27: ='UD1 LS'!$EO$16 -> 1.08928338 | BC27: ='UD1 LS'!$EO$19 -> 5.45639888 | BD27: ='6. UD1 Assumptions'!E57*'UD1 LS'!$FP$29*'UD1 LS'!$FQ$29*'5. UD1 Parameters'!$B$28*365*0.001*(44/28)*0.000001*(('UD1 LS'!$FI$29*'5. UD1 Parameters'!$C$59)+('UD1 LS'!$FK$29*'5. UD1 Parameters'!$E$59)) -> 0.3707655421 | BE27: ='6. UD1 Assumptions'!C57*'UD1 LS'!$FP$30*'UD1 LS'!$FQ$30*'5. UD1 Parameters'!$B$28*365*0.001*(44/28)*0.000001*(('UD1 LS'!$FI$30*'5. UD1 Parameters'!$C$60)+('UD1 LS'!$FK$30*'5. UD1 Parameters'!$E$60)) -> 1.531447415 | BG27: ='UD1 LS'!$EO$21 -> 1.448440456 | BH27: =(('6. UD1 Assumptions'!$K57*'UD1 LS'!$FP$32*'UD1 LS'!$FQ$32)*'5. UD1 Parameters'!$H$62+(('UD1 LS'!EH$4*'UD1 LS'!$FP$33*'UD1 LS'!$FQ$33)+('6. UD1 Assumptions'!$P57*'UD1 LS'!$FP$35*'UD1 LS'!$FQ$35)+('6. UD1 Assumptions'!$M57*'UD1 LS'!$FP$34*'UD1 LS'!$FQ$34))*'5. UD1 Parameters'!$H$63)*'5. UD1 Parameters'!$B$28*365*0.001*0.000001*44/28 -> 4.138034226 | BJ27: 14.0343699 | BK27: 44.1068361 | BL27: 57.91435582 | BN27: 2050 | BO27: 25.54419 | BP27: 4.5282762 | BQ27: ='UD1 LS'!$EO$29 -> 1.111742832 | BR27: ='UD1 LS'!$EO$32 -> 5.478858332 | BS27: ='UD1 Scenarios'!BD27 -> 0.3707655421 | BT27: ='UD1 Scenarios'!BE27 -> 1.531447415 | BV27: ='UD1 LS'!$EO$34 -> 2.896880911 | BW27: ='UD1 Scenarios'!BH27 -> 4.138034226 | BY27: 15.52772926 | BZ27: 45.60019546 | CB27: 1.493359358 | CE27: 19.538 | CF27: 30.40975 | CG27: 37.16009016 | CH27: 49.83484877 | CI27: 51.328132

Sheet UD2 Scenarios (hidden)
AH3: New Technology | AK3: New Technology | AN3: New Technology | AQ3: New Technology | AT3: New Technology | AW3: New Technology | BD3: New Technolgy | BG3: New Technolgy | BJ3: New Technolgy | BO3: OLD TECHNOLOGY | BR3: OLD TECHNOLOGY | BT3: OLD TECHNOLOGY | BV3: OLD TECHNOLOGY | BX3: OLD TECHNOLOGY
B4: BAU - CO2e from enteric fermentation, Gg/yr | K4: BAU - CO2e emissions from livestock manure management, Gg/yr | U4: BAU - CO2e emissions from livestock manure management, Gg/yr | AI4: Policy - CO2e from enteric fermentation, Gg/yr | AR4: Policy scenario - CO2e emissions from livestock manure management, Gg/yr | BB4: Policy scenario - CO2e emissions from livestock manure, Gg/yr | BO4: Policy with MMS unchanged, Gg CO2e | BQ4: Policy scenario without technological change - CO2e emissions from livestock manure, Gg/yr
B5: CALCULATING EMISSIONS FROM ENTERIC FERMENTATION | I5: Gg CO2e | K5: CALCULATING DIRECT CH4 EMISSIONS FROM MANURE MANAGEMENT SYSTEM | R5: Gg CO2e | U5: CALCULATING N20 EMISSIONS FROM MANURE MANAGEMENT | AC5: Gg CO2e | AE5: All | AI5: CALCULATING EMISSIONS FROM ENTERIC FERMENTATION | AP5: Gg CO2e | AR5: CALCULATING DIRECT CH4 EMISSIONS FROM MANURE MANAGEMENT SYSTEM | AZ5: Gg CO2e | BB5: CALCULATING N20 EMISSIONS FROM MANURE MANAGEMENT | BJ5: Gg CO2e | BK5: Gg CO2e
A6: YEAR | B6: Dairy cows | C6: other cattle | D6: sheep | E6: goats | F6: horses | G6: swine | H6: other (deer) | I6: Total Enteric | K6: Dairy cows | L6: other cattle | M6: sheep | N6: goats | O6: horses | P6: swine | Q6: Poultry | R6: other (deer) | S6: Total LMMCH4 | U6: Dairy cows | V6: other cattle | W6: sheep | X6: goats | Y6: horses | Z6: swine | AA6: Poultry | AB6: other (deer) | AC6: Total LMMN2O | AE6: BAU Total | AH6: YEAR | AI6: Dairy cows | AJ6: other cattle | AK6: sheep | AL6: goats | AM6: horses | AN6: swine | AO6: other (deer) | AP6: Enteric | AR6: Dairy cows | AS6: other cattle | AT6: sheep | AU6: goats | AV6: horses | AW6: swine | AX6: Poultry | AY6: other (deer) | AZ6: Total LMMCH4 | BB6: Dairy cows | BC6: other cattle | BD6: sheep | BE6: goats | BF6: horses | BG6: swine | BH6: Poultry | BI6: other (deer) | BJ6: Total LMMN2O | BK6: All Total | BN6: YEAR | BO6: Enteric | BP6: LMMCH4 | BQ6: Dairy cows | BR6: other cattle | BS6: sheep | BT6: goats | BU6: horses | BV6: swine | BW6: Poultry | BX6: other (deer) | BY6: LMMN2O | BZ6: Total | CE6: i | CF6: ap | CG6: ae | CH6: bk | CI6: ca
A7: 2006 | B7: ='6. UD2 Assumptions'!T9*'5. UD2 Parameters'!$C$5*'5. UD2 Parameters'!B$27*0.000001 -> 2.57255 | C7: ='6. UD2 Assumptions'!V9*'5. UD2 Parameters'!$C$6*'5. UD2 Parameters'!B$27*0.000001 -> 5.4374 | D7: ='6. UD2 Assumptions'!E9*'5. UD2 Parameters'!$C$11*'5. UD2 Parameters'!B$27*0.000001 -> 0.15971875 | E7: ='6. UD2 Assumptions'!C9*'5. UD2 Parameters'!$C$12*'5. UD2 Parameters'!B$27*0.000001 -> 3.068375 | F7: ='6. UD2 Assumptions'!G9*'5. UD2 Parameters'!$C$13*'5. UD2 Parameters'!B$27*0.000001 -> 0.29475 | G7: ='6. UD2 Assumptions'!Z9*'5. UD2 Parameters'!$C$16*'5. UD2 Parameters'!B$27*0.000001 -> 0.382975 | H7: ='6. UD2 Assumptions'!I9*'5. UD2 Parameters'!$C$25*'5. UD2 Parameters'!B$27*0.000001 -> 8 | I7: =SUM(B7:H7) -> 19.91576875 | K7: ='6. UD2 Assumptions'!T9*'5. UD2 Parameters'!$D$5*'5. UD2 Parameters'!B$27*0.000001 -> 0.055925 | L7: ='6. UD2 Assumptions'!V9*'5. UD2 Parameters'!$D$6*'5. UD2 Parameters'!B$27*0.000001 -> 0.1754 | M7: ='6. UD2 Assumptions'!E9*'5. UD2 Parameters'!$D$11*'5. UD2 Parameters'!B$27*0.000001 -> 0.0047915625 | N7: ='6. UD2 Assumptions'!C9*'5. UD2 Parameters'!$D$12*'5. UD2 Parameters'!B$27*0.000001 -> 0.10432475 | O7: ='6. UD2 Assumptions'!G9*'5. UD2 Parameters'!$D$13*'5. UD2 Parameters'!B$27*0.000001 -> 0.026855 | P7: ='6. UD2 Assumptions'!Z9*'5. UD2 Parameters'!$D$16*'5. UD2 Parameters'!B$27*0.000001 -> 0.382975 | Q7: =(('6. UD2 Assumptions'!K$9*'5. UD2 Parameters'!$D$20)+(('6. UD2 Assumptions'!R9)*'5. UD2 Parameters'!$D$22))*'5. UD2 Parameters'!B$27*0.000001 -> 2.635560417 | R7: ='6. UD2 Assumptions'!I9*'5. UD2 Parameters'!$D$25*'5. UD2 Parameters'!B$27*0.000001 -> 0.088 | S7: =SUM(K7:R7) -> 3.473831729 | U7: ='UD2 LS'!J$4 -> 0.5582421356 | V7: ='UD2 LS'!J$9 -> 3.786616672 | W7: ='6. UD2 Assumptions'!E9*'UD2 LS'!$FP$29*'UD2 LS'!$FQ$29*'5. UD2 Parameters'!$B$28*365*0.001*(44/28)*0.000001*(('UD2 LS'!$FI$29*'5. UD2 Parameters'!$C$59)+('UD2 LS'!$FK$29*'5. UD2 Parameters'!$E$59)) -> 0.05921820893 | X7: ='6. UD2 Assumptions'!C9*'UD2 LS'!$FP$30*'UD2 LS'!$FQ$30*'5. UD2 Parameters'!$B$28*365*0.001*(44/28)*0.000001*(('UD2 LS'!$FI$30*'5. UD2 Parameters'!$C$60)+('UD2 LS'!$FK$30*'5. UD2 Parameters'!$E$60)) -> 0.9398109925 | Z7: ='UD2 LS'!$E$34 -> 1.264546964 | AA7: =(('6. UD2 Assumptions'!K$9*'UD2 LS'!$FP$32*'UD2 LS'!$FQ$32*'5. UD2 Parameters'!$H$62)+((('6. UD2 Assumptions'!K9/50)*'UD2 LS'!$FP$33*'UD2 LS'!$FQ$33)+('6. UD2 Assumptions'!P9*'UD2 LS'!$FP$35*'UD2 LS'!$FQ$35)+('6. UD2 Assumptions'!M9*'UD2 LS'!$FP$34*'UD2 LS'!$FQ$34))*'5. UD2 Parameters'!$H$63)*'5. UD2 Parameters'!$B$28*365*0.001*0.000001*44/28 -> 3.528534789 | AC7: =SUM(U7:AB7) -> 10.13696976 | AE7: =I7+S7+AC7 -> 33.52657024 | AH7: =A7 -> 2006 | AI7: ='UD2 Scenarios'!B7 -> 2.57255 | AJ7: ='UD2 Scenarios'!C7 -> 5.4374 | AK7: ='UD2 Scenarios'!D7 -> 0.15971875 | AL7: ='UD2 Scenarios'!E7 -> 3.068375 | AM7: ='UD2 Scenarios'!F7 -> 0.29475 | AN7: ='UD2 Scenarios'!G7 -> 0.382975 | AO7: ='UD2 Scenarios'!H7 -> 8 | AP7: =SUM(AI7:AO7) -> 19.91576875 | AR7: ='UD2 Scenarios'!K7 -> 0.055925 | AS7: ='UD2 Scenarios'!L7 -> 0.1754 | AT7: ='UD2 Scenarios'!M7 -> 0.0047915625 | AU7: ='UD2 Scenarios'!N7 -> 0.10432475 | AV7: ='UD2 Scenarios'!O7 -> 0.026855 | AW7: ='UD2 Scenarios'!P7 -> 0.382975 | AX7: ='UD2 Scenarios'!Q7 -> 2.635560417 | AY7: ='UD2 Scenarios'!R7 -> 0.088 | AZ7: =SUM(AR7:AY7) -> 3.473831729 | BB7: ='UD2 Scenarios'!U7 -> 0.5582421356 | BC7: ='UD2 Scenarios'!V7 -> 3.786616672 | BD7: ='UD2 Scenarios'!W7 -> 0.05921820893 | BE7: ='UD2 Scenarios'!X7 -> 0.9398109925 | BG7: ='UD2 Scenarios'!Z7 -> 1.264546964 | BH7: ='UD2 Scenarios'!AA7 -> 3.528534789 | BJ7: =SUM(BB7:BI7) -> 10.13696976 | BK7: =AP7+AZ7+BJ7 -> 33.52657024 | BN7: =AH7 -> 2006 | BO7: =AP7 -> 19.91576875 | BP7: =AZ7 -> 3.473831729 | BQ7: ='UD2 Scenarios'!BB7 -> 0.5582421356 | BR7: ='UD2 Scenarios'!BC7 -> 3.786616672 | BS7: ='UD2 Scenarios'!BD7 -> 0.05921820893 | BT7: ='UD2 Scenarios'!BE7 -> 0.9398109925 | BV7: ='UD2 Scenarios'!BG7 -> 1.264546964 | BW7: ='UD2 Scenarios'!BH7 -> 3.528534789 | BY7: =SUM(BQ7:BX7) -> 10.13696976 | BZ7: =BO7+BP7+BY7 -> 33.52657024 | CB7: =BZ7-BK7 -> 0 | CE7: 19.91576875 | CF7: 19.91576875 | CG7: 33.52657024 | CH7: 33.52657024 | CI7: 33.52657024
A8: 2007 | B8: ='6. UD2 Assumptions'!T10*'5. UD2 Parameters'!$C$5*'5. UD2 Parameters'!B$27*0.000001 -> 2.48745 | C8: ='6. UD2 Assumptions'!V10*'5. UD2 Parameters'!$C$6*'5. UD2 Parameters'!B$27*0.000001 -> 5.2812375 | D8: ='6. UD2 Assumptions'!E10*'5. UD2 Parameters'!$C$11*'5. UD2 Parameters'!B$27*0.000001 -> 0.14884375 | E8: ='6. UD2 Assumptions'!C10*'5. UD2 Parameters'!$C$12*'5. UD2 Parameters'!B$27*0.000001 -> 3.1625 | F8: ='6. UD2 Assumptions'!G10*'5. UD2 Parameters'!$C$13*'5. UD2 Parameters'!B$27*0.000001 -> 0.315 | G8: ='6. UD2 Assumptions'!Z10*'5. UD2 Parameters'!$C$16*'5. UD2 Parameters'!B$27*0.000001 -> 0.435325 | H8: ='6. UD2 Assumptions'!I10*'5. UD2 Parameters'!$C$25*'5. UD2 Parameters'!B$27*0.000001 -> 8 | I8: 19.83035625 | K8: ='6. UD2 Assumptions'!T10*'5. UD2 Parameters'!$D$5*'5. UD2 Parameters'!B$27*0.000001 -> 0.054075 | L8: ='6. UD2 Assumptions'!V10*'5. UD2 Parameters'!$D$6*'5. UD2 Parameters'!B$27*0.000001 -> 0.1703625 | M8: ='6. UD2 Assumptions'!E10*'5. UD2 Parameters'!$D$11*'5. UD2 Parameters'!B$27*0.000001 -> 0.0044653125 | N8: ='6. UD2 Assumptions'!C10*'5. UD2 Parameters'!$D$12*'5. UD2 Parameters'!B$27*0.000001 -> 0.107525 | O8: ='6. UD2 Assumptions'!G10*'5. UD2 Parameters'!$D$13*'5. UD2 Parameters'!B$27*0.000001 -> 0.0287 | P8: ='6. UD2 Assumptions'!Z10*'5. UD2 Parameters'!$D$16*'5. UD2 Parameters'!B$27*0.000001 -> 0.435325 | Q8: =(('6. UD2 Assumptions'!K$10*'5. UD2 Parameters'!$D$20)+(('6. UD2 Assumptions'!R10)*'5. UD2 Parameters'!$D$22))*'5. UD2 Parameters'!B$27*0.000001 -> 2.831828569 | R8: ='6. UD2 Assumptions'!I10*'5. UD2 Parameters'!$D$25*'5. UD2 Parameters'!B$27*0.000001 -> 0.088 | S8: 3.720281382 | U8: ='UD2 LS'!Z$4 -> 0.5397754758 | V8: ='UD2 LS'!Z$9 -> 2.872454623 | W8: ='6. UD2 Assumptions'!E10*'UD2 LS'!$FP$29*'UD2 LS'!$FQ$29*'5. UD2 Parameters'!$B$28*365*0.001*(44/28)*0.000001*(('UD2 LS'!$FI$29*'5. UD2 Parameters'!$C$59)+('UD2 LS'!$FK$29*'5. UD2 Parameters'!$E$59)) -> 0.05518613365 | X8: ='6. UD2 Assumptions'!C10*'UD2 LS'!$FP$30*'UD2 LS'!$FQ$30*'5. UD2 Parameters'!$B$28*365*0.001*(44/28)*0.000001*(('UD2 LS'!$FI$30*'5. UD2 Parameters'!$C$60)+('UD2 LS'!$FK$30*'5. UD2 Parameters'!$E$60)) -> 0.9686404901 | Z8: ='UD2 LS'!$U$34 -> 1.416377562 | AA8: =(('6. UD2 Assumptions'!K10*'UD2 LS'!$FP$32*'UD2 LS'!$FQ$32)*'5. UD2 Parameters'!$H$62+((('6. UD2 Assumptions'!K10/50)*'UD2 LS'!$FP$33*'UD2 LS'!$FQ$33)+('6. UD2 Assumptions'!P10*'UD2 LS'!$FP$35*'UD2 LS'!$FQ$35)+('6. UD2 Assumptions'!M10*'UD2 LS'!$FP$34*'UD2 LS'!$FQ$34))*'5. UD2 Parameters'!$H$63)*'5. UD2 Parameters'!$B$28*365*0.001*0.000001*44/28 -> 3.571801436 | AC8: 9.424235721 | AE8: 32.97487335 | AH8: 2007 | AI8: ='UD2 Scenarios'!B8 -> 2.48745 | AJ8: ='UD2 Scenarios'!C8 -> 5.2812375 | AK8: ='UD2 Scenarios'!D8 -> 0.14884375 | AL8: ='UD2 Scenarios'!E8 -> 3.1625 | AM8: ='UD2 Scenarios'!F8 -> 0.315 | AN8: ='UD2 Scenarios'!G8 -> 0.435325 | AO8: ='UD2 Scenarios'!H8 -> 8 | AP8: 19.83035625 | AR8: ='UD2 Scenarios'!K8 -> 0.054075 | AS8: ='UD2 Scenarios'!L8 -> 0.1703625 | AT8: ='UD2 Scenarios'!M8 -> 0.0044653125 | AU8: ='UD2 Scenarios'!N8 -> 0.107525 | AV8: ='UD2 Scenarios'!O8 -> 0.0287 | AW8: ='UD2 Scenarios'!P8 -> 0.435325 | AX8: ='UD2 Scenarios'!Q8 -> 2.831828569 | AY8: ='UD2 Scenarios'!R8 -> 0.088 | AZ8: 3.720281382 | BB8: ='UD2 Scenarios'!U8 -> 0.5397754758 | BC8: ='UD2 Scenarios'!V8 -> 2.872454623 | BD8: ='UD2 Scenarios'!W8 -> 0.05518613365 | BE8: ='UD2 Scenarios'!X8 -> 0.9686404901 | BG8: ='UD2 Scenarios'!Z8 -> 1.416377562 | BH8: ='UD2 Scenarios'!AA8 -> 3.571801436 | BJ8: 9.424235721 | BK8: 32.97487335 | BN8: 2007 | BO8: 19.83035625 | BP8: 3.720281382 | BQ8: ='UD2 Scenarios'!BB8 -> 0.5397754758 | BR8: ='UD2 Scenarios'!BC8 -> 2.872454623 | BS8: ='UD2 Scenarios'!BD8 -> 0.05518613365 | BT8: ='UD2 Scenarios'!BE8 -> 0.9686404901 | BV8: ='UD2 Scenarios'!BG8 -> 1.416377562 | BW8: ='UD2 Scenarios'!BH8 -> 3.571801436 | BY8: =SUM(BQ8:BX8) -> 9.424235721 | BZ8: 32.97487335 | CB8: 0 | CE8: 19.83035625 | CF8: 19.83035625 | CG8: 32.97487335 | CH8: 32.97487335 | CI8: 32.97487335
A9: 2008 | B9: ='6. UD2 Assumptions'!T11*'5. UD2 Parameters'!$C$5*'5. UD2 Parameters'!B$27*0.000001 -> 2.82555 | C9: ='6. UD2 Assumptions'!V11*'5. UD2 Parameters'!$C$6*'5. UD2 Parameters'!B$27*0.000001 -> 5.39961875 | D9: ='6. UD2 Assumptions'!E11*'5. UD2 Parameters'!$C$11*'5. UD2 Parameters'!B$27*0.000001 -> 0.2065 | E9: ='6. UD2 Assumptions'!C11*'5. UD2 Parameters'!$C$12*'5. UD2 Parameters'!B$27*0.000001 -> 3.3246875 | F9: ='6. UD2 Assumptions'!G11*'5. UD2 Parameters'!$C$13*'5. UD2 Parameters'!B$27*0.000001 -> 0.32625 | G9: ='6. UD2 Assumptions'!Z11*'5. UD2 Parameters'!$C$16*'5. UD2 Parameters'!B$27*0.000001 -> 0.167475 | H9: ='6. UD2 Assumptions'!I11*'5. UD2 Parameters'!$C$25*'5. UD2 Parameters'!B$27*0.000001 -> 8 | I9: 20.25008125 | K9: ='6. UD2 Assumptions'!T11*'5. UD2 Parameters'!$D$5*'5. UD2 Parameters'!B$27*0.000001 -> 0.061425 | L9: ='6. UD2 Assumptions'!V11*'5. UD2 Parameters'!$D$6*'5. UD2 Parameters'!B$27*0.000001 -> 0.17418125 | M9: ='6. UD2 Assumptions'!E11*'5. UD2 Parameters'!$D$11*'5. UD2 Parameters'!B$27*0.000001 -> 0.006195 | N9: ='6. UD2 Assumptions'!C11*'5. UD2 Parameters'!$D$12*'5. UD2 Parameters'!B$27*0.000001 -> 0.113039375 | O9: ='6. UD2 Assumptions'!G11*'5. UD2 Parameters'!$D$13*'5. UD2 Parameters'!B$27*0.000001 -> 0.029725 | P9: ='6. UD2 Assumptions'!Z11*'5. UD2 Parameters'!$D$16*'5. UD2 Parameters'!B$27*0.000001 -> 0.167475 | Q9: =(('6. UD2 Assumptions'!K11*'5. UD2 Parameters'!$D$20)+(('6. UD2 Assumptions'!R11)*'5. UD2 Parameters'!$D$22))*'5. UD2 Parameters'!B$27*0.000001 -> 2.948722903 | R9: ='6. UD2 Assumptions'!I11*'5. UD2 Parameters'!$D$25*'5. UD2 Parameters'!B$27*0.000001 -> 0.088 | S9: 3.588763528 | U9: ='UD2 LS'!AP$4 -> 0.6131430162 | V9: ='UD2 LS'!AP$9 -> 3.115219455 | W9: ='6. UD2 Assumptions'!E11*'UD2 LS'!$FP$29*'UD2 LS'!$FQ$29*'5. UD2 Parameters'!$B$28*365*0.001*(44/28)*0.000001*(('UD2 LS'!$FI$29*'5. UD2 Parameters'!$C$59)+('UD2 LS'!$FK$29*'5. UD2 Parameters'!$E$59)) -> 0.07656308444 | X9: ='6. UD2 Assumptions'!C11*'UD2 LS'!$FP$30*'UD2 LS'!$FQ$30*'5. UD2 Parameters'!$B$28*365*0.001*(44/28)*0.000001*(('UD2 LS'!$FI$30*'5. UD2 Parameters'!$C$60)+('UD2 LS'!$FK$30*'5. UD2 Parameters'!$E$60)) -> 1.018316816 | Z9: ='UD2 LS'!$AK$35 -> 0.6025301564 | AA9: =(('6. UD2 Assumptions'!K11*'UD2 LS'!$FP$32*'UD2 LS'!$FQ$32)*'5. UD2 Parameters'!$H$62+((('6. UD2 Assumptions'!K11/50)*'UD2 LS'!$FP$33*'UD2 LS'!$FQ$33)+('6. UD2 Assumptions'!P11*'UD2 LS'!$FP$35*'UD2 LS'!$FQ$35)+('6. UD2 Assumptions'!M11*'UD2 LS'!$FP$34*'UD2 LS'!$FQ$34))*'5. UD2 Parameters'!$H$63)*'5. UD2 Parameters'!$B$28*365*0.001*0.000001*44/28 -> 3.662616642 | AC9: 9.088389169 | AE9: 32.92723395 | AH9: 2008 | AI9: ='UD2 Scenarios'!B9 -> 2.82555 | AJ9: ='UD2 Scenarios'!C9 -> 5.39961875 | AK9: ='UD2 Scenarios'!D9 -> 0.2065 | AL9: ='UD2 Scenarios'!E9 -> 3.3246875 | AM9: ='UD2 Scenarios'!F9 -> 0.32625 | AN9: ='UD2 Scenarios'!G9 -> 0.167475 | AO9: ='UD2 Scenarios'!H9 -> 8 | AP9: 20.25008125 | AR9: ='UD2 Scenarios'!K9 -> 0.061425 | AS9: ='UD2 Scenarios'!L9 -> 0.17418125 | AT9: ='UD2 Scenarios'!M9 -> 0.006195 | AU9: ='UD2 Scenarios'!N9 -> 0.113039375 | AV9: ='UD2 Scenarios'!O9 -> 0.029725 | AW9: ='UD2 Scenarios'!P9 -> 0.167475 | AX9: ='UD2 Scenarios'!Q9 -> 2.948722903 | AY9: ='UD2 Scenarios'!R9 -> 0.088 | AZ9: 3.588763528 | BB9: ='UD2 Scenarios'!U9 -> 0.6131430162 | BC9: ='UD2 Scenarios'!V9 -> 3.115219455 | BD9: ='UD2 Scenarios'!W9 -> 0.07656308444 | BE9: ='UD2 Scenarios'!X9 -> 1.018316816 | BG9: ='UD2 Scenarios'!Z9 -> 0.6025301564 | BH9: ='UD2 Scenarios'!AA9 -> 3.662616642 | BJ9: 9.088389169 | BK9: 32.92723395 | BN9: 2008 | BO9: 20.25008125 | BP9: 3.588763528 | BQ9: ='UD2 Scenarios'!BB9 -> 0.6131430162 | BR9: ='UD2 Scenarios'!BC9 -> 3.115219455 | BS9: ='UD2 Scenarios'!BD9 -> 0.07656308444 | BT9: ='UD2 Scenarios'!BE9 -> 1.018316816 | BV9: ='UD2 Scenarios'!BG9 -> 0.6025301564 | BW9: ='UD2 Scenarios'!BH9 -> 3.662616642 | BY9: 9.088389169 | BZ9: 32.92723395 | CB9: 0 | CE9: 20.25008125 | CF9: 20.25008125 | CG9: 32.92723395 | CH9: 32.92723395 | CI9: 32.92723395
A10: 2009 | B10: ='6. UD2 Assumptions'!T12*'5. UD2 Parameters'!$C$5*'5. UD2 Parameters'!B$27*0.000001 -> 2.6634 | C10: ='6. UD2 Assumptions'!V12*'5. UD2 Parameters'!$C$6*'5. UD2 Parameters'!B$27*0.000001 -> 5.4292625 | D10: ='6. UD2 Assumptions'!E12*'5. UD2 Parameters'!$C$11*'5. UD2 Parameters'!B$27*0.000001 -> 0.26621875 | E10: ='6. UD2 Assumptions'!C12*'5. UD2 Parameters'!$C$12*'5. UD2 Parameters'!B$27*0.000001 -> 3.33696875 | F10: ='6. UD2 Assumptions'!G12*'5. UD2 Parameters'!$C$13*'5. UD2 Parameters'!B$27*0.000001 -> 0.3375 | G10: ='6. UD2 Assumptions'!Z12*'5. UD2 Parameters'!$C$16*'5. UD2 Parameters'!B$27*0.000001 -> 0.3527 | H10: ='6. UD2 Assumptions'!I12*'5. UD2 Parameters'!$C$25*'5. UD2 Parameters'!B$27*0.000001 -> 8 | I10: 20.38605 | K10: ='6. UD2 Assumptions'!T12*'5. UD2 Parameters'!$D$5*'5. UD2 Parameters'!B$27*0.000001 -> 0.0579 | L10: ='6. UD2 Assumptions'!V12*'5. UD2 Parameters'!$D$6*'5. UD2 Parameters'!B$27*0.000001 -> 0.1751375 | M10: ='6. UD2 Assumptions'!E12*'5. UD2 Parameters'!$D$11*'5. UD2 Parameters'!B$27*0.000001 -> 0.0079865625 | N10: ='6. UD2 Assumptions'!C12*'5. UD2 Parameters'!$D$12*'5. UD2 Parameters'!B$27*0.000001 -> 0.1134569375 | O10: ='6. UD2 Assumptions'!G12*'5. UD2 Parameters'!$D$13*'5. UD2 Parameters'!B$27*0.000001 -> 0.03075 | P10: ='6. UD2 Assumptions'!Z12*'5. UD2 Parameters'!$D$16*'5. UD2 Parameters'!B$27*0.000001 -> 0.3527 | Q10: =(('6. UD2 Assumptions'!K12*'5. UD2 Parameters'!$D$20)+(('6. UD2 Assumptions'!R12)*'5. UD2 Parameters'!$D$22))*'5. UD2 Parameters'!B$27*0.000001 -> 2.962271264 | R10: ='6. UD2 Assumptions'!I12*'5. UD2 Parameters'!$D$25*'5. UD2 Parameters'!B$27*0.000001 -> 0.088 | S10: 3.788202264 | U10: ='UD2 LS'!BF$4 -> 0.5392763769 | V10: ='UD2 LS'!BF$9 -> 3.05382249 | W10: ='6. UD2 Assumptions'!E12*'UD2 LS'!$FP$29*'UD2 LS'!$FQ$29*'5. UD2 Parameters'!$B$28*365*0.001*(44/28)*0.000001*(('UD2 LS'!$FI$29*'5. UD2 Parameters'!$C$59)+('UD2 LS'!$FK$29*'5. UD2 Parameters'!$E$59)) -> 0.09870473916 | X10: ='6. UD2 Assumptions'!C12*'UD2 LS'!$FP$30*'UD2 LS'!$FQ$30*'5. UD2 Parameters'!$B$28*365*0.001*(44/28)*0.000001*(('UD2 LS'!$FI$30*'5. UD2 Parameters'!$C$60)+('UD2 LS'!$FK$30*'5. UD2 Parameters'!$E$60)) -> 1.022078433 | Z10: ='UD2 LS'!$BA$35 -> 1.105543288 | AA10: =(('6. UD2 Assumptions'!K12*'UD2 LS'!$FP$32*'UD2 LS'!$FQ$32)*'5. UD2 Parameters'!$H$62+((('6. UD2 Assumptions'!K12/50)*'UD2 LS'!$FP$33*'UD2 LS'!$FQ$33)+('6. UD2 Assumptions'!P12*'UD2 LS'!$FP$35*'UD2 LS'!$FQ$35)+('6. UD2 Assumptions'!M12*'UD2 LS'!$FP$34*'UD2 LS'!$FQ$34))*'5. UD2 Parameters'!$H$63)*'5. UD2 Parameters'!$B$28*365*0.001*0.000001*44/28 -> 3.413825032 | AC10: 9.233250359 | AE10: 33.40750262 | AH10: 2009 | AI10: ='UD2 Scenarios'!B10 -> 2.6634 | AJ10: ='UD2 Scenarios'!C10 -> 5.4292625 | AK10: ='UD2 Scenarios'!D10 -> 0.26621875 | AL10: ='UD2 Scenarios'!E10 -> 3.33696875 | AM10: ='UD2 Scenarios'!F10 -> 0.3375 | AN10: ='UD2 Scenarios'!G10 -> 0.3527 | AO10: ='UD2 Scenarios'!H10 -> 8 | AP10: 20.38605 | AR10: ='UD2 Scenarios'!K10 -> 0.0579 | AS10: ='UD2 Scenarios'!L10 -> 0.1751375 | AT10: ='UD2 Scenarios'!M10 -> 0.0079865625 | AU10: ='UD2 Scenarios'!N10 -> 0.1134569375 | AV10: ='UD2 Scenarios'!O10 -> 0.03075 | AW10: ='UD2 Scenarios'!P10 -> 0.3527 | AX10: ='UD2 Scenarios'!Q10 -> 2.962271264 | AY10: ='UD2 Scenarios'!R10 -> 0.088 | AZ10: 3.788202264 | BB10: ='UD2 Scenarios'!U10 -> 0.5392763769 | BC10: ='UD2 Scenarios'!V10 -> 3.05382249 | BD10: ='UD2 Scenarios'!W10 -> 0.09870473916 | BE10: ='UD2 Scenarios'!X10 -> 1.022078433 | BG10: ='UD2 Scenarios'!Z10 -> 1.105543288 | BH10: ='UD2 Scenarios'!AA10 -> 3.413825032 | BJ10: 9.233250359 | BK10: 33.40750262 | BN10: 2009 | BO10: 20.38605 | BP10: 3.788202264 | BQ10: ='UD2 Scenarios'!BB10 -> 0.5392763769 | BR10: ='UD2 Scenarios'!BC10 -> 3.05382249 | BS10: ='UD2 Scenarios'!BD10 -> 0.09870473916 | BT10: ='UD2 Scenarios'!BE10 -> 1.022078433 | BV10: ='UD2 Scenarios'!BG10 -> 1.105543288 | BW10: ='UD2 Scenarios'!BH10 -> 3.413825032 | BY10: 9.233250359 | BZ10: 33.40750262 | CB10: 0 | CE10: 20.38605 | CF10: 20.38605 | CG10: 33.40750262 | CH10: 33.40750262 | CI10: 33.40750262
A11: 2010 | B11: ='6. UD2 Assumptions'!T13*'5. UD2 Parameters'!$C$5*'5. UD2 Parameters'!B$27*0.000001 -> 3.08085 | C11: ='6. UD2 Assumptions'!V13*'5. UD2 Parameters'!$C$6*'5. UD2 Parameters'!B$27*0.000001 -> 5.30545625 | D11: ='6. UD2 Assumptions'!E13*'5. UD2 Parameters'!$C$11*'5. UD2 Parameters'!B$27*0.000001 -> 0.262 | E11: ='6. UD2 Assumptions'!C13*'5. UD2 Parameters'!$C$12*'5. UD2 Parameters'!B$27*0.000001 -> 3.53340625 | F11: ='6. UD2 Assumptions'!G13*'5. UD2 Parameters'!$C$13*'5. UD2 Parameters'!B$27*0.000001 -> 0.34875 | G11: ='6. UD2 Assumptions'!Z13*'5. UD2 Parameters'!$C$16*'5. UD2 Parameters'!B$27*0.000001 -> 0.558175 | H11: ='6. UD2 Assumptions'!I13*'5. UD2 Parameters'!$C$25*'5. UD2 Parameters'!B$27*0.000001 -> 8 | I11: 21.0886375 | K11: ='6. UD2 Assumptions'!T13*'5. UD2 Parameters'!$D$5*'5. UD2 Parameters'!B$27*0.000001 -> 0.066975 | L11: ='6. UD2 Assumptions'!V13*'5. UD2 Parameters'!$D$6*'5. UD2 Parameters'!B$27*0.000001 -> 0.17114375 | M11: ='6. UD2 Assumptions'!E13*'5. UD2 Parameters'!$D$11*'5. UD2 Parameters'!B$27*0.000001 -> 0.00786 | N11: ='6. UD2 Assumptions'!C13*'5. UD2 Parameters'!$D$12*'5. UD2 Parameters'!B$27*0.000001 -> 0.1201358125 | O11: ='6. UD2 Assumptions'!G13*'5. UD2 Parameters'!$D$13*'5. UD2 Parameters'!B$27*0.000001 -> 0.031775 | P11: ='6. UD2 Assumptions'!Z13*'5. UD2 Parameters'!$D$16*'5. UD2 Parameters'!B$27*0.000001 -> 0.558175 | Q11: =(('6. UD2 Assumptions'!K13*'5. UD2 Parameters'!$D$20)+(('6. UD2 Assumptions'!R13)*'5. UD2 Parameters'!$D$22))*'5. UD2 Parameters'!B$27*0.000001 -> 3.113983667 | R11: ='6. UD2 Assumptions'!I13*'5. UD2 Parameters'!$D$25*'5. UD2 Parameters'!B$27*0.000001 -> 0.088 | S11: 4.158048229 | U11: ='UD2 LS'!BV$4 -> 0.662419052 | V11: ='UD2 LS'!BV$9 -> 3.029608082 | W11: ='6. UD2 Assumptions'!E13*'UD2 LS'!$FP$29*'UD2 LS'!$FQ$29*'5. UD2 Parameters'!$B$28*365*0.001*(44/28)*0.000001*(('UD2 LS'!$FI$29*'5. UD2 Parameters'!$C$59)+('UD2 LS'!$FK$29*'5. UD2 Parameters'!$E$59)) -> 0.09714057203 | X11: ='6. UD2 Assumptions'!C13*'UD2 LS'!$FP$30*'UD2 LS'!$FQ$30*'5. UD2 Parameters'!$B$28*365*0.001*(44/28)*0.000001*(('UD2 LS'!$FI$30*'5. UD2 Parameters'!$C$60)+('UD2 LS'!$FK$30*'5. UD2 Parameters'!$E$60)) -> 1.082245174 | Z11: ='UD2 LS'!$BQ$38 -> 1.101885752 | AA11: =(('6. UD2 Assumptions'!K13*'UD2 LS'!$FP$32*'UD2 LS'!$FQ$32)*'5. UD2 Parameters'!$H$62+((('6. UD2 Assumptions'!K13/50)*'UD2 LS'!$FP$33*'UD2 LS'!$FQ$33)+('6. UD2 Assumptions'!P13*'UD2 LS'!$FP$35*'UD2 LS'!$FQ$35)+('6. UD2 Assumptions'!M13*'UD2 LS'!$FP$34*'UD2 LS'!$FQ$34))*'5. UD2 Parameters'!$H$63)*'5. UD2 Parameters'!$B$28*365*0.001*0.000001*44/28 -> 3.628699386 | AC11: 9.601998017 | AE11: 34.84868375 | AH11: 2010 | AI11: ='UD2 Scenarios'!B11 -> 3.08085 | AJ11: ='UD2 Scenarios'!C11 -> 5.30545625 | AK11: ='UD2 Scenarios'!D11 -> 0.262 | AL11: ='UD2 Scenarios'!E11 -> 3.53340625 | AM11: ='UD2 Scenarios'!F11 -> 0.34875 | AN11: ='UD2 Scenarios'!G11 -> 0.558175 | AO11: ='UD2 Scenarios'!H11 -> 8 | AP11: 21.0886375 | AR11: ='UD2 Scenarios'!K11 -> 0.066975 | AS11: ='UD2 Scenarios'!L11 -> 0.17114375 | AT11: ='UD2 Scenarios'!M11 -> 0.00786 | AU11: ='UD2 Scenarios'!N11 -> 0.1201358125 | AV11: ='UD2 Scenarios'!O11 -> 0.031775 | AW11: ='UD2 Scenarios'!P11 -> 0.558175 | AX11: ='UD2 Scenarios'!Q11 -> 3.113983667 | AY11: ='UD2 Scenarios'!R11 -> 0.088 | AZ11: 4.158048229 | BB11: ='UD2 Scenarios'!U11 -> 0.662419052 | BC11: ='UD2 Scenarios'!V11 -> 3.029608082 | BD11: ='UD2 Scenarios'!W11 -> 0.09714057203 | BE11: ='UD2 Scenarios'!X11 -> 1.082245174 | BG11: ='UD2 Scenarios'!Z11 -> 1.101885752 | BH11: ='UD2 Scenarios'!AA11 -> 3.628699386 | BJ11: 9.601998017 | BK11: 34.84868375 | BN11: 2010 | BO11: 21.0886375 | BP11: 4.158048229 | BQ11: ='UD2 Scenarios'!BB11 -> 0.662419052 | BR11: ='UD2 Scenarios'!BC11 -> 3.029608082 | BS11: ='UD2 Scenarios'!BD11 -> 0.09714057203 | BT11: ='UD2 Scenarios'!BE11 -> 1.082245174 | BV11: ='UD2 Scenarios'!BG11 -> 1.101885752 | BW11: ='UD2 Scenarios'!BH11 -> 3.628699386 | BY11: 9.601998017 | BZ11: 34.84868375 | CB11: 0 | CE11: 21.0886375 | CF11: 21.0886375 | CG11: 34.84868375 | CH11: 34.84868375 | CI11: 34.84868375
A12: 2011 | B12: ='6. UD2 Assumptions'!T14*'5. UD2 Parameters'!$C$5*'5. UD2 Parameters'!B$27*0.000001 -> 2.90375 | C12: ='6. UD2 Assumptions'!V14*'5. UD2 Parameters'!$C$6*'5. UD2 Parameters'!B$27*0.000001 -> 4.6426375 | D12: ='6. UD2 Assumptions'!E14*'5. UD2 Parameters'!$C$11*'5. UD2 Parameters'!B$27*0.000001 -> 0.2491875 | E12: ='6. UD2 Assumptions'!C14*'5. UD2 Parameters'!$C$12*'5. UD2 Parameters'!B$27*0.000001 -> 3.5354375 | F12: ='6. UD2 Assumptions'!G14*'5. UD2 Parameters'!$C$13*'5. UD2 Parameters'!B$27*0.000001 -> 0.36 | G12: ='6. UD2 Assumptions'!Z14*'5. UD2 Parameters'!$C$16*'5. UD2 Parameters'!B$27*0.000001 -> 0.582125 | H12: ='6. UD2 Assumptions'!I14*'5. UD2 Parameters'!$C$25*'5. UD2 Parameters'!B$27*0.000001 -> 8 | I12: 20.2731375 | K12: ='6. UD2 Assumptions'!T14*'5. UD2 Parameters'!$D$5*'5. UD2 Parameters'!B$27*0.000001 -> 0.063125 | L12: ='6. UD2 Assumptions'!V14*'5. UD2 Parameters'!$D$6*'5. UD2 Parameters'!B$27*0.000001 -> 0.1497625 | M12: ='6. UD2 Assumptions'!E14*'5. UD2 Parameters'!$D$11*'5. UD2 Parameters'!B$27*0.000001 -> 0.007475625 | N12: ='6. UD2 Assumptions'!C14*'5. UD2 Parameters'!$D$12*'5. UD2 Parameters'!B$27*0.000001 -> 0.120204875 | O12: ='6. UD2 Assumptions'!G14*'5. UD2 Parameters'!$D$13*'5. UD2 Parameters'!B$27*0.000001 -> 0.0328 | P12: ='6. UD2 Assumptions'!Z14*'5. UD2 Parameters'!$D$16*'5. UD2 Parameters'!B$27*0.000001 -> 0.582125 | Q12: =(('6. UD2 Assumptions'!K14*'5. UD2 Parameters'!$D$20)+(('6. UD2 Assumptions'!R14)*'5. UD2 Parameters'!$D$22))*'5. UD2 Parameters'!B$27*0.000001 -> 3.172404139 | R12: ='6. UD2 Assumptions'!I14*'5. UD2 Parameters'!$D$25*'5. UD2 Parameters'!B$27*0.000001 -> 0.088 | S12: 4.215897139 | U12: ='UD2 LS'!CM$4 -> 0.6237863005 | V12: ='UD2 LS'!CM$9 -> 2.797930109 | W12: ='6. UD2 Assumptions'!E14*'UD2 LS'!$FP$29*'UD2 LS'!$FQ$29*'5. UD2 Parameters'!$B$28*365*0.001*(44/28)*0.000001*(('UD2 LS'!$FI$29*'5. UD2 Parameters'!$C$59)+('UD2 LS'!$FK$29*'5. UD2 Parameters'!$E$59)) -> 0.09239013852 | X12: ='6. UD2 Assumptions'!C14*'UD2 LS'!$FP$30*'UD2 LS'!$FQ$30*'5. UD2 Parameters'!$B$28*365*0.001*(44/28)*0.000001*(('UD2 LS'!$FI$30*'5. UD2 Parameters'!$C$60)+('UD2 LS'!$FK$30*'5. UD2 Parameters'!$E$60)) -> 1.082867324 | Z12: ='UD2 LS'!$CH$39 -> 1.232752025 | AA12: =(('6. UD2 Assumptions'!K14*'UD2 LS'!$FP$32*'UD2 LS'!$FQ$32)*'5. UD2 Parameters'!$H$62+((('6. UD2 Assumptions'!K14/50)*'UD2 LS'!$FP$33*'UD2 LS'!$FQ$33)+('6. UD2 Assumptions'!P14*'UD2 LS'!$FP$35*'UD2 LS'!$FQ$35)+('6. UD2 Assumptions'!M14*'UD2 LS'!$FP$34*'UD2 LS'!$FQ$34))*'5. UD2 Parameters'!$H$63)*'5. UD2 Parameters'!$B$28*365*0.001*0.000001*44/28 -> 3.678509842 | AC12: 9.50823574 | AE12: 33.99727038 | AH12: 2011 | AI12: ='UD2 Scenarios'!B12 -> 2.90375 | AJ12: ='UD2 Scenarios'!C12 -> 4.6426375 | AK12: ='UD2 Scenarios'!D12 -> 0.2491875 | AL12: ='UD2 Scenarios'!E12 -> 3.5354375 | AM12: ='UD2 Scenarios'!F12 -> 0.36 | AN12: ='UD2 Scenarios'!G12 -> 0.582125 | AO12: ='UD2 Scenarios'!H12 -> 8 | AP12: 20.2731375 | AR12: ='UD2 Scenarios'!K12 -> 0.063125 | AS12: ='UD2 Scenarios'!L12 -> 0.1497625 | AT12: ='UD2 Scenarios'!M12 -> 0.007475625 | AU12: ='UD2 Scenarios'!N12 -> 0.120204875 | AV12: ='UD2 Scenarios'!O12 -> 0.0328 | AW12: ='UD2 Scenarios'!P12 -> 0.582125 | AX12: ='UD2 Scenarios'!Q12 -> 3.172404139 | AY12: ='UD2 Scenarios'!R12 -> 0.088 | AZ12: 4.215897139 | BB12: ='UD2 Scenarios'!U12 -> 0.6237863005 | BC12: ='UD2 Scenarios'!V12 -> 2.797930109 | BD12: ='UD2 Scenarios'!W12 -> 0.09239013852 | BE12: ='UD2 Scenarios'!X12 -> 1.082867324 | BG12: ='UD2 Scenarios'!Z12 -> 1.232752025 | BH12: ='UD2 Scenarios'!AA12 -> 3.678509842 | BJ12: 9.50823574 | BK12: 33.99727038 | BN12: 2011 | BO12: 20.2731375 | BP12: 4.215897139 | BQ12: ='UD2 Scenarios'!BB12 -> 0.6237863005 | BR12: ='UD2 Scenarios'!BC12 -> 2.797930109 | BS12: ='UD2 Scenarios'!BD12 -> 0.09239013852 | BT12: ='UD2 Scenarios'!BE12 -> 1.082867324 | BV12: ='UD2 Scenarios'!BG12 -> 1.232752025 | BW12: ='UD2 Scenarios'!BH12 -> 3.678509842 | BY12: 9.50823574 | BZ12: 33.99727038 | CB12: 0 | CE12: 20.2731375 | CF12: 20.2731375 | CG12: 33.99727038 | CH12: 33.99727038 | CI12: 33.99727038
A13: 2012 | B13: ='6. UD2 Assumptions'!T15*'5. UD2 Parameters'!$C$5*'5. UD2 Parameters'!B$27*0.000001 -> 3.4753 | C13: ='6. UD2 Assumptions'!V15*'5. UD2 Parameters'!$C$6*'5. UD2 Parameters'!B$27*0.000001 -> 4.72691875 | D13: ='6. UD2 Assumptions'!E15*'5. UD2 Parameters'!$C$11*'5. UD2 Parameters'!B$27*0.000001 -> 0.28275 | E13: ='6. UD2 Assumptions'!C15*'5. UD2 Parameters'!$C$12*'5. UD2 Parameters'!B$27*0.000001 -> 3.44109375 | F13: ='6. UD2 Assumptions'!G15*'5. UD2 Parameters'!$C$13*'5. UD2 Parameters'!B$27*0.000001 -> 0.3708 | G13: ='6. UD2 Assumptions'!Z15*'5. UD2 Parameters'!$C$16*'5. UD2 Parameters'!B$27*0.000001 -> 0.382175 | H13: ='6. UD2 Assumptions'!I15*'5. UD2 Parameters'!$C$25*'5. UD2 Parameters'!B$27*0.000001 -> 8 | I13: 20.6790375 | K13: ='6. UD2 Assumptions'!T15*'5. UD2 Parameters'!$D$5*'5. UD2 Parameters'!B$27*0.000001 -> 0.07555 | L13: ='6. UD2 Assumptions'!V15*'5. UD2 Parameters'!$D$6*'5. UD2 Parameters'!B$27*0.000001 -> 0.15248125 | M13: ='6. UD2 Assumptions'!E15*'5. UD2 Parameters'!$D$11*'5. UD2 Parameters'!B$27*0.000001 -> 0.0084825 | N13: ='6. UD2 Assumptions'!C15*'5. UD2 Parameters'!$D$12*'5. UD2 Parameters'!B$27*0.000001 -> 0.1169971875 | O13: ='6. UD2 Assumptions'!G15*'5. UD2 Parameters'!$D$13*'5. UD2 Parameters'!B$27*0.000001 -> 0.033784 | P13: ='6. UD2 Assumptions'!Z15*'5. UD2 Parameters'!$D$16*'5. UD2 Parameters'!B$27*0.000001 -> 0.382175 | Q13: =(('6. UD2 Assumptions'!K15*'5. UD2 Parameters'!$D$20)+(('6. UD2 Assumptions'!R15)*'5. UD2 Parameters'!$D$22))*'5. UD2 Parameters'!B$27*0.000001 -> 3.22830025 | R13: ='6. UD2 Assumptions'!I15*'5. UD2 Parameters'!$D$25*'5. UD2 Parameters'!B$27*0.000001 -> 0.088 | S13: 4.085770187 | U13: ='UD2 LS'!DD$4 -> 0.7461878138 | V13: ='UD2 LS'!DD$9 -> 2.710887882 | W13: ='6. UD2 Assumptions'!E15*'UD2 LS'!$FP$29*'UD2 LS'!$FQ$29*'5. UD2 Parameters'!$B$28*365*0.001*(44/28)*0.000001*(('UD2 LS'!$FI$29*'5. UD2 Parameters'!$C$59)+('UD2 LS'!$FK$29*'5. UD2 Parameters'!$E$59)) -> 0.104833957 | X13: ='6. UD2 Assumptions'!C15*'UD2 LS'!$FP$30*'UD2 LS'!$FQ$30*'5. UD2 Parameters'!$B$28*365*0.001*(44/28)*0.000001*(('UD2 LS'!$FI$30*'5. UD2 Parameters'!$C$60)+('UD2 LS'!$FK$30*'5. UD2 Parameters'!$E$60)) -> 1.053970826 | Z13: ='UD2 LS'!$CY$39 -> 0.8366865826 | AA13: =(('6. UD2 Assumptions'!K15*'UD2 LS'!$FP$32*'UD2 LS'!$FQ$32)*'5. UD2 Parameters'!$H$62+((('6. UD2 Assumptions'!K15/50)*'UD2 LS'!$FP$33*'UD2 LS'!$FQ$33)+('6. UD2 Assumptions'!P15*'UD2 LS'!$FP$35*'UD2 LS'!$FQ$35)+('6. UD2 Assumptions'!M15*'UD2 LS'!$FP$34*'UD2 LS'!$FQ$34))*'5. UD2 Parameters'!$H$63)*'5. UD2 Parameters'!$B$28*365*0.001*0.000001*44/28 -> 3.835226582 | AC13: 9.287793643 | AE13: 34.05260133 | AH13: 2012 | AI13: ='UD2 Scenarios'!B13 -> 3.4753 | AJ13: ='UD2 Scenarios'!C13 -> 4.72691875 | AK13: ='UD2 Scenarios'!D13 -> 0.28275 | AL13: ='UD2 Scenarios'!E13 -> 3.44109375 | AM13: ='UD2 Scenarios'!F13 -> 0.3708 | AN13: ='UD2 Scenarios'!G13 -> 0.382175 | AO13: ='UD2 Scenarios'!H13 -> 8 | AP13: 20.6790375 | AR13: ='UD2 Scenarios'!K13 -> 0.07555 | AS13: ='UD2 Scenarios'!L13 -> 0.15248125 | AT13: ='UD2 Scenarios'!M13 -> 0.0084825 | AU13: ='UD2 Scenarios'!N13 -> 0.1169971875 | AV13: ='UD2 Scenarios'!O13 -> 0.033784 | AW13: ='UD2 Scenarios'!P13 -> 0.382175 | AX13: ='UD2 Scenarios'!Q13 -> 3.22830025 | AY13: ='UD2 Scenarios'!R13 -> 0.088 | AZ13: 4.085770187 | BB13: ='UD2 Scenarios'!U13 -> 0.7461878138 | BC13: ='UD2 Scenarios'!V13 -> 2.710887882 | BD13: ='UD2 Scenarios'!W13 -> 0.104833957 | BE13: ='UD2 Scenarios'!X13 -> 1.053970826 | BG13: ='UD2 Scenarios'!Z13 -> 0.8366865826 | BH13: ='UD2 Scenarios'!AA13 -> 3.835226582 | BJ13: 9.287793643 | BK13: 34.05260133 | BN13: 2012 | BO13: 20.6790375 | BP13: 4.085770187 | BQ13: ='UD2 Scenarios'!BB13 -> 0.7461878138 | BR13: ='UD2 Scenarios'!BC13 -> 2.710887882 | BS13: ='UD2 Scenarios'!BD13 -> 0.104833957 | BT13: ='UD2 Scenarios'!BE13 -> 1.053970826 | BV13: ='UD2 Scenarios'!BG13 -> 0.8366865826 | BW13: ='UD2 Scenarios'!BH13 -> 3.835226582 | BY13: 9.287793643 | BZ13: 34.05260133 | CB13: 0 | CE13: 20.6790375 | CF13: 20.6790375 | CG13: 34.05260133 | CH13: 34.05260133 | CI13: 34.05260133
A14: 2013 | B14: ='6. UD2 Assumptions'!T16*'5. UD2 Parameters'!$C$5*'5. UD2 Parameters'!B$27*0.000001 -> 3.3051 | C14: ='6. UD2 Assumptions'!V16*'5. UD2 Parameters'!$C$6*'5. UD2 Parameters'!B$27*0.000001 -> 4.74861875 | D14: ='6. UD2 Assumptions'!E16*'5. UD2 Parameters'!$C$11*'5. UD2 Parameters'!B$27*0.000001 -> 0.3174375 | E14: ='6. UD2 Assumptions'!C16*'5. UD2 Parameters'!$C$12*'5. UD2 Parameters'!B$27*0.000001 -> 3.24159375 | F14: ='6. UD2 Assumptions'!G16*'5. UD2 Parameters'!$C$13*'5. UD2 Parameters'!B$27*0.000001 -> 0.38475 | G14: ='6. UD2 Assumptions'!Z16*'5. UD2 Parameters'!$C$16*'5. UD2 Parameters'!B$27*0.000001 -> 0.399025 | H14: ='6. UD2 Assumptions'!I16*'5. UD2 Parameters'!$C$25*'5. UD2 Parameters'!B$27*0.000001 -> 8 | I14: 20.396525 | K14: ='6. UD2 Assumptions'!T16*'5. UD2 Parameters'!$D$5*'5. UD2 Parameters'!B$27*0.000001 -> 0.07185 | L14: ='6. UD2 Assumptions'!V16*'5. UD2 Parameters'!$D$6*'5. UD2 Parameters'!B$27*0.000001 -> 0.15318125 | M14: ='6. UD2 Assumptions'!E16*'5. UD2 Parameters'!$D$11*'5. UD2 Parameters'!B$27*0.000001 -> 0.009523125 | N14: ='6. UD2 Assumptions'!C16*'5. UD2 Parameters'!$D$12*'5. UD2 Parameters'!B$27*0.000001 -> 0.1102141875 | O14: ='6. UD2 Assumptions'!G16*'5. UD2 Parameters'!$D$13*'5. UD2 Parameters'!B$27*0.000001 -> 0.035055 | P14: ='6. UD2 Assumptions'!Z16*'5. UD2 Parameters'!$D$16*'5. UD2 Parameters'!B$27*0.000001 -> 0.399025 | Q14: =(('6. UD2 Assumptions'!K16*'5. UD2 Parameters'!$D$20)+(('6. UD2 Assumptions'!R16)*'5. UD2 Parameters'!$D$22))*'5. UD2 Parameters'!B$27*0.000001 -> 3.198449125 | R14: ='6. UD2 Assumptions'!I16*'5. UD2 Parameters'!$D$25*'5. UD2 Parameters'!B$27*0.000001 -> 0.088 | S14: 4.065297687 | U14: ='UD2 LS'!DU$4 -> 0.7082288459 | V14: ='UD2 LS'!DU$9 -> 2.650071744 | W14: ='6. UD2 Assumptions'!E16*'UD2 LS'!$FP$29*'UD2 LS'!$FQ$29*'5. UD2 Parameters'!$B$28*365*0.001*(44/28)*0.000001*(('UD2 LS'!$FI$29*'5. UD2 Parameters'!$C$59)+('UD2 LS'!$FK$29*'5. UD2 Parameters'!$E$59)) -> 0.1176948868 | X14: ='6. UD2 Assumptions'!C16*'UD2 LS'!$FP$30*'UD2 LS'!$FQ$30*'5. UD2 Parameters'!$B$28*365*0.001*(44/28)*0.000001*(('UD2 LS'!$FI$30*'5. UD2 Parameters'!$C$60)+('UD2 LS'!$FK$30*'5. UD2 Parameters'!$E$60)) -> 0.9928660739 | Z14: ='UD2 LS'!$DP$39 -> 0.8481910048 | AA14: =(('6. UD2 Assumptions'!K16*'UD2 LS'!$FP$32*'UD2 LS'!$FQ$32)*'5. UD2 Parameters'!$H$62+((('6. UD2 Assumptions'!K16/50)*'UD2 LS'!$FP$33*'UD2 LS'!$FQ$33)+('6. UD2 Assumptions'!P16*'UD2 LS'!$FP$35*'UD2 LS'!$FQ$35)+('6. UD2 Assumptions'!M16*'UD2 LS'!$FP$34*'UD2 LS'!$FQ$34))*'5. UD2 Parameters'!$H$63)*'5. UD2 Parameters'!$B$28*365*0.001*0.000001*44/28 -> 3.823430181 | AC14: 9.140482736 | AE14: 33.60230542 | AH14: 2013 | AI14: ='UD2 Scenarios'!B14 -> 3.3051 | AJ14: ='UD2 Scenarios'!C14 -> 4.74861875 | AK14: ='UD2 Scenarios'!D14 -> 0.3174375 | AL14: ='UD2 Scenarios'!E14 -> 3.24159375 | AM14: ='UD2 Scenarios'!F14 -> 0.38475 | AN14: ='UD2 Scenarios'!G14 -> 0.399025 | AO14: ='UD2 Scenarios'!H14 -> 8 | AP14: 20.396525 | AR14: ='UD2 Scenarios'!K14 -> 0.07185 | AS14: ='UD2 Scenarios'!L14 -> 0.15318125 | AT14: ='UD2 Scenarios'!M14 -> 0.009523125 | AU14: ='UD2 Scenarios'!N14 -> 0.1102141875 | AV14: ='UD2 Scenarios'!O14 -> 0.035055 | AW14: ='UD2 Scenarios'!P14 -> 0.399025 | AX14: ='UD2 Scenarios'!Q14 -> 3.198449125 | AY14: ='UD2 Scenarios'!R14 -> 0.088 | AZ14: 4.065297687 | BB14: ='UD2 Scenarios'!U14 -> 0.7082288459 | BC14: ='UD2 Scenarios'!V14 -> 2.650071744 | BD14: ='UD2 Scenarios'!W14 -> 0.1176948868 | BE14: ='UD2 Scenarios'!X14 -> 0.9928660739 | BG14: ='UD2 Scenarios'!Z14 -> 0.8481910048 | BH14: ='UD2 Scenarios'!AA14 -> 3.823430181 | BJ14: 9.140482736 | BK14: 33.60230542 | BN14: 2013 | BO14: 20.396525 | BP14: 4.065297687 | BQ14: ='UD2 Scenarios'!BB14 -> 0.7082288459 | BR14: ='UD2 Scenarios'!BC14 -> 2.650071744 | BS14: ='UD2 Scenarios'!BD14 -> 0.1176948868 | BT14: ='UD2 Scenarios'!BE14 -> 0.9928660739 | BV14: ='UD2 Scenarios'!BG14 -> 0.8481910048 | BW14: ='UD2 Scenarios'!BH14 -> 3.823430181 | BY14: 9.140482736 | BZ14: 33.60230542 | CB14: 0 | CE14: 20.396525 | CF14: 20.396525 | CG14: 33.60230542 | CH14: 33.60230542 | CI14: 33.60230542
A15: 2014 | B15: ='6. UD2 Assumptions'!T17*'5. UD2 Parameters'!$C$5*'5. UD2 Parameters'!B$27*0.000001 -> 3.32005 | C15: ='6. UD2 Assumptions'!V17*'5. UD2 Parameters'!$C$6*'5. UD2 Parameters'!B$27*0.000001 -> 4.738059375 | D15: ='6. UD2 Assumptions'!E17*'5. UD2 Parameters'!$C$11*'5. UD2 Parameters'!B$27*0.000001 -> 0.32121875 | E15: ='6. UD2 Assumptions'!C17*'5. UD2 Parameters'!$C$12*'5. UD2 Parameters'!B$27*0.000001 -> 3.245796875 | F15: ='6. UD2 Assumptions'!G17*'5. UD2 Parameters'!$C$13*'5. UD2 Parameters'!B$27*0.000001 -> 0.38475 | G15: ='6. UD2 Assumptions'!Z17*'5. UD2 Parameters'!$C$16*'5. UD2 Parameters'!B$27*0.000001 -> 0.4620125 | H15: ='6. UD2 Assumptions'!I17*'5. UD2 Parameters'!$C$25*'5. UD2 Parameters'!B$27*0.000001 -> 8 | I15: 20.4718875 | K15: ='6. UD2 Assumptions'!T17*'5. UD2 Parameters'!$D$5*'5. UD2 Parameters'!B$27*0.000001 -> 0.072175 | L15: ='6. UD2 Assumptions'!V17*'5. UD2 Parameters'!$D$6*'5. UD2 Parameters'!B$27*0.000001 -> 0.152840625 | M15: ='6. UD2 Assumptions'!E17*'5. UD2 Parameters'!$D$11*'5. UD2 Parameters'!B$27*0.000001 -> 0.0096365625 | N15: ='6. UD2 Assumptions'!C17*'5. UD2 Parameters'!$D$12*'5. UD2 Parameters'!B$27*0.000001 -> 0.1103570938 | O15: ='6. UD2 Assumptions'!G17*'5. UD2 Parameters'!$D$13*'5. UD2 Parameters'!B$27*0.000001 -> 0.035055 | P15: ='6. UD2 Assumptions'!Z17*'5. UD2 Parameters'!$D$16*'5. UD2 Parameters'!B$27*0.000001 -> 0.4620125 | Q15: =(('6. UD2 Assumptions'!K17*'5. UD2 Parameters'!$D$20)+(('6. UD2 Assumptions'!R17)*'5. UD2 Parameters'!$D$22))*'5. UD2 Parameters'!B$27*0.000001 -> 3.131224562 | R15: ='6. UD2 Assumptions'!I17*'5. UD2 Parameters'!$D$25*'5. UD2 Parameters'!B$27*0.000001 -> 0.088 | S15: 4.061301344 | U15: ='UD2 LS'!DU$4 -> 0.7082288459 | V15: ='UD2 LS'!DU$9 -> 2.650071744 | W15: ='6. UD2 Assumptions'!E17*'UD2 LS'!$FP$29*'UD2 LS'!$FQ$29*'5. UD2 Parameters'!$B$28*365*0.001*(44/28)*0.000001*(('UD2 LS'!$FI$29*'5. UD2 Parameters'!$C$59)+('UD2 LS'!$FK$29*'5. UD2 Parameters'!$E$59)) -> 0.119096844 | X15: ='6. UD2 Assumptions'!C17*'UD2 LS'!$FP$30*'UD2 LS'!$FQ$30*'5. UD2 Parameters'!$B$28*365*0.001*(44/28)*0.000001*(('UD2 LS'!$FI$30*'5. UD2 Parameters'!$C$60)+('UD2 LS'!$FK$30*'5. UD2 Parameters'!$E$60)) -> 0.9941534469 | Z15: ='UD2 LS'!$DP$39 -> 0.8481910048 | AA15: =(('6. UD2 Assumptions'!K17*'UD2 LS'!$FP$32*'UD2 LS'!$FQ$32)*'5. UD2 Parameters'!$H$62+((('6. UD2 Assumptions'!K17/50)*'UD2 LS'!$FP$33*'UD2 LS'!$FQ$33)+('6. UD2 Assumptions'!P17*'UD2 LS'!$FP$35*'UD2 LS'!$FQ$35)+('6. UD2 Assumptions'!M17*'UD2 LS'!$FP$34*'UD2 LS'!$FQ$34))*'5. UD2 Parameters'!$H$63)*'5. UD2 Parameters'!$B$28*365*0.001*0.000001*44/28 -> 3.795114412 | AC15: 9.114856297 | AE15: 33.64804514 | AH15: 2014 | AI15: ='UD2 Scenarios'!B15 -> 3.32005 | AJ15: ='UD2 Scenarios'!C15 -> 4.738059375 | AK15: ='UD2 Scenarios'!D15 -> 0.32121875 | AL15: ='UD2 Scenarios'!E15 -> 3.245796875 | AM15: ='UD2 Scenarios'!F15 -> 0.38475 | AN15: ='UD2 Scenarios'!G15 -> 0.4620125 | AO15: ='UD2 Scenarios'!H15 -> 8 | AP15: 20.4718875 | AR15: ='UD2 Scenarios'!K15 -> 0.072175 | AS15: ='UD2 Scenarios'!L15 -> 0.152840625 | AT15: ='UD2 Scenarios'!M15 -> 0.0096365625 | AU15: ='UD2 Scenarios'!N15 -> 0.1103570938 | AV15: ='UD2 Scenarios'!O15 -> 0.035055 | AW15: ='UD2 Scenarios'!P15 -> 0.4620125 | AX15: ='UD2 Scenarios'!Q15 -> 3.131224562 | AY15: ='UD2 Scenarios'!R15 -> 0.088 | AZ15: 4.061301344 | BB15: ='UD2 Scenarios'!U15 -> 0.7082288459 | BC15: ='UD2 Scenarios'!V15 -> 2.650071744 | BD15: ='UD2 Scenarios'!W15 -> 0.119096844 | BE15: ='UD2 Scenarios'!X15 -> 0.9941534469 | BG15: ='UD2 Scenarios'!Z15 -> 0.8481910048 | BH15: ='UD2 Scenarios'!AA15 -> 3.795114412 | BJ15: 9.114856297 | BK15: 33.64804514 | BN15: 2014 | BO15: 20.4718875 | BP15: 4.061301344 | BQ15: ='UD2 Scenarios'!BB15 -> 0.7082288459 | BR15: ='UD2 Scenarios'!BC15 -> 2.650071744 | BS15: ='UD2 Scenarios'!BD15 -> 0.119096844 | BT15: ='UD2 Scenarios'!BE15 -> 0.9941534469 | BV15: ='UD2 Scenarios'!BG15 -> 0.8481910048 | BW15: ='UD2 Scenarios'!BH15 -> 3.795114412 | BY15: =SUM(BQ15:BX15) -> 9.114856297 | BZ15: 33.64804514 | CE15: 20.396525 | CF15: 20.396525 | CG15: 33.60230542 | CH15: 33.60230542 | CI15: 33.60230542
A16: 2015 | B16: ='6. UD2 Assumptions'!T18*'5. UD2 Parameters'!$C$5*'5. UD2 Parameters'!B$27*0.000001 -> 3.335 | C16: ='6. UD2 Assumptions'!V18*'5. UD2 Parameters'!$C$6*'5. UD2 Parameters'!B$27*0.000001 -> 4.7275 | D16: ='6. UD2 Assumptions'!E18*'5. UD2 Parameters'!$C$11*'5. UD2 Parameters'!B$27*0.000001 -> 0.325 | E16: ='6. UD2 Assumptions'!C18*'5. UD2 Parameters'!$C$12*'5. UD2 Parameters'!B$27*0.000001 -> 3.25 | F16: ='6. UD2 Assumptions'!G18*'5. UD2 Parameters'!$C$13*'5. UD2 Parameters'!B$27*0.000001 -> 0.38475 | G16: ='6. UD2 Assumptions'!Z18*'5. UD2 Parameters'!$C$16*'5. UD2 Parameters'!B$27*0.000001 -> 0.525 | H16: ='6. UD2 Assumptions'!I18*'5. UD2 Parameters'!$C$25*'5. UD2 Parameters'!B$27*0.000001 -> 8 | I16: 20.54725 | K16: ='6. UD2 Assumptions'!T18*'5. UD2 Parameters'!$D$5*'5. UD2 Parameters'!B$27*0.000001 -> 0.0725 | L16: ='6. UD2 Assumptions'!V18*'5. UD2 Parameters'!$D$6*'5. UD2 Parameters'!B$27*0.000001 -> 0.1525 | M16: ='6. UD2 Assumptions'!E18*'5. UD2 Parameters'!$D$11*'5. UD2 Parameters'!B$27*0.000001 -> 0.00975 | N16: ='6. UD2 Assumptions'!C18*'5. UD2 Parameters'!$D$12*'5. UD2 Parameters'!B$27*0.000001 -> 0.1105 | O16: ='6. UD2 Assumptions'!G18*'5. UD2 Parameters'!$D$13*'5. UD2 Parameters'!B$27*0.000001 -> 0.035055 | P16: ='6. UD2 Assumptions'!Z18*'5. UD2 Parameters'!$D$16*'5. UD2 Parameters'!B$27*0.000001 -> 0.525 | Q16: =(('6. UD2 Assumptions'!K18*'5. UD2 Parameters'!$D$20)+('6. UD2 Assumptions'!R18*'5. UD2 Parameters'!$D$22))*'5. UD2 Parameters'!B$27*0.000001 -> 3.142 | R16: ='6. UD2 Assumptions'!I18*'5. UD2 Parameters'!$D$25*'5. UD2 Parameters'!B$27*0.000001 -> 0.088 | S16: 4.135305 | U16: ='UD2 LS'!$EH$5 -> 0.7164564915 | V16: ='UD2 LS'!$EH$8 -> 3.249009157 | W16: ='6. UD2 Assumptions'!E18*'UD2 LS'!$FP$29*'UD2 LS'!$FQ$29*'5. UD2 Parameters'!$B$28*365*0.001*(44/28)*0.000001*(('UD2 LS'!$FI$29*'5. UD2 Parameters'!$C$59)+('UD2 LS'!$FK$29*'5. UD2 Parameters'!$E$59)) -> 0.1204988012 | X16: ='6. UD2 Assumptions'!C18*'UD2 LS'!$FP$30*'UD2 LS'!$FQ$30*'5. UD2 Parameters'!$B$28*365*0.001*(44/28)*0.000001*(('UD2 LS'!$FI$30*'5. UD2 Parameters'!$C$60)+('UD2 LS'!$FK$30*'5. UD2 Parameters'!$E$60)) -> 0.9954408198 | Z16: ='UD2 LS'!$EH$10 -> 1.738128547 | AA16: =(('6. UD2 Assumptions'!K18*'UD2 LS'!$FP$32*'UD2 LS'!$FQ$32)*'5. UD2 Parameters'!$H$62+((('6. UD2 Assumptions'!K18/50)*'UD2 LS'!$FP$33*'UD2 LS'!$FQ$33)+('6. UD2 Assumptions'!P18*'UD2 LS'!$FP$35*'UD2 LS'!$FQ$35)+('6. UD2 Assumptions'!M18*'UD2 LS'!$FP$34*'UD2 LS'!$FQ$34))*'5. UD2 Parameters'!$H$63)*'5. UD2 Parameters'!$B$28*365*0.001*0.000001*44/28 -> 3.766798642 | AC16: 10.58633246 | AE16: 35.26888746 | AH16: 2015 | AI16: ='6. UD2 Assumptions'!$T$46*'5. UD2 Parameters'!$C$5*'5. UD2 Parameters'!B$27*0.000001 -> 3.335 | AJ16: ='6. UD2 Assumptions'!$V$46*'5. UD2 Parameters'!$C$6*'5. UD2 Parameters'!B$27*0.000001 -> 4.7275 | AK16: ='6. UD2 Assumptions'!$E$46*'5. UD2 Parameters'!$C$11*'5. UD2 Parameters'!B$27*0.000001 -> 0.325 | AL16: ='6. UD2 Assumptions'!$C$46*'5. UD2 Parameters'!$C$12*'5. UD2 Parameters'!B$27*0.000001 -> 3.25 | AM16: ='UD2 Scenarios'!F16 -> 0.38475 | AN16: ='6. UD2 Assumptions'!$Z$46*'5. UD2 Parameters'!$C$16*'5. UD2 Parameters'!B$27*0.000001 -> 0.525 | AO16: ='6. UD2 Assumptions'!$I$46*'5. UD2 Parameters'!$C$25*'5. UD2 Parameters'!B$27*0.000001 -> 8 | AP16: 20.54725 | AR16: ='6. UD2 Assumptions'!$T$46*'5. UD2 Parameters'!$D$5*'5. UD2 Parameters'!B$27*0.000001 -> 0.0725 | AS16: ='6. UD2 Assumptions'!$V$46*'5. UD2 Parameters'!$D$6*'5. UD2 Parameters'!B$27*0.000001 -> 0.1525 | AT16: ='6. UD2 Assumptions'!$E$46*'5. UD2 Parameters'!$D$11*'5. UD2 Parameters'!B$27*0.000001 -> 0.00975 | AU16: ='6. UD2 Assumptions'!$C$46*'5. UD2 Parameters'!$D$12*'5. UD2 Parameters'!B$27*0.000001 -> 0.1105 | AV16: ='UD2 Scenarios'!O16 -> 0.035055 | AW16: ='6. UD2 Assumptions'!$Z$46*'5. UD2 Parameters'!$D$16*'5. UD2 Parameters'!B$27*0.000001 -> 0.525 | AX16: =(('6. UD2 Assumptions'!$K$46*'5. UD2 Parameters'!$D$20)+('6. UD2 Assumptions'!$R$46*'5. UD2 Parameters'!$D$22))*'5. UD2 Parameters'!B$27*0.000001 -> 3.142 | AY16: ='6. UD2 Assumptions'!$I$46*'5. UD2 Parameters'!$D$25*'5. UD2 Parameters'!B$27*0.000001 -> 0.088 | AZ16: 4.135305 | BB16: ='UD2 LS'!$EH$16 -> 0.7164564915 | BC16: ='UD2 LS'!$EH$19 -> 3.249009157 | BD16: ='6. UD2 Assumptions'!$E$46*'UD2 LS'!$FP$29*'UD2 LS'!$FQ$29*'5. UD2 Parameters'!$B$28*365*0.001*(44/28)*0.000001*(('UD2 LS'!$FI$29*'5. UD2 Parameters'!$C$59)+('UD2 LS'!$FK$29*'5. UD2 Parameters'!$E$59)) -> 0.1204988012 | BE16: ='6. UD2 Assumptions'!$C$46*'UD2 LS'!$FP$30*'UD2 LS'!$FQ$30*'5. UD2 Parameters'!$B$28*365*0.001*(44/28)*0.000001*(('UD2 LS'!$FI$30*'5. UD2 Parameters'!$C$60)+('UD2 LS'!$FK$30*'5. UD2 Parameters'!$E$60)) -> 0.9954408198 | BG16: ='UD2 LS'!$EH$21 -> 1.738128547 | BH16: =(('6. UD2 Assumptions'!$K$46*'UD2 LS'!$FP$32*'UD2 LS'!$FQ$32)*'5. UD2 Parameters'!$H$62+(('UD2 LS'!EH$4*'UD2 LS'!$FP$33*'UD2 LS'!$FQ$33)+('6. UD2 Assumptions'!$P$46*'UD2 LS'!$FP$35*'UD2 LS'!$FQ$35)+('6. UD2 Assumptions'!$M$46*'UD2 LS'!$FP$34*'UD2 LS'!$FQ$34))*'5. UD2 Parameters'!$H$63)*'5. UD2 Parameters'!$B$28*365*0.001*0.000001*44/28 -> 3.454807125 | BJ16: 10.27434094 | BK16: 34.95689594 | BN16: 2015 | BO16: 20.54725 | BP16: 4.135305 | BQ16: ='UD2 LS'!$EH$29 -> 0.7164564915 | BR16: ='UD2 LS'!$EH$32 -> 3.249009157 | BS16: ='UD2 Scenarios'!BD16 -> 0.1204988012 | BT16: ='UD2 Scenarios'!BE16 -> 0.9954408198 | BV16: ='UD2 LS'!$EH$34 -> 1.738128547 | BW16: ='UD2 Scenarios'!BH16 -> 3.454807125 | BY16: 10.27434094 | BZ16: 34.95689594 | CB16: =BZ16-BK16 -> 0 | CE16: 20.54725 | CF16: 20.54725 | CG16: 34.95680458 | CH16: 34.95680458 | CI16: 34.95680458
A17: 2016 | B17: ='6. UD2 Assumptions'!T19*'5. UD2 Parameters'!$C$5*'5. UD2 Parameters'!B$27*0.000001 -> 3.289 | C17: ='6. UD2 Assumptions'!V19*'5. UD2 Parameters'!$C$6*'5. UD2 Parameters'!B$27*0.000001 -> 4.681 | D17: ='6. UD2 Assumptions'!E19*'5. UD2 Parameters'!$C$11*'5. UD2 Parameters'!B$27*0.000001 -> 0.3275 | E17: ='6. UD2 Assumptions'!C19*'5. UD2 Parameters'!$C$12*'5. UD2 Parameters'!B$27*0.000001 -> 3.2375 | F17: ='6. UD2 Assumptions'!G19*'5. UD2 Parameters'!$C$13*'5. UD2 Parameters'!B$27*0.000001 -> 0.38475 | G17: ='6. UD2 Assumptions'!Z19*'5. UD2 Parameters'!$C$16*'5. UD2 Parameters'!B$27*0.000001 -> 0.53 | H17: ='6. UD2 Assumptions'!I19*'5. UD2 Parameters'!$C$25*'5. UD2 Parameters'!B$27*0.000001 -> 7.9 | I17: 20.34975 | K17: ='6. UD2 Assumptions'!T19*'5. UD2 Parameters'!$D$5*'5. UD2 Parameters'!B$27*0.000001 -> 0.0715 | L17: ='6. UD2 Assumptions'!V19*'5. UD2 Parameters'!$D$6*'5. UD2 Parameters'!B$27*0.000001 -> 0.151 | M17: ='6. UD2 Assumptions'!E19*'5. UD2 Parameters'!$D$11*'5. UD2 Parameters'!B$27*0.000001 -> 0.009825 | N17: ='6. UD2 Assumptions'!C19*'5. UD2 Parameters'!$D$12*'5. UD2 Parameters'!B$27*0.000001 -> 0.110075 | O17: ='6. UD2 Assumptions'!G19*'5. UD2 Parameters'!$D$13*'5. UD2 Parameters'!B$27*0.000001 -> 0.035055 | P17: ='6. UD2 Assumptions'!Z19*'5. UD2 Parameters'!$D$16*'5. UD2 Parameters'!B$27*0.000001 -> 0.53 | Q17: =(('6. UD2 Assumptions'!K19*'5. UD2 Parameters'!$D$20)+('6. UD2 Assumptions'!R19*'5. UD2 Parameters'!$D$22))*'5. UD2 Parameters'!B$27*0.000001 -> 3.1659 | R17: ='6. UD2 Assumptions'!I19*'5. UD2 Parameters'!$D$25*'5. UD2 Parameters'!B$27*0.000001 -> 0.0869 | S17: 4.160255 | U17: ='UD2 LS'!$EH$5 -> 0.7164564915 | V17: ='UD2 LS'!$EH$8 -> 3.249009157 | W17: ='6. UD2 Assumptions'!E19*'UD2 LS'!$FP$29*'UD2 LS'!$FQ$29*'5. UD2 Parameters'!$B$28*365*0.001*(44/28)*0.000001*(('UD2 LS'!$FI$29*'5. UD2 Parameters'!$C$59)+('UD2 LS'!$FK$29*'5. UD2 Parameters'!$E$59)) -> 0.121425715 | X17: ='6. UD2 Assumptions'!C19*'UD2 LS'!$FP$30*'UD2 LS'!$FQ$30*'5. UD2 Parameters'!$B$28*365*0.001*(44/28)*0.000001*(('UD2 LS'!$FI$30*'5. UD2 Parameters'!$C$60)+('UD2 LS'!$FK$30*'5. UD2 Parameters'!$E$60)) -> 0.9916122013 | Z17: ='UD2 LS'!$EH$10 -> 1.738128547 | AA17: =(('6. UD2 Assumptions'!K19*'UD2 LS'!$FP$32*'UD2 LS'!$FQ$32)*'5. UD2 Parameters'!$H$62+((('6. UD2 Assumptions'!K19/50)*'UD2 LS'!$FP$33*'UD2 LS'!$FQ$33)+('6. UD2 Assumptions'!P19*'UD2 LS'!$FP$35*'UD2 LS'!$FQ$35)+('6. UD2 Assumptions'!M19*'UD2 LS'!$FP$34*'UD2 LS'!$FQ$34))*'5. UD2 Parameters'!$H$63)*'5. UD2 Parameters'!$B$28*365*0.001*0.000001*44/28 -> 3.796014047 | AC17: 10.61264616 | AE17: 35.12265116 | AH17: 2016 | AI17: ='6. UD2 Assumptions'!$T$46*'5. UD2 Parameters'!$C$5*'5. UD2 Parameters'!B$27*0.000001 -> 3.335 | AJ17: ='6. UD2 Assumptions'!$V$46*'5. UD2 Parameters'!$C$6*'5. UD2 Parameters'!B$27*0.000001 -> 4.7275 | AK17: ='6. UD2 Assumptions'!$E$46*'5. UD2 Parameters'!$C$11*'5. UD2 Parameters'!B$27*0.000001 -> 0.325 | AL17: ='6. UD2 Assumptions'!$C$46*'5. UD2 Parameters'!$C$12*'5. UD2 Parameters'!B$27*0.000001 -> 3.25 | AM17: ='UD2 Scenarios'!F17 -> 0.38475 | AN17: ='6. UD2 Assumptions'!$Z$46*'5. UD2 Parameters'!$C$16*'5. UD2 Parameters'!B$27*0.000001 -> 0.525 | AO17: ='6. UD2 Assumptions'!$I$46*'5. UD2 Parameters'!$C$25*'5. UD2 Parameters'!B$27*0.000001 -> 8 | AP17: =SUM(AI17:AO17) -> 20.54725 | AR17: ='6. UD2 Assumptions'!$T$46*'5. UD2 Parameters'!$D$5*'5. UD2 Parameters'!B$27*0.000001 -> 0.0725 | AS17: ='6. UD2 Assumptions'!$V$46*'5. UD2 Parameters'!$D$6*'5. UD2 Parameters'!B$27*0.000001 -> 0.1525 | AT17: ='6. UD2 Assumptions'!$E$46*'5. UD2 Parameters'!$D$11*'5. UD2 Parameters'!B$27*0.000001 -> 0.00975 | AU17: ='6. UD2 Assumptions'!$C$46*'5. UD2 Parameters'!$D$12*'5. UD2 Parameters'!B$27*0.000001 -> 0.1105 | AV17: ='UD2 Scenarios'!O17 -> 0.035055 | AW17: ='6. UD2 Assumptions'!$Z$46*'5. UD2 Parameters'!$D$16*'5. UD2 Parameters'!B$27*0.000001 -> 0.525 | AX17: =(('6. UD2 Assumptions'!$K$46*'5. UD2 Parameters'!$D$20)+('6. UD2 Assumptions'!$R$46*'5. UD2 Parameters'!$D$22))*'5. UD2 Parameters'!B$27*0.000001 -> 3.142 | AY17: ='6. UD2 Assumptions'!$I$46*'5. UD2 Parameters'!$D$25*'5. UD2 Parameters'!B$27*0.000001 -> 0.088 | AZ17: =SUM(AR17:AY17) -> 4.135305 | BB17: ='UD2 LS'!$EH$16 -> 0.7164564915 | BC17: ='UD2 LS'!$EH$19 -> 3.249009157 | BD17: ='6. UD2 Assumptions'!$E$46*'UD2 LS'!$FP$29*'UD2 LS'!$FQ$29*'5. UD2 Parameters'!$B$28*365*0.001*(44/28)*0.000001*(('UD2 LS'!$FI$29*'5. UD2 Parameters'!$C$59)+('UD2 LS'!$FK$29*'5. UD2 Parameters'!$E$59)) -> 0.1204988012 | BE17: ='6. UD2 Assumptions'!$C$46*'UD2 LS'!$FP$30*'UD2 LS'!$FQ$30*'5. UD2 Parameters'!$B$28*365*0.001*(44/28)*0.000001*(('UD2 LS'!$FI$30*'5. UD2 Parameters'!$C$60)+('UD2 LS'!$FK$30*'5. UD2 Parameters'!$E$60)) -> 0.9954408198 | BG17: ='UD2 LS'!$EH$21 -> 1.738128547 | BH17: =(('6. UD2 Assumptions'!$K$46*'UD2 LS'!$FP$32*'UD2 LS'!$FQ$32)*'5. UD2 Parameters'!$H$62+(('UD2 LS'!EH$4*'UD2 LS'!$FP$33*'UD2 LS'!$FQ$33)+('6. UD2 Assumptions'!$P$46*'UD2 LS'!$FP$35*'UD2 LS'!$FQ$35)+('6. UD2 Assumptions'!$M$46*'UD2 LS'!$FP$34*'UD2 LS'!$FQ$34))*'5. UD2 Parameters'!$H$63)*'5. UD2 Parameters'!$B$28*365*0.001*0.000001*44/28 -> 3.454807125 | BJ17: =SUM(BB17:BI17) -> 10.27434094 | BK17: 34.95689594 | BN17: 2016 | BO17: 20.54725 | BP17: 4.135305 | BQ17: ='UD2 LS'!$EH$29 -> 0.7164564915 | BR17: ='UD2 LS'!$EH$32 -> 3.249009157 | BS17: ='UD2 Scenarios'!BD17 -> 0.1204988012 | BT17: ='UD2 Scenarios'!BE17 -> 0.9954408198 | BV17: ='UD2 LS'!$EH$34 -> 1.738128547 | BW17: ='UD2 Scenarios'!BH17 -> 3.454807125 | BY17: =SUM(BQ17:BX17) -> 10.27434094 | BZ17: 34.95689594 | CE17: 20.54725 | CF17: 20.54725 | CG17: 34.95680458 | CH17: 34.95680458 | CI17: 34.95680458
A18: 2017 | B18: ='6. UD2 Assumptions'!T20*'5. UD2 Parameters'!$C$5*'5. UD2 Parameters'!B$27*0.000001 -> 3.243 | C18: ='6. UD2 Assumptions'!V20*'5. UD2 Parameters'!$C$6*'5. UD2 Parameters'!B$27*0.000001 -> 4.6345 | D18: ='6. UD2 Assumptions'!E20*'5. UD2 Parameters'!$C$11*'5. UD2 Parameters'!B$27*0.000001 -> 0.33 | E18: ='6. UD2 Assumptions'!C20*'5. UD2 Parameters'!$C$12*'5. UD2 Parameters'!B$27*0.000001 -> 3.225 | F18: ='6. UD2 Assumptions'!G20*'5. UD2 Parameters'!$C$13*'5. UD2 Parameters'!B$27*0.000001 -> 0.38475 | G18: ='6. UD2 Assumptions'!Z20*'5. UD2 Parameters'!$C$16*'5. UD2 Parameters'!B$27*0.000001 -> 0.535 | H18: ='6. UD2 Assumptions'!I20*'5. UD2 Parameters'!$C$25*'5. UD2 Parameters'!B$27*0.000001 -> 7.8 | I18: 20.15225 | K18: ='6. UD2 Assumptions'!T20*'5. UD2 Parameters'!$D$5*'5. UD2 Parameters'!B$27*0.000001 -> 0.0705 | L18: ='6. UD2 Assumptions'!V20*'5. UD2 Parameters'!$D$6*'5. UD2 Parameters'!B$27*0.000001 -> 0.1495 | M18: ='6. UD2 Assumptions'!E20*'5. UD2 Parameters'!$D$11*'5. UD2 Parameters'!B$27*0.000001 -> 0.0099 | N18: ='6. UD2 Assumptions'!C20*'5. UD2 Parameters'!$D$12*'5. UD2 Parameters'!B$27*0.000001 -> 0.10965 | O18: ='6. UD2 Assumptions'!G20*'5. UD2 Parameters'!$D$13*'5. UD2 Parameters'!B$27*0.000001 -> 0.035055 | P18: ='6. UD2 Assumptions'!Z20*'5. UD2 Parameters'!$D$16*'5. UD2 Parameters'!B$27*0.000001 -> 0.535 | Q18: =(('6. UD2 Assumptions'!K20*'5. UD2 Parameters'!$D$20)+('6. UD2 Assumptions'!R20*'5. UD2 Parameters'!$D$22))*'5. UD2 Parameters'!B$27*0.000001 -> 3.1898 | R18: ='6. UD2 Assumptions'!I20*'5. UD2 Parameters'!$D$25*'5. UD2 Parameters'!B$27*0.000001 -> 0.0858 | S18: 4.185205 | U18: ='UD2 LS'!$EH$5 -> 0.7164564915 | V18: ='UD2 LS'!$EH$8 -> 3.249009157 | W18: ='6. UD2 Assumptions'!E20*'UD2 LS'!$FP$29*'UD2 LS'!$FQ$29*'5. UD2 Parameters'!$B$28*365*0.001*(44/28)*0.000001*(('UD2 LS'!$FI$29*'5. UD2 Parameters'!$C$59)+('UD2 LS'!$FK$29*'5. UD2 Parameters'!$E$59)) -> 0.1223526289 | X18: ='6. UD2 Assumptions'!C20*'UD2 LS'!$FP$30*'UD2 LS'!$FQ$30*'5. UD2 Parameters'!$B$28*365*0.001*(44/28)*0.000001*(('UD2 LS'!$FI$30*'5. UD2 Parameters'!$C$60)+('UD2 LS'!$FK$30*'5. UD2 Parameters'!$E$60)) -> 0.9877835828 | Z18: ='UD2 LS'!$EH$10 -> 1.738128547 | AA18: =(('6. UD2 Assumptions'!K20*'UD2 LS'!$FP$32*'UD2 LS'!$FQ$32)*'5. UD2 Parameters'!$H$62+((('6. UD2 Assumptions'!K20/50)*'UD2 LS'!$FP$33*'UD2 LS'!$FQ$33)+('6. UD2 Assumptions'!P20*'UD2 LS'!$FP$35*'UD2 LS'!$FQ$35)+('6. UD2 Assumptions'!M20*'UD2 LS'!$FP$34*'UD2 LS'!$FQ$34))*'5. UD2 Parameters'!$H$63)*'5. UD2 Parameters'!$B$28*365*0.001*0.000001*44/28 -> 3.825229451 | AC18: 10.63895986 | AE18: 34.97641486 | AH18: 2017 | AI18: ='6. UD2 Assumptions'!$T$46*'5. UD2 Parameters'!$C$5*'5. UD2 Parameters'!B$27*0.000001 -> 3.335 | AJ18: ='6. UD2 Assumptions'!$V$46*'5. UD2 Parameters'!$C$6*'5. UD2 Parameters'!B$27*0.000001 -> 4.7275 | AK18: ='6. UD2 Assumptions'!$E$46*'5. UD2 Parameters'!$C$11*'5. UD2 Parameters'!B$27*0.000001 -> 0.325 | AL18: ='6. UD2 Assumptions'!$C$46*'5. UD2 Parameters'!$C$12*'5. UD2 Parameters'!B$27*0.000001 -> 3.25 | AM18: ='UD2 Scenarios'!F18 -> 0.38475 | AN18: ='6. UD2 Assumptions'!$Z$46*'5. UD2 Parameters'!$C$16*'5. UD2 Parameters'!B$27*0.000001 -> 0.525 | AO18: ='6. UD2 Assumptions'!$I$46*'5. UD2 Parameters'!$C$25*'5. UD2 Parameters'!B$27*0.000001 -> 8 | AP18: 20.54725 | AR18: ='6. UD2 Assumptions'!$T$46*'5. UD2 Parameters'!$D$5*'5. UD2 Parameters'!B$27*0.000001 -> 0.0725 | AS18: ='6. UD2 Assumptions'!$V$46*'5. UD2 Parameters'!$D$6*'5. UD2 Parameters'!B$27*0.000001 -> 0.1525 | AT18: ='6. UD2 Assumptions'!$E$46*'5. UD2 Parameters'!$D$11*'5. UD2 Parameters'!B$27*0.000001 -> 0.00975 | AU18: ='6. UD2 Assumptions'!$C$46*'5. UD2 Parameters'!$D$12*'5. UD2 Parameters'!B$27*0.000001 -> 0.1105 | AV18: ='UD2 Scenarios'!O18 -> 0.035055 | AW18: ='6. UD2 Assumptions'!$Z$46*'5. UD2 Parameters'!$D$16*'5. UD2 Parameters'!B$27*0.000001 -> 0.525 | AX18: =(('6. UD2 Assumptions'!$K$46*'5. UD2 Parameters'!$D$20)+('6. UD2 Assumptions'!$R$46*'5. UD2 Parameters'!$D$22))*'5. UD2 Parameters'!B$27*0.000001 -> 3.142 | AY18: ='6. UD2 Assumptions'!$I$46*'5. UD2 Parameters'!$D$25*'5. UD2 Parameters'!B$27*0.000001 -> 0.088 | AZ18: 4.135305 | BB18: ='UD2 LS'!$EH$16 -> 0.7164564915 | BC18: ='UD2 LS'!$EH$19 -> 3.249009157 | BD18: ='6. UD2 Assumptions'!$E$46*'UD2 LS'!$FP$29*'UD2 LS'!$FQ$29*'5. UD2 Parameters'!$B$28*365*0.001*(44/28)*0.000001*(('UD2 LS'!$FI$29*'5. UD2 Parameters'!$C$59)+('UD2 LS'!$FK$29*'5. UD2 Parameters'!$E$59)) -> 0.1204988012 | BE18: ='6. UD2 Assumptions'!$C$46*'UD2 LS'!$FP$30*'UD2 LS'!$FQ$30*'5. UD2 Parameters'!$B$28*365*0.001*(44/28)*0.000001*(('UD2 LS'!$FI$30*'5. UD2 Parameters'!$C$60)+('UD2 LS'!$FK$30*'5. UD2 Parameters'!$E$60)) -> 0.9954408198 | BG18: ='UD2 LS'!$EH$21 -> 1.738128547 | BH18: =(('6. UD2 Assumptions'!$K$46*'UD2 LS'!$FP$32*'UD2 LS'!$FQ$32)*'5. UD2 Parameters'!$H$62+(('UD2 LS'!EH$4*'UD2 LS'!$FP$33*'UD2 LS'!$FQ$33)+('6. UD2 Assumptions'!$P$46*'UD2 LS'!$FP$35*'UD2 LS'!$FQ$35)+('6. UD2 Assumptions'!$M$46*'UD2 LS'!$FP$34*'UD2 LS'!$FQ$34))*'5. UD2 Parameters'!$H$63)*'5. UD2 Parameters'!$B$28*365*0.001*0.000001*44/28 -> 3.454807125 | BJ18: 10.27434094 | BK18: 34.95689594 | BN18: 2017 | BO18: 20.54725 | BP18: 4.135305 | BQ18: ='UD2 LS'!$EH$29 -> 0.7164564915 | BR18: ='UD2 LS'!$EH$32 -> 3.249009157 | BS18: ='UD2 Scenarios'!BD18 -> 0.1204988012 | BT18: ='UD2 Scenarios'!BE18 -> 0.9954408198 | BV18: ='UD2 LS'!$EH$34 -> 1.738128547 | BW18: ='UD2 Scenarios'!BH18 -> 3.454807125 | BY18: 10.27434094 | BZ18: 34.95689594 | CE18: 20.54725 | CF18: 20.54725 | CG18: 34.95680458 | CH18: 34.95680458 | CI18: 34.95680458
A19: 2018 | B19: ='6. UD2 Assumptions'!T21*'5. UD2 Parameters'!$C$5*'5. UD2 Parameters'!B$27*0.000001 -> 3.197 | C19: ='6. UD2 Assumptions'!V21*'5. UD2 Parameters'!$C$6*'5. UD2 Parameters'!B$27*0.000001 -> 4.588 | D19: ='6. UD2 Assumptions'!E21*'5. UD2 Parameters'!$C$11*'5. UD2 Parameters'!B$27*0.000001 -> 0.3325 | E19: ='6. UD2 Assumptions'!C21*'5. UD2 Parameters'!$C$12*'5. UD2 Parameters'!B$27*0.000001 -> 3.2125 | F19: ='6. UD2 Assumptions'!G21*'5. UD2 Parameters'!$C$13*'5. UD2 Parameters'!B$27*0.000001 -> 0.38475 | G19: ='6. UD2 Assumptions'!Z21*'5. UD2 Parameters'!$C$16*'5. UD2 Parameters'!B$27*0.000001 -> 0.54 | H19: ='6. UD2 Assumptions'!I21*'5. UD2 Parameters'!$C$25*'5. UD2 Parameters'!B$27*0.000001 -> 7.7 | I19: 19.95475 | K19: ='6. UD2 Assumptions'!T21*'5. UD2 Parameters'!$D$5*'5. UD2 Parameters'!B$27*0.000001 -> 0.0695 | L19: ='6. UD2 Assumptions'!V21*'5. UD2 Parameters'!$D$6*'5. UD2 Parameters'!B$27*0.000001 -> 0.148 | M19: ='6. UD2 Assumptions'!E21*'5. UD2 Parameters'!$D$11*'5. UD2 Parameters'!B$27*0.000001 -> 0.009975 | N19: ='6. UD2 Assumptions'!C21*'5. UD2 Parameters'!$D$12*'5. UD2 Parameters'!B$27*0.000001 -> 0.109225 | O19: ='6. UD2 Assumptions'!G21*'5. UD2 Parameters'!$D$13*'5. UD2 Parameters'!B$27*0.000001 -> 0.035055 | P19: ='6. UD2 Assumptions'!Z21*'5. UD2 Parameters'!$D$16*'5. UD2 Parameters'!B$27*0.000001 -> 0.54 | Q19: =(('6. UD2 Assumptions'!K21*'5. UD2 Parameters'!$D$20)+('6. UD2 Assumptions'!R21*'5. UD2 Parameters'!$D$22))*'5. UD2 Parameters'!B$27*0.000001 -> 3.2137 | R19: ='6. UD2 Assumptions'!I21*'5. UD2 Parameters'!$D$25*'5. UD2 Parameters'!B$27*0.000001 -> 0.0847 | S19: 4.210155 | U19: ='UD2 LS'!$EH$5 -> 0.7164564915 | V19: ='UD2 LS'!$EH$8 -> 3.249009157 | W19: ='6. UD2 Assumptions'!E21*'UD2 LS'!$FP$29*'UD2 LS'!$FQ$29*'5. UD2 Parameters'!$B$28*365*0.001*(44/28)*0.000001*(('UD2 LS'!$FI$29*'5. UD2 Parameters'!$C$59)+('UD2 LS'!$FK$29*'5. UD2 Parameters'!$E$59)) -> 0.1232795427 | X19: ='6. UD2 Assumptions'!C21*'UD2 LS'!$FP$30*'UD2 LS'!$FQ$30*'5. UD2 Parameters'!$B$28*365*0.001*(44/28)*0.000001*(('UD2 LS'!$FI$30*'5. UD2 Parameters'!$C$60)+('UD2 LS'!$FK$30*'5. UD2 Parameters'!$E$60)) -> 0.9839549642 | Z19: ='UD2 LS'!$EH$10 -> 1.738128547 | AA19: =(('6. UD2 Assumptions'!K21*'UD2 LS'!$FP$32*'UD2 LS'!$FQ$32)*'5. UD2 Parameters'!$H$62+((('6. UD2 Assumptions'!K21/50)*'UD2 LS'!$FP$33*'UD2 LS'!$FQ$33)+('6. UD2 Assumptions'!P21*'UD2 LS'!$FP$35*'UD2 LS'!$FQ$35)+('6. UD2 Assumptions'!M21*'UD2 LS'!$FP$34*'UD2 LS'!$FQ$34))*'5. UD2 Parameters'!$H$63)*'5. UD2 Parameters'!$B$28*365*0.001*0.000001*44/28 -> 3.854444856 | AC19: 10.66527356 | AE19: 34.83017856 | AH19: 2018 | AI19: ='6. UD2 Assumptions'!$T$46*'5. UD2 Parameters'!$C$5*'5. UD2 Parameters'!B$27*0.000001 -> 3.335 | AJ19: ='6. UD2 Assumptions'!$V$46*'5. UD2 Parameters'!$C$6*'5. UD2 Parameters'!B$27*0.000001 -> 4.7275 | AK19: ='6. UD2 Assumptions'!$E$46*'5. UD2 Parameters'!$C$11*'5. UD2 Parameters'!B$27*0.000001 -> 0.325 | AL19: ='6. UD2 Assumptions'!$C$46*'5. UD2 Parameters'!$C$12*'5. UD2 Parameters'!B$27*0.000001 -> 3.25 | AM19: ='UD2 Scenarios'!F19 -> 0.38475 | AN19: ='6. UD2 Assumptions'!$Z$46*'5. UD2 Parameters'!$C$16*'5. UD2 Parameters'!B$27*0.000001 -> 0.525 | AO19: ='6. UD2 Assumptions'!$I$46*'5. UD2 Parameters'!$C$25*'5. UD2 Parameters'!B$27*0.000001 -> 8 | AP19: 20.54725 | AR19: ='6. UD2 Assumptions'!$T$46*'5. UD2 Parameters'!$D$5*'5. UD2 Parameters'!B$27*0.000001 -> 0.0725 | AS19: ='6. UD2 Assumptions'!$V$46*'5. UD2 Parameters'!$D$6*'5. UD2 Parameters'!B$27*0.000001 -> 0.1525 | AT19: ='6. UD2 Assumptions'!$E$46*'5. UD2 Parameters'!$D$11*'5. UD2 Parameters'!B$27*0.000001 -> 0.00975 | AU19: ='6. UD2 Assumptions'!$C$46*'5. UD2 Parameters'!$D$12*'5. UD2 Parameters'!B$27*0.000001 -> 0.1105 | AV19: ='UD2 Scenarios'!O19 -> 0.035055 | AW19: ='6. UD2 Assumptions'!$Z$46*'5. UD2 Parameters'!$D$16*'5. UD2 Parameters'!B$27*0.000001 -> 0.525 | AX19: =(('6. UD2 Assumptions'!$K$46*'5. UD2 Parameters'!$D$20)+('6. UD2 Assumptions'!$R$46*'5. UD2 Parameters'!$D$22))*'5. UD2 Parameters'!B$27*0.000001 -> 3.142 | AY19: ='6. UD2 Assumptions'!$I$46*'5. UD2 Parameters'!$D$25*'5. UD2 Parameters'!B$27*0.000001 -> 0.088 | AZ19: 4.135305 | BB19: ='UD2 LS'!$EH$16 -> 0.7164564915 | BC19: ='UD2 LS'!$EH$19 -> 3.249009157 | BD19: ='6. UD2 Assumptions'!$E$46*'UD2 LS'!$FP$29*'UD2 LS'!$FQ$29*'5. UD2 Parameters'!$B$28*365*0.001*(44/28)*0.000001*(('UD2 LS'!$FI$29*'5. UD2 Parameters'!$C$59)+('UD2 LS'!$FK$29*'5. UD2 Parameters'!$E$59)) -> 0.1204988012 | BE19: ='6. UD2 Assumptions'!$C$46*'UD2 LS'!$FP$30*'UD2 LS'!$FQ$30*'5. UD2 Parameters'!$B$28*365*0.001*(44/28)*0.000001*(('UD2 LS'!$FI$30*'5. UD2 Parameters'!$C$60)+('UD2 LS'!$FK$30*'5. UD2 Parameters'!$E$60)) -> 0.9954408198 | BG19: ='UD2 LS'!$EH$21 -> 1.738128547 | BH19: =(('6. UD2 Assumptions'!$K$46*'UD2 LS'!$FP$32*'UD2 LS'!$FQ$32)*'5. UD2 Parameters'!$H$62+(('UD2 LS'!EH$4*'UD2 LS'!$FP$33*'UD2 LS'!$FQ$33)+('6. UD2 Assumptions'!$P$46*'UD2 LS'!$FP$35*'UD2 LS'!$FQ$35)+('6. UD2 Assumptions'!$M$46*'UD2 LS'!$FP$34*'UD2 LS'!$FQ$34))*'5. UD2 Parameters'!$H$63)*'5. UD2 Parameters'!$B$28*365*0.001*0.000001*44/28 -> 3.454807125 | BJ19: 10.27434094 | BK19: 34.95689594 | BN19: 2018 | BO19: 20.54725 | BP19: 4.135305 | BQ19: ='UD2 LS'!$EH$29 -> 0.7164564915 | BR19: ='UD2 LS'!$EH$32 -> 3.249009157 | BS19: ='UD2 Scenarios'!BD19 -> 0.1204988012 | BT19: ='UD2 Scenarios'!BE19 -> 0.9954408198 | BV19: ='UD2 LS'!$EH$34 -> 1.738128547 | BW19: ='UD2 Scenarios'!BH19 -> 3.454807125 | BY19: 10.27434094 | BZ19: 34.95689594 | CE19: 20.54725 | CF19: 20.54725 | CG19: 34.95680458 | CH19: 34.95680458 | CI19: 34.95680458
